Workbook

Sheet PORTADA

Sheet PRESENTACIÓN
I1: Costo Unitario de Prestación de Servicio - CU | N1: Costo Unitario de Prestación de Servicio - CU
S3: Opción Tarifaria
S6: La opción tarifaria ofrece al comercializador la posibilidad de cambiar el CU cuando las condiciones del mercado presentan un impacto considerable para el usuario. No obstante, como la empresa deja de percibir parte de sus ingresos, debe aplicar la opción tarifaria hasta que se recupere el valor financiado, lo que se traduce en cobros relativamente elevados, pero con incrementos parciales para el usuario como se evidencia en la siguiente gráfica Regulación Vigente: Res. CREG 012 de 2020
I9: COMPONENTE | J9: RESOLUCIÓN | K9: DEFINICIÓN DEL COMPONENTE | L9: EXPLICACIÓN | M9: FACTORES DE VARIACIÓN | N9: COMPONENTE | O9: RESOLUCIÓN | P9: DEFINICIÓN DEL COMPONENTE | Q9: EXPLICACIÓN | R9: FACTORES DE VARIACIÓN
A10: La Superintendencia de Servicios Públicos Domiciliarios – SSPD presenta en este documento a todos los grupos de interés la información relacionada con el Costo Unitario de Prestación del Servicio (CU) y las tarifas de energía aplicadas por los comercializadores integrados a los Operadores de Red (OR) del nivel de tensión 1 con propiedad de activos del OR en una ventana de 12 meses. Lo anterior, permitirá realizar el seguimiento mensual del comportamiento del CU y la tarifa por cada uno de los interesados a la empresa de su interés. Costo Unitario de Prestación del Servicio: Es el costo económico eficiente de prestación del servicio al usuario final regulado. El Costo Unitario de Prestación del Servicio (CU) de energía eléctrica, de acuerdo con la regulación establecida por la Comisión de Regulación de Energía y Gas – CREG, está conformado por la suma de los componentes de generación (G), transmisión (T), distribución (D), comercialización (C), pérdidas (PR) y restricciones del sistema (R), cada uno de los cuales obedece a unas condiciones reguladas para la determinación de su valor. Tarifa: Es el valor resultante de aplicar al Costo Unitario de Prestación del Servicio el factor de subsidio o contribución autorizado legalmente. En el caso de los usuarios de estrato 4 y/o usuarios no residenciales que no son beneficiarios de subsidio, ni están sujetos al pago de contribución, la tarifa corresponde al Costo Unitario de Prestación del Servicio. | I10: Generación: Gm,i,j | J10: Resolución CREG 119 de 2007, modificada por la Resolución CREG 030 de 2018 y Resolución CREG 129 de 2019, Resolución CREG 101 002de 2022. | K10: Costo de compra de energía ($/kWh) para el mes m, del comercializador minorista | L10: Costo de compra de energía en bolsa o por medio de contratos a largo plazo. | M10: Contratos: Indexación por medio de IPC Bolsa: Varia hora a hora de acuerdo con las condiciones del mercado | N10: Comercialización: Cvm,i,j | O10: Resoluciones CREG 180, modificada por la Resolución CREG 019 de 2018 y resolución CREG 191 de 2014 | P10: Margen de comercialización correspondiente al mes m, del comercializador minorista. ($/kWh) | Q10: Remunera costos asociados a la comercialización: margen de la actividad, riesgo de cartera, contribuciones, pagos al administrador del mercado. | R10: La actualización se realiza con el índice de Precios al Consumidor (IPC). Varía mensualmente.
I11: Trasmisión: Tm | J11: Resolución CREG 011 de 2009 | K11: Costo por uso del Sistema Nacional de Trasmisión (STN) ($/kWh) para el mes m. Liquidado por LAC | L11: Es el valor único para todos los comercializadores con el cual se paga el transporte de energía de las plantas generadoras hasta las redes del STR | M11: La actualización se realiza con el índice de Precios al Productor (IPP). Varía mensualmente por las variaciones en la demanda. | N11: Restricciones: Rm,i | O11: Resolución CREG 119 de 2007 | P11: Costo de restricciones y de Servicios asociados con generación asignados al Comercializador Minorista i en el mes m. ($/kWh) | Q11: Corresponde a los costos de la generación más costosa que debió utilizarse para que el STN opere de manera segura y/o por las limitaciones de su red. | R11: Es variable por cuanto depende principalmente de la magnitud de la disponibilidad de los activos de trasmisión. Varía mensualmente.
I12: Distribución: Dn,m | J12: Resolución CREG 015 de 2018, para los agentes que no tienen ingresos regulados con esta resolución les aplica la Resolución CREG 097 de 2008 | K12: Costo por uso del Sistema de Distribución (STR) ($/kWh) correspondiente al nivel de tensión n para el mes m. Los cargos para remunerar los define la LAC. | L12: Corresponde al valor que se paga por transportar la energía desde el STN hasta el usuario final a través del STR. El Ministerio de Minas y Energía junto con la CREG definieron la conformación de las ADD que agrupan el cargo de Distribución de empresas que comparten ciertas características a través de un cargo unificado denominado DtUN. | M12: La actualización se realiza con el índice de Precios al Productor (IPP). Varía mensualmente | N12: Perdidas: PRn,m,i,j | O12: Resolución CREG 119 de 20017 modificada por la Resolución CREG 173 de 2011 | P12: Costo de compra, transporte y reducción de pérdidas de energía acumuladas hasta el nivel de tensión n, para el mes m, del comercializador minorista. | Q12: Corresponde al costo reconocido de pérdidas de energía que por razones técnicas o no técnicas se pierden en el STN, STR, SDL; así como los costos de los programas de reducción de pérdidas no técnicas que se realicen por mercado de comercialización | R12: Varía por empresa de acuerdo al costo aprobado. | S12: Tarifas de Energía Eléctrica La tarifa de energía eléctrica es el resultado de aplicar al Costo Unitario de Prestación del Servicio, los principios del Fondo de Solidaridad para Subsidios y Redistribución de Ingreso (FSSRI) donde dependiendo el estrato socioeconómico se aplica un subsidio o una contribución. Como resultado de lo anterior, los usuarios de los estratos 1, 2 y 3 (usuarios de menores ingresos), reciben subsidios por concepto del FSSRI de hasta el 60%, 50% y hasta 15% respectivamente, sobre el CU, aplicables al denominado Consumo de Subsistencia (CS). En línea de lo anterior, el valor del porcentaje aplicado a cada estrato es el resultado de aplicar la metodologia respetando los rangos descritos anteriormente y solo hasta el consumo de subsistencia, es decir que, si un usuario con derecho al subsidio consumió en el mes un valor por encima del CS, a partir del CS se le cobrará la energía con la tarifa plena correspondiente a la definida para el estrato 4. Los usuarios de los estratos 5 y 6 (usuarios residenciales de mayores ingresos), así como los usuarios pertenecientes al sector comercial e industrial, pagan una contribución del 20% sobre el CU, con destino a cubrir los subsidios otorgados a los usuarios de los estratos 1, 2 y 3. Consumo de Subsistencia definido en la Resolución UPME 0355/04. Hasta 130 kWh/mes para usuarios ubicados a un altura superior a los 1.000 m.s.n.m y hasta 173 kWh/mes para usuarios ubicados a un altura inferior a los 1.000 m.s.n.m. Regulación Vigente: Res. CREG 003 de 2021.

Sheet INDICE
A7: Información tarifaria del servicio público de energía eléctrica | G7: MEDIDAS TRANSITORIAS RESOLUCIONES CREG 101 027 de 2022 y CREG 101 031 de 2022
A8: para el comercializador integrado al operador de red
A9: Fecha de publicación del documento: abril de 2023
A10: Este documento presenta la información reportada por las empresas prestadoras del servicio de energía eléctrica en el Sistema Único de Información. No implica validación de la Superservicios. A continuación encontrará el listado de las empresas sobre las cuales puede consultar el costo unitario y la tarifa de prestación del servicio.
B13: No. | C13: Empresa | D13: Mercado de Comercialización | E13: ADD
B14: 1 | C14: CEDENAR S.A. E.S.P. | D14: NARIÑO | E14: OCCIDENTE | H14: Componente de Transmisión
B15: 2 | C15: CELSIA COLOMBIA S.A. E.S.P. | D15: CELSIA VALLE DEL CAUCA | E15: OCCIDENTE | H15: Componente de Distribución
B16: 3 | C16: CELSIA COLOMBIA S.A. E.S.P. | D16: TOLIMA | E16: ORIENTE | H16: Evolución ADD
B17: 4 | C17: CENS S.A. E.S.P. | D17: NORTE DE SANTANDER | E17: CENTRO | H17: Variaciones CU
B18: 5 | C18: CEO S.A.S. E.S.P. | D18: CAUCA | E18: OCCIDENTE | H18: Variaciones Tarifas
B19: 6 | C19: CETSA S.A. E.S.P. | D19: TULUA | E19: OCCIDENTE | H19: Alfas
B20: 7 | C20: CHEC S.A. E.S.P. | D20: CALDAS | E20: CENTRO
B21: 8 | C21: ENEL COLOMBIA S.A. E.S.P. | D21: BOGOTÁ - CUNDINAMARCA CREG 199/16 | E21: ORIENTE
B22: 9 | C22: DISPAC S.A. E.S.P. | D22: CHOCO | E22: SIN ADD
B23: 10 | C23: EBSA S.A. E.S.P. | D23: BOYACA | E23: ORIENTE
B24: 11 | C24: EDEQ S.A. E.S.P. | D24: QUINDIO | E24: CENTRO
B25: 12 | C25: EE PUTUMAYO S.A. E.S.P. | D25: PUTUMAYO | E25: SUR
B26: 13 | C26: EEBP S.A. E.S.P. | D26: BAJO PUTUMAYO | E26: SUR
B27: 14 | C27: EEP S.A. E.S.P. (Pereira) | D27: PEREIRA | E27: CENTRO
B28: 15 | C28: AIR-E S.A.S. E.S.P. | D28: CARIBE SOL | E28: SIN ADD
B29: 16 | C29: CARIBEMAR DE LA COSTA S.A.S. E.S.P. (AFINIA) | D29: CARIBE MAR | E29: SIN ADD
B30: 17 | C30: ELECTROCAQUETÁ S.A. E.S.P. | D30: CAQUETÁ | E30: SUR
B31: 18 | C31: ELECTROHUILA S.A. E.S.P. | D31: HUILA | E31: ORIENTE
B32: 19 | C32: EMCALI E.I.C.E. E.S.P. | D32: CALI - YUMBO - PUERTO TEJADA | E32: OCCIDENTE
B33: 20 | C33: EEP S.A. E.S.P. (Cartago) | D33: CARTAGO | E33: OCCIDENTE
B34: 21 | C34: EMEESA S.A. E.S.P. | D34: POPAYÁN - PURACÉ | E34: OCCIDENTE
B35: 22 | C35: EMEVASI S.A. E.S.P. | D35: SIBUNDOY | E35: SUR
B36: 23 | C36: EMSA S.A. E.S.P. | D36: META | E36: SUR
B37: 24 | C37: ENELAR S.A. E.S.P. | D37: ARAUCA | E37: ORIENTE
B38: 25 | C38: ENERCA S.A. E.S.P. | D38: CASANARE | E38: SUR
B39: 26 | C39: ENERGUVIARE E.S.P. | D39: GUAVIARE | E39: SIN ADD
B40: 27 | C40: EPM E.S.P. | D40: ANTIOQUIA CREG 078/07 | E40: CENTRO
B41: 28 | C41: ESSA S.A. E.S.P. | D41: SANTANDER | E41: CENTRO
B42: 29 | C42: RUITOQUE S.A. E.S.P. | D42: RUITOQUE | E42: CENTRO

Sheet 1. CEDENAR
I1: REGRESAR
A2: EMPRESA: | C2: CENTRALES ELÉCTRICAS DE NARIÑO S.A. E.S.P. (ID 520)
A3: MERCADO: | C3: NARIÑO
A5: 1. COSTO UNITARIO DE PRESTACIÓN DEL SERVICIO Nivel de Tensión 1, Propiedad de Activos del OR | N5: 2. TARIFA AL USUARIO FINAL Nivel de Tensión 1, Propiedad de Activos del OR (estrato 1, 2 y 3 hasta el CS) | X5: 3. OPCIÓN TARIFARIA Nivel de Tensión 1, Propiedad de Activos del OR
B6: AÑO | C6: PERIODO | D6: GM | E6: TM | F6: PR | G6: D | H6: CV | I6: RM | J6: CUV_119 | K6: CUV_Op | O6: AÑO | P6: PERIODO | Q6: ESTRATO 1 | R6: ESTRATO 2 | S6: ESTRATO 3 | T6: ESTRATO 4 | U6: ESTRATO 5 y 6, Ind y Com
A7: May-22 | B7: 2022 | C7: 5 | D7: 266.72 | E7: 40.98 | F7: 49.61 | G7: 262.27 | H7: 142.53 | I7: 42.88 | J7: 805 | K7: 740.18 | N7: May-22 | O7: 2022 | P7: 5 | Q7: 296.07 | R7: 370.09 | S7: 629.16 | T7: 740.18 | U7: 888.22
A8: Jun-22 | B8: 2022 | C8: 6 | D8: 278.16 | E8: 49.52 | F8: 52.33 | G8: 276.02 | H8: 137.53 | I8: 60.49 | J8: 854.06 | K8: 762.39 | N8: Jun-22 | O8: 2022 | P8: 6 | Q8: 304.96 | R8: 381.19 | S8: 648.03 | T8: 762.39 | U8: 914.87
A9: jul-22 | B9: 2022 | C9: 7 | D9: 275.78 | E9: 41.91 | F9: 51.29 | G9: 282.52 | H9: 144.92 | I9: 56.43 | J9: 852.86 | K9: 785.26 | N9: jul-22 | O9: 2022 | P9: 7 | Q9: 314.1 | R9: 392.63 | S9: 667.47 | T9: 785.26 | U9: 942.31
A10: Ago-22 | B10: 2022 | C10: 8 | D10: 279.19 | E10: 52.12 | F10: 53.83 | G10: 280.75 | H10: 143.28 | I10: 71.49 | J10: 880.65 | K10: 808.82 | N10: Ago-22 | O10: 2022 | P10: 8 | Q10: 323.53 | R10: 404.41 | S10: 687.5 | T10: 808.82 | U10: 970.58
A11: Sep-22 | B11: 2022 | C11: 9 | D11: 279.26 | E11: 50.85 | F11: 54.07 | G11: 270.78 | H11: 146.37 | I11: 45.87 | J11: 847.2 | K11: 813.67 | N11: Sep-22 | O11: 2022 | P11: 9 | Q11: 326.84 | R11: 408.55 | S11: 691.62 | T11: 813.67 | U11: 976.41
A12: Oct-22 | B12: 2022 | C12: 10 | D12: 293.32 | E12: 46.17 | F12: 55.85 | G12: 263.03 | H12: 144.15 | I12: 29.75 | J12: 832.27 | K12: 798.74 | N12: Oct-22 | O12: 2022 | P12: 10 | Q12: 320.84 | R12: 401.05 | S12: 678.93 | T12: 798.74 | U12: 958.49
A13: Nov-22 | B13: 2022 | C13: 11 | D13: 295.14 | E13: 47.1 | F13: 56.05 | G13: 270.17 | H13: 142.2 | I13: 28.67 | J13: 839.33 | K13: 798.74 | N13: Nov-22 | O13: 2022 | P13: 11 | Q13: 320.84 | R13: 401.05 | S13: 678.93 | T13: 798.74 | U13: 958.49
A14: Dic-22 | B14: 2022 | C14: 12 | D14: 276.26 | E14: 50.31 | F14: 53.46 | G14: 271.49 | H14: 146.36 | I14: 38.06 | J14: 835.93 | K14: 807.29 | N14: Dic-22 | O14: 2022 | P14: 12 | Q14: 323.31 | R14: 404.13 | S14: 686.19 | T14: 807.29 | U14: 968.75
A15: Ene-23 | B15: 2023 | C15: 1 | D15: 299.19 | E15: 51.97 | F15: 56.92 | G15: 268.32 | H15: 145.99 | I15: 22.79 | J15: 845.19 | K15: 817.46 | N15: Ene-23 | O15: 2023 | P15: 1 | Q15: 327.39 | R15: 409.23 | S15: 694.84 | T15: 817.46 | U15: 980.95
A16: Feb-23 | B16: 2023 | C16: 2 | D16: 324.66 | E16: 48.71 | F16: 72.81 | G16: 276.7 | H16: 148.25 | I16: 21.44 | J16: 892.56 | K16: 828.33 | N16: Feb-23 | O16: 2023 | P16: 2 | Q16: 333.2 | R16: 416.5 | S16: 704.08 | T16: 828.33 | U16: 994
A17: Mar-23 | B17: 2023 | C17: 3 | D17: 377.45 | E17: 52.3669 | F17: 81.73 | G17: 279.31 | H17: 152.91 | I17: 17.48 | J17: 961.26 | K17: 842.08 | N17: Mar-23 | O17: 2023 | P17: 3 | Q17: 338.74 | R17: 423.42 | S17: 715.77 | T17: 842.08 | U17: 1010.5
A18: Abr-23 | B18: 2023 | C18: 4 | N18: Abr-23 | O18: 2023 | P18: 4
A19: * Pesos corrientes | D19: =+(D18-D17)/D17 -> -1 | E19: -1 | F19: -1 | G19: -1 | H19: -1 | I19: -1 | J19: -1 | K19: -1 | N19: * Pesos corrientes | Q19: =+(Q18-Q17)/Q17 -> -1 | R19: =+(R18-R17)/R17 -> -1 | S19: =+(S18-S17)/S17 -> -1 | T19: =+(T18-T17)/T17 -> -1 | U19: =+(U18-U17)/U17 -> -1
X26: CUV_119 | Y26: Costo Unitario de Prestación del Servicio resultado de aplicar la metodología establecida en la Res. CREG 119 de 2007.
X29: CUV_Op | Y29: Costo Unitario de Prestación del Servicio resultado de aplicar la metodología establecida en la Res. CREG 012 de 2020. Opción Tarifaria

Sheet 2. CELSIA COLOMBIA Valle
I1: REGRESAR
A2: EMPRESA: | C2: CELSIA COLOMBIA S.A. E.S.P. (536)
A3: MERCADO: | C3: CELSIA VALLE DEL CAUCA
A5: 1. COSTO UNITARIO DE PRESTACIÓN DEL SERVICIO Nivel de Tensión 1, Propiedad de Activos del OR | M5: 2. TARIFA AL USUARIO FINAL Nivel de Tensión 1, Propiedad de Activos del OR (estrato 1, 2 y 3 hasta el CS) | X5: 3. OPCIÓN TARIFARIA Nivel de Tensión 1, Propiedad de Activos del OR
B6: AÑO | C6: PERIODO | D6: GM | E6: TM | F6: PR | G6: D | H6: CV | I6: RM | J6: CUV_119 | K6: CUV_Op | N6: AÑO | O6: PERIODO | P6: ESTRATO 1 | Q6: ESTRATO 2 | R6: ESTRATO 3 | S6: ESTRATO 4 | T6: ESTRATO 5 y 6, Ind y Com
A7: May-22 | B7: 2022 | C7: 5 | D7: 275.49 | E7: 40.98 | F7: 54.04 | G7: 262.27 | H7: 99.56 | I7: 38.79 | J7: 771.13 | K7: 743.03 | M7: May-22 | N7: 2022 | O7: 5 | P7: 297.21 | Q7: 371.52 | R7: 631.58 | S7: 743.03 | T7: 891.64
A8: Jun-22 | B8: 2022 | C8: 6 | D8: 279.66 | E8: 49.52 | F8: 55.54 | G8: 276.02 | H8: 100.51 | I8: 55.55 | J8: 816.8 | K8: 748.97 | M8: Jun-22 | N8: 2022 | O8: 6 | P8: 299.59 | Q8: 374.49 | R8: 636.62 | S8: 748.97 | T8: 898.76
A9: Jul-22 | B9: 2022 | C9: 7 | D9: 284.77 | E9: 41.91 | F9: 55.83 | G9: 282.52 | H9: 104.75 | I9: 49.77 | J9: 819.55 | K9: 763.95 | M9: Jul-22 | N9: 2022 | O9: 7 | P9: 305.58 | Q9: 381.97 | R9: 649.36 | S9: 763.95 | T9: 916.74
A10: ago-22 | B10: 2022 | C10: 8 | D10: 287.19 | E10: 52.12 | F10: 58.08 | G10: 280.75 | H10: 105.39 | I10: 66.61 | J10: 850.14 | K10: 790.69 | M10: ago-22 | N10: 2022 | O10: 8 | P10: 316.28 | Q10: 395.34 | R10: 672.09 | S10: 790.69 | T10: 948.83
A11: Sep-22** | B11: 2022 | C11: 9 | D11: 291.37 | E11: 50.85 | F11: 59.19 | G11: 270.78 | H11: 107.33 | I11: 42.3 | J11: 821.82 | K11: 798.76 | M11: sep-22 | N11: 2022 | O11: 9 | P11: 319.51 | Q11: 399.38 | R11: 678.95 | S11: 798.76 | T11: 958.51
A12: Oct-22** | B12: 2022 | C12: 10 | D12: 301.22 | E12: 46.17 | F12: 60.14 | G12: 263.03 | H12: 104.96 | I12: 27.23 | J12: 802.75 | K12: 779.69 | M12: oct-22 | N12: 2022 | O12: 10 | P12: 311.88 | Q12: 389.84 | R12: 662.74 | S12: 779.69 | T12: 935.63
A13: Nov-22 | B13: 2022 | C13: 11 | D13: 296.06 | E13: 47.1 | F13: 58.87 | G13: 270.17 | H13: 104.31 | I13: 24.95 | J13: 801.46 | K13: 778.4 | M13: Nov-22 | N13: 2022 | O13: 11 | P13: 311.36 | Q13: 389.2 | R13: 661.64 | S13: 778.4 | T13: 934.08
A14: Dic-22 | B14: 2022 | C14: 12 | D14: 284.57 | E14: 50.31 | F14: 57.65 | G14: 271.49 | H14: 105.01 | I14: 33.19 | J14: 802.22 | K14: 786.72 | M14: Dic-22 | N14: 2022 | O14: 12 | P14: 314.69 | Q14: 393.36 | R14: 668.71 | S14: 786.72 | T14: =+S14*1.2 -> 944.064
A15: Ene-23 | B15: 2023 | C15: 1 | D15: 297.88 | E15: 51.97 | F15: 59.41 | G15: 268.32 | H15: 110.11 | I15: 19.93 | J15: 807.62 | K15: 799 | M15: Ene-23 | N15: 2023 | O15: 1 | P15: 319.6 | Q15: 399.5 | R15: 679.15 | S15: 799 | T15: =+S15*1.2 -> 958.8
A16: Feb-23 | B16: 2023 | C16: 2 | D16: 291.56 | E16: 48.71 | F16: 58.08 | G16: 276.7 | H16: 108.35 | I16: 19 | J16: 802.4 | K16: 815.6 | M16: Feb-23 | N16: 2023 | O16: 2 | P16: 326.24 | Q16: 407.8 | R16: 693.26 | S16: 815.6 | T16: =+S16*1.2 -> 978.72
A17: Mar-23 | B17: 2023 | C17: 3 | D17: 303.12 | E17: 52.37 | F17: 60.12 | G17: 279.31 | H17: 114.79 | I17: 16.46 | J17: 826.17 | K17: 831.59 | M17: Mar-23 | N17: 2023 | O17: 3 | P17: 332.64 | Q17: 415.79 | R17: 706.85 | S17: 831.59 | T17: =+S17*1.2 -> 997.908
A18: Abr-23 | B18: 2023 | C18: 4 | D18: 288.48 | E18: 53.52 | F18: 57.95 | G18: 266.48 | H18: 117.37 | I18: 34.83 | J18: 818.6 | K18: 842.82 | M18: Abr-23 | N18: 2023 | O18: 4 | P18: 337.13 | Q18: 421.41 | R18: 716.4 | S18: 842.82 | T18: =+S18*1.2 -> 1011.384
A19: * Pesos corrientes | D19: =+(D18-D17)/D17 -> -0.04829770388 | E19: =+(E18-E17)/E17 -> 0.02195913691 | F19: -0.03609447771 | G19: -0.04593462461 | H19: 0.02247582542 | I19: 1.116038882 | J19: -0.009162763112 | K19: 0.01350425089 | M19: * Pesos corrientes | P19: =+(P18-P17)/P17 -> 0.013498076 | Q19: 0.01351643859 | R19: 0.01351064582 | S19: 0.01350425089 | T19: 0.01350425089
A20: ** Republicación
V25: CUV_119 | W25: Costo Unitario de Prestación del Servicio resultado de aplicar la metodología establecida en la Res. CREG 119 de 2007.
V28: CUV_Op | W28: Costo Unitario de Prestación del Servicio resultado de aplicar la metodología establecida en la Res. CREG 012 de 2020. Opción Tarifaria

Sheet 3. CELSIA COLOMBIA Tolima
I1: REGRESAR
A2: EMPRESA: | C2: CELSIA COLOMBIA S.A. E.S.P. (536)
A3: MERCADO: | C3: TOLIMA
A5: 1. COSTO UNITARIO DE PRESTACIÓN DEL SERVICIO Nivel de Tensión 1, Propiedad de Activos del OR | N5: 2. TARIFA AL USUARIO FINAL Nivel de Tensión 1, Propiedad de Activos del OR (estrato 1, 2 y 3 hasta el CS) | W5: 3. OPCIÓN TARIFARIA Nivel de Tensión 1, Propiedad de Activos del OR
B6: AÑO | C6: PERIODO | D6: GM | E6: TM | F6: PR | G6: D | H6: CV | I6: RM | J6: CUV_119 | K6: CUV_Op | O6: AÑO | P6: PERIODO | Q6: ESTRATO 1 | R6: ESTRATO 2 | S6: ESTRATO 3 | T6: ESTRATO 4 | U6: ESTRATO 5 y 6, Ind y Com
A7: May-22 | B7: 2022 | C7: 5 | D7: 273.92 | E7: 40.98 | F7: 81.63 | G7: 439.65 | H7: 92.56 | I7: 38.79 | J7: 967.53 | K7: 776.67 | N7: May-22 | O7: 2022 | P7: 5 | Q7: 310.67 | R7: 388.34 | S7: 660.17 | T7: 776.67 | U7: 932
A8: Jun-22 | B8: 2022 | C8: 6 | D8: 277.94 | E8: 49.52 | F8: 84.09 | G8: 446.07 | H8: 92.02 | I8: 55.55 | J8: 1005.19 | K8: 781.33 | N8: Jun-22 | O8: 2022 | P8: 6 | Q8: 312.53 | R8: 390.67 | S8: 664.13 | T8: 781.33 | U8: 937.6
A9: Jul-22 | B9: 2022 | C9: 7 | D9: 283.07 | E9: 41.91 | F9: 84.36 | G9: 470.44 | H9: 94.19 | I9: 49.77 | J9: 1023.74 | K9: 796.96 | N9: jul-22 | O9: 2022 | P9: 7 | Q9: 318.78 | R9: 398.48 | S9: 677.42 | T9: 796.96 | U9: 956.35
A10: Ago-22 | B10: 2022 | C10: 8 | D10: 285.39 | E10: 52.12 | F10: 87.7 | G10: 445.55 | H10: 96.79 | I10: 66.61 | J10: 1034.16 | K10: 824.85 | N10: Ago-22 | O10: 2022 | P10: 8 | Q10: 329.94 | R10: 412.42 | S10: 701.12 | T10: 842.85 | U10: 989.82
A11: Sep-22** | B11: 2022 | C11: 9 | D11: 289.58 | E11: 50.85 | F11: 89.26 | G11: 421.42 | H11: 96.99 | I11: 42.3 | J11: 990.4 | K11: 833.26 | N11: Sep-22 | O11: 2022 | P11: 9 | Q11: 333.31 | R11: 416.64 | S11: 708.27 | T11: 833.26 | U11: 999.91
A12: Oct-22** | B12: 2022 | C12: 10 | D12: 299.35 | E12: 46.17 | F12: 90.57 | G12: 368.57 | H12: 95.47 | I12: 27.23 | J12: 927.36 | K12: 770.22 | N12: Oct-22 | O12: 2022 | P12: 10 | Q12: 308.09 | R12: 385.12 | S12: 654.69 | T12: 770.22 | U12: =+T12*1.2 -> 924.264
A13: Nov-22 | B13: 2022 | C13: 11 | D13: 294.97 | E13: 47.1 | F13: 88.95 | G13: 259.88 | H13: 92.42 | I13: 24.95 | J13: 808.27 | K13: 759.82 | N13: Nov-22 | O13: 2022 | P13: 11 | Q13: 303.93 | R13: 379.92 | S13: 645.85 | T13: 759.82 | U13: 911.78
A14: Dic-22 | B14: 2022 | C14: 12 | D14: 283.51 | E14: 50.31 | F14: 86.83 | G14: 241.94 | H14: 90.19 | I14: 33.19 | J14: 785.97 | K14: 767.94 | N14: Dic-22 | O14: 2022 | P14: 12 | Q14: 307.18 | R14: 383.97 | S14: 652.75 | T14: 767.94 | U14: =+T14*1.2 -> 921.528
A15: Ene-23 | B15: 2023 | C15: 1 | D15: 297.11 | E15: 51.97 | F15: 89.89 | G15: 244.9 | H15: 91.74 | I15: 19.93 | J15: 795.54 | K15: 779.93 | N15: Ene-23 | O15: 2023 | P15: 1 | Q15: 311.97 | R15: 389.97 | S15: 662.94 | T15: 779.93 | U15: =+T15*1.2 -> 935.916
A16: Feb-23 | B16: 2023 | C16: 2 | D16: 291.76 | E16: 48.71 | F16: 88.13 | G16: 248.76 | H16: 92.97 | I16: 19 | J16: 789.33 | K16: 796.13 | N16: Feb-23 | O16: 2023 | P16: 2 | Q16: 318.45 | R16: 398.07 | S16: 676.71 | T16: 796.13 | U16: =+T16*1.2 -> 955.356
A17: Mar-23 | B17: 2023 | C17: 3 | D17: 303.32 | E17: 52.37 | F17: 91.46 | G17: 265.99 | H17: 92.07 | I17: 16.46 | J17: 821.67 | K17: 811.74 | N17: Mar-23 | O17: 2023 | P17: 3 | Q17: 324.7 | R17: 405.87 | S17: 689.98 | T17: 811.74 | U17: =+T17*1.2 -> 974.088
A18: Abr-23 | B18: 2023 | C18: 4 | D18: 288.45 | E18: 53.52 | F18: 83.9 | G18: 263.18 | H18: 95.51 | I18: 34.83 | J18: 819.6 | K18: 822.7 | N18: Abr-23 | O18: 2023 | P18: 4 | Q18: 329.08 | R18: 411.35 | S18: 699.29 | T18: 822.7 | U18: =+T18*1.2 -> 987.24
A19: * Pesos corrientes | D19: =+(D18-D17)/D17 -> -0.04902413293 | E19: =+(E18-E17)/E17 -> 0.02195913691 | F19: -0.08265908594 | G19: -0.01056430693 | H19: 0.03736287607 | I19: 1.116038882 | J19: -0.002519259557 | K19: 0.0135018602 | N19: * Pesos corrientes | Q19: =+(Q18-Q17)/Q17 -> 0.01348937481 | R19: =+(R18-R17)/R17 -> 0.0135018602 | S19: =+(S18-S17)/S17 -> 0.01349314473 | T19: =+(T18-T17)/T17 -> 0.0135018602 | U19: =+(U18-U17)/U17 -> 0.0135018602
A20: ** Republicación
W30: CUV_119 | X30: Costo Unitario de Prestación del Servicio resultado de aplicar la metodología establecida en la Res. CREG 119 de 2007.
W33: CUV_Op | X33: Costo Unitario de Prestación del Servicio resultado de aplicar la metodología establecida en la Res. CREG 012 de 2020. Opción Tarifaria

Sheet 4. CENS
I1: REGRESAR
A2: EMPRESA: | B2: CENTRALES ELÉCTRICAS DE NORTE DE SANTANDER S.A. E.S.P. (604)
A3: MERCADO: | B3: NORTE DE SANTANDER
A5: 1. COSTO UNITARIO DE PRESTACIÓN DEL SERVICIO Nivel de Tensión 1, Propiedad de Activos del OR | N5: 2. TARIFA AL USUARIO FINAL Nivel de Tensión 1, Propiedad de Activos del OR (estrato 1, 2 y 3 hasta el CS) | W5: 3. OPCIÓN TARIFARIA Nivel de Tensión 1, Propiedad de Activos del OR
B6: AÑO | C6: PERIODO | D6: GM | E6: TM | F6: PR | G6: D | H6: CV | I6: RM | J6: CUV_119 | K6: CUV_Op | O6: AÑO | P6: PERIODO | Q6: ESTRATO 1 | R6: ESTRATO 2 | S6: ESTRATO 3 | T6: ESTRATO 4 | U6: ESTRATO 5 y 6, Ind y Com
A7: May-22 | B7: 2022 | C7: 5 | D7: 248.66 | E7: 40.98 | F7: 63.33 | G7: 301.04 | H7: 74.7 | I7: 40.47 | J7: 769.17 | K7: 690.54 | N7: May-22 | O7: 2022 | P7: 5 | Q7: 276.22 | R7: 345.27 | S7: 586.96 | T7: 690.54 | U7: 828.65
A8: Jun-22 | B8: 2022 | C8: 6 | D8: 235.54 | E8: 49.52 | F8: 61.97 | G8: 320.41 | H8: 71.33 | I8: 58.03 | J8: 796.79 | K8: 715.4 | N8: Jun-22 | O8: 2022 | P8: 6 | Q8: 286.16 | R8: 357.7 | S8: 608.09 | T8: 715.4 | U8: 858.48
A9: Jul-22 | B9: 2022 | C9: 7 | D9: 241.9 | E9: 41.9 | F9: 62.41 | G9: 328.93 | H9: 72.4 | I9: 52 | J9: 799.55 | K9: 736.87 | N9: Jul-22 | O9: 2022 | P9: 7 | Q9: 294.75 | R9: 368.43 | S9: 626.34 | T9: 736.87 | U9: 884.24
A10: Ago-22 | B10: 2022 | C10: 8 | D10: 251.13 | E10: 52.12 | F10: 66.75 | G10: 335.4 | H10: 72.9 | I10: 71.98 | J10: 850.29 | K10: 781.08 | N10: Ago-22 | O10: 2022 | P10: 8 | Q10: 312.43 | R10: 390.54 | S10: 663.92 | T10: 781.08 | U10: 937.29
A11: Sep-22 | B11: 2022 | C11: 9 | D11: 256.69 | E11: 50.85 | F11: 68.35 | G11: 314.86 | H11: 75.72 | I11: 43.35 | J11: 809.82 | K11: 785.76 | N11: Sep-22 | O11: 2022 | P11: 9 | Q11: 315.62 | R11: 394.52 | S11: 667.9 | T11: 785.76 | U11: 942.92
A12: Oct-22 | B12: 2022 | C12: 10 | D12: 280.53 | E12: 46.17 | F12: 72.41 | G12: 303 | H12: 69.87 | I12: 28.57 | J12: 800.55 | K12: 776.81 | N12: Oct-22 | O12: 2022 | P12: 10 | Q12: 312.02 | R12: 390.02 | S12: 660.29 | T12: 776.81 | U12: 932.17
A13: Nov-22 | B13: 2022 | C13: 11 | D13: 271.98 | E13: 47.1 | F13: 70.5 | G13: 305.31 | H13: 71.19 | I13: 26.57 | J13: 792.64 | K13: 768.9 | N13: Nov-22 | O13: 2022 | P13: 11 | Q13: 308.84 | R13: 386.05 | S13: 653.56 | T13: 768.9 | U13: 922.68
A14: Dic-22 | B14: 2022 | C14: 12 | D14: 269.57 | E14: 50.31 | F14: 68.33 | G14: 307.61 | H14: 73.8 | I14: 34.56 | J14: 804.16 | K14: 774.82 | N14: Dic-22 | O14: 2022 | P14: 12 | Q14: 311.22 | R14: 389.03 | S14: 658.6 | T14: 774.82 | U14: 929.78
A15: Ene-23 | B15: 2023 | C15: 1 | D15: 273.53 | E15: 51.97 | F15: 66.66 | G15: 289.27 | H15: 74.28 | I15: 21.73 | J15: 777.45 | K15: 784.59 | N15: Ene-23 | O15: 2023 | P15: 1 | Q15: 315.14 | R15: 393.93 | S15: 666.9 | T15: 784.59 | U15: 941.51
A16: Feb-23 | B16: 2023 | C16: 2 | D16: 294.05 | E16: 48.71 | F16: 70.07 | G16: 294.99 | H16: 77.31 | I16: 16.46 | J16: 801.59 | K16: 798.54 | N16: Feb-23 | O16: 2023 | P16: 2 | Q16: 320.74 | R16: 400.93 | S16: 678.76 | T16: 798.54 | U16: 958.25
A17: Mar-23 | B17: 2023 | C17: 3 | D17: 339.02 | E17: 52.37 | F17: 79.87 | G17: 315.34 | H17: 78.36 | I17: 16.84 | J17: 881.79 | K17: 811.8 | N17: Mar-23 | O17: 2023 | P17: 3 | Q17: 326.0682 | R17: 407.5853 | S17: 690.0294 | T17: 811.8 | U17: 974.16
A18: Abr-23 | B18: 2023 | C18: 4 | N18: Abr-23 | O18: 2023 | P18: 4
A19: * Pesos corrientes | D19: =+(D18-D17)/D17 -> -1 | E19: =+(E18-E17)/E17 -> -1 | F19: -1 | G19: -1 | H19: -1 | I19: -1 | J19: -1 | K19: -1 | N19: * Pesos corrientes | Q19: =+(Q18-Q17)/Q17 -> -1 | R19: =+(R18-R17)/R17 -> -1 | S19: =+(S18-S17)/S17 -> -1 | T19: =+(T18-T17)/T17 -> -1 | U19: =+(U18-U17)/U17 -> -1
W24: CUV_119 | X24: Costo Unitario de Prestación del Servicio resultado de aplicar la metodología establecida en la Res. CREG 119 de 2007.
W27: CUV_Op | X27: Costo Unitario de Prestación del Servicio resultado de aplicar la metodología establecida en la Res. CREG 012 de 2020. Opción Tarifaria

Sheet 5. CEO
I1: REGRESAR
A2: EMPRESA: | B2: COMPAÑÍA ENERGÉTICA DE OCCIDENTE E.S.P. (23442)
A3: MERCADO: | B3: CAUCA
A5: 1. COSTO UNITARIO DE PRESTACIÓN DEL SERVICIO Nivel de Tensión 1, Propiedad de Activos del OR | N5: 2. TARIFA AL USUARIO FINAL Nivel de Tensión 1, Propiedad de Activos del OR (estrato 1, 2 y 3 hasta el CS) | W5: 3. OPCIÓN TARIFARIA Nivel de Tensión 1, Propiedad de Activos del OR
B6: AÑO | C6: PERIODO | D6: GM | E6: TM | F6: PR | G6: D | H6: CV | I6: RM | J6: CUV_119 | K6: CUV_Op | O6: AÑO | P6: PERIODO | Q6: ESTRATO 1 | R6: ESTRATO 2 | S6: ESTRATO 3 | T6: ESTRATO 4 | U6: ESTRATO 5 y 6, Ind y Com
A7: May-22 | B7: 2022 | C7: 5 | D7: 262.0367 | E7: 40.9789 | F7: 53.3324 | G7: 262.2728 | H7: 178.5546 | I7: 36.4092 | J7: 833.5846 | N7: May-22 | O7: 2022 | P7: 5 | Q7: 333.4338 | R7: 416.7923 | S7: 708.5469 | T7: 833.5846 | U7: 1000.30152
A8: Jun-22 | B8: 2022 | C8: 6 | D8: 262.6615 | E8: 49.5218 | F8: 54.3655 | G8: 276.0211 | H8: 149.0924 | I8: 55.8168 | J8: 847.4791 | N8: Jun-22 | O8: 2022 | P8: 6 | Q8: 338.9917 | R8: 423.7396 | S8: 720.3572 | T8: 847.4791 | U8: 1016.97492
A9: Jul-22 | B9: 2022 | C9: 7 | D9: 270.1475 | E9: 41.9124 | F9: 55.1322 | G9: 282.5232 | H9: 158.8457 | I9: 54.6253 | J9: 863.1863 | N9: Jul-22 | O9: 2022 | P9: 7 | Q9: 345.2746 | R9: 431.5932 | S9: 733.7084 | T9: 863.1863 | U9: 1035.82356
A10: Ago-22 | B10: 2022 | C10: 8 | D10: 273.1684 | E10: 52.1163 | F10: 57.4115 | G10: 280.7454 | H10: 166.002 | I10: 67.9948 | J10: 897.4384 | N10: Ago-22 | O10: 2022 | P10: 8 | Q10: 358.9754 | R10: 448.7193 | S10: 762.8226 | T10: 897.4384 | U10: 1076.9261
A11: Sep-22 | B11: 2022 | C11: 9 | D11: 277.92 | E11: 50.84 | F11: 58.77 | G11: 270.77 | H11: 166.73 | I11: 45.05 | J11: 870.11 | N11: Sep-22 | O11: 2022 | P11: 9 | Q11: 362.64 | R11: 453.3 | S11: 739.59 | T11: 870.11 | U11: 1044.13
A12: Oct-22 | B12: 2022 | C12: 10 | D12: 296.551 | E12: 46.1657 | F12: 60.9818 | G12: 263.0337 | H12: 166.6604 | I12: 27.6874 | J12: 861.08 | N12: Oct-22 | O12: 2022 | P12: 10 | Q12: 358.8831 | R12: 448.6038 | S12: 731.918 | T12: 861.08 | U12: 1033.296
A13: Nov-22 | B13: 2022 | C13: 11 | D13: 299.9286 | E13: 47.0988 | F13: 61.1837 | G13: 270.1676 | H13: 162.8442 | I13: 26.9199 | J13: 868.1428 | N13: Nov-22 | O13: 2022 | P13: 11 | Q13: 361.4584 | R13: 451.823 | S13: 737.9214 | T13: 868.1428 | U13: 1041.7714
A14: Dic-22 | B14: 2022 | C14: 12 | D14: 280.584 | E14: 50.307 | F14: 58.7646 | G14: 271.4922 | H14: 164.2462 | I14: 33.9464 | J14: 859.3404 | N14: Dic-22 | O14: 2022 | P14: 12 | Q14: 364.2386 | R14: 455.2983 | S14: 730.4393 | T14: 859.3404 | U14: =+T14*1.2 -> 1031.20848
A15: Ene-23 | B15: 2023 | C15: 1 | D15: 296.5741 | E15: 51.9732 | F15: 60.9159 | G15: 268.3198 | H15: 168.1876 | I15: 20.8903 | J15: 866.8609 | N15: Ene-23 | O15: 2023 | P15: 1 | Q15: 368.8333 | R15: 461.0417 | S15: 736.8318 | T15: 866.8609 | U15: =+T15*1.2 -> 1040.23308
A16: Feb-23 | B16: 2023 | C16: 2 | D16: 323.6716 | E16: 48.7081 | F16: 61.356 | G16: 276.7001 | H16: 164.1928 | I16: 19.9218 | J16: 894.5504 | N16: Feb-23 | O16: 2023 | P16: 2 | Q16: 375.3888 | R16: 469.236 | S16: 760.3678 | T16: 894.5504 | U16: =+T16*1.2 -> 1073.46048
A17: Mar-23 | B17: 2023 | C17: 3 | D17: 379.818 | E17: 52.3669 | F17: 73.748 | G17: 279.3135 | H17: 173.6801 | I17: 16.1094 | J17: 975.0359 | N17: Mar-23 | O17: 2023 | P17: 3 | Q17: 390.0144 | R17: 487.518 | S17: 828.7805 | T17: 975.0359 | U17: 1170.0431
A18: Abr-23 | B18: 2023 | C18: 4 | D18: 310.49 | E18: 53.521 | F18: 74.475 | G18: 266.4813 | H18: 186.0988 | I18: 35.1507 | J18: 926.2168 | N18: Abr-23 | O18: 2023 | P18: 4 | Q18: 394.1119 | R18: 492.6399 | S18: 787.2843 | T18: 926.2168 | U18: 1111.4602
A19: * Pesos corrientes | D19: =+(D18-D17)/D17 -> -0.1825295273 | E19: =+(E18-E17)/E17 -> 0.02203873057 | F19: =+(F18-F17)/F17 -> 0.009857894451 | G19: -0.04594192547 | H19: 0.07150329831 | I19: 1.18199933 | J19: -0.05006902823 | K19: =+(K18-K17)/K17 ->  | N19: * Pesos corrientes | Q19: =+(Q18-Q17)/Q17 -> 0.01050602234 | R19: =+(R18-R17)/R17 -> 0.01050607362 | S19: -0.0500689869 | T19: -0.05006902823 | U19: -0.05006901028
W29: CUV_119 | X29: Costo Unitario de Prestación del Servicio resultado de aplicar la metodología establecida en la Res. CREG 119 de 2007.
W32: CUV_Op | X32: Costo Unitario de Prestación del Servicio resultado de aplicar la metodología establecida en la Res. CREG 012 de 2020. Opción Tarifaria

Sheet 6. CETSA
I1: REGRESAR
A2: EMPRESA: | C2: COMPAÑÍA DE ELECTRICIDAD DE TULUÁ S.A. E.S.P. (637)
A3: MERCADO: | C3: TULUÁ
A5: 1. COSTO UNITARIO DE PRESTACIÓN DEL SERVICIO Nivel de Tensión 1, Propiedad de Activos del OR | N5: 2. TARIFA AL USUARIO FINAL Nivel de Tensión 1, Propiedad de Activos del OR (estrato 1, 2 y 3 hasta el CS) | W5: 3. OPCIÓN TARIFARIA Nivel de Tensión 1, Propiedad de Activos del OR
B6: AÑO | C6: PERIODO | D6: GM | E6: TM | F6: PR | G6: D | H6: CV | I6: RM | J6: CUV_119 | K6: CUV_Op | O6: AÑO | P6: PERIODO | Q6: ESTRATO 1 | R6: ESTRATO 2 | S6: ESTRATO 3 | T6: ESTRATO 4 | U6: ESTRATO 5 y 6, Ind y Com
A7: May-22 | B7: 2022 | C7: 5 | D7: 299.33 | E7: 40.98 | F7: 54.33 | G7: 262.27 | H7: 69.78 | I7: 37.93 | J7: 764.62 | K7: 723.08 | N7: May-22 | O7: 2022 | P7: 5 | Q7: 289.23 | R7: 361.55 | S7: 614.62 | T7: 723.08 | U7: 867.7
A8: Jun-22 | B8: 2022 | C8: 6 | D8: 307.37 | E8: 49.52 | F8: 56.33 | G8: 276.02 | H8: 69.73 | I8: 51.81 | J8: 810.78 | K8: 728.86 | N8: Jun-22 | O8: 2022 | P8: 6 | Q8: 291.54 | R8: 364.44 | S8: 619.53 | T8: 728.86 | U8: 874.63
A9: Jul-22 | B9: 2022 | C9: 7 | D9: 308.04 | E9: 41.91 | F9: 55.96 | G9: 282.52 | H9: 73.32 | I9: 48.55 | J9: 810.3 | K9: 743.44 | N9: Jul-22 | O9: 2022 | P9: 7 | Q9: 297.38 | R9: 371.72 | S9: 631.92 | T9: 743.44 | U9: 892.13
A10: Ago-22 | B10: 2022 | C10: 8 | D10: 316 | E10: 52.12 | F10: 59.09 | G10: 280.75 | H10: 73.88 | I10: 63.52 | J10: 845.36 | K10: 769.46 | N10: Ago-22 | O10: 2022 | P10: 8 | Q10: 307.78 | R10: 384.73 | S10: 654.04 | T10: 769.46 | U10: 923.35
A11: Sep-22** | B11: 2022 | C11: 9 | D11: 315.66 | E11: 50.85 | F11: 59.48 | G11: 270.78 | H11: 74.56 | I11: 41.74 | J11: 813.07 | K11: 777.31 | N11: Sep-22 | O11: 2022 | P11: 9 | Q11: 310.93 | R11: 388.66 | S11: 660.71 | T11: 777.31 | U11: 932.77
A12: Oct-22 | B12: 2022 | C12: 10 | D12: 317.04 | E12: 46.17 | F12: 59.11 | G12: 263.03 | H12: 74.08 | I12: 26.46 | J12: 785.89 | K12: 750.13 | N12: Oct-22 | O12: 2022 | P12: 10 | Q12: 300.06 | R12: 375.07 | S12: 637.61 | T12: 750.16 | U12: 900.16
A13: Nov-22 | B13: 2022 | C13: 11 | D13: 308.21 | E13: 47.1 | F13: 57.39 | G13: 270.17 | H13: 72.5 | I13: 25.59 | J13: 780.96 | K13: 745.2 | N13: Nov-22 | O13: 2022 | P13: 11 | Q13: 298.09 | R13: 372.6 | S13: 633.42 | T13: 745.2 | U13: 894.24
A14: Dic-22 | B14: 2022 | C14: 12 | D14: 307.68 | E14: 50.31 | F14: 57.86 | G14: 271.49 | H14: 74.65 | I14: 33.88 | J14: 795.87 | K14: 753.17 | N14: Dic-22 | O14: 2022 | P14: 12 | Q14: 301.27 | R14: 376.59 | S14: 640.19 | T14: 753.17 | U14: =+T14*1.2 -> 903.804
A15: Ene-23 | B15: 2023 | C15: 1 | D15: 303.83 | E15: 51.97 | F15: 56.85 | G15: 268.32 | H15: 75.59 | I15: 20.29 | J15: 776.85 | K15: 764.93 | N15: Ene-23 | O15: 2023 | P15: 1 | Q15: 305.97 | R15: 382.47 | S15: 650.19 | T15: 764.93 | U15: =+T15*1.2 -> 917.916
A16: Feb-23 | B16: 2023 | C16: 2 | D16: 288.99 | E16: 48.71 | F16: 54.23 | G16: 276.7 | H16: 76.04 | I16: 18.29 | J16: 762.96 | K16: 780.82 | N16: Feb-23 | O16: 2023 | P16: 2 | Q16: 312.33 | R16: 390.41 | S16: 663.7 | T16: 780.82 | U16: =+T16*1.2 -> 936.984
A17: Mar-23 | B17: 2023 | C17: 3 | D17: 310.7 | E17: 52.37 | F17: 57.73 | G17: 279.31 | H17: 77.9 | I17: 16.42 | J17: 794.43 | K17: 796.13 | N17: Mar-23 | O17: 2023 | P17: 3 | Q17: 318.45 | R17: 398.07 | S17: 676.71 | T17: 796.12 | U17: =+T17*1.2 -> 955.344
A18: Abr-23 | B18: 2023 | C18: 4 | D18: 285.62 | E18: 53.52 | F18: 54.04 | G18: 266.48 | H18: 80.21 | I18: 29.01 | J18: 768.88 | K18: 806.88 | N18: Abr-23 | O18: 2023 | P18: 4 | Q18: 322.75 | R18: 403.44 | S18: 685.85 | T18: 806.88 | U18: =+T18*1.2 -> 968.256
A19: * Pesos corrientes | D19: =+(D18-D17)/D17 -> -0.08072095269 | E19: =+(E18-E17)/E17 -> 0.02195913691 | F19: -0.06391824008 | G19: -0.04593462461 | H19: 0.0296534018 | I19: 0.7667478685 | J19: -0.03216142391 | K19: 0.01350281989 | N19: * Pesos corrientes | Q19: =+(Q18-Q17)/Q17 -> 0.01350290469 | R19: =+(R18-R17)/R17 -> 0.01349008968 | S19: =+(S18-S17)/S17 -> 0.01350652421 | T19: =+(T18-T17)/T17 -> 0.01351555042 | U19: =+(U18-U17)/U17 -> 0.01351555042
A20: ** Republicación
W25: CUV_119 | X25: Costo Unitario de Prestación del Servicio resultado de aplicar la metodología establecida en la Res. CREG 119 de 2007.
W28: CUV_Op | X28: Costo Unitario de Prestación del Servicio resultado de aplicar la metodología establecida en la Res. CREG 012 de 2020. Opción Tarifaria

Sheet 7. CHEC
I1: REGRESAR
A3: EMPRESA: | B3: CENTRAL HIDROELÉCTRICA DE CALDAS S.A. E.S.P. (502)
A5: 1. COSTO UNITARIO DE PRESTACIÓN DEL SERVICIO Nivel de Tensión 1, Propiedad de Activos del OR | N5: 2. TARIFA AL USUARIO FINAL Nivel de Tensión 1, Propiedad de Activos del OR (estrato 1, 2 y 3 hasta el CS) | W5: 3. OPCIÓN TARIFARIA Nivel de Tensión 1, Propiedad de Activos del OR
B7: AÑO | C7: PERIODO | D7: GM | E7: TM | F7: PR | G7: D | H7: CV | I7: RM | J7: CUV_119 | K7: CUV_Op | O7: AÑO | P7: PERIODO | Q7: ESTRATO 1 | R7: ESTRATO 2 | S7: ESTRATO 3 | T7: ESTRATO 4 | U7: ESTRATO 5 y 6, Ind y Com
A8: May-22 | B8: 2022 | C8: 5 | D8: 217.63 | E8: 40.97 | F8: 44.92 | G8: 301.039 | H8: 90.44 | I8: 40.45 | J8: 735.47 | K8: 680.82 | N8: May-22 | O8: 2022 | P8: 5 | Q8: 272.33 | R8: 340.41 | S8: 578.7 | T8: 680.826 | U8: 816.9919
A9: Jun-22 | B9: 2022 | C9: 6 | D9: 212.9548 | E9: 49.5217 | F9: 45.0985 | G9: 320.4069 | H9: 91.5942 | I9: 52.3622 | J9: 771.9387 | K9: 686.954 | N9: Jun-22 | O9: 2022 | P9: 6 | Q9: 274.7816 | R9: 343.477 | S9: 583.9109 | T9: 686.954 | U9: 824.3448
A10: Jul-22 | B10: 2022 | C10: 7 | D10: 208.4888 | E10: 41.9124 | F10: 43.9249 | G10: 328.9265 | H10: 89.2532 | I10: 51.6227 | J10: 764.1289 | K10: 693.1366 | N10: Jul-22 | O10: 2022 | P10: 7 | Q10: 277.2546 | R10: 346.5683 | S10: 589.1661 | T10: 693.1366 | U10: 831.7639
A11: Ago-22 | B11: 2022 | C11: 8 | D11: 215.1498 | E11: 52.1163 | F11: 46.6484 | G11: 335.3986 | H11: 91.7937 | I11: 63.8158 | J11: 804.9228 | K11: 710.465 | N11: Ago-22 | O11: 2022 | P11: 8 | Q11: 284.186 | R11: 355.2325 | S11: 603.8953 | T11: 710.465 | U11: 852.558
A12: Sep-22 | B12: 2022 | C12: 9 | D12: 230.59 | E12: 50.84 | F12: 49.43 | G12: 314.85 | H12: 92.15 | I12: 42.68 | J12: 780.57 | K12: 714.72 | N12: Sep-22 | O12: 2022 | P12: 9 | Q12: 287.08 | R12: 358.85 | S12: 607.51 | T12: 714.72 | U12: 857.67
A13: Oct-22 | B13: 2022 | C13: 10 | D13: 273.8199 | E13: 49.8056 | F13: 55.8396 | G13: 303.002 | H13: 94.0682 | I13: 26.5455 | J13: 803.081 | K13: 714.7278 | N13: Oct-22 | O13: 2022 | P13: 10 | Q13: 287.0847 | R13: 358.8559 | S13: 607.5186 | T13: 714.7278 | U13: 857.6734
A14: Nov-22 | B14: 2022 | C14: 11 | D14: 266.1131 | E14: 47.0988 | F14: 54.1723 | G14: 305.3057 | H14: 91.6771 | I14: 25.9807 | J14: 790.348 | K14: 707.0302 | N14: Nov-22 | O14: 2022 | P14: 11 | Q14: 283.9928 | R14: 354.991 | S14: 600.9757 | T14: 707.0302 | U14: 848.4362
A15: Dic-22 | B15: 2022 | C15: 12 | D15: 226.9676 | E15: 50.3069 | F15: 48.7174 | G15: 307.606 | H15: 94.86 | I15: 32.6768 | J15: 761.1347 | K15: 712.4686 | N15: Dic-22 | O15: 2022 | P15: 12 | Q15: 286.1773 | R15: 357.7216 | S15: 605.5983 | T15: 712.4686 | U15: 854.9624
A16: Ene-23 | B16: 2023 | C16: 1 | D16: 302.7469 | E16: 51.9732 | F16: 60.1984 | G16: 289.2746 | H16: 94.2924 | I16: 20.8341 | J16: 819.32 | K16: 721.4558 | N16: Ene-23 | O16: 2023 | P16: 1 | Q16: 289.7871 | R16: 362.2339 | S16: 613.2374 | T16: 721.4558 | U16: 865.747
A17: Feb-23 | B17: 2023 | C17: 2 | D17: 292.6325 | E17: 48.708 | F17: 58.2028 | G17: 294.9944 | H17: 99.205 | I17: 18.3239 | J17: 812.0669 | K17: 734.279 | N17: Feb-23 | O17: 2023 | P17: 2 | Q17: 294.9378 | R17: 368.6722 | S17: 624.1372 | T17: 734.279 | U17: 881.1348
A18: Mar-23 | B18: 2023 | C18: 3 | D18: 315.6076 | E18: 52.3669 | F18: 61.9479 | G18: 315.3362 | H18: 98.2608 | I18: 15.933 | J18: 859.4526 | K18: 746.4724 | N18: Mar-23 | O18: 2023 | P18: 3 | Q18: 299.8355 | R18: 374.7944 | S18: 634.5015 | T18: 746.47 | U18: 895.7669
A19: Abr-23 | B19: 2023 | C19: 4 | D19: 287.8296 | E19: 53.521 | F19: 57.9216 | G19: 315.255 | H19: 102.3177 | I19: 34.5655 | J19: 851.4106 | K19: 754.3148 | N19: Abr-23 | O19: 2023 | P19: 4 | Q19: 302.9856 | R19: 378.732 | S19: 641.1676 | T19: 754.3148 | U19: 905.1778
A20: * Pesos corrientes | D20: =+(D19-D18)/D18 -> -0.08801435707 | E20: =+(E19-E18)/E18 -> 0.02203873057 | F20: -0.0649949393 | G20: -0.0002575029445 | H20: 0.04128706463 | I20: 1.169428231 | J20: -0.009357118706 | K20: 0.01050594771 | N20: * Pesos corrientes | Q20: =+(Q19-Q18)/Q18 -> 0.01050609417 | R20: =+(R19-R18)/R18 -> 0.01050602677 | S20: =+(S19-S18)/S18 -> 0.01050604293 | T20: =+(T19-T18)/T18 -> 0.01050919662 | U20: =+(U19-U18)/U18 -> 0.0105059698
W26: CUV_119 | X26: Costo Unitario de Prestación del Servicio resultado de aplicar la metodología establecida en la Res. CREG 119 de 2007.
W29: CUV_Op | X29: Costo Unitario de Prestación del Servicio resultado de aplicar la metodología establecida en la Res. CREG 012 de 2020. Opción Tarifaria

Sheet 8. ENEL COLOMBIA
I1: REGRESAR
A2: EMPRESA: | C2: ENEL COLOMBIA S.A. E.S.P. (597)
A3: MERCADO: | C3: BOGOTÁ - CUNDINAMARCA CREG 199/16
A5: 1. COSTO UNITARIO DE PRESTACIÓN DEL SERVICIO Nivel de Tensión 1, Propiedad de Activos del OR | N5: 2. TARIFA AL USUARIO FINAL Nivel de Tensión 1, Propiedad de Activos del OR (estrato 1, 2 y 3 hasta el CS) | V5: 3. OPCIÓN TARIFARIA Nivel de Tensión 1, Propiedad de Activos del OR
B6: AÑO | C6: PERIODO | D6: GM | E6: TM | F6: PR | G6: D | H6: CV | I6: RM | J6: CUV_119 | K6: CUV_Op | O6: AÑO | P6: PERIODO | Q6: ESTRATO 1 | R6: ESTRATO 2 | S6: ESTRATO 3 | T6: ESTRATO 4 | U6: ESTRATO 5 y 6, Ind y Com
A7: May-22 | B7: 2022 | C7: 5 | D7: 223.8915 | E7: 40.9789 | F7: 46.4622 | G7: 228.155 | H7: 59.9298 | I7: 39.175 | J7: 638.5924 | K7: 677.3124 | N7: May-22 | O7: 2022 | P7: 5 | Q7: 270.925 | R7: 338.6562 | S7: 575.7155 | T7: 677.3124 | U7: 812.7749
A8: Jun-22 | B8: 2022 | C8: 6 | D8: 216.2677 | E8: 49.5218 | F8: 46.204 | G8: 234.3297 | H8: 59.5403 | I8: 54.8632 | J8: 660.7267 | K8: 690.8586 | N8: Jun-22 | O8: 2022 | P8: 6 | Q8: 276.3434 | R8: 345.4293 | S8: 587.2298 | T8: 690.8586 | U8: 829.0303
A9: Jul-22 | B9: 2022 | C9: 7 | D9: 216.5821 | E9: 41.9124 | F9: 45.6225 | G9: 243.7569 | H9: 61.2271 | I9: 52.8346 | J9: 661.9356 | K9: 704.6753 | N9: Jul-22 | O9: 2022 | P9: 7 | Q9: 281.8703 | R9: 352.3379 | S9: 598.9744 | T9: 704.6758 | U9: 845.611
A10: Agos-22 | B10: 2022 | C10: 8 | D10: 224.1162 | E10: 52.1163 | F10: 48.6989 | G10: 246.3726 | H10: 61.3375 | I10: 61.7456 | J10: 694.3871 | K10: 718.7693 | N10: Ago-22 | O10: 2022 | P10: 8 | Q10: 287.5077 | R10: 359.3847 | S10: 610.9539 | T10: 718.7693 | U10: 862.5232
A11: Sep-22 | B11: 2022 | C11: 9 | D11: 236.38 | E11: 50.84 | F11: 51.08 | G11: 247.75 | H11: 60.54 | I11: 42.64 | J11: 698.26 | K11: 723.08 | N11: Sep-22 | O11: 2022 | P11: 9 | Q11: 290.44 | R11: 363.06 | S11: 614.61 | T11: 723.08 | U11: 867.6983
A12: Oct-22 | B12: 2022 | C12: 10 | D12: 272.3213 | E12: 46.1657 | F12: 56.3352 | G12: 251.483 | H12: 62.7362 | I12: 28.4783 | J12: 717.5197 | K12: 723.0819 | N12: Oct-22 | O12: 2022 | P12: 10 | Q12: 290.448 | R12: 363.0601 | S12: 614.6196 | T12: 723.0819 | U12: 867.6983
A13: Nov-22 | B13: 2022 | C13: 11 | D13: 276.3469 | E13: 47.0988 | F13: 56.8376 | G13: 258.4264 | H13: 64.5468 | I13: 24.9871 | J13: 728.2436 | K13: 723.0819 | N13: Nov-22 | O13: 2022 | P13: 11 | Q13: 290.448 | R13: 363.0601 | S13: 614.6196 | T13: 723.0819 | U13: 867.6983
A14: Dic-22 | B14: 2022 | C14: 12 | D14: 251.4904 | E14: 50.307 | F14: 53.2687 | G14: 241.9357 | H14: 62.2835 | I14: 33.5097 | J14: 692.795 | K14: 731.0358 | N14: Dic-22 | O14: 2022 | P14: 12 | Q14: 292.682 | R14: 365.8526 | S14: 621.3804 | T14: 731.0358 | U14: 877.243
A15: Ene-23 | B15: 2023 | C15: 1 | D15: 282.1817 | E15: 51.9732 | F15: 58.0809 | G15: 244.9043 | H15: 62.6762 | I15: 19.7502 | J15: 719.5665 | K15: 742.7324 | N15: Ene-23 | O15: 2023 | P15: 1 | Q15: 297.093 | R15: 371.3662 | S15: 631.3225 | T15: 742.7324 | U15: 891.2789
A16: Feb-23 | B16: 2023 | C16: 2 | D16: 304.6211 | E16: 48.7081 | F16: 61.4397 | G16: 248.7558 | H16: 62.6148 | I16: 18.5024 | J16: 744.6419 | K16: 758.3298 | N16: Feb-23 | O16: 2023 | P16: 2 | Q16: 303.3319 | R16: 379.1649 | S16: 644.5803 | T16: 758.3298 | U16: 909.9958
A17: Mar-23 | B17: 2023 | C17: 3 | D17: 360.9008 | E17: 52.3669 | F17: 70.8992 | G17: 265.9942 | H17: 67.8889 | I17: 17.3685 | J17: 835.4165 | K17: 773.4964 | N17: Mar-23 | O17: 2023 | P17: 3 | Q17: 309.3986 | R17: 386.7482 | S17: 657.4719 | T17: 773.4964 | U17: 928.1957
A18: Abr-23 | B18: 2023 | C18: 4 | D18: 288.4505 | E18: 53.521 | F18: 59.0973 | G18: 263.1777 | H18: 75.0332 | I18: 36.7309 | J18: 776.0106 | K18: 784.3253 | N18: Abr-23 | O18: 2023 | P18: 4 | Q18: 313.7301 | R18: 392.1627 | S18: 666.6765 | T18: 784.3253 | U18: 941.1904
A19: * Pesos corrientes | D19: =+(D18-D17)/D17 -> -0.2007485159 | E19: =+(E18-E17)/E17 -> 0.02203873057 | F19: -0.1664602704 | G19: -0.01058857674 | H19: 0.105235171 | I19: 1.114799781 | J19: -0.07110932092 | K19: 0.01399993588 | N19: * Pesos corrientes | Q19: =+(Q18-Q17)/Q17 -> 0.01399974014 | R19: =+(R18-R17)/R17 -> 0.01400006516 | S19: 0.01399998996 | T19: 0.01399993588 | U19: 0.01399995712
V26: CUV_119 | W26: Costo Unitario de Prestación del Servicio resultado de aplicar la metodología establecida en la Res. CREG 119 de 2007.
V29: CUV_Op | W29: Costo Unitario de Prestación del Servicio resultado de aplicar la metodología establecida en la Res. CREG 012 de 2020. Opción Tarifaria

Sheet 9. DISPAC
I1: REGRESAR
A2: EMPRESA: | B2: EMPRESA DISTRIBUIDORA DEL PACÍFICO S.A. E.S.P. (3226)
A3: MERCADO: | B3: CHOCÓ
A5: 1. COSTO UNITARIO DE PRESTACIÓN DEL SERVICIO Nivel de Tensión 1, Propiedad de Activos del OR | N5: 2. TARIFA AL USUARIO FINAL Nivel de Tensión 1, Propiedad de Activos del OR (estrato 1, 2 y 3 hasta el CS) | W5: 3. OPCIÓN TARIFARIA Nivel de Tensión 1, Propiedad de Activos del OR
B6: AÑO | C6: PERIODO | D6: GM | E6: TM | F6: PR | G6: D | H6: CV | I6: RM | J6: CUV_119 | K6: CUV_Op | O6: AÑO | P6: PERIODO | Q6: ESTRATO 1 | R6: ESTRATO 2 | S6: ESTRATO 3 | T6: ESTRATO 4 | U6: ESTRATO 5 y 6, Ind y Com
A7: May-22 | B7: 2022 | C7: 5 | D7: 262.14 | E7: 40.98 | F7: 51.75 | G7: 180.63 | H7: 155.82 | I7: 44.7 | J7: 736.02 | K7: 723.21 | N7: May-22 | O7: 2022 | P7: 5 | Q7: 295.82 | R7: 371.24 | S7: 614.73 | T7: 723.21 | U7: 867.852
A8: Jun-22 | B8: 2022 | C8: 6 | D8: 256.83 | E8: 49.52 | F8: 51.73 | G8: 184.02 | H8: 147.37 | I8: 65.72 | J8: 755.19 | K8: 759.37 | N8: Jun-22 | O8: 2022 | P8: 6 | Q8: 303.75 | R8: 379.69 | S8: 645.46 | T8: 759.37 | U8: 911.244
A9: Jul-22 | B9: 2022 | C9: 7 | D9: 269.85 | E9: 41.91 | F9: 52.62 | G9: 188.82 | H9: 149.12 | I9: 55.79 | J9: 758.12 | K9: 782.15 | N9: Jul-22 | O9: 2022 | P9: 7 | Q9: 312.86 | R9: 391.08 | S9: 664.83 | T9: 782.15 | U9: 938.58
A10: Ago-22 | B10: 2022 | C10: 8 | D10: 275.37 | E10: 52.12 | F10: 54.56 | G10: 197.56 | H10: 146.06 | I10: 73.14 | J10: 798.81 | K10: 786.84 | N10: Ago-22 | O10: 2022 | P10: 8 | Q10: 314.74 | R10: 393.42 | S10: 668.81 | T10: 786.84 | U10: =+T10*1.2 -> 944.208
A11: Sep-22 | B11: 2022 | C11: 9 | D11: 273.42 | E11: 50.85 | F11: 55.21 | G11: 195.56 | H11: 156.08 | I11: 47.17 | J11: 778.28 | K11: 791.56 | N11: Sep-22 | O11: 2022 | P11: 9 | Q11: 316.62 | R11: 395.78 | S11: 672.83 | T11: 791.56 | U11: =+T11*1.2 -> 949.872
A12: Oct-22 | B12: 2022 | C12: 10 | D12: 287.46 | E12: 46.17 | F12: 56.05 | G12: 189.22 | H12: 152.13 | I12: 31.83 | J12: 762.86 | K12: 776.14 | N12: Oct-22 | O12: 2022 | P12: 10 | Q12: 310.46 | R12: 388.07 | S12: 659.72 | T12: 776.14 | U12: =+T12*1.2 -> 931.368
A13: Nov-22 | B13: 2022 | C13: 11 | D13: 287.48 | E13: 47.1 | F13: 55.44 | G13: 189.12 | H13: 155.73 | I13: 28.81 | J13: 763.68 | K13: 776.14 | N13: Nov-22 | O13: 2022 | P13: 11 | Q13: 310.46 | R13: 388.07 | S13: 659.72 | T13: 776.14 | U13: 931.37
A14: Dic-22 | B14: 2022 | C14: 12 | D14: 268.5 | E14: 50.31 | F14: 53.28 | G14: 191.34 | H14: 156.27 | I14: 37.88 | J14: 757.58 | K14: 782.11 | N14: Dic-22 | O14: 2022 | P14: 12 | Q14: 312.84 | R14: 391.06 | S14: 664.79 | T14: 782.11 | U14: =+T14*1.2 -> 938.532
A15: Ene-23 | B15: 2023 | C15: 1 | D15: 293.83 | E15: 51.97 | F15: 56.55 | G15: 191.17 | H15: 157.82 | I15: 23.82 | J15: 775.16 | K15: 794.32 | N15: Ene-23 | O15: 2023 | P15: 1 | Q15: 317.73 | R15: 397.16 | S15: 675.17 | T15: 794.32 | U15: =+T15*1.2 -> 953.184
A16: Feb-23 | B16: 2023 | C16: 2 | D16: 317.62 | E16: 48.71 | F16: 59.68 | G16: 195.34 | H16: 161.41 | I16: 21.87 | J16: 804.63 | K16: 810.82 | N16: Feb-23 | O16: 2023 | P16: 2 | Q16: 324.33 | R16: 405.41 | S16: 689.2 | T16: 810.82 | U16: =+T16*1.2 -> 972.984
A17: Mar-23 | B17: 2023 | C17: 3 | D17: 383.74 | E17: 52.37 | F17: 70.01 | G17: 198.11 | H17: 162.1 | I17: 18.29 | J17: 884.61 | K17: 826.72 | N17: Mar-23 | O17: 2023 | P17: 3 | Q17: 330.69 | R17: 413.36 | S17: 702.71 | T17: 826.72 | U17: 992.06
A18: Abr-23 | B18: 2023 | C18: 4 | D18: 290.07 | E18: 53.52 | F18: 57.08 | G18: 196.07 | H18: 171.1 | I18: 40.66 | J18: 808.5 | K18: 837.89 | N18: Abr-23 | O18: 2023 | P18: 4 | Q18: 335.16 | R18: 418.95 | S18: 712.21 | T18: 837.89 | U18: 959.36
A19: * Pesos corrientes | D19: =+(D18-D17)/D17 -> -0.2440975661 | E19: =+(E18-E17)/E17 -> 0.02195913691 | F19: -0.1846879017 | G19: -0.01029730958 | H19: 0.05552128316 | I19: 1.223072717 | J19: -0.08603791501 | K19: 0.01351122508 | N19: * Pesos corrientes | Q19: =+(Q18-Q17)/Q17 -> 0.01351719133 | R19: =+(R18-R17)/R17 -> 0.01352332108 | S19: 0.01351909038 | T19: 0.01351122508 | U19: -0.03296171603
W24: CUV_119 | X24: Costo Unitario de Prestación del Servicio resultado de aplicar la metodología establecida en la Res. CREG 119 de 2007.
W27: CUV_Op | X27: Costo Unitario de Prestación del Servicio resultado de aplicar la metodología establecida en la Res. CREG 012 de 2020. Opción Tarifaria

Sheet 10. EBSA
I1: REGRESAR
A2: EMPRESA: | C2: EMPRESA DE ENERGÍA DE BOYACÁ S.A. E.S.P. (500)
A3: MERCADO: | C3: BOYACÁ
A5: 1. COSTO UNITARIO DE PRESTACIÓN DEL SERVICIO Nivel de Tensión 1, Propiedad de Activos del OR | N5: 2. TARIFA AL USUARIO FINAL Nivel de Tensión 1, Propiedad de Activos del OR (estrato 1, 2 y 3 hasta el CS) | X5: 3. OPCIÓN TARIFARIA Nivel de Tensión 1, Propiedad de Activos del OR
B6: AÑO | C6: PERIODO | D6: GM | E6: TM | F6: PR | G6: D | H6: CV | I6: RM | J6: CUV_119 | K6: CUV_Op | O6: AÑO | P6: PERIODO | Q6: ESTRATO 1 | R6: ESTRATO 2 | S6: ESTRATO 3 | T6: ESTRATO 4 | U6: ESTRATO 5 y 6, Ind y Com
A7: May-22 | B7: 2022 | C7: 5 | D7: 258.422 | E7: 40.978 | F7: 56.6933 | G7: 228.155 | H7: 108.97 | I7: 30.4294 | J7: 723.65 | K7: 730.277 | N7: May-22 | O7: 2022 | P7: 5 | Q7: 292.11 | R7: 365.1387 | S7: 620.73 | T7: 730.277 | U7: 876.33
A8: Jun-22 | B8: 2022 | C8: 6 | D8: 278.38 | E8: 49.5218 | F8: 61.4773 | G8: 234.3297 | H8: 99.1237 | I8: 68.6607 | J8: 791.4932 | K8: 744.8828 | N8: Jun-22 | O8: 2022 | P8: 6 | Q8: 297.9531 | R8: 372.4414 | S8: 633.1504 | T8: 744.8828 | U8: 893.8594
A9: Jul-22 | B9: 2022 | C9: 7 | D9: 285.1851 | E9: 41.9124 | F9: 62.0102 | G9: 243.7569 | H9: 109.2129 | I9: 62.8063 | J9: 804.8838 | K9: 759.7805 | N9: Jul-22 | O9: 2022 | P9: 7 | Q9: 303.9122 | R9: 379.8903 | S9: 645.8134 | T9: 759.7805 | U9: 911.7366
A10: Ago-22 | B10: 2022 | C10: 8 | D10: 287.6682 | E10: 52.1163 | F10: 64.6876 | G10: 246.3726 | H10: 104.4813 | I10: 50.9773 | J10: 806.3033 | K10: 774.9761 | N10: Ago-22 | O10: 2022 | P10: 8 | Q10: 309.9904 | R10: 387.4881 | S10: 658.7297 | T10: 774.9761 | U10: 929.9713
A11: Sep-22 | B11: 2022 | C11: 9 | D11: 286.25 | E11: 50.84 | F11: 64.69 | G11: 247.75 | H11: 105.89 | I11: 52.48 | J11: 807.93 | K11: 779.62 | N11: Sep-22 | O11: 2022 | P11: 9 | Q11: 311.85 | R11: 389.81 | S11: 662.68 | T11: 779.62 | U11: 935.55
A12: Oct-22 | B12: 2022 | C12: 10 | D12: 292.4276 | E12: 46.1657 | F12: 65.1529 | G12: 251.483 | H12: 107.827 | I12: 33.6208 | J12: 796.677 | K12: 768.7591 | N12: Oct-22 | O12: 2022 | P12: 10 | Q12: 307.5036 | R12: 384.3796 | S12: 653.4452 | T12: 768.7591 | U12: 922.5109
A13: Nov-22 | B13: 2022 | C13: 11 | D13: 289.8021 | E13: 47.0988 | F13: 64.5175 | G13: 258.4264 | H13: 106.3288 | I13: 20.1356 | J13: 786.3092 | K13: 758.7546 | N13: Nov-22 | O13: 2022 | P13: 11 | Q13: 303.5018 | R13: 379.3773 | S13: 644.9414 | T13: 758.7546 | U13: 910.5055
A14: Dic-22 | B14: 2022 | C14: 12 | D14: 277.2641 | E14: 50.307 | F14: 62.545 | G14: 241.9357 | H14: 106.4189 | I14: 41.7924 | J14: 780.2631 | K14: 766.8733 | N14: Dic-22 | O14: 2022 | P14: 12 | Q14: 306.7493 | R14: 383.4367 | S14: 651.8423 | T14: 766.8733 | U14: =+T14*1.2 -> 920.24796
A15: Ene-23 | B15: 2023 | C15: 1 | D15: 306.4309 | E15: 51.9732 | F15: 68.1953 | G15: 244.9043 | H15: 109.4597 | I15: 26.0619 | J15: 807.0253 | K15: 778.8365 | N15: Ene-23 | O15: 2023 | P15: 1 | Q15: 311.5346 | R15: 389.4183 | S15: 662.011 | T15: 778.8365 | U15: =+T15*1.2 -> 934.6038
A16: Feb-23 | B16: 2023 | C16: 2 | D16: 311.6353 | E16: 48.7081 | F16: 68.0393 | G16: 248.7558 | H16: 110.3416 | I16: 15.6072 | J16: 803.0873 | K16: 795.0363 | N16: Feb-23 | O16: 2023 | P16: 2 | Q16: 318.0145 | R16: 397.5182 | S16: 675.7809 | T16: 795.0363 | U16: 954.0436
A17: Mar-23 | B17: 2023 | C17: 3 | D17: 354.0971 | E17: 52.3669 | F17: 76.2141 | G17: 265.9942 | H17: 109.8581 | I17: 20.1808 | J17: 878.7112 | K17: 810.619 | N17: Mar-23 | O17: 2023 | P17: 3 | Q17: 324.2476 | R17: 405.3095 | S17: 689.0262 | T17: 810.619 | U17: 972.7428
A18: Abr-23 | B18: 2023 | C18: 4 | D18: 294.6837 | E18: 53.521 | F18: 66.8646 | G18: 263.1777 | H18: 114.9241 | I18: 45.8644 | J18: 893.0355 | K18: 821.5624 | N18: Abr-23 | O18: 2023 | P18: 4 | Q18: 328.625 | R18: 410.7812 | S18: 698.328 | T18: 821.5624 | U18: 985.8749
A19: * Pesos corrientes | D19: =+(D18-D17)/D17 -> -0.16778844 | E19: =+(E18-E17)/E17 -> 0.02203873057 | F19: -0.1226741508 | G19: -0.01058857674 | H19: 0.04611403256 | I19: =+(I18-I17)/I17 -> 1.272675018 | J19: 0.01630148791 | K19: 0.01350005366 | N19: * Pesos corrientes | Q19: =+(Q18-Q17)/Q17 -> 0.01350017703 | R19: =+(R18-R17)/R17 -> 0.01350005366 | S19: =+(S18-S17)/S17 -> 0.01349992206 | T19: =+(T18-T17)/T17 -> 0.01350005366 | U19: =+(U18-U17)/U17 -> 0.01350007422
X26: CUV_119 | Y26: Costo Unitario de Prestación del Servicio resultado de aplicar la metodología establecida en la Res. CREG 119 de 2007.
X29: CUV_Op | Y29: Costo Unitario de Prestación del Servicio resultado de aplicar la metodología establecida en la Res. CREG 012 de 2020. Opción Tarifaria

Sheet 11. EDEQ
I1: REGRESAR
A2: EMPRESA: | B2: EMPRESA DE ENERGÍA DE QUINDÍO S.A. E.S.P. (523)
A3: MERCADO: | B3: QUINDÍO
A5: 1. COSTO UNITARIO DE PRESTACIÓN DEL SERVICIO Nivel de Tensión 1, Propiedad de Activos del OR | N5: 2. TARIFA AL USUARIO FINAL Nivel de Tensión 1, Propiedad de Activos del OR (estrato 1, 2 y 3 hasta el CS) | W5: 3. OPCIÓN TARIFARIA Nivel de Tensión 1, Propiedad de Activos del OR
B6: AÑO | C6: PERIODO | D6: GM | E6: TM | F6: PR | G6: D | H6: CV | I6: RM | J6: CUV_119 | K6: CUV_Op | O6: AÑO | P6: PERIODO | Q6: ESTRATO 1 | R6: ESTRATO 2 | S6: ESTRATO 3 | T6: ESTRATO 4 | U6: ESTRATO 5 y 6, Ind y Com
A7: May-22 | B7: 2022 | C7: 5 | D7: 222.5788 | E7: 40.9789 | F7: 45.1379 | G7: 301.0398 | H7: 86.9168 | I7: 36.8732 | J7: 733.5254 | K7: 677.3121 | N7: May-22 | O7: 2022 | P7: 5 | Q7: 270.9249 | R7: 338.6561 | S7: 575.7153 | T7: 677.3121 | U7: 812.7746
A8: Jun-22 | B8: 2022 | C8: 6 | D8: 206.5351 | E8: 49.5218 | F8: 43.5779 | G8: 320.407 | H8: 81.6935 | I8: 54.9563 | J8: 756.6915 | K8: 697.6315 | N8: Jun-22 | O8: 2022 | P8: 6 | Q8: 279.0526 | R8: 348.8158 | S8: 592.9868 | T8: 697.6315 | U8: 837.1578
A9: Jul-22 | B9: 2022 | C9: 7 | D9: 205.8937 | E9: 41.9124 | F9: 42.8894 | G9: 328.9266 | H9: 87.1275 | I9: 48.3392 | J9: 755.0888 | K9: 725.5368 | N9: Jun-22 | O9: 2022 | P9: 7 | Q9: 290.2147 | R9: 362.7684 | S9: 616.7063 | T9: 725.5368 | U9: 870.6441
A10: Ago-22 | B10: 2022 | C10: 8 | D10: 207.8453 | E10: 52.1163 | F10: 67.3666 | G10: 335.3986 | H10: 83.84407 | I10: 44.9584 | J10: 791.52927 | K10: 754.5582 | N10: Ago-22 | O10: 2022 | P10: 8 | Q10: 301.8233 | R10: 377.2791 | S10: 641.3745 | T10: 754.5582 | U10: 905.4699
A11: Sep-22 | B11: 2022 | C11: 9 | D11: 222.99 | E11: 50.84 | F11: 47.71 | G11: 314.85 | H11: 89.67 | I11: 39.93 | J11: 766.01 | K11: 759.08 | N11: Sep-22 | O11: 2022 | P11: 9 | Q11: 303.63 | R11: 379.54 | S11: 645.22 | T11: 759.08 | U11: 910.9
A12: Oct-22 | B12: 2022 | C12: 10 | D12: 237.3142 | E12: 46.1657 | F12: 49.2999 | G12: 303.002 | H12: 83.0094 | I12: 26.4012 | J12: 745.1925 | K12: 738.4514 | N12: Oct-22 | O12: 2022 | P12: 10 | Q12: 295.3806 | R12: 369.2257 | S12: 627.6837 | T12: 738.4514 | U12: 886.1417
A13: Nov-22 | B13: 2022 | C13: 11 | D13: 269.9747 | E13: 47.0988 | F13: 54.3138 | G13: 305.3057 | H13: 84.8666 | I13: 24.0618 | J13: 785.6214 | K13: 738.4514 | N13: Nov-22 | O13: 2022 | P13: 11 | Q13: 295.3806 | R13: 369.2257 | S13: 627.6837 | T13: 738.4514 | U13: 886.1417
A14: Dic-22 | B14: 2022 | C14: 12 | D14: 249.93591 | E14: 50.30695 | F14: 51.79721 | G14: 307.60601 | H14: 86.25388 | I14: 35.41538 | J14: 781.31535 | K14: 744.13135 | N14: Dic-22 | O14: 2022 | P14: 12 | Q14: 297.6525 | R14: 372.065 | S14: 632.5116 | T14: 744.1313 | U14: 892.9576
A15: Ene-23 | B15: 2023 | C15: 1 | D15: 276.8024 | E15: 51.9732 | F15: 55.7792 | G15: 289.2747 | H15: 90.0518 | I15: 20.5352 | J15: 784.4165 | K15: 753.5182 | N15: Ene-23 | O15: 2023 | P15: 1 | Q15: 301.4073 | R15: 376.7591 | S15: 640.4905 | T15: 753.5182 | U15: 904.2218
A16: Feb-23 | B16: 2023 | C16: 2 | D16: 327.3622 | E16: 48.7081 | F16: 63.3033 | G16: 294.9945 | H16: 85.308 | I16: 19.1884 | J16: 838.8644 | K16: 766.9109 | N16: Feb-23 | O16: 2023 | P16: 2 | Q16: 306.7644 | R16: 383.4554 | S16: 651.8742 | T16: 766.9109 | U16: 920.2931
A17: Mar-23 | B17: 2023 | C17: 3 | D17: 373.2877 | E17: 52.3669 | F17: 70.5744 | G17: 315.3362 | H17: 92.8672 | I17: 14.7668 | J17: 919.1992 | K17: 779.6459 | N17: Mar-23 | O17: 2023 | P17: 3 | Q17: 311.8584 | R17: 389.8229 | S17: 662.699 | T17: 779.6459 | U17: 935.5751
A18: Abr-23 | B18: 2023 | C18: 4 | D18: 338.2322 | E18: 53.521 | F18: 65.292 | G18: 315.255 | H18: 91.0395 | I18: 35.4766 | J18: 898.8206 | K18: 787.837 | N18: Abr-23 | O18: 2023 | P18: 4 | Q18: 315.1348 | R18: 393.9185 | S18: 669.6614 | T18: 787.837 | U18: 945.4044
A19: * Pesos corrientes | D19: =+(D18-D17)/D17 -> -0.09391013955 | E19: =+(E18-E17)/E17 -> 0.02203873057 | F19: -0.07484867034 | G19: -0.0002575029445 | H19: -0.0196807915 | I19: 1.402456863 | J19: -0.02216994967 | K19: 0.01050617979 | N19: * Pesos corrientes | Q19: =+(Q18-Q17)/Q17 -> 0.01050605018 | R19: =+(R18-R17)/R17 -> 0.0105063094 | S19: =+(S18-S17)/S17 -> 0.01050612722 | T19: =+(T18-T17)/T17 -> 0.01050617979 | U19: =+(U18-U17)/U17 -> 0.01050615819
W23: CUV_119 | X23: Costo Unitario de Prestación del Servicio resultado de aplicar la metodología establecida en la Res. CREG 119 de 2007.
W26: CUV_Op | X26: Costo Unitario de Prestación del Servicio resultado de aplicar la metodología establecida en la Res. CREG 012 de 2020. Opción Tarifaria

Sheet 12. EE Putumayo
I1: REGRESAR
A2: EMPRESA: | C2: EMPRESA DE ENERGÍA DEL PUTUMAYO S.A. E.S.P. (2016)
A3: MERCADO: | C3: PUTUMAYO
A5: 1. COSTO UNITARIO DE PRESTACIÓN DEL SERVICIO Nivel de Tensión 1, Propiedad de Activos del OR | N5: 2. TARIFA AL USUARIO FINAL Nivel de Tensión 1, Propiedad de Activos del OR (estrato 1, 2 y 3 hasta el CS) | V5: 3. OPCIÓN TARIFARIA Nivel de Tensión 1, Propiedad de Activos del OR
B6: AÑO | C6: PERIODO | D6: GM | E6: TM | F6: PR | G6: D | H6: CV | I6: RM | J6: CUV_119 | K6: CUV_Op | O6: AÑO | P6: PERIODO | Q6: ESTRATO 1 | R6: ESTRATO 2 | S6: ESTRATO 3 | T6: ESTRATO 4 | U6: ESTRATO 5 y 6, Ind y Com
A7: May-22 | B7: 2022 | C7: 5 | D7: 296.2618 | E7: 40.97887 | F7: 62.60608 | G7: 245.34779 | H7: 82.36704 | I7: 42.72356 | J7: 769.28521 | N7: May-22 | O7: 2022 | P7: 5 | Q7: 307.71408 | R7: 384.6426 | S7: 653.89243 | T7: 769.28521 | U7: 923.14225
A8: Jun-22 | B8: 2022 | C8: 6 | D8: 303.04394 | E8: 49.5218 | F8: 63.7163 | G8: 242.18316 | H8: 86.03116 | I8: 53.63701 | J8: 798.13344 | N8: Jun-22 | O8: 2022 | P8: 6 | Q8: 319.2533 | R8: 399.066 | S8: 678.41342 | T8: 798.13344 | U8: 957.7601
A9: Jul-22 | B9: 2022 | C9: 7 | D9: 304.39526 | E9: 41.91243 | F9: 63.25399 | G9: 306.57757 | H9: 85.9343 | I9: 57.05464 | J9: 859.12818 | N9: Jul-22 | O9: 2022 | P9: 7 | Q9: 343.65127 | R9: 429.56409 | S9: 730.25896 | T9: 859.12818 | U9: 1030.95382
A10: Ago-22 | B10: 2022 | C10: 8 | D10: 311.71548 | E10: 52.11635 | F10: 64.35259 | G10: 310.19272 | H10: 94.98125 | I10: 69.96798 | J10: 903.32637 | N10: Ago-22 | O10: 2022 | P10: 8 | Q10: 361.33054 | R10: 451.66318 | S10: 767.82741 | T10: 903.32636 | U10: 1083.99163
A11: Sep-22 | B11: 2022 | C11: 9 | D11: 310.41 | E11: 50.84 | F11: 64.2 | G11: 306.79 | H11: 94.41 | I11: 43.17 | J11: 869.85 | K11: 854.54 | N11: Sep-22 | O11: 2022 | P11: 9 | Q11: 341.81 | R11: 427.27 | S11: 726.36 | T11: 854.54 | U11: =854.54*1.2 -> 1025.448
A12: Oct-22 | B12: 2022 | C12: 10 | D12: 311.9081 | E12: 46.16574 | F12: 64.01587 | G12: 305.3806 | H12: 90.62517 | I12: 29.50964 | J12: 847.60512 | K12: 832.54549 | N12: Oct-22 | O12: 2022 | P12: 10 | Q12: 333.01819 | R12: 416.27274 | S12: 707.66366 | T12: 832.54549 | U12: 999.05458
A13: Nov-22 | B13: 2022 | C13: 11 | D13: 317.86709 | E13: 47.09884 | F13: 64.94836 | G13: 299.8928 | H13: 90.78411 | I13: 26.21009 | J13: 846.80129 | K13: 831.75594 | N13: Nov-22 | O13: 2022 | P13: 11 | Q13: 332.70238 | R13: 415.87797 | S13: 706.99255 | T13: 831.75594 | U13: =+T13*1.2 -> 998.107128
A14: Dic-22 | B14: 2022 | C14: 12 | D14: 314.51207 | E14: 50.30695 | F14: 65.3929 | G14: 305.12961 | H14: 86.19513 | I14: 36.22674 | J14: 857.7634 | K14: 838.00315 | N14: Dic-22 | O14: 2022 | P14: 12 | Q14: 335.20126 | R14: 419.00158 | S14: 712.30268 | T14: 838.00315 | U14: =+T14*1.2 -> 1005.60378
A15: Ene-23 | B15: 2023 | C15: 1 | D15: 324.28566 | E15: 51.97324 | F15: 66.98895 | G15: 297.05295 | H15: 91.85281 | I15: 23.13763 | J15: 855.29124 | K15: 848.57414 | N15: Ene-23 | O15: 2023 | P15: 1 | Q15: 339.42965 | R15: 424.28707 | S15: 721.28802 | T15: 848.57414 | U15: =+T15*1.2 -> 1018.288968
A16: Feb-23 | B16: 2023 | C16: 2 | D16: 331.63984 | E16: 48.70809 | F16: 67.13723 | G16: 297.0494 | H16: 92.83247 | I16: 19.58783 | J16: 856.95487 | K16: 863.65801 | N16: Feb-23 | O16: 2023 | P16: 2 | Q16: 345.4632 | R16: 431.829 | S16: 734.10931 | T16: 863.65801 | U16: 1036.38961
A17: Mar-23 | B17: 2023 | C17: 3 | D17: 360.5299 | E17: 52.36693 | F17: 72.33594 | G17: 294.52007 | H17: 92.60161 | I17: 17.97731 | J17: 890.32685 | K17: 877.99957 | N17: Mar-23 | O17: 2023 | P17: 3 | Q17: 351.19983 | R17: 438.99978 | S17: 746.29963 | T17: 877.99957 | U17: 1053.59948
A18: Abr-23 | B18: 2023 | C18: 4 | D18: 314.19238 | E18: 53.52103 | F18: 91.08081 | G18: 287.26359 | H18: 99.82853 | I18: 35.303 | J18: 881.18935 | K18: 887.22395 | N18: Abr-23 | O18: 2023 | P18: 4 | Q18: 354.88958 | R18: 443.61197 | S18: 754.14036 | T18: 881.18935 | U18: 1064.66874
A19: * Pesos corrientes | D19: =+(D18-D17)/D17 -> -0.12852615 | E19: =+(E18-E17)/E17 -> 0.02203871795 | F19: 0.2591363297 | G19: -0.02463832091 | H19: 0.07804313554 | I19: 0.9637531978 | J19: -0.01026308484 | K19: 0.01050613271 | N19: * Pesos corrientes | Q19: =+(Q18-Q17)/Q17 -> 0.01050612695 | R19: =+(R18-R17)/R17 -> 0.01050613283 | S19: =+(S18-S17)/S17 -> 0.01050614215 | T19: =+(T18-T17)/T17 -> 0.003633008613 | U19: =+(U18-U17)/U17 -> 0.01050613654
V27: CUV_119 | W27: Costo Unitario de Prestación del Servicio resultado de aplicar la metodología establecida en la Res. CREG 119 de 2007.
V30: CUV_Op | W30: Costo Unitario de Prestación del Servicio resultado de aplicar la metodología establecida en la Res. CREG 012 de 2020. Opción Tarifaria

Sheet 13. EEBP
I1: REGRESAR
A2: EMPRESA: | C2: EMPRESA DE ENERGÍA DEL BAJO PUTUMAYO S.A. E.S.P. (2371)
A3: MERCADO: | C3: BAJO PUTUMAYO
A5: 1. COSTO UNITARIO DE PRESTACIÓN DEL SERVICIO Nivel de Tensión 1, Propiedad de Activos del OR | N5: 2. TARIFA AL USUARIO FINAL Nivel de Tensión 1, Propiedad de Activos del OR (estrato 1, 2 y 3 hasta el CS) | V5: 3. OPCIÓN TARIFARIA Nivel de Tensión 1, Propiedad de Activos del OR
B6: AÑO | C6: PERIODO | D6: GM | E6: TM | F6: PR | G6: D | H6: CV | I6: RM | J6: CUV_119 | K6: CUV_Op | O6: AÑO | P6: PERIODO | Q6: ESTRATO 1 | R6: ESTRATO 2 | S6: ESTRATO 3 | T6: ESTRATO 4 | U6: ESTRATO 5 y 6, Ind y Com
A7: May-22 | B7: 2022 | C7: 5 | D7: 283.01725 | E7: 40.97887 | F7: 53.79643 | G7: 245.34779 | H7: 100.45943 | I7: 43.00023 | J7: 766.6 | N7: May-22 | O7: 2022 | P7: 5 | Q7: 306.64 | R7: 383.3 | S7: 651.61 | T7: 766.6 | U7: 919.92
A8: Jun-22 | B8: 2022 | C8: 6 | D8: 290.99043 | E8: 49.5218 | F8: 55.95679 | G8: 242.18316 | H8: 99.92139 | I8: 55.22643 | J8: 793.8 | N8: Jun-22 | O8: 2022 | P8: 6 | Q8: 317.52 | R8: 396.9 | S8: 674.73 | T8: 793.8 | U8: 952.56
A9: Jul-22 | B9: 2022 | C9: 7 | D9: 292.0857 | E9: 41.91243 | F9: 55.44731 | G9: 306.57757 | H9: 99.76602 | I9: 54.71097 | J9: 850.5 | N9: Jul-22 | O9: 2022 | P9: 7 | Q9: 340.2 | R9: 425.25 | S9: 722.92 | T9: 850.5 | U9: 1020.6
A10: Ago-22 | B10: 2022 | C10: 8 | D10: 295.95476 | E10: 52.11635 | F10: 42.57239 | G10: 310.19272 | H10: 103.65404 | I10: 68.50974 | J10: 873 | N10: Ago-22 | O10: 2022 | P10: 8 | Q10: 349.2 | R10: 436.5 | S10: 742.05 | T10: 873 | U10: 1047.6
A11: Sep-22 | B11: 2022 | C11: 9 | D11: 292.86 | E11: 50.84 | F11: 53.87 | G11: 306.79 | H11: 106.78 | I11: 44.73 | J11: 855.9 | N11: Sep-22 | O11: 2022 | P11: 9 | Q11: 342.36 | R11: 427.95 | S11: 727.51 | T11: 855.9 | U11: =T11*1.2 -> 1027.08
A12: Oct-22 | B12: 2022 | C12: 10 | D12: 293.11506 | E12: 46.16574 | F12: 53.4558 | G12: 305.3806 | H12: 103.79366 | I12: 30.18914 | J12: 832.1 | N12: Oct-22 | O12: 2022 | P12: 10 | Q12: 332.84 | R12: 416.05 | S12: 707.28 | T12: 832.1 | U12: =+T12*1.2 -> 998.52
A13: Nov-22 | B13: 2022 | C13: 11 | D13: 291.53421 | E13: 47.09884 | F13: 64.59091 | G13: 299.8928 | H13: 101.47384 | I13: 28.1094 | J13: 832.7 | N13: Nov-22 | O13: 2022 | P13: 11 | Q13: 333.08 | R13: 416.35 | S13: 707.79 | T13: 832.7 | U13: =+T13*1.2 -> 999.24
A14: Dic-22 | B14: 2022 | C14: 12 | D14: 292.89395 | E14: 50.30695 | F14: 53.96561 | G14: 305.12961 | H14: 98.95354 | I14: 34.95034 | J14: 836.2 | N14: Dic-22 | O14: 2022 | P14: 12 | Q14: 334.48 | R14: 418.1 | S14: 710.77 | T14: 836.2 | U14: =+T14*1.2 -> 1003.44
A15: Ene-23 | B15: 2023 | C15: 1 | D15: 292.9741 | E15: 51.97324 | F15: 53.68496 | G15: 297.05295 | H15: 100.61247 | I15: 22.90228 | J15: 819.2 | N15: Ene-23 | O15: 2023 | P15: 1 | Q15: 327.68 | R15: 409.6 | S15: 696.32 | T15: 819.2 | U15: =+T15*1.2 -> 983.04
A16: Feb-23 | B16: 2023 | C16: 2 | D16: 290.71925 | E16: 48.70809 | F16: 53.00456 | G16: 297.0494 | H16: 102.74568 | I16: 18.97302 | J16: 811.2 | N16: Feb-23 | O16: 2023 | P16: 2 | Q16: 324.48 | R16: 405.6 | S16: 689.52 | T16: 811.2 | U16: =+T16*1.2 -> 973.44
A17: Mar-23 | B17: 2023 | C17: 3 | D17: 295.04273 | E17: 52.36693 | F17: 53.71205 | G17: 294.52007 | H17: 106.77673 | I17: 16.58149 | J17: 819 | N17: Mar-23 | O17: 2023 | P17: 3 | Q17: 327.6 | R17: 409.5 | S17: 696.15 | T17: 819 | U17: 982.8
A18: Abr-23 | B18: 2023 | C18: 4 | D18: 293.4385 | E18: 53.52103 | F18: 53.71992 | G18: 287.26359 | H18: 106.75672 | I18: 38.90024 | J18: 833.6 | N18: Abr-23 | O18: 2023 | P18: 4 | Q18: 333.44 | R18: 416.8 | S18: 708.56 | T18: 833.6 | U18: 1000.32
A19: * Pesos corrientes | D19: =+(D18-D17)/D17 -> -0.00543728022 | E19: =+(E18-E17)/E17 -> 0.02203871795 | F19: 0.000146522056 | G19: -0.02463832091 | H19: -0.0001874003821 | I19: 1.346003887 | J19: 0.01782661783 | N19: * Pesos corrientes | Q19: =+(Q18-Q17)/Q17 -> 0.01782661783 | R19: =+(R18-R17)/R17 -> 0.01782661783 | S19: 0.01782661783 | T19: 0.01782661783 | U19: =+(U18-U17)/U17 -> 0.01782661783
V27: CUV_119 | W27: Costo Unitario de Prestación del Servicio resultado de aplicar la metodología establecida en la Res. CREG 119 de 2007.
V30: CUV_Op | W30: Costo Unitario de Prestación del Servicio resultado de aplicar la metodología establecida en la Res. CREG 012 de 2020. Opción Tarifaria

Sheet 14. EEP PEREIRA
I1: REGRESAR
A2: EMPRESA: | C2: EMPRESA DE ENERGÍA DE PEREIRA S.A. E.S.P. (2073)
A3: MERCADO: | C3: PEREIRA
A5: 1. COSTO UNITARIO DE PRESTACIÓN DEL SERVICIO Nivel de Tensión 1, Propiedad de Activos del OR | N5: 2. TARIFA AL USUARIO FINAL Nivel de Tensión 1, Propiedad de Activos del OR (estrato 1, 2 y 3 hasta el CS) | V5: 3. OPCIÓN TARIFARIA Nivel de Tensión 1, Propiedad de Activos del OR
B6: AÑO | C6: PERIODO | D6: GM | E6: TM | F6: PR | G6: D | H6: CV | I6: RM | J6: CUV_119 | K6: CUV_Op | O6: AÑO | P6: PERIODO | Q6: ESTRATO 1 | R6: ESTRATO 2 | S6: ESTRATO 3 | T6: ESTRATO 4 | U6: ESTRATO 5 y 6, Ind y Com
A7: May-22 | B7: 2022 | C7: 5 | D7: 253.48 | E7: 40.98 | F7: 48.69 | G7: 254.58 | H7: 81.11 | I7: 39.06 | J7: 717.9 | K7: 708.37 | N7: May-22 | O7: 2022 | P7: 5 | Q7: 301.51 | R7: 376.89 | S7: 640.71 | T7: 753.77 | U7: 904.53
A8: Jun-22 | B8: 2022 | C8: 6 | D8: 263.1 | E8: 49.52 | F8: 50.8 | G8: 320.41 | H8: 81.95 | I8: 54.54 | J8: 820.32 | K8: 765.08 | N8: Jun-22 | O8: 2022 | P8: 6 | Q8: 306.03 | R8: 382.54 | S8: 650.32 | T8: 765.08 | U8: 918.1
A9: Jul-22 | B9: 2022 | C9: 7 | D9: 280.18 | E9: 41.91 | F9: 52.78 | G9: 328.93 | H9: 82.91 | I9: 50.83 | J9: 837.53 | K9: 776.56 | N9: Jul-22 | O9: 2022 | P9: 7 | Q9: 310.62 | R9: 388.28 | S9: 660.07 | T9: 776.56 | U9: 931.87
A10: Ago-22 | B10: 2022 | C10: 8 | D10: 281.14 | E10: 52.12 | F10: 54.6 | G10: 335.4 | H10: 87.07 | I10: 65.7 | J10: 876.03 | K10: 807.62 | N10: Ago-22 | O10: 2022 | P10: 8 | Q10: 323.05 | R10: 403.81 | S10: 686.48 | T10: 807.62 | U10: 969.14
A11: Sep-22 | B11: 2022 | C11: 9 | D11: 283.4 | E11: 50.85 | F11: 55.47 | G11: 314.86 | H11: 87.97 | I11: 42.9 | J11: 835.45 | K11: 835.08 | N11: Sep-22 | O11: 2022 | P11: 9 | Q11: 334.03 | R11: 417.54 | S11: 709.82 | T11: 835.08 | U11: 1002.09
A12: Oct-22 | B12: 2022 | C12: 10 | D12: 292.73 | E12: 46.17 | F12: 56.17 | G12: 303 | H12: 75.58 | I12: 27.58 | J12: 801.23 | K12: 800.84 | N12: Oct-22 | O12: 2022 | P12: 10 | Q12: 320.34 | R12: 400.42 | S12: 680.71 | T12: 800.84 | U12: 961.01
A13: Nov-22 | B13: 2022 | C13: 11 | D13: 292.5 | E13: 47.1 | F13: 55.96 | G13: 305.31 | H13: 75.69 | I13: 25.77 | J13: 802.32 | K13: 800.84 | N13: Nov-22 | O13: 2022 | P13: 11 | Q13: 320.34 | R13: 400.42 | S13: 680.71 | T13: 800.84 | U13: =+T13*1.2 -> 961.008
A14: Dic-22 | B14: 2022 | C14: 12 | D14: 283.2 | E14: 50.31 | F14: 55.26 | G14: 307.61 | H14: 75.32 | I14: 34.37 | J14: 806.06 | K14: 807 | N14: Dic-22 | O14: 2022 | P14: 12 | Q14: 322.8 | R14: 403.5 | S14: 685.95 | T14: 807 | U14: 968.4
A15: Ene-23 | B15: 2023 | C15: 1 | D15: 298.65 | E15: 51.97 | F15: 57.22 | G15: 289.27 | H15: 77.69 | I15: 20.57 | J15: 795.38 | K15: 817.17 | N15: Ene-23 | O15: 2023 | P15: 1 | Q15: 326.87 | R15: 408.59 | S15: 694.6 | T15: 817.17 | U15: 980.61
A16: Feb-23 | B16: 2023 | C16: 2 | D16: 310.17 | E16: 48.71 | F16: 58.48 | G16: 294.99 | H16: 77.36 | I16: 19.45 | J16: 809.17 | K16: 831.7 | N16: Feb-23 | O16: 2023 | P16: 2 | Q16: 332.68 | R16: 415.85 | S16: 706.94 | T16: 831.7 | U16: 998.04
A17: Mar-23 | B17: 2023 | C17: 3 | D17: 357.0361 | E17: 52.3669 | F17: 65.5277 | G17: 315.3362 | H17: 81.3025 | I17: 16.558 | J17: 888.1274 | K17: 845.5106 | N17: Mar-23 | O17: 2023 | P17: 3 | Q17: 338.206 | R17: 422.7575 | S17: 718.68401 | T17: 845.5106 | U17: 1014.61272
A18: Abr-23 | B18: 2023 | C18: 4 | D18: 298.791 | E18: 53.5211 | F18: 57.3295 | G18: 315.255 | H18: 85.0385 | I18: 33.658 | J18: 843.5931 | K18: 854.3969 | N18: Abr-23 | O18: 2023 | P18: 4 | Q18: 341.7592 | R18: 427.199 | S18: 726.23737 | T18: 854.3969 | U18: 1025.27628
A19: * Pesos corrientes | D19: =+(D18-D17)/D17 -> -0.1631350443 | E19: =+(E18-E17)/E17 -> 0.02204064018 | F19: -0.1251104495 | G19: -0.0002575029445 | H19: 0.0459518465 | I19: 1.032733422 | J19: -0.05014404465 | K19: 0.0105099806 | N19: * Pesos corrientes | Q19: =+(Q18-Q17)/Q17 -> 0.01050602296 | R19: =+(R18-R17)/R17 -> 0.01050602296 | S19: 0.01050998755 | T19: 0.0105099806 | U19: 0.0105099806
V27: CUV_119 | W27: Costo Unitario de Prestación del Servicio resultado de aplicar la metodología establecida en la Res. CREG 119 de 2007.
V30: CUV_Op | W30: Costo Unitario de Prestación del Servicio resultado de aplicar la metodología establecida en la Res. CREG 012 de 2020. Opción Tarifaria

Sheet 15. AIR-E
I1: REGRESAR
A2: EMPRESA: | C2: AIR-E S.A.S. E.S.P. (48307)
A3: MERCADO: | C3: CARIBE SOL
A5: 1. COSTO UNITARIO DE PRESTACIÓN DEL SERVICIO Nivel de Tensión 1, Propiedad de Activos del OR | N5: 2. TARIFA AL USUARIO FINAL Nivel de Tensión 1, Propiedad de Activos del OR (estrato 1, 2 y 3 hasta el CS) | W5: 3. OPCIÓN TARIFARIA Nivel de Tensión 1, Propiedad de Activos del OR
B6: AÑO | C6: PERIODO | D6: GM | E6: TM | F6: PR | G6: D | H6: CV | I6: RM | J6: CUV_119 | K6: CUV_Op | O6: AÑO | P6: PERIODO | Q6: ESTRATO 1 | R6: ESTRATO 2 | S6: ESTRATO 3 | T6: ESTRATO 4 | U6: ESTRATO 5 y 6, Ind y Com
A7: May-22 | B7: 2022 | C7: 5 | D7: 275.15 | E7: 40.93 | F7: 280.4 | G7: 162.65 | H7: 135.05 | I7: 52.37 | J7: 946.6 | K7: 767.06 | N7: May-22 | O7: 2022 | P7: 5 | Q7: 306.83 | R7: 383.53 | S7: 652 | T7: 767.06 | U7: 920.47
A8: Jun-22 | B8: 2022 | C8: 6 | D8: 281.97 | E8: 49.52 | F8: 287.18 | G8: 162.72 | H8: 132.3 | I8: 75.9 | J8: 989.6 | K8: 805.41 | N8: Jun-22 | O8: 2022 | P8: 6 | Q8: 322.16 | R8: 402.71 | S8: 684.6 | T8: 805.41 | U8: 966.49
A9: **Jul-22 | B9: 2022 | C9: 7 | D9: 290.91 | E9: 41.91 | F9: 189.26 | G9: 183.97 | H9: 138.62 | I9: 61.43 | J9: 906.1 | K9: 854.54 | N9: Jul-22 | O9: 2022 | P9: 7 | Q9: 341.82 | R9: 427.27 | S9: 726.36 | T9: 854.54 | U9: 1025.45
A10: Ago-22 | B10: 2022 | C10: 8 | D10: 284.08 | E10: 52.12 | F10: 184.33 | G10: 184.88 | H10: 123.54 | I10: 87.7 | J10: 916.65 | K10: 863.09 | N10: Ago-22 | O10: 2022 | P10: 8 | Q10: 345.23 | R10: 431.54 | S10: 733.62 | T10: 863.09 | U10: 1035.7
A11: Sep-22 | B11: 2022 | C11: 9 | D11: 285.76 | E11: 50.85 | F11: 184.42 | G11: 185.56 | H11: 129.43 | I11: 55.66 | J11: 891.69 | K11: 868.27 | N11: Sep-22 | O11: 2022 | P11: 9 | Q11: 347.31 | R11: 434.13 | S11: 738.03 | T11: 868.27 | U11: 1041.92
A12: Oct-22 | B12: 2022 | C12: 10 | D12: 294.49 | E12: 46.17 | F12: 185.24 | G12: 180.97 | H12: 124.03 | I12: 34.46 | J12: 865.35 | K12: 841.92 | N12: Oct-22 | O12: 2022 | P12: 10 | Q12: 336.77 | R12: 420.96 | S12: 715.64 | T12: 841.92 | U12: 1010.31
A13: Nov-22 | B13: 2022 | C13: 11 | D13: 291.7 | E13: 47.1 | F13: 184.25 | G13: 180.46 | H13: 123.38 | I13: 32.76 | J13: 859.65 | K13: 836.23 | N13: Nov-22 | O13: 2022 | P13: 11 | Q13: 334.49 | R13: 418.11 | S13: 710.79 | T13: 836.23 | U13: 1003.47
A14: Dic-22 | B14: 2022 | C14: 12 | D14: 290.97 | E14: 50.31 | F14: 189.01 | G14: 188.05 | H14: 123.74 | I14: 41.46 | J14: 883.53 | K14: 845.17 | N14: Dic-22 | O14: 2022 | P14: 12 | Q14: 338.07 | R14: 422.58 | S14: 718.39 | T14: 845.17 | U14: 1014.2
A15: Ene-23 | B15: 2023 | C15: 1 | D15: 296.94 | E15: 51.97 | F15: 192.95 | G15: 185.83 | H15: 128.95 | I15: 24.97 | J15: 881.61 | K15: 858.37 | N15: Ene-23 | O15: 2023 | P15: 1 | Q15: 343.35 | R15: 429.18 | S15: 729.61 | T15: 858.37 | U15: 1030.04
A16: Feb-23 | B16: 2023 | C16: 2 | D16: 286.91 | E16: 48.71 | F16: 186.71 | G16: 190.79 | H16: 125.97 | I16: 23.92 | J16: 863 | K16: 876.2 | N16: Feb-23 | O16: 2023 | P16: 2 | Q16: 350.48 | R16: 438.1 | S16: 744.77 | T16: 876.2 | U16: 1051.44
A17: Mar-23 | B17: 2023 | C17: 3 | D17: 309.76 | E17: 52.37 | F17: 199.58 | G17: 200.51 | H17: 129.31 | I17: 19.2 | J17: 910.74 | K17: 893.38 | N17: Mar-23 | O17: 2023 | P17: 3 | Q17: 357.35 | R17: 446.69 | S17: 759.37 | T17: 893.38 | U17: 1072.05
A18: Abr-23 | B18: 2023 | C18: 4 | D18: 284.61 | E18: 53.52 | F18: 171.51 | G18: 185.72 | H18: 135 | I18: 42.83 | J18: 873.19 | K18: 905.44 | N18: Abr-23 | O18: 2023 | P18: 4 | Q18: 362.18 | R18: 452.72 | S18: 769.63 | T18: 905.44 | U18: 1086.53
A19: * Pesos corrientes | D19: =+(D18-D17)/D17 -> -0.0811918905 | E19: =+(E18-E17)/E17 -> 0.02195913691 | F19: -0.1406453552 | G19: -0.07376190714 | H19: 0.04400278401 | I19: =+(I18-I17)/I17 -> 1.230729167 | J19: -0.0412302084 | K19: 0.01349929481 | N19: * Pesos corrientes | Q19: =+(Q18-Q17)/Q17 -> 0.01351616063 | R19: =+(R18-R17)/R17 -> 0.01349929481 | S19: =+(S18-S17)/S17 -> 0.01351120007 | T19: =+(T18-T17)/T17 -> 0.01349929481 | U19: =+(U18-U17)/U17 -> 0.0135068327
A20: ** Ajuste a las tarifas del mes de julio de 2022 | N20: ** Ajuste a las tarifas del mes de agosto de 2021. Publicado 18 -19 de septiembre. La republica
W23: CUV_119 | X23: Costo Unitario de Prestación del Servicio resultado de aplicar la metodología establecida en la Res. CREG 119 de 2007.
W26: CUV_Op | X26: Costo Unitario de Prestación del Servicio resultado de aplicar la metodología establecida en la Res. CREG 012 de 2020. Opción Tarifaria

Sheet 16. AFINIA
I1: REGRESAR
A2: EMPRESA: | C2: CARIBEMAR DE LA COSTA S.A.S. E.S.P. (AFINIA) (48305)
A3: MERCADO: | C3: CARIBE MAR
A5: 1. COSTO UNITARIO DE PRESTACIÓN DEL SERVICIO Nivel de Tensión 1, Propiedad de Activos del OR | N5: 2. TARIFA AL USUARIO FINAL Nivel de Tensión 1, Propiedad de Activos del OR (estrato 1, 2 y 3 hasta el CS) | W5: 3. OPCIÓN TARIFARIA Nivel de Tensión 1, Propiedad de Activos del OR
B6: AÑO | C6: PERIODO | D6: GM | E6: TM | F6: PR | G6: D | H6: CV | I6: RM | J6: CUV_119 | K6: CUV_Op | O6: AÑO | P6: PERIODO | Q6: ESTRATO 1 | R6: ESTRATO 2 | S6: ESTRATO 3 | T6: ESTRATO 4 | U6: ESTRATO 5 y 6, Ind y Com
A7: May-22 | B7: 2022 | C7: 5 | D7: 280.4 | E7: 40.98 | F7: 222.34 | G7: 208.05 | H7: 123.35 | I7: 49.87 | J7: 924.99 | K7: 727.18 | N7: May-22 | O7: 2022 | P7: 5 | Q7: 290.87 | R7: 363.59 | S7: 618.1 | T7: 727.18 | U7: 872.61
A8: Jun-22 | B8: 2022 | C8: 6 | D8: 258.28 | E8: 49.52 | F8: 205.13 | G8: 210.1 | H8: 125.76 | I8: 68.73 | J8: 917.54 | K8: 756.26 | N8: Jun-22 | O8: 2022 | P8: 6 | Q8: 302.5 | R8: 378.13 | S8: 642.82 | T8: 756.26 | U8: 907.51
A9: Jul-22 | B9: 2022 | C9: 7 | D9: 275.88 | E9: 41.91 | F9: 152.03 | G9: 220.33 | H9: 125.86 | I9: 63.51 | J9: 879.52 | K9: 794.08 | N9: JuL-22 | O9: 2022 | P9: 7 | Q9: 317.63 | R9: 397.04 | S9: 674.96 | T9: 794.08 | U9: 952.89
A10: Ago-22 | B10: 2022 | C10: 8 | D10: 265.25 | E10: 52.12 | F10: 151.45 | G10: 220.8 | H10: 124.71 | I10: 84.15 | J10: 898.48 | K10: 817.9 | N10: Ago-22 | O10: 2022 | P10: 8 | Q10: 327.16 | R10: 408.95 | S10: 695.21 | T10: 817.9 | U10: 981.48
A11: Sep-22 | B11: 2022 | C11: 9 | D11: 271.48 | E11: 50.85 | F11: 148.88 | G11: 221.72 | H11: 121.82 | I11: 53.17 | J11: 867.91 | K11: 822.8 | N11: Sep-22 | O11: 2022 | P11: 9 | Q11: 330.5 | R11: 413.13 | S11: 699.38 | T11: 822.8 | U11: 987.37
A12: Oct-22 | B12: 2022 | C12: 10 | D12: 272.16 | E12: 46.17 | F12: 146.52 | G12: 224.5 | H12: 118.12 | I12: 34.41 | J12: 841.87 | K12: 798.12 | N12: Oct-22 | O12: 2022 | P12: 10 | Q12: 320.59 | R12: 400.74 | S12: 678.4 | T12: 798.12 | U12: 957.74
A13: Nov-22 | B13: 2022 | C13: 11 | D13: 269.01 | E13: 47.1 | F13: 145.22 | G13: 240.94 | H13: 118.87 | I13: 32.02 | J13: 853.16 | K13: 798.12 | N13: Nov-22 | O13: 2022 | P13: 11 | Q13: 320.59 | R13: 400.74 | S13: 678.4 | T13: 798.12 | U13: 957.74
A14: Dic-22 | B14: 2022 | C14: 12 | D14: 283.24 | E14: 50.31 | F14: 153.34 | G14: 233.67 | H14: 123.18 | I14: 41.33 | J14: 885.06 | K14: 798.12 | N14: Dic-22 | O14: 2022 | P14: 12 | Q14: 323.06 | R14: 403.82 | S14: 678.4 | T14: 798.12 | U14: 957.74
A15: Ene-23 | B15: 2023 | C15: 1 | D15: 301.95 | E15: 51.97 | F15: 162.48 | G15: 229.67 | H15: 127.63 | I15: 25.57 | J15: 899.29 | K15: 808.19 | N15: Ene-23 | O15: 2023 | P15: 1 | Q15: 327.13 | R15: 408.91 | S15: 686.96 | T15: 808.19 | U15: 969.83
A16: Feb-23 | B16: 2023 | C16: 2 | D16: 295.25 | E16: 48.71 | F16: 158.6 | G16: 234.6 | H16: 129.88 | I16: 23.52 | J16: 890.56 | K16: 822.55 | N16: Feb-23 | O16: 2023 | P16: 2 | Q16: 332.95 | R16: 416.18 | S16: 699.17 | T16: 822.55 | U16: 987.06
A17: Mar-23 | B17: 2023 | C17: 3 | D17: 330.07633 | E17: 52.36693 | F17: 175.30445 | G17: 244.24743 | H17: 128.72683 | I17: 20.95868 | J17: 951.68065 | K17: 836.21 | N17: Mar-23 | O17: 2023 | P17: 3 | Q17: 338.47376 | R17: 423.0922 | S17: 710.78012 | T17: 836.21191 | U17: 1003.45429
A18: Abr-23 | B18: 2023 | C18: 4 | D18: 282.83 | E18: 53.52 | F18: 141.82 | G18: 226.24 | H18: 137.29 | I18: 43.04 | J18: 884.75 | K18: 845 | N18: Abr-23 | O18: 2023 | P18: 4 | Q18: 342.03 | R18: 427.54 | S18: 718.25 | T18: 845 | U18: 1014
A19: * Pesos corrientes | D19: =+(D18-D17)/D17 -> -0.1431375888 | E19: =+(E18-E17)/E17 -> 0.02201904904 | F19: -0.191007416 | G19: -0.07372618005 | H19: 0.06652202963 | I19: 1.053564442 | J19: -0.07032889657 | K19: =+(K18-K17)/K17 -> 0.01051171356 | N19: * Pesos corrientes | Q19: =+(Q18-Q17)/Q17 -> 0.01050669334 | R19: =+(R18-R17)/R17 -> 0.01051260222 | S19: 0.01050941042 | T19: 0.01050940544 | U19: =+(U18-U17)/U17 -> 0.01050940746
W24: CUV_119 | X24: Costo Unitario de Prestación del Servicio resultado de aplicar la metodología establecida en la Res. CREG 119 de 2007.
W27: CUV_Op | X27: Costo Unitario de Prestación del Servicio resultado de aplicar la metodología establecida en la Res. CREG 012 de 2020. Opción Tarifaria

Sheet 17. ELECTROCAQUETÁ
I1: REGRESAR
A2: EMPRESA: | C2: ELECTRIFICADORA DE CAQUETÁ S.A. E.S.P. (1032)
A3: MERCADO: | C3: CAQUETÁ
A5: 1. COSTO UNITARIO DE PRESTACIÓN DEL SERVICIO Nivel de Tensión 1, Propiedad de Activos del OR | N5: 2. TARIFA AL USUARIO FINAL Nivel de Tensión 1, Propiedad de Activos del OR (estrato 1, 2 y 3 hasta el CS) | W5: 3. OPCIÓN TARIFARIA Nivel de Tensión 1, Propiedad de Activos del OR
B6: AÑO | C6: PERIODO | D6: GM | E6: TM | F6: PR | G6: D | H6: CV | I6: RM | J6: CUV_119 | K6: CUV_Op | O6: AÑO | P6: PERIODO | Q6: ESTRATO 1 | R6: ESTRATO 2 | S6: ESTRATO 3 | T6: ESTRATO 4 | U6: ESTRATO 5 y 6, Ind y Com
A7: May-22 | B7: 2022 | C7: 5 | D7: 188.587 | E7: 40.979 | F7: 37.766 | G7: 245.348 | H7: 124.912 | I7: 42.743 | J7: 680.34 | K7: 702.56 | N7: May-22 | O7: 2022 | P7: 5 | Q7: 305.14 | R7: 381.43 | S7: 597.18 | T7: 702.56 | U7: 843.08
A8: Jun-22 | B8: 2022 | C8: 6 | D8: 202.355 | E8: 49.522 | F8: 41.046 | G8: 242.183 | H8: 116.806 | I8: 64.177 | J8: 716.09 | K8: 708.89 | N8: Jun-22 | O8: 2022 | P8: 6 | Q8: 307.71 | R8: 384.64 | S8: 602.55 | T8: 708.89 | U8: 850.66
A9: Jul-22 | B9: 2022 | C9: 7 | D9: 204.885 | E9: 41.912 | F9: 40.639 | G9: 306.578 | H9: 128.146 | I9: 40.639 | J9: 780.38 | K9: 715.27 | N9: Jul-22 | O9: 2022 | P9: 7 | Q9: 309.3 | R9: 386.63 | S9: 607.98 | T9: 715.27 | U9: 858.32
A10: Ago-22 | B10: 2022 | C10: 8 | D10: 209.717 | E10: 52.116 | F10: 74.679 | G10: 310.193 | H10: 125.042 | I10: 42.9 | J10: 814.647 | K10: 721.7 | N10: Ago-22 | O10: 2022 | P10: 8 | Q10: 311.78 | R10: 389.73 | S10: 613.45 | T10: 721.7 | U10: 866.04
A11: Sep-22 | B11: 2022 | C11: 9 | D11: 243.21 | E11: 50.84 | F11: 48.57 | G11: 306.79 | H11: 128.22 | I11: 48.57 | J11: 826.16 | K11: 728.2 | N11: Sep-22 | O11: 2022 | P11: 9 | Q11: 314.97 | R11: 393.71 | S11: 618.97 | T11: 728.2 | U11: 873.84
A12: Oct-22 | B12: 2022 | C12: 10 | D12: 276.031 | E12: 49.806 | F12: 53.875 | G12: 305.381 | H12: 126.424 | I12: 32.354 | J12: 843.87 | K12: 728.2 | N12: Oct-22 | O12: 2022 | P12: 10 | Q12: 314.97 | R12: 393.71 | S12: 618.97 | T12: 728.2 | U12: 873.84
A13: Nov-22 | B13: 2022 | C13: 11 | D13: 280.989 | E13: 47.099 | F13: 54.224 | G13: 299.893 | H13: 124.802 | I13: 29.523 | J13: 836.53 | K13: 720.92 | N13: Nov-22 | O13: 2022 | P13: 11 | Q13: 311.8 | R13: 389.74 | S13: 612.78 | T13: 720.92 | U13: 865.1
A14: Dic-22 | B14: 2022 | C14: 12 | D14: 259.662 | E14: 50.307 | F14: 51.395 | G14: 305.13 | H14: 120.136 | I14: 38.372 | J14: 825 | K14: 728.63 | N14: Dic-22 | O14: 2022 | P14: 12 | Q14: 322.64 | R14: 403.3 | S14: 619.34 | T14: 728.63 | U14: =+T14*1.2 -> 874.356
A15: Ene-23 | B15: 2023 | C15: 1 | D15: 293.993 | E15: 51.973 | F15: 57.469 | G15: 297.053 | H15: 125.187 | I15: 25.163 | J15: 850.84 | K15: 740 | N15: Ene-23 | O15: 2023 | P15: 1 | Q15: 326.71 | R15: 408.39 | S15: 629 | T15: 740 | U15: 888
A16: Feb-23 | B16: 2023 | C16: 2 | D16: 323.925 | E16: 48.708 | F16: 62.312 | G16: 297.049 | H16: 128.328 | I16: 22.267 | J16: 882.59 | K16: 755.39 | N16: Feb-23 | O16: 2023 | P16: 2 | Q16: 332.52 | R16: 415.65 | S16: 642.08 | T16: 755.39 | U16: =+T16*1.2 -> 906.468
A17: Mar-23 | B17: 2023 | C17: 3 | D17: 376.2129 | E17: 52.3669 | F17: 71.3328 | G17: 294.5201 | H17: 139.6764 | I17: 19.6122 | J17: 953.72 | K17: 770.2 | N17: Mar-23 | O17: 2023 | P17: 3 | Q17: 338.04 | R17: 422.55 | S17: 654.67 | T17: 770.2 | U17: 924.23
A18: Abr-23 | B18: 2023 | C18: 4 | D18: 312.9122 | E18: 53.521 | F18: 62.4425 | G18: 287.2636 | H18: 149.3414 | I18: 37.3697 | J18: 902.85 | K18: 780.59 | N18: May-23 | O18: 2023 | P18: 4 | Q18: 332.65 | R18: 415.81 | S18: 663.5 | T18: 780.59 | U18: 936.71
A19: * Pesos corrientes | D19: =+(D18-D17)/D17 -> -0.1682576541 | E19: =+(E18-E17)/E17 -> 0.02203873057 | F19: -0.1246313057 | G19: -0.02463838631 | H19: 0.0691956551 | I19: 0.9054313132 | J19: -0.05333850606 | K19: 0.0134900026 | N19: * Pesos corrientes | Q19: =+(Q18-Q17)/Q17 -> -0.0159448586 | R19: =+(R18-R17)/R17 -> -0.01595077506 | S19: =+(S18-S17)/S17 -> 0.01348771137 | T19: =+(T18-T17)/T17 -> 0.0134900026 | U19: =+(U18-U17)/U17 -> 0.01350313234
N20: Se ajusta la tarifa estrato 3 de octubre por un error en la transcripción.
X23: CUV_119 | Y23: Costo Unitario de Prestación del Servicio resultado de aplicar la metodología establecida en la Res. CREG 119 de 2007.
X26: CUV_Op | Y26: Costo Unitario de Prestación del Servicio resultado de aplicar la metodología establecida en la Res. CREG 012 de 2020. Opción Tarifaria
D43: Información tarifaria del servicio público de energía

Sheet 18. ELECTROHUILA
I1: REGRESAR
A2: EMPRESA: | C2: ELECTRIFICADORA DEL HUILA S.A. E.S.P. (1014)
A3: MERCADO: | C3: HUILA
A5: 1. COSTO UNITARIO DE PRESTACIÓN DEL SERVICIO Nivel de Tensión 1, Propiedad de Activos del OR | N5: 2. TARIFA AL USUARIO FINAL Nivel de Tensión 1, Propiedad de Activos del OR (estrato 1, 2 y 3 hasta el CS) | V5: 3. OPCIÓN TARIFARIA Nivel de Tensión 1, Propiedad de Activos del OR
B6: AÑO | C6: PERIODO | D6: GM | E6: TM | F6: PR | G6: D | H6: CV | I6: RM | J6: CUV_119 | K6: CUV_Op | O6: AÑO | P6: PERIODO | Q6: ESTRATO 1 | R6: ESTRATO 2 | S6: ESTRATO 3 | T6: ESTRATO 4 | U6: ESTRATO 5 y 6, Ind y Com
A7: May-22 | B7: 2022 | C7: 5 | D7: 249.14 | E7: 40.98 | F7: 70.89 | G7: 228.16 | H7: 115.57 | I7: 42.05 | J7: 746.7868 | K7: 735.916 | N7: May-22 | O7: 2022 | P7: 5 | Q7: 294.3664 | R7: 367.958 | S7: 625.5286 | T7: 735.916 | U7: 883.0992
A8: Jun-22 | B8: 2022 | C8: 6 | D8: 248.4768 | E8: 49.5218 | F8: 72.5091 | G8: 234.3297 | H8: 108.9458 | I8: 59.3911 | J8: 773.1743 | K8: 740.3315 | N8: Jun-22 | O8: 2022 | P8: 6 | Q8: 296.1326 | R8: 370.1657 | S8: 629.2818 | T8: 740.3315 | U8: 888.3978
A9: Jul-22 | B9: 2022 | C9: 7 | D9: 249.1127 | E9: 41.9124 | F9: 71.8796 | G9: 243.7569 | H9: 112.2971 | I9: 54.4908 | J9: 773.4496 | K9: 749.2155 | N9: Jul-22 | O9: 2022 | P9: 7 | Q9: 299.6862 | R9: 374.6077 | S9: 636.8331 | T9: 749.2155 | U9: 899.0586
A10: Ago-22 | B10: 2022 | C10: 8 | D10: 255.0088 | E10: 52.1163 | F10: 58.9543 | G10: 246.3726 | H10: 111.1973 | I10: 67.2702 | J10: 790.9196 | K10: 771.6919 | N10: Ago-22 | O10: 2022 | P10: 8 | Q10: 308.6768 | R10: 385.845 | S10: 655.938115 | T10: 771.6919 | U10: 926.03028
A11: Sep-22 | B11: 2022 | C11: 9 | D11: 260.51 | E11: 50.84 | F11: 60.7 | G11: 247.75 | H11: 114.63 | I11: 49.15 | J11: 783.61 | K11: 794.8437 | N11: Sep-22 | O11: 2022 | P11: 9 | Q11: 317.9371 | R11: 397.4213 | S11: 675.6163 | T11: 794.8427 | U11: 953.8112
A12: Oct-22 | B12: 2022 | C12: 10 | D12: 291.3482 | E12: 46.1657 | F12: 64.9434 | G12: 251.483 | H12: 112.5146 | I12: 27.9196 | J12: 794.3745 | K12: 794.8427 | N12: Oct-22 | O12: 2022 | P12: 10 | Q12: 317.9371 | R12: 397.4213 | S12: 675.6163 | T12: 794.8427 | U12: 953.8112
A13: Nov-22 | B13: 2022 | C13: 11 | D13: 300.66 | E13: 47.0988 | F13: 66.4578 | G13: 258.4264 | H13: 110.0543 | I13: 27.1647 | J13: 809.862 | K13: 794.8427 | N13: Nov-22 | O13: 2022 | P13: 11 | Q13: 317.9371 | R13: 397.4213 | S13: 675.6163 | T13: 794.8427 | U13: 953.8112
A14: Dic-22 | B14: 2022 | C14: 12 | D14: 270.4486 | E14: 50.307 | F14: 61.9606 | G14: 241.9357 | H14: 114.4158 | I14: 35.79001 | J14: 774.8576 | K14: 800.9564 | N14: Dic-22 | O14: 2022 | P14: 12 | Q14: 320.3826 | R14: 400.4782 | S14: 680.8129 | T14: 800.9564 | U14: 961.1477
A15: Ene-23 | B15: 2023 | C15: 1 | D15: 308.9641 | E15: 51.9732 | F15: 68.3514 | G15: 244.9043 | H15: 114.209 | I15: 21.9292 | J15: 810.3312 | K15: 811.0484 | N15: Ene-23 | O15: 2023 | P15: 1 | Q15: 324.4194 | R15: 405.5242 | S15: 689.3912 | T15: 811.0484 | U15: 973.2581
A16: Feb-23 | B16: 2023 | C16: 2 | D16: 347.222 | E16: 48.7081 | F16: 74.4509 | G16: 248.7558 | H16: 116.3322 | I16: 19.2826 | J16: 854.7515 | K16: 825.4851 | N16: Feb-23 | O16: 2023 | P16: 2 | Q16: 330.194 | R16: 412.7425 | S16: 701.6623 | T16: 825.4851 | U16: 990.5821
A17: Mar-23 | B17: 2023 | C17: 3 | D17: 376.7614 | E17: 52.3669 | F17: 79.6743 | G17: 265.9942 | H17: 119.2018 | I17: 17.5466 | J17: 911.5452 | K17: 839.1881 | N17: Mar-23 | O17: 2023 | P17: 3 | Q17: 335.6753 | R17: 419.5941 | S17: 713.3099 | T17: 839.1881 | U17: 1007.0258
A18: Abr-23 | B18: 2023 | C18: 4 | D18: 374.9853 | E18: 53.521 | F18: 79.4455 | G18: 263.17777 | H18: 124.0309 | I18: 36.2011 | J18: 931.3615 | K18: 847.9996 | N18: Abr-23 | O18: 2023 | P18: 4 | Q18: 339.1998 | R18: 423.9998 | S18: 720.7996 | T18: 847.9996 | U18: 1017.5995
A19: * Pesos corrientes | D19: =+(D18-D17)/D17 -> -0.004714124111 | E19: =+(E18-E17)/E17 -> 0.02203873057 | F19: -0.002871691374 | G19: -0.01058831358 | H19: 0.04051197213 | I19: 1.063140437 | J19: 0.02173924014 | K19: 0.01050002973 | N19: * Pesos corrientes | Q19: =+(Q18-Q17)/Q17 -> 0.01049972995 | R19: =+(R18-R17)/R17 -> 0.01049990932 | S19: =+(S18-S17)/S17 -> 0.01049992437 | T19: =+(T18-T17)/T17 -> 0.01050002973 | U19: =+(U18-U17)/U17 -> 0.01049992959
V24: CUV_119 | W24: Costo Unitario de Prestación del Servicio resultado de aplicar la metodología establecida en la Res. CREG 119 de 2007.
V27: CUV_Op | W27: Costo Unitario de Prestación del Servicio resultado de aplicar la metodología establecida en la Res. CREG 012 de 2020. Opción Tarifaria

Sheet 19. EMCALI
I1: REGRESAR
A2: EMPRESA: | C2: EMPRESAS MUNICIPALES DE CALI E.S.P. (2438)
A3: MERCADO: | C3: CALI - YUMBO - PUERTO TEJADA
A5: 1. COSTO UNITARIO DE PRESTACIÓN DEL SERVICIO Nivel de Tensión 1, Propiedad de Activos del OR | N5: 2. TARIFA AL USUARIO FINAL Nivel de Tensión 1, Propiedad de Activos del OR (estrato 1, 2 y 3 hasta el CS) | W5: 3. OPCIÓN TARIFARIA Nivel de Tensión 1, Propiedad de Activos del OR
B6: AÑO | C6: PERIODO | D6: GM | E6: TM | F6: PR | G6: D | H6: CV | I6: RM | J6: CUV_119 | K6: CUV_Op | O6: AÑO | P6: PERIODO | Q6: ESTRATO 1 | R6: ESTRATO 2 | S6: ESTRATO 3 | T6: ESTRATO 4 | U6: ESTRATO 5 y 6, Ind y Com
A7: May-22 | B7: 2022 | C7: 5 | D7: 290.6411 | E7: 40.9789 | F7: 57.9394 | G7: 262.2728 | H7: 57.5726 | I7: 41.2042 | J7: 750.6089 | K7: 808.0381 | N7: May-22 | O7: 2022 | P7: 5 | Q7: 323.2152 | R7: 404.019 | S7: 686.8324 | T7: 808.0381 | U7: 969.6457
A8: Jun-22 | B8: 2022 | C8: 6 | D8: 292.3465 | E8: 49.5217 | F8: 59.0944 | G8: 276.0211 | H8: 60.3034 | I8: 56.4471 | J8: 793.7342 | K8: 830.7496 | N8: Jun-22 | O8: 2022 | P8: 6 | Q8: 332.2998 | R8: 415.3748 | S8: 706.1371 | T8: 830.7496 | U8: 996.8995
A9: Jul-22 | B9: 2022 | C9: 7 | D9: 304.9617 | E9: 41.9124 | F9: 60.6066 | G9: 282.5232 | H9: 60.3939 | I9: 50.4601 | J9: 800.8579 | K9: 800.9585 | N9: Jul-22 | O9: 2022 | P9: 7 | Q9: 320.3834 | R9: 400.4792 | S9: 680.8147 | T9: 800.9585 | U9: 961.1502
A10: Ago-22 | B10: 2022 | C10: 8 | D10: 312.0475 | E10: 52.1163 | F10: 63.7063 | G10: 280.7454 | H10: 60.4992 | I10: 68.4659 | J10: 837.5806 | N10: Ago-22 | O10: 2022 | P10: 8 | Q10: 335.0322 | R10: 418.7903 | S10: 711.94351 | T10: 837.5806 | U10: =+T10*1.2 -> 1005.09672
A11: Sep-22 | B11: 2022 | C11: 9 | D11: 311.99 | E11: 50.84 | F11: 64.03 | G11: 270.77 | H11: 63.86 | I11: 41.69 | J11: 803.2 | N11: Sep-22 | O11: 2022 | P11: 9 | Q11: 338.45 | R11: 423.07 | S11: 682.72 | T11: 803.2 | U11: 963.84
A12: Oct-22 | B12: 2022 | C12: 10 | D12: 310.7919 | E12: 46.1657 | F12: 63.3062 | G12: 263.0337 | H12: 61.9339 | I12: 28.5831 | J12: 773.8145 | N12: Oct-22 | O12: 2022 | P12: 10 | Q12: 326.073 | R12: 407.5912 | S12: 657.7423 | T12: 773.8145 | U12: 928.5774
A13: Nov-22 | B13: 2022 | C13: 11 | D13: 311.8387 | E13: 47.0988 | F13: 63.1375 | G13: 270.1675 | H13: 60.5729 | I13: 25.8906 | J13: 778.706 | N13: Nov-22 | O13: 2022 | P13: 11 | Q13: 328.1341 | R13: 410.1676 | S13: 661.9001 | T13: 778.706 | U13: 934.4472
A14: Dic-22 | B14: 2022 | C14: 12 | D14: 312.8602 | E14: 50.3069 | F14: 63.9197 | G14: 271.4922 | H14: 60.2648 | I14: 33.719 | J14: 792.5628 | N14: Dic-22 | O14: 2022 | P14: 12 | Q14: 330.6607 | R14: 413.3259 | S14: 673.6783 | T14: 792.5628 | U14: 951.0753
A15: Ene-23 | B15: 2023 | C15: 1 | D15: 325.1177 | E15: 51.9732 | F15: 65.5535 | G15: 268.3197 | H15: 64.7228 | I15: 21.4009 | J15: 797.0878 | N15: Ene-23 | O15: 2023 | P15: 1 | Q15: 334.8271 | R15: 418.5338 | S15: 677.5246 | T15: 797.0878 | U15: =+T15*1.2 -> 956.50536
A16: Feb-23 | B16: 2023 | C16: 2 | D16: 310.388 | E16: 48.708 | F16: 62.7735 | G16: 276.7001 | H16: 66.0475 | I16: 19.3948 | J16: 784.0119 | N16: Feb-23 | O16: 2023 | P16: 2 | Q16: 340.787 | R16: 425.9837 | S16: 666.4101 | T16: 784.0119 | U16: =+T16*1.2 -> 940.81428
A17: Mar-23 | B17: 2023 | C17: 3 | D17: 370.5171 | E17: 52.3669 | F17: 72.8536 | G17: 279.3134 | H17: 65.6931 | I17: 17.2882 | J17: 858.0323 | N17: Mar-23 | O17: 2023 | P17: 3 | Q17: 346.4441 | R17: 433.0551 | S17: 729.3274 | T17: 858.0323 | U17: 1029.6387
A18: Abr-23 | B18: 2023 | C18: 4 | N18: Abr-23 | O18: 2023 | P18: 4
A19: * Pesos corrientes | D19: =+(D18-D17)/D17 -> -1 | E19: =+(E18-E17)/E17 -> -1 | F19: -1 | G19: -1 | H19: -1 | I19: -1 | J19: -1 | N19: * Pesos corrientes | Q19: =+(Q18-Q17)/Q17 -> -1 | R19: =+(R18-R17)/R17 -> -1 | S19: =+(S18-S17)/S17 -> -1 | T19: =+(T18-T17)/T17 -> -1 | U19: =+(U18-U17)/U17 -> -1
W25: CUV_119 | X25: Costo Unitario de Prestación del Servicio resultado de aplicar la metodología establecida en la Res. CREG 119 de 2007.
W28: CUV_Op | X28: Costo Unitario de Prestación del Servicio resultado de aplicar la metodología establecida en la Res. CREG 012 de 2020. Opción Tarifaria

Sheet 20. EEP CARTAGO
I1: REGRESAR
A2: EMPRESA: | C2: EMPRESA DE ENERGÍA DE PEREIRA S.A. E.S.P. (2073)
A3: MERCADO: | C3: CARTAGO
A5: 1. COSTO UNITARIO DE PRESTACIÓN DEL SERVICIO Nivel de Tensión 1, Propiedad de Activos del OR | N5: 2. TARIFA AL USUARIO FINAL Nivel de Tensión 1, Propiedad de Activos del OR (estrato 1, 2 y 3 hasta el CS) | W5: 3. OPCIÓN TARIFARIA Nivel de Tensión 1, Propiedad de Activos del OR
B6: AÑO | C6: PERIODO | D6: GM | E6: TM | F6: PR | G6: D | H6: CV | I6: RM | J6: CUV_119 | K6: CUV_Op | O6: AÑO | P6: PERIODO | Q6: ESTRATO 1 | R6: ESTRATO 2 | S6: ESTRATO 3 | T6: ESTRATO 4 | U6: ESTRATO 5 y 6, Ind y Com
A7: May-22 | B7: 2022 | C7: 5 | D7: 253.53 | E7: 40.98 | F7: 66.14 | G7: 217.71 | H7: 64.5 | I7: 39.06 | J7: 681.93 | K7: 623.23 | N7: May-22 | O7: 2022 | P7: 5 | Q7: 279.72 | R7: 349.66 | S7: 594.42 | T7: 699.31 | U7: 839.17
A8: Jun-22 | B8: 2022 | C8: 6 | D8: 263.13 | E8: 49.52 | F8: 69.53 | G8: 276.02 | H8: 63.87 | I8: 54.54 | J8: 776.63 | K8: 709.8 | N8: Jun-22 | O8: 2022 | P8: 6 | Q8: 283.92 | R8: 354.9 | S8: 603.33 | T8: 709.8 | U8: 851.76
A9: Jul-22 | B9: 2022 | C9: 7 | D9: 280.21 | E9: 41.91 | F9: 72.28 | G9: 282.52 | H9: 65.23 | I9: 50.83 | J9: 792.98 | K9: 720.45 | N9: Jul-22 | O9: 2022 | P9: 7 | Q9: 288.18 | R9: 360.22 | S9: 612.38 | T9: 720.45 | U9: 864.54
A10: ago-22 | B10: 2022 | C10: 8 | D10: 281.17 | E10: 52.12 | F10: 74.93 | G10: 280.75 | H10: 67.52 | I10: 65.7 | J10: 822.19 | K10: 756.47 | N10: Ago-22 | O10: 2022 | P10: 8 | Q10: 302.59 | R10: 378.24 | S10: 643 | T10: 756.47 | U10: =+T10*1.2 -> 907.764
A11: Sep-22 | B11: 2022 | C11: 9 | D11: 283.44 | E11: 50.85 | F11: 75.8 | G11: 270.78 | H11: 68.59 | I11: 42.9 | J11: 792.36 | K11: 782.19 | N11: Sep-22 | O11: 2022 | P11: 9 | Q11: 312.88 | R11: 391.1 | S11: 664.86 | T11: 782.19 | U11: 938.63
A12: Oct-22 | B12: 2022 | C12: 10 | D12: 292.77 | E12: 46.17 | F12: 76.98 | G12: 263.03 | H12: 55.58 | I12: 27.58 | J12: 762.1 | K12: 751.69 | N12: Oct-22 | O12: 2022 | P12: 10 | Q12: 300.67 | R12: 375.84 | S12: 638.93 | T12: 751.69 | U12: 902.02
A13: Nov-22 | B13: 2022 | C13: 11 | D13: 292.52 | E13: 47.1 | F13: 76.77 | G13: 270.17 | H13: 56.11 | I13: 25.77 | J13: 768.45 | K13: 751.69 | N13: Nov-22 | O13: 2022 | P13: 11 | Q13: 300.67 | R13: 375.84 | S13: 638.93 | T13: 751.69 | U13: =+T13*1.2 -> 902.028
A14: Dic-22 | B14: 2022 | C14: 12 | D14: 283.24 | E14: 50.31 | F14: 75.6 | G14: 271.49 | H14: 56.59 | I14: 34.37 | J14: 771.6 | K14: 757.47 | N14: Dic-22 | O14: 2022 | P14: 12 | Q14: 302.99 | R14: 378.73 | S14: 643.85 | T14: 757.47 | U14: 908.96
A15: Ene-23 | B15: 2023 | C15: 1 | D15: 298.69 | E15: 51.97 | F15: 78.69 | G15: 268.32 | H15: 59.47 | I15: 20.57 | J15: 777.71 | K15: 767.02 | N15: Ene-23 | O15: 2023 | P15: 1 | Q15: 306.81 | R15: 383.51 | S15: 651.97 | T15: 767.02 | U15: 920.42
A16: Feb-23 | B16: 2023 | C16: 2 | D16: 310.2 | E16: 48.71 | F16: 80.62 | G16: 276.7 | H16: 58.93 | I16: 19.45 | J16: 794.61 | K16: 780.65 | N16: Feb-23 | O16: 2023 | P16: 2 | Q16: 312.28 | R16: 390.33 | S16: 663.55 | T16: 780.65 | U16: =+T16*1.2 -> 936.78
A17: Mar-23 | B17: 2023 | C17: 3 | D17: 357.0537 | E17: 52.3669 | F17: 91.0406 | G17: 279.3135 | H17: 59.9079 | I17: 16.558 | J17: 856.2406 | K17: 793.6147 | N17: Mar-23 | O17: 2023 | P17: 3 | Q17: 317.4475 | R17: 396.8094 | S17: 674.5725 | T17: 793.6147 | U17: 952.33764
A18: Abr-23 | B18: 2023 | C18: 4 | D18: 298.8247 | E18: 53.5211 | F18: 83.8189 | G18: 266.4813 | H18: 64.1973 | I18: 33.658 | J18: 800.5013 | K18: 801.9556 | N18: Abr-23 | O18: 2023 | P18: 4 | Q18: 320.7822 | R18: 400.9783 | S18: 681.66226 | T18: 801.9556 | U18: 962.34672
A19: * Pesos corrientes | D19: =+(D18-D17)/D17 -> -0.1630819118 | E19: 0.02204064018 | F19: -0.07932394997 | G19: -0.04594192547 | H19: 0.07159990586 | I19: 1.032733422 | J19: -0.06509770735 | K19: 0.01051001197 | N19: * Pesos corrientes | Q19: =+(Q18-Q17)/Q17 -> 0.01050472913 | R19: =+(R18-R17)/R17 -> 0.01050605152 | S19: =+(S18-S17)/S17 -> 0.01051000448 | T19: =+(T18-T17)/T17 -> 0.01051001197 | U19: =+(U18-U17)/U17 -> 0.01051001197
W24: CUV_119 | X24: Costo Unitario de Prestación del Servicio resultado de aplicar la metodología establecida en la Res. CREG 119 de 2007.
W27: CUV_Op | X27: Costo Unitario de Prestación del Servicio resultado de aplicar la metodología establecida en la Res. CREG 012 de 2020. Opción Tarifaria

Sheet 21. EMEESA
I1: REGRESAR
A2: EMPRESA: | C2: EMPRESA MUNICIPAL DE ENERGÍA ELÉCTRICA S.A. E.S.P. (694)
A3: MERCADO: | C3: POPAYÁN - PURACÉ
A5: 1. COSTO UNITARIO DE PRESTACIÓN DEL SERVICIO Nivel de Tensión 1, Propiedad de Activos del OR | M5: 2. TARIFA AL USUARIO FINAL Nivel de Tensión 1, Propiedad de Activos del OR (estrato 1, 2 y 3 hasta el CS) | W5: 3. OPCIÓN TARIFARIA Nivel de Tensión 1, Propiedad de Activos del OR
B6: AÑO | C6: PERIODO | D6: GM | E6: TM | F6: PR | G6: D | H6: CV | I6: RM | J6: CUV | K6: CUV_Op | N6: AÑO | O6: PERIODO | P6: ESTRATO 1 | Q6: ESTRATO 2 | R6: ESTRATO 3 | S6: ESTRATO 4 | T6: ESTRATO 5 y 6, Ind y Com
A7: May-22 | B7: 2022 | C7: 5 | D7: 258.609 | E7: 40.979 | F7: 49.512 | G7: 262.273 | H7: 96.871 | I7: 34.685 | J7: 742.93 | K7: 723.538 | M7: May-22 | N7: 2022 | O7: 5 | P7: 289.415 | Q7: 361.769 | R7: 615.008 | S7: 723.538 | T7: 868.246
A8: Jun-22 | B8: 2022 | C8: 6 | M8: Jun-22 | N8: 2022 | O8: 6
A9: Jul-22 | B9: 2022 | C9: 7 | D9: 265.42 | E9: 41.912 | F9: 50.825 | G9: 282.523 | H9: 93.692 | I9: 44.752 | J9: 779.124 | K9: 732.247 | M9: Jul-22 | N9: 2022 | O9: 7 | P9: 292.899 | Q9: 366.123 | R9: 622.41 | S9: 732.247 | T9: 878.696
A10: Ago-22 | B10: 2022 | C10: 8 | D10: 273.475 | E10: 52.116 | F10: 44.495 | G10: 280.745 | H10: 92.411 | I10: 68.689 | J10: 811.932 | K10: 736.64 | M10: Ago-22 | N10: 2022 | O10: 8 | P10: 294.656 | Q10: 368.32 | R10: 626.144 | S10: 736.64 | T10: =+S10*1.2 -> 883.968
A11: Sep-22 | B11: 2022 | C11: 9 | M11: Sep-22 | N11: 2022 | O11: 9
A12: Oct-22 | B12: 2022 | C12: 10 | D12: 273.704 | E12: 46.166 | F12: 44.237 | G12: 263.034 | H12: 94.949 | I12: 25.617 | J12: 747.706 | K12: 708.502 | M12: Oct-22 | N12: 2022 | O12: 10 | P12: 283.401 | Q12: 354.251 | R12: 602.227 | S12: 708.502 | T12: 850.203
A13: Nov-22 | B13: 2022 | C13: 11 | M13: Nov-22 | N13: 2022 | O13: 11
A14: Dic-22 | B14: 2022 | C14: 12 | M14: Dic-22 | N14: 2022 | O14: 12
A15: Ene-23 | B15: 2023 | C15: 1 | M15: Ene-23 | N15: 2023 | O15: 1
A16: Feb-23 | B16: 2023 | C16: 2 | M16: Feb-23 | N16: 2023 | O16: 2
A17: Mar-23 | B17: 2023 | C17: 3 | M17: Mar-23 | N17: 2023 | O17: 3
A18: Abr-23 | B18: 2023 | C18: 4 | M18: Abr-23 | N18: 2023 | O18: 4
A19: * Pesos corrientes | D19: =+(D18-D17)/D17 ->  | E19: =+(E18-E17)/E17 ->  | N19: * Pesos corrientes | Q19: =+(Q18-Q17)/Q17 ->  | R19: =+(R18-R17)/R17 ->  | S19: =+(S18-S17)/S17 ->  | T19: =+(T18-T17)/T17 ->  | U19: =+(U18-U17)/U17 -> 
W24: CUV_119 | X24: Costo Unitario de Prestación del Servicio resultado de aplicar la metodología establecida en la Res. CREG 119 de 2007.
W27: CUV_Op | X27: Costo Unitario de Prestación del Servicio resultado de aplicar la metodología establecida en la Res. CREG 012 de 2020. Opción Tarifaria

Sheet 22. EMEVASI
I1: REGRESAR
A2: EMPRESA: | C2: EMPRESA DE ENERGÍA DEL VALLE DE SIBUNDOY S.A. E.S.P. (1846)
A3: MERCADO: | C3: SIBUNDOY
A5: 1. COSTO UNITARIO DE PRESTACIÓN DEL SERVICIO Nivel de Tensión 1, Propiedad de Activos del OR | N5: 2. TARIFA AL USUARIO FINAL Nivel de Tensión 1, Propiedad de Activos del OR (estrato 1, 2 y 3 hasta el CS) | W5: 3. OPCIÓN TARIFARIA Nivel de Tensión 1, Propiedad de Activos del OR
B6: AÑO | C6: PERIODO | D6: GM | E6: TM | F6: PR | G6: D | H6: CV | I6: RM | J6: CUV_119 | K6: CUV_Op | O6: AÑO | P6: PERIODO | Q6: ESTRATO 1 | R6: ESTRATO 2 | S6: ESTRATO 3 | T6: ESTRATO 4 | U6: ESTRATO 5 y 6, Ind y Com
A7: May-22 | B7: 2022 | C7: 5 | D7: 287.8122 | E7: 40.9789 | F7: 54.465 | G7: 245.3478 | H7: 185.5934 | I7: 42.3664 | J7: 856.5637 | N7: May-22 | O7: 2022 | P7: 5 | Q7: 342.6255 | R7: 428.2819 | S7: 728.0792 | T7: 856.5737 | U7: 1027.88844
A8: Jun-22 | B8: 2022 | C8: 6 | D8: 293.4309 | E8: 49.5218 | F8: 56.2647 | G8: 242.1832 | H8: 199.4798 | I8: 59.6719 | J8: 900.5522 | N8: Jun-22 | O8: 2022 | P8: 6 | Q8: 360.2209 | R8: 450.2761 | S8: 765.4694 | T8: 900.5522 | U8: 1080.66264
A9: Jul-22 | B9: 2022 | C9: 7 | D9: 294.3995 | E9: 41.9124 | F9: 55.7303 | G9: 306.5776 | H9: 199.3548 | I9: 54.4114 | J9: 952.386 | N9: Jul-22 | O9: 2022 | P9: 7 | Q9: 380.9544 | R9: 476.193 | S9: 809.5281 | T9: 952.386 | U9: 1142.8633
A10: Ago-22 | B10: 2022 | C10: 8 | D10: 300.3972 | E10: 52.1163 | F10: 58.1533 | G10: 310.1927 | H10: 195.5484 | I10: 66.0098 | J10: 982.4178 | N10: ago-22 | O10: 2022 | P10: 8 | Q10: 392.9671 | R10: 491.2089 | S10: 835.0551 | T10: 982.4178 | U10: 1178.9014
A11: Sep-22 | B11: 2022 | C11: 9 | D11: 300.2 | E11: 50.84 | F11: 58.21 | G11: 306.79 | H11: 193.91 | I11: 47.94 | J11: 957.91 | N11: Sep-22 | O11: 2022 | P11: 9 | Q11: 396.98 | R11: 496.23 | S11: 814.23 | T11: 957.91 | U11: 1149.5
A12: Oct-22 | B12: 2022 | C12: 10 | D12: 300.0829 | E12: 46.1657 | F12: 57.3893 | G12: 305.3806 | H12: 214.3927 | I12: 28.7184 | J12: 952.1296 | N12: Oct-22 | O12: 2022 | P12: 10 | Q12: 400.6781 | R12: 500.8477 | S12: 809.3102 | T12: 952.1296 | U12: =+T12*1.2 -> 1142.55552
A13: Nov-22 | B13: 2022 | C13: 11 | D13: 293.7029 | E13: 47.0988 | F13: 56.3454 | G13: 299.8928 | H13: 197.793 | I13: 27.0919 | J13: 921.9249 | N13: Nov-22 | O13: 2022 | P13: 11 | Q13: 403.5534 | R13: 504.4418 | S13: 783.6362 | T13: 921.9249 | U13: =+T13*1.2 -> 1106.30988
A14: Dic-22 | B14: 2022 | C14: 12 | D14: 292.5418 | E14: 50.307 | F14: 56.9818 | G14: 305.1296 | H14: 200.3309 | I14: 32.2694 | J14: 937.5605 | N14: Dic-22 | O14: 2022 | P14: 12 | Q14: 406.6574 | R14: 508.3218 | S14: 796.9264 | T14: 937.5605 | U14: =+T14*1.2 -> 1125.0726
A15: Ene-23 | B15: 2023 | C15: 1 | D15: 293.7472 | E15: 51.9732 | F15: 57.4281 | G15: 297.0529 | H15: 204.2208 | I15: 16.1241 | J15: 920.5464 | N15: Ene-23 | O15: 2023 | P15: 1 | Q15: 411.7872 | R15: 514.734 | S15: 782.4644 | T15: 920.5464 | U15: =+T15*1.2 -> 1104.65568
A16: Feb-23 | B16: 2023 | C16: 2 | D16: 290.945 | E16: 48.7081 | F16: 56.6857 | G16: 297.0494 | H16: 208.034 | I16: 19.2131 | J16: 920.6353 | N16: Feb-23 | O16: 2023 | P16: 2 | Q16: 419.1061 | R16: 523.8827 | S16: 782.5401 | T16: 920.6354 | U16: =+T16*1.2 -> 1104.76248
A17: Mar-23 | B17: 2023 | C17: 3 | D17: 295.85127 | E17: 52.36693 | F17: 57.70103 | G17: 294.52007 | H17: 210.10169 | I17: 15.49344 | J17: 926.03443 | N17: Mar-23 | O17: 2023 | P17: 3 | Q17: 426.06563 | R17: 532.58203 | S17: 787.12927 | T17: 926.03444 | U17: 1111.24133
A18: Abr-23 | B18: 2023 | C18: 4 | D18: 293.7986 | E18: 53.521 | F18: 57.3244 | G18: 287.2636 | H18: 201.5468 | I18: 35.278 | J18: 928.7324 | N18: Abr-23 | O18: 2023 | P18: 4 | Q18: 430.5419 | R18: 538.1774 | S18: 789.4227 | T18: 928.7324 | U18: 1114.479
A19: * Pesos corrientes | D19: =+(D18-D17)/D17 -> -0.006938182148 | E19: =+(E18-E17)/E17 -> 0.02203814507 | F19: -0.006527266498 | G19: -0.02463828696 | H19: -0.04071785429 | I19: 1.27696367 | J19: 0.002913466187 | N19: * Pesos corrientes | Q19: =+(Q18-Q17)/Q17 -> 0.01050605748 | R19: =+(R18-R17)/R17 -> 0.01050611865 | S19: =+(S18-S17)/S17 -> 0.002913663724 | T19: =+(T18-T17)/T17 -> 0.002913455357 | U19: =+(U18-U17)/U17 -> 0.002913561539
W25: CUV_119 | X25: Costo Unitario de Prestación del Servicio resultado de aplicar la metodología establecida en la Res. CREG 119 de 2007.
W28: CUV_Op | X28: Costo Unitario de Prestación del Servicio resultado de aplicar la metodología establecida en la Res. CREG 012 de 2020. Opción Tarifaria

Sheet 23. EMSA
I1: REGRESAR
A2: EMPRESA: | C2: ELECTRIFICADORA DEL META S.A. E.S.P. (600)
A3: MERCADO: | C3: META
A5: 1. COSTO UNITARIO DE PRESTACIÓN DEL SERVICIO Nivel de Tensión 1, Propiedad de Activos del OR | N5: 2. TARIFA AL USUARIO FINAL Nivel de Tensión 1, Propiedad de Activos del OR (estrato 1, 2 y 3 hasta el CS) | V5: 3. OPCIÓN TARIFARIA Nivel de Tensión 1, Propiedad de Activos del OR
B6: AÑO | C6: PERIODO | D6: GM | E6: TM | F6: PR | G6: D | H6: CV | I6: RM | J6: CUV_119 | K6: CUV_Op | O6: AÑO | P6: PERIODO | Q6: ESTRATO 1 | R6: ESTRATO 2 | S6: ESTRATO 3 | T6: ESTRATO 4 | U6: ESTRATO 5 y 6, Ind y Com
A7: May-22 | B7: 2022 | C7: 5 | D7: 267.9 | E7: 40.98 | F7: 63.3 | G7: 245.35 | H7: 81.45 | I7: 41.43 | J7: 740.4 | K7: 711.32 | N7: May-22 | O7: 2022 | P7: 5 | Q7: 284.53 | R7: 355.66 | S7: 604.62 | T7: 711.32 | U7: 853.58
A8: Jun-22 | B8: 2022 | C8: 6 | D8: 276.2 | E8: 49.52 | F8: 65.47 | G8: 242.18 | H8: 83.58 | I8: 55.84 | J8: 772.8 | K8: 718.43 | N8: Jun-22 | O8: 2022 | P8: 6 | Q8: 287.37 | R8: 359.22 | S8: 610.67 | T8: 718.43 | U8: 862.12
A9: Jul-22 | B9: 2022 | C9: 7 | D9: 274.43 | E9: 41.91 | F9: 64.95 | G9: 306.58 | H9: 85.02 | I9: 52.39 | J9: 825.28 | K9: 725.62 | N9: Jul-22 | O9: 2022 | P9: 7 | Q9: 290.25 | R9: 362.81 | S9: 616.77 | T9: 725.62 | U9: 870.74
A10: Ago-22 | B10: 2022 | C10: 8 | D10: 281.18 | E10: 52.12 | F10: 67.82 | G10: 310.19 | H10: 88.92 | I10: 73.12 | J10: 873.36 | K10: 740.13 | N10: Ago-22 | O10: 2022 | P10: 8 | Q10: 296.05 | R10: 370.06 | S10: 629.11 | T10: 740.13 | U10: 888.15
A11: Sep-22 | B11: 2022 | C11: 9 | D11: 282.36 | E11: 50.85 | F11: 68.58 | G11: 306.8 | H11: 95.34 | I11: 49.85 | J11: 853.77 | K11: 754.93 | N11: Sep-22 | O11: 2022 | P11: 9 | Q11: 301.97 | R11: 377.47 | S11: 641.69 | T11: 754.93 | U11: 905.92
A12: Oct-22 | B12: 2022 | C12: 10 | D12: 290.53 | E12: 49.81 | F12: 69.66 | G12: 305.38 | H12: 97.41 | I12: 30.53 | J12: 843.32 | K12: 744.48 | N12: Oct-22 | O12: 2022 | P12: 10 | Q12: 297.79 | R12: 372.24 | S12: 632.8 | T12: 744.48 | U12: 893.37
A13: Nov-22 | B13: 2022 | C13: 11 | D13: 284.91 | E13: 43.46 | F13: 67.65 | G13: 299.89 | H13: 89.62 | I13: 28.91 | J13: 814.44 | K13: 715.6 | N13: Nov-22 | O13: 2022 | P13: 11 | Q13: 286.24 | R13: 357.81 | S13: 608.26 | T13: 715.6 | U13: 858.72
A14: Dic-22 | B14: 2022 | C14: 12 | D14: 286.9 | E14: 50.31 | F14: 57.29 | G14: 305.13 | H14: 90.06 | I14: 35.59 | J14: 825.28 | K14: 721.1 | N14: Dic-22 | O14: 2022 | P14: 12 | Q14: 288.44 | R14: 360.55 | S14: 612.93 | T14: 721.1 | U14: 865.32
A15: Ene-23 | B15: 2023 | C15: 1 | D15: 309.97 | E15: 51.97 | F15: 62.68 | G15: 297.05 | H15: 87.59 | I15: 23.58 | J15: 832.84 | K15: 730.2 | N15: Ene-23 | O15: 2023 | P15: 1 | Q15: 292.08 | R15: 365.1 | S15: 620.67 | T15: 730.2 | U15: 876.24
A16: Feb-23 | B16: 2023 | C16: 2 | D16: 317.04 | E16: 48.71 | F16: 62.16 | G16: 297.05 | H16: 90.8 | I16: 20.95 | J16: 836.71 | K16: 743.18 | N16: Feb-23 | O16: 2023 | P16: 2 | Q16: 297.27 | R16: 371.59 | S16: 631.7 | T16: 743.18 | U16: 891.82
A17: Mar-23 | B17: 2023 | C17: 3 | D17: 361.1108 | E17: 52.3669 | F17: 69.0507 | G17: 294.5201 | H17: 90.9344 | I17: 18.2509 | J17: 886.2338 | K17: 755.52 | N17: Mar-23 | O17: 2023 | P17: 3 | Q17: 302.208 | R17: 377.7605 | S17: 642.192 | T17: 755.52 | U17: 906.624
A18: Abr-23 | B18: 2023 | C18: 4 | D18: 302.66 | E18: 53.52 | F18: 60.17 | G18: 287.26 | H18: 94.23 | I18: 17.99 | J18: 815.83 | K18: 763.46 | N18: Abr-23 | O18: 2023 | P18: 4 | Q18: 305.39 | R18: 381.73 | S18: 648.94 | T18: 763.46 | U18: 916.15
A19: * Pesos corrientes | D19: =+(D18-D17)/D17 -> -0.1618638933 | E19: =+(E18-E17)/E17 -> 0.02201963454 | F19: -0.1286112958 | G19: -0.02465060958 | H19: 0.03624151036 | I19: -0.01429518544 | J19: -0.07944156497 | K19: 0.01050931809 | N19: * Pesos corrientes | Q19: =+(Q18-Q17)/Q17 -> 0.01052917196 | R19: =+(R18-R17)/R17 -> 0.01050798059 | S19: =+(S18-S17)/S17 -> 0.01050776092 | T19: =+(T18-T17)/T17 -> 0.01050931809 | U19: =+(U18-U17)/U17 -> 0.0105071121
V24: CUV_119 | W24: Costo Unitario de Prestación del Servicio resultado de aplicar la metodología establecida en la Res. CREG 119 de 2007.
V27: CUV_Op | W27: Costo Unitario de Prestación del Servicio resultado de aplicar la metodología establecida en la Res. CREG 012 de 2020. Opción Tarifaria

Sheet 24. ENELAR
I1: REGRESAR
A2: EMPRESA: | C2: EMPRESA DE ENERGÍA DE ARAUCA E.S.P. (599)
A3: MERCADO: | C3: ARAUCA
A5: 1. COSTO UNITARIO DE PRESTACIÓN DEL SERVICIO Nivel de Tensión 1, Propiedad de Activos del OR | N5: 2. TARIFA AL USUARIO FINAL Nivel de Tensión 1, Propiedad de Activos del OR (estrato 1, 2 y 3 hasta el CS) | W5: 3. OPCIÓN TARIFARIA Nivel de Tensión 1, Propiedad de Activos del OR
B6: AÑO | C6: PERIODO | D6: GM | E6: TM | F6: PR | G6: D | H6: CV | I6: RM | J6: CUV_119 | K6: CUV_Op | O6: AÑO | P6: PERIODO | Q6: ESTRATO 1 | R6: ESTRATO 2 | S6: ESTRATO 3 | T6: ESTRATO 4 | U6: ESTRATO 5 y 6, Ind y Com
A7: May-22 | B7: 2022 | C7: 5 | D7: 247.0102 | E7: 40.9897 | F7: 38.5361 | G7: 228.155 | H7: 98.8861 | I7: 56.0698 | J7: 709.647 | K7: 695.7038 | N7: May-22 | O7: 2022 | P7: 5 | Q7: 284.934 | R7: 356.1675 | S7: 591.3482 | T7: 695.7038 | U7: 834.8445
A8: Jun-22 | B8: 2022 | C8: 6 | D8: 244.66903 | E8: 49.5218 | F8: 38.85787 | G8: 234.32966 | H8: 78.96043 | I8: 73.46898 | J8: 719.80777 | K8: 709.61784 | N8: Jun-22 | O8: 2022 | P8: 6 | Q8: 283.84714 | R8: 354.80892 | S8: 603.17516 | T8: 709.61784 | U8: 851.54141
A9: Jul-22 | B9: 2022 | C9: 7 | D9: 253.08062 | E9: 41.91243 | F9: 39.51057 | G9: 243.74824 | H9: 85.3801 | I9: 65.77428 | J9: 729.40624 | K9: 723.599 | N9: Jul-22 | O9: 2022 | P9: 7 | Q9: 289.4396 | R9: 361.7995 | S9: 615.05915 | T9: 723.599 | U9: 868.3188
A10: Ago-22 | B10: 2022 | C10: 8 | D10: 248.2341 | E10: 52.11634 | F10: 40.5649 | G10: 246.3726 | H10: 87.4628 | I10: 92.4193 | J10: 767.17004 | K10: 738.071 | N10: Ago-22 | O10: 2022 | P10: 8 | Q10: 295.2284 | R10: 369.0355 | S10: 627.3603 | T10: 738.071 | U10: 885.6853
A11: Sep-22 | B11: 2022 | C11: 9 | D11: 254.9 | E11: 50.84 | F11: 41.55 | G11: 247.75 | H11: 147.41 | I11: 56.34 | J11: 798.81 | K11: 753.05 | N11: Sep-22 | O11: 2022 | P11: 9 | Q11: 301.22 | R11: 376.52 | S11: 640.09 | T11: 753.05 | U11: 903.66
A12: Oct-22 | B12: 2022 | C12: 10 | D12: 285.4552 | E12: 49.8057 | F12: 45.7618 | G12: 251.483 | H12: 146.4135 | I12: 37.8473 | J12: 816.7664 | K12: 753.0521 | N12: Oct-22 | O12: 2022 | P12: 10 | Q12: 301.2208 | R12: 376.5261 | S12: 640.0943 | T12: 753.0521 | U12: 903.6625
A13: Nov-22 | B13: 2022 | C13: 11 | D13: 299.2118 | E13: 46.1657 | F13: 47.3935 | G13: 258.4264 | H13: 149.0149 | I13: 34.6339 | J13: 834.8463 | K13: 753.0521 | N13: Nov-22 | O13: 2022 | P13: 11 | Q13: 301.2208 | R13: 376.5261 | S13: 640.0943 | T13: 753.0521 | U13: 903.6625
A14: Dic-22 | B14: 2022 | C14: 12 | D14: 254.3163 | E14: 50.307 | F14: 41.5912 | G14: 241.9357 | H14: 149.6679 | I14: 44.7039 | J14: 782.5218 | K14: 761.3357 | N14: Dic-22 | O14: 2022 | P14: 12 | Q14: 304.5343 | R14: 380.6678 | S14: 647.1353 | T14: 761.3357 | U14: 913.6028
A15: Ene-23 | B15: 2023 | C15: 1 | D15: 298.3713 | E15: 51.9732 | F15: 47.2909 | G15: 244.9043 | H15: 144.5445 | I15: 28.3705 | J15: 815.4547 | K15: 773.2236 | N15: Ene-23 | O15: 2023 | P15: 1 | Q15: 309.2894 | R15: 386.6118 | S15: 657.24 | T15: 773.2236 | U15: 927.8683
A16: Feb-23 | B16: 2023 | C16: 2 | D16: 325.6216 | E16: 48.7081 | F16: 50.7403 | G16: 248.7558 | H16: 150.8555 | I16: 25.3847 | J16: 850.066 | K16: 789.4613 | N16: Feb-23 | O16: 2023 | P16: 2 | Q16: 315.7845 | R16: 394.7306 | S16: 671.0421 | T16: 789.4613 | U16: 947.3535
A17: Mar-23 | B17: 2023 | C17: 3 | D17: 383.4138 | E17: 52.3669 | F17: 58.7028 | G17: 265.9942 | H17: 162.1169 | I17: 22.6964 | J17: 945.291 | K17: 778.7202 | N17: Mar-23 | O17: 2023 | P17: 3 | Q17: 311.4881 | R17: 389.3601 | S17: 661.9121 | T17: 778.7202 | U17: 934.4642
A18: Abr-23 | B18: 2023 | C18: 4 | D18: 302.131 | E18: 53.521 | F18: 47.6516 | G18: 263.1777 | H18: 169.1714 | I18: 50.0809 | J18: 885.7336 | K18: 793.9831 | N18: Abr-23 | O18: 2023 | P18: 4 | Q18: 317.5932 | R18: 396.9915 | S18: 674.8856 | T18: 793.9831 | U18: 952.7797
A19: * Pesos corrientes | D19: =+(D18-D17)/D17 -> -0.2119975859 | E19: =+(E18-E17)/E17 -> 0.02203873057 | F19: -0.1882567782 | G19: -0.01058857674 | H19: 0.04351489573 | I19: 1.206556987 | J19: -0.06300430238 | K19: 0.01959997956 | N19: * Pesos corrientes | Q19: =+(Q18-Q17)/Q17 -> 0.01959978567 | R19: =+(R18-R17)/R17 -> 0.01959985114 | S19: =+(S18-S17)/S17 -> 0.01960003451 | T19: =+(T18-T17)/T17 -> 0.01959997956 | U19: =+(U18-U17)/U17 -> 0.0196000018
W23: CUV_119 | X23: Costo Unitario de Prestación del Servicio resultado de aplicar la metodología establecida en la Res. CREG 119 de 2007.
W26: CUV_Op | X26: Costo Unitario de Prestación del Servicio resultado de aplicar la metodología establecida en la Res. CREG 012 de 2020. Opción Tarifaria

Sheet 25. ENERCA
I1: REGRESAR
A2: EMPRESA: | C2: EMPRESA DE ENERGÍA DE CASANARE S.A. E.S.P. (3370)
A3: MERCADO: | C3: CASANARE
A5: 1. COSTO UNITARIO DE PRESTACIÓN DEL SERVICIO Nivel de Tensión 1, Propiedad de Activos del OR | N5: 2. TARIFA AL USUARIO FINAL Nivel de Tensión 1, Propiedad de Activos del OR (estrato 1, 2 y 3 hasta el CS) | W5: 3. OPCIÓN TARIFARIA Nivel de Tensión 1, Propiedad de Activos del OR
B6: AÑO | C6: PERIODO | D6: GM | E6: TM | F6: PR | G6: D | H6: CV | I6: RM | J6: CUV_119 | K6: CUV_Op | O6: AÑO | P6: PERIODO | Q6: ESTRATO 1 | R6: ESTRATO 2 | S6: ESTRATO 3 | T6: ESTRATO 4 | U6: ESTRATO 5 y 6, Ind y Com
A7: May-22 | B7: 2022 | C7: 5 | D7: 255.7971 | E7: 40.9789 | F7: 49.1441 | G7: 247.8507 | H7: 65.1638 | I7: 49.8461 | J7: 708.7807 | K7: 667.3959 | N7: May-22 | O7: 2022 | P7: 5 | Q7: 266.9584 | R7: 333.698 | S7: 567.2865 | T7: 667.3959 | U7: =+T7*1.2 -> 800.87508
A8: Jun-22 | B8: 2022 | C8: 6 | D8: 263.5323 | E8: 49.5218 | F8: 51.3015 | G8: 242.1832 | H8: 67.6376 | I8: 66.7818 | J8: 740.9582 | K8: 680.7438 | N8: Jun-22 | O8: 2022 | P8: 6 | Q8: 272.2975 | R8: 340.3719 | S8: 578.6322 | T8: 680.7438 | U8: =+T8*1.2 -> 816.89256
A9: Jul-22 | B9: 2022 | C9: 7 | D9: 268.5301 | E9: 41.9124 | F9: 51.39 | G9: 306.5776 | H9: 71.7197 | I9: 64.4507 | J9: 804.5805 | K9: 694.3587 | N9: Jul-22 | O9: 2022 | P9: 7 | Q9: 277.7435 | R9: 347.1794 | S9: 590.2049 | T9: 694.3587 | U9: =+T9*1.2 -> 833.23044
A10: Ago-22 | B10: 2022 | C10: 8 | D10: 270.4869 | E10: 52.1163 | F10: 111.4339 | G10: 310.1927 | H10: 75.4203 | I10: 88.0979 | J10: 907.748 | K10: 708.2459 | N10: Ago-22 | O10: 2022 | P10: 8 | Q10: 283.2984 | R10: 354.1229 | S10: 602.009 | T10: 708.2459 | U10: 849.8951
A11: Sep-22 | B11: 2022 | C11: 9 | D11: 272.55 | E11: 50.84 | F11: 112.93 | G11: 306.79 | H11: 82.02 | I11: 56.09 | J11: 881.25 | K11: 722.41 | N11: Sep-22 | O11: 2022 | P11: 9 | Q11: 288.9643 | R11: 361.2054 | S11: 614.0492 | T11: 722.41 | U11: =+T11*1.2 -> 866.892
A12: Oct-22 | B12: 2022 | C12: 10 | D12: 288.394 | E12: 49.8057 | F12: 114.4426 | G12: 305.3806 | H12: 79.3533 | I12: 35.0387 | J12: 872.4149 | K12: 713.5665 | N12: Oct-22 | O12: 2022 | P12: 10 | Q12: 285.4266 | R12: 356.7832 | S12: 606.5315 | T12: 713.5665 | U12: =+T12*1.2 -> 856.2798
A13: Nov-22 | B13: 2022 | C13: 11 | D13: 284.277 | E13: 47.0988 | F13: 171.0119 | G13: 299.8928 | H13: 77.1181 | I13: 33.5874 | J13: 912.986 | K13: 709.3794 | N13: Nov-22 | O13: 2022 | P13: 11 | Q13: 283.7518 | R13: 354.6897 | S13: 602.9725 | T13: 709.3794 | U13: =+T13*1.2 -> 851.25528
A14: Dic-22 | B14: 2022 | C14: 12 | D14: 281.9809 | E14: 50.307 | F14: 113.5517 | G14: 305.1296 | H14: 80.2899 | I14: 40.8427 | J14: 872.1018 | K14: 714.8357 | N14: Dic-22 | O14: 2022 | P14: 12 | Q14: 285.9343 | R14: 357.4179 | S14: 607.6103 | T14: 714.8357 | U14: =+T14*1.2 -> 857.80284
A15: Ene-23 | B15: 2023 | C15: 1 | D15: 282.8447 | E15: 51.9732 | F15: 114.3994 | G15: 297.0529 | H15: 73.8796 | I15: 25.7817 | J15: 845.9315 | K15: 723.853 | N15: Ene-23 | O15: 2023 | P15: 1 | Q15: 289.5412 | R15: 361.9265 | S15: 615.2751 | T15: 723.853 | U15: =+T15*1.2 -> 868.6236
A16: Feb-23 | B16: 2023 | C16: 2 | D16: 298.5756 | E16: 48.7081 | F16: 116.2866 | G16: 297.0494 | H16: 75.4352 | I16: 24.0182 | J16: 860.0731 | K16: 736.7184 | N16: Feb-23 | O16: 2023 | P16: 2 | Q16: 294.6874 | R16: 368.3592 | S16: 626.2106 | T16: 736.7184 | U16: 884.0621
A17: Mar-23 | B17: 2023 | C17: 3 | D17: 339.3737 | E17: 52.3669 | F17: 124.7244 | G17: 294.5201 | H17: 73.9615 | I17: 23.3207 | J17: 908.2673 | K17: 748.952 | N17: Mar-23 | O17: 2023 | P17: 3 | Q17: 299.5809 | R17: 374.476 | S17: 636.6092 | T17: 748.952 | U17: 898.7424
A18: Abr-23 | B18: 2023 | C18: 4 | D18: 289.6735 | E18: 53.521 | F18: 117.1 | G18: 287.2636 | H18: 76.5242 | I18: 46.2724 | J18: 870.3547 | K18: 756.8206 | N18: Abr-23 | O18: 2023 | P18: 4 | Q18: 302.7283 | R18: 378.4103 | S18: 643.2975 | T18: 756.8206 | U18: 908.1847
A19: * Pesos corrientes | D19: =+(D18-D17)/D17 -> -0.1464468225 | E19: =+(E18-E17)/E17 -> 0.02203873057 | F19: -0.06112997938 | G19: -0.02463838631 | H19: 0.03464910798 | I19: 0.9841771473 | J19: -0.04174167671 | K19: 0.01050614726 | N19: * Pesos corrientes | Q19: =+(Q18-Q17)/Q17 -> 0.01050601023 | R19: =+(R18-R17)/R17 -> 0.01050614726 | S19: =+(S18-S17)/S17 -> 0.01050613155 | T19: =+(T18-T17)/T17 -> 0.01050614726 | U19: =+(U18-U17)/U17 -> 0.010506125
W23: CUV_119 | X23: Costo Unitario de Prestación del Servicio resultado de aplicar la metodología establecida en la Res. CREG 119 de 2007.
W26: CUV_Op | X26: Costo Unitario de Prestación del Servicio resultado de aplicar la metodología establecida en la Res. CREG 012 de 2020. Opción Tarifaria

Sheet 26. ENERGUAVIARE
I1: REGRESAR
A2: EMPRESA: | C2: EMPRESA DE ENERGÍA ELÉCTRICA DEL DEPARTAMENTO DEL GUAVIARE E.S.P. (3076)
A3: MERCADO: | C3: GUAVIARE
A5: 1. COSTO UNITARIO DE PRESTACIÓN DEL SERVICIO Nivel de Tensión 1, Propiedad de Activos del OR | N5: 2. TARIFA AL USUARIO FINAL Nivel de Tensión 1, Propiedad de Activos del OR (estrato 1, 2 y 3 hasta el CS) | W5: 3. OPCIÓN TARIFARIA Nivel de Tensión 1, Propiedad de Activos del OR
B6: AÑO | C6: PERIODO | D6: GM | E6: TM | F6: PR | G6: D | H6: CV | I6: RM | J6: CUV_119 | K6: CUV_Op | O6: AÑO | P6: PERIODO | Q6: ESTRATO 1 | R6: ESTRATO 2 | S6: ESTRATO 3 | T6: ESTRATO 4 | U6: ESTRATO 5 y 6, Ind y Com
A7: May-22 | B7: 2022 | C7: 5 | D7: 283.7257 | E7: 40.9788 | F7: 58.59744 | G7: 214.67861 | H7: 135.63922 | I7: 43.93354 | J7: 777.55342 | K7: 677.0798 | N7: May-22 | O7: 2022 | P7: 5 | Q7: 270.83192 | R7: 338.5399 | S7: 575.51783 | T7: 677.0798 | U7: 812.49576
A8: Jun-22 | B8: 2022 | C8: 6 | D8: 286.70933 | E8: 49.5218 | F8: 59.79534 | G8: 214.37299 | H8: 133.20979 | I8: 57.1947 | J8: 800.80395 | K8: 683.8506 | N8: Jun-22 | O8: 2022 | P8: 6 | Q8: 273.54024 | R8: 341.9253 | S8: 581.27301 | T8: 683.8506 | U8: 820.62072
A9: Jul-22 | B9: 2022 | C9: 7 | D9: 290.79154 | E9: 41.91245 | F9: 47.82212 | G9: 217.54655 | H9: 133.64501 | I9: 51.99971 | J9: 783.69756 | K9: 690.68911 | N9: Jul-22 | O9: 2022 | P9: 7 | Q9: 276.27 | R9: 345.34 | S9: =+T9*0.85 -> 587.078 | T9: 690.68 | U9: 828.82
A10: Ago-22 | B10: 2022 | C10: 8 | D10: 296.8 | E10: 52.1163 | F10: 62.8024 | G10: 221.1483 | H10: 133.97 | I10: 69.1537 | J10: 835.99556 | K10: 697.596 | N10: Ago-22 | O10: 2022 | P10: 8 | Q10: 279.0384 | R10: 348.798 | S10: 592.9566 | T10: 697.596 | U10: 837.1152
A11: Sep-22 | B11: 2022 | C11: 9 | D11: 296.22 | E11: 50.84 | F11: 63.57 | G11: 217.03 | H11: 129.52 | I11: 47.58 | J11: 804.78 | K11: 704.57 | N11: Sep-22 | O11: 2022 | P11: 9 | Q11: 281.82 | R11: 352.28 | S11: 598.88 | T11: 704.57 | U11: 845.48
A12: Oct-22 | B12: 2022 | C12: 10 | D12: 296.3224 | E12: 46.16574 | F12: 63.08042 | G12: 215.8145 | H12: 132.98514 | I12: 30.25973 | J12: 784.63153 | K12: 686.95766 | N12: Oct-22 | O12: 2022 | P12: 10 | Q12: 274.78306 | R12: 343.47883 | S12: 583.91401 | T12: 686.95766 | U12: 824.34919
A13: Nov-22 | B13: 2022 | C13: 11 | D13: 291.743 | E13: 47.09884 | F13: 62.45547 | G13: 185.33776 | H13: 128.50679 | I13: 27.46874 | J13: 742.6106 | K13: 650.13673 | N13: Nov-22 | O13: 2022 | P13: 11 | Q13: 260.05469 | R13: 325.06836 | S13: 552.61622 | T13: 650.13673 | U13: 780.16408
A14: Dic-22 | B14: 2022 | C14: 12 | D14: 290.33055 | E14: 50.30695 | F14: 46.90629 | G14: 188.03674 | H14: 126.39602 | I14: 35.08513 | J14: 737.06168 | K14: 655.07777 | N14: Dic-22 | O14: 2022 | P14: 12 | Q14: 262.03111 | R14: 327.53888 | S14: 556.8161 | T14: 655.07777 | U14: 786.09332
A15: Ene-23 | B15: 2023 | C15: 1 | D15: 291.66372 | E15: 51.97324 | F15: 46.71122 | G15: 185.70271 | H15: 129.36464 | I15: 22.41718 | J15: 727.83271 | K15: 663.33175 | N15: Ene-23 | O15: 2023 | P15: 1 | Q15: 265.3327 | R15: 331.66587 | S15: 563.83199 | T15: 663.33175 | U15: 795.9981
A16: Feb-23 | B16: 2023 | C16: 2 | D16: 290.93772 | E16: 48.70809 | F16: 46.23989 | G16: 189.70313 | H16: 129.41116 | I16: 19.24685 | J16: 724.24684 | K16: 674.80739 | N16: Feb-23 | O16: 2023 | P16: 2 | Q16: 269.92296 | R16: 337.4037 | S16: 573.58628 | T16: 674.80739 | U16: 809.76887
A17: Mar-23 | B17: 2023 | C17: 3 | D17: 296.27796 | E17: 52.36693 | F17: 46.92631 | G17: 193.69923 | H17: 130.84301 | I17: 17.73345 | J17: 737.84689 | K17: 686.00919 | N17: Mar-23 | O17: 2023 | P17: 3 | Q17: 274.40368 | R17: 343.0046 | S17: 583.10781 | T17: 686.00919 | U17: 823.21103
A18: Abr-23 | B18: 2023 | C18: 4 | N18: Abr-23 | O18: 2023 | P18: 4
A19: * Pesos corrientes | D19: =+(D18-D17)/D17 -> -1 | E19: =+(E18-E17)/E17 -> -1 | F19: -1 | G19: -1 | H19: -1 | I19: -1 | J19: -1 | K19: -1 | N19: * Pesos corrientes | Q19: =+(Q18-Q17)/Q17 -> -1 | R19: =+(R18-R17)/R17 -> -1 | S19: =+(S18-S17)/S17 -> -1 | T19: =+(T18-T17)/T17 -> -1 | U19: =+(U18-U17)/U17 -> -1
W25: CUV_119 | X25: Costo Unitario de Prestación del Servicio resultado de aplicar la metodología establecida en la Res. CREG 119 de 2007.
W28: CUV_Op | X28: Costo Unitario de Prestación del Servicio resultado de aplicar la metodología establecida en la Res. CREG 012 de 2020. Opción Tarifaria

Sheet 27. EPM
I1: REGRESAR
A2: EMPRESA: | C2: EMPRESAS PÚBLICAS DE MEDELLÍN E.S.P. (564)
A3: MERCADO: | C3: ANTIOQUIA CREG 078/07
A5: 1. COSTO UNITARIO DE PRESTACIÓN DEL SERVICIO Nivel de Tensión 1, Propiedad de Activos del OR | N5: 2. TARIFA AL USUARIO FINAL Nivel de Tensión 1, Propiedad de Activos del OR (estrato 1, 2 y 3 hasta el CS) | V5: 3. OPCIÓN TARIFARIA Nivel de Tensión 1, Propiedad de Activos del OR
B6: AÑO | C6: PERIODO | D6: GM | E6: TM | F6: PR | G6: D | H6: CV | I6: RM | J6: CUV_119 | K6: CUV_Op | O6: AÑO | P6: PERIODO | Q6: ESTRATO 1 | R6: ESTRATO 2 | S6: ESTRATO 3 | T6: ESTRATO 4 | U6: ESTRATO 5 y 6, Ind y Com
A7: May-22 | B7: 2022 | C7: 5 | D7: 240.3 | E7: 40.98 | F7: 51.7 | G7: 301.04 | H7: 57.89 | I7: 38.08 | J7: 729.98 | K7: 678.03 | N7: May-22 | O7: 2022 | P7: 5 | Q7: 271.21 | R7: 339.02 | S7: 576.33 | T7: 678.03 | U7: 813.64
A8: Jun-22 | B8: 2022 | C8: 6 | D8: 249.16 | E8: 49.52 | F8: 54.17 | G8: 320.41 | H8: 59.29 | I8: 54.92 | J8: 787.47 | K8: 705.15 | N8: Jun-22 | O8: 2022 | P8: 6 | Q8: 282.06 | R8: 352.58 | S8: 599.38 | T8: 705.15 | U8: 846.18
A9: Jul-22 | B9: 2022 | C9: 7 | D9: 259.43 | E9: 41.91 | F9: 55.29 | G9: 328.93 | H9: 60.52 | I9: 49.76 | J9: 795.83 | K9: 733.36 | N9: Jul-22 | O9: 2022 | P9: 7 | Q9: 293.34 | R9: 366.68 | S9: 623.36 | T9: 733.36 | U9: 880.03
A10: Ago-22 | B10: 2022 | C10: 8 | D10: 256.8 | E10: 52.12 | F10: 56.81 | G10: 335.4 | H10: 61.32 | I10: 64.67 | J10: 827.12 | K10: 762.69 | N10: Ago-22 | O10: 2022 | P10: 8 | Q10: 305.08 | R10: 381.35 | S10: 648.29 | T10: 762.69 | U10: 915.23
A11: Sep-22 | B11: 2022 | C11: 9 | D11: 260.6 | E11: 50.85 | F11: 57.88 | G11: 314.86 | H11: 62.54 | I11: 42.18 | J11: 788.9 | K11: 767.27 | N11: Sep-22 | O11: 2022 | P11: 9 | Q11: 308.2 | R11: 385.25 | S11: 652.18 | T11: 767.27 | U11: 920.72
A12: Oct-22 | B12: 2022 | C12: 10 | D12: 275.85 | E12: 46.17 | F12: 59.79 | G12: 303 | H12: 60.75 | I12: 26.61 | J12: 772.16 | K12: 750.54 | N12: Oct-22 | O12: 2022 | P12: 10 | Q12: 301.48 | R12: 376.85 | S12: 637.96 | T12: 750.54 | U12: 900.65
A13: Nov-22 | B13: 2022 | C13: 11 | D13: 275.68 | E13: 47.1 | F13: 59.6 | G13: 305.31 | H13: 60.27 | I13: 24.86 | J13: 772.81 | K13: 750.54 | N13: Nov-22 | O13: 2022 | P13: 11 | Q13: 301.48 | R13: 376.85 | S13: 637.96 | T13: 750.54 | U13: 900.65
A14: Dic-22 | B14: 2022 | C14: 12 | D14: 267.78 | E14: 50.31 | F14: 58.98 | G14: 307.61 | H14: 61.18 | I14: 32.84 | J14: 778.69 | K14: 756.32 | N14: Dic-22 | O14: 2022 | P14: 12 | Q14: 303.8 | R14: 379.75 | S14: 642.87 | T14: 756.32 | U14: 907.59
A15: Ene-23 | B15: 2023 | C15: 1 | D15: 290.2 | E15: 51.97 | F15: 62.49 | G15: 289.27 | H15: 56.86 | I15: 19.7 | J15: 770.5 | K15: 765.85 | N15: Ene-23 | O15: 2023 | P15: 1 | Q15: 307.63 | R15: 384.54 | S15: 650.97 | T15: 765.85 | U15: 919.02
A16: Feb-23 | B16: 2023 | C16: 2 | D16: 296.96 | E16: 48.71 | F16: 63.2 | G16: 294.99 | H16: 62.69 | I16: 18.35 | J16: 784.9 | K16: 779.48 | N16: Feb-23 | O16: 2023 | P16: 2 | Q16: 313.1 | R16: 391.37 | S16: 662.56 | T16: 779.48 | U16: 935.38
A17: Mar-23 | B17: 2023 | C17: 3 | D17: 333.24 | E17: 52.37 | F17: 69.56 | G17: 315.34 | H17: 64.56 | I17: 16.13 | J17: 851.19 | K17: 792.42 | N17: Mar-23 | O17: 2023 | P17: 3 | Q17: 318.3 | R17: 397.87 | S17: 673.56 | T17: 792.42 | U17: 950.91
A18: May-23 | B18: 2023 | C18: 4 | D18: 289.88 | E18: 53.52 | F18: 62.42 | G18: 315.26 | H18: 67.85 | I18: 34.7 | J18: 823.62 | K18: 800.74 | N18: Abr-23 | O18: 2023 | P18: 4 | Q18: 321.64 | R18: 402.05 | S18: 680.63 | T18: 800.74 | U18: 960.89
A19: * Pesos corrientes | D19: =+(D18-D17)/D17 -> -0.1301164326 | E19: =+(E18-E17)/E17 -> 0.02195913691 | F19: -0.1026451984 | G19: -0.0002536944251 | H19: 0.05096034696 | I19: 1.151270924 | J19: -0.03238994819 | K19: 0.0104994826 | N19: * Pesos corrientes | Q19: =+(Q18-Q17)/Q17 -> 0.01049324537 | R19: =+(R18-R17)/R17 -> 0.01050594415 | S19: =+(S18-S17)/S17 -> 0.01049646654 | T19: =+(T18-T17)/T17 -> 0.0104994826 | U19: =+(U18-U17)/U17 -> 0.01049520985
V22: CUV_119 | W22: Costo Unitario de Prestación del Servicio resultado de aplicar la metodología establecida en la Res. CREG 119 de 2007.
V25: CUV_Op | W25: Costo Unitario de Prestación del Servicio resultado de aplicar la metodología establecida en la Res. CREG 012 de 2020. Opción Tarifaria

Sheet 28. ESSA
I1: REGRESAR
A2: EMPRESA: | C2: ELECTRIFICADORA DE SANTANDER S.A. E.S.P. (524)
A3: MERCADO: | C3: SANTANDER
A5: 1. COSTO UNITARIO DE PRESTACIÓN DEL SERVICIO Nivel de Tensión 1, Propiedad de Activos del OR | N5: 2. TARIFA AL USUARIO FINAL Nivel de Tensión 1, Propiedad de Activos del OR (estrato 1, 2 y 3 hasta el CS) | W5: 3. OPCIÓN TARIFARIA Nivel de Tensión 1, Propiedad de Activos del OR
B6: AÑO | C6: PERIODO | D6: GM | E6: TM | F6: PR | G6: D | H6: CV | I6: RM | J6: CUV_119 | K6: CUV_Op | O6: AÑO | P6: PERIODO | Q6: ESTRATO 1 | R6: ESTRATO 2 | S6: ESTRATO 3 | T6: ESTRATO 4 | U6: ESTRATO 5 y 6, Ind y Com
A7: May-22 | B7: 2022 | C7: 5 | D7: 243.6597 | E7: 40.9789 | F7: 55.0981 | G7: 301.0398 | H7: 68.4548 | I7: 40.6189 | J7: 749.8509 | K7: 713.6936 | N7: May-22 | O7: 2022 | P7: 5 | Q7: 285.4774 | R7: 356.8468 | S7: 606.6395 | T7: 713.6936 | U7: 856.4323
A8: Jun-22 | B8: 2022 | C8: 6 | D8: 236.723 | E8: 49.5218 | F8: 54.9049 | G8: 320.407 | H8: 67.8931 | I8: 57.5839 | J8: 787.0335 | K8: 749.3783 | N8: Jun-22 | O8: 2022 | P8: 6 | Q8: 299.7513 | R8: 374.6891 | S8: 636.9715 | T8: 749.3783 | U8: 899.2539
A9: Jul-22 | B9: 2022 | C9: 7 | D9: 248.2321 | E9: 41.9124 | F9: 56.2493 | G9: 328.9266 | H9: 70.0943 | I9: 51.5445 | J9: 796.9592 | K9: 773.3584 | N9: Jul-22 | O9: 2022 | P9: 7 | Q9: 309.3433 | R9: 386.6792 | S9: 657.3546 | T9: 773.3584 | U9: 928.03
A10: Ago-22 | B10: 2022 | C10: 8 | D10: 249.5522 | E10: 52.1163 | F10: 58.6131 | G10: 335.3986 | H10: 70.1024 | I10: 68.2734 | J10: 834.056 | K10: 792.6923 | N10: Ago-22 | O10: 2022 | P10: 8 | Q10: 317.0769 | R10: 396.3462 | S10: 673.7885 | T10: 792.6923 | U10: 951.2308
A11: Sep-22 | B11: 2022 | C11: 9 | D11: 247.75 | E11: 50.84 | F11: 58.59 | G11: 314.85 | H11: 73.94 | I11: 44.12 | J11: 790.12 | K11: 797.44 | N11: Sep-22 | O11: 2022 | P11: 9 | Q11: 320.31 | R11: 400.39 | S11: 677.83 | T11: 797.44 | U11: 956.93
A12: Oct-22 | B12: 2022 | C12: 10 | D12: 272.243 | E12: 46.1657 | F12: 62.3205 | G12: 303.002 | H12: 72.4255 | I12: 28.0975 | J12: 784.2543 | K12: 791.5474 | N12: Oct-22 | O12: 2022 | P12: 10 | Q12: 317.9493 | R12: 397.4366 | S12: 672.8153 | T12: 791.5474 | U12: 949.8568
A13: Nov-22 | B13: 2022 | C13: 11 | D13: 283.7949 | E13: 47.0988 | F13: 64.4768 | G13: 305.3057 | H13: 72.2974 | I13: 26.1815 | J13: 799.1551 | K13: 791.5474 | N13: Nov-22 | O13: 2022 | P13: 11 | Q13: 317.9493 | R13: 397.4366 | S13: 672.8153 | T13: 791.5474 | U13: =+T13*1.2 -> 949.85688
A14: Dic-22 | B14: 2022 | C14: 12 | D14: 252.7231 | E14: 50.307 | F14: 59.3731 | G14: 307.606 | H14: 73.5191 | I14: 34.7463 | J14: 778.2745 | K14: 791.5474 | N14: Dic-22 | O14: 2022 | P14: 12 | Q14: 320.3949 | R14: 400.4936 | S14: 672.8153 | T14: 791.5474 | U14: =+T14*1.2 -> 949.85688
A15: Ene-23 | B15: 2023 | C15: 1 | D15: 297.2461 | E15: 51.9732 | F15: 67.3686 | G15: 289.2747 | H15: 74.5339 | I15: 22.2135 | J15: 802.61 | K15: 791.5474 | N15: Ene-23 | O15: 2023 | P15: 1 | Q15: 324.4365 | R15: 405.5457 | S15: 672.8153 | T15: 791.5474 | U15: 949.8568
A16: Feb-23 | B16: 2023 | C16: 2 | D16: 308.9141 | E16: 48.7081 | F16: 69.0488 | G16: 294.9945 | H16: 75.9801 | I16: 19.5492 | J16: 817.1947 | K16: 791.5474 | N16: Feb-23 | O16: 2023 | P16: 2 | Q16: 330.2028 | R16: 412.7536 | S16: 672.8153 | T16: 791.5474 | U16: =+T16*1.2 -> 949.85688
A17: Mar-23 | B17: 2023 | C17: 3 | D17: 359.1296 | E17: 52.3669 | F17: 78.537 | G17: 315.3362 | H17: 79.8589 | I17: 18.0073 | J17: 903.2359 | K17: 804.6871 | N17: Mar-23 | O17: 2023 | P17: 3 | Q17: 335.6861 | R17: 419.6076 | S17: 683.984 | T17: 804.6871 | U17: 965.6245
A18: May-23 | B18: 2023 | C18: 4 | D18: 294.9998 | E18: 53.521 | F18: 66.9203 | G18: 315.255 | H18: 86.1794 | I18: 35.1183 | J18: 851.9939 | K18: 813.1363 | N18: May-23 | O18: 2023 | P18: 4 | Q18: 339.2129 | R18: 424.0161 | S18: 691.1658 | T18: 813.1363 | U18: 975.7635
A19: * Pesos corrientes | D19: =+(D18-D17)/D17 -> -0.1785700761 | E19: =+(E18-E17)/E17 -> 0.02203873057 | F19: -0.1479137222 | G19: -0.0002575029445 | H19: 0.07914584348 | I19: 0.9502257418 | J19: -0.05673158031 | K19: 0.01049998192 | N19: * Pesos corrientes | Q19: =+(Q18-Q17)/Q17 -> 0.01050624378 | R19: =+(R18-R17)/R17 -> 0.01050624441 | S19: =+(S18-S17)/S17 -> 0.01049995322 | T19: =+(T18-T17)/T17 -> 0.01049998192 | U19: =+(U18-U17)/U17 -> 0.01049994071
W24: CUV_119 | X24: Costo Unitario de Prestación del Servicio resultado de aplicar la metodología establecida en la Res. CREG 119 de 2007.
W27: CUV_Op | X27: Costo Unitario de Prestación del Servicio resultado de aplicar la metodología establecida en la Res. CREG 012 de 2020. Opción Tarifaria

Sheet 29. RUITOQUE
I1: REGRESAR
A2: EMPRESA: | C2: RUITOQUE S.A. E.S.P. (1737)
A3: MERCADO: | C3: RUITOQUE
A5: 1. COSTO UNITARIO DE PRESTACIÓN DEL SERVICIO Nivel de Tensión 1, Propiedad de Activos del OR | N5: 2. TARIFA AL USUARIO FINAL Nivel de Tensión 1, Propiedad de Activos del OR (estrato 1, 2 y 3 hasta el CS) | W5: 3. OPCIÓN TARIFARIA Nivel de Tensión 1, Propiedad de Activos del OR
B6: AÑO | C6: PERIODO | D6: GM | E6: TM | F6: PR | G6: D | H6: CV | I6: RM | J6: CUV_119 | K6: CUV_Op | O6: AÑO | P6: PERIODO | Q6: ESTRATO 1 | R6: ESTRATO 2 | S6: ESTRATO 3 | T6: ESTRATO 4 | U6: ESTRATO 5 y 6, Ind y Com
A7: May-22 | B7: 2022 | C7: 5 | D7: 226.7576 | E7: 40.9789 | F7: 38.96627 | G7: 301.0398 | H7: 52.2805 | I7: 37.4878 | J7: 697.5075 | K7: 668.2641 | N7: May-22 | O7: 2022 | P7: 5 | T7: 668.2641 | U7: 801.91692
A8: Jun-22 | B8: 2022 | C8: 6 | D8: 208.0879 | E8: 49.5218 | F8: 37.0176 | G8: 320.407 | H8: 51.874 | I8: 48.9692 | J8: 715.8775 | K8: 701.6773 | N8: Jun-22 | O8: 2022 | P8: 6 | T8: 701.6773 | U8: 842.01276
A9: Jul-22 | B9: 2022 | C9: 7 | D9: 209.7558 | E9: 41.9124 | F9: 36.6144 | G9: 328.9266 | H9: 50.7063 | I9: 48.8248 | J9: 716.7403 | K9: 736.76 | N9: Jul-22 | O9: 2022 | P9: 7 | T9: 736.7612 | U9: 884.1135
A10: Ago-22 | B10: 2022 | C10: 8 | D10: 214.8495 | E10: 52.1163 | F10: 39.0753 | G10: 335.3986 | H10: 52.8035 | I10: 59.9516 | J10: 754.1948 | K10: 751.6368 | N10: Ago-22 | O10: 2022 | P10: 8 | T10: 751.6368 | U10: =+T10*1.2 -> 901.96416
A11: Sep-22 | B11: 2022 | C11: 9 | D11: 231.24 | E11: 50.84 | F11: 41.71 | G11: 314.85 | H11: 54.36 | I11: 38.98 | J11: 732.01 | K11: 774.04 | N11: Sep-22 | O11: 2022 | P11: 9 | T11: 774.04 | U11: 928.84
A12: Oct-22 | B12: 2022 | C12: 10 | D12: 274.1174 | E12: 46.1657 | F12: 47.7356 | G12: 303.002 | H12: 52.9991 | I12: 25.8885 | J12: 749.9083 | K12: 774.04 | N12: Oct-22 | O12: 2022 | P12: 10 | T12: 774.04 | U12: 928.84
A13: Nov-22 | B13: 2022 | C13: 11 | D13: 277.8721 | E13: 47.0988 | F13: 48.3119 | G13: 305.3057 | H13: 55.8025 | I13: 23.5579 | J13: 757.9489 | K13: 774.0413 | N13: Nov-22 | O13: 2022 | P13: 11 | T13: 774.0413 | U13: =+T13*1.2 -> 928.84956
A14: Dic-22 | B14: 2022 | C14: 12 | D14: 282.66 | E14: 50.31 | F14: 49.44 | G14: 307.61 | H14: 56.51 | I14: 32.06 | J14: 778.59 | K14: 781.92 | N14: Dic-22 | O14: 2022 | P14: 12 | T14: 781.92 | U14: 938.3
A15: Ene-23 | B15: 2023 | C15: 1 | D15: 286.97 | E15: 51.97 | F15: 49.7 | G15: 289.27 | H15: 57.1 | I15: 19.26 | J15: 754.28 | K15: 790.28 | N15: Ene-23 | O15: 2023 | P15: 1 | T15: 790.28 | U15: =+T15*1.2 -> 948.336
A16: Feb-23 | B16: 2023 | C16: 2 | D16: 367.56 | E16: 48.71 | F16: 61.49 | G16: 294.99 | H16: 56.91 | I16: 18.13 | J16: 847.8 | K16: 802.62 | N16: Feb-23 | O16: 2023 | P16: 2 | T16: 802.62 | U16: =+T16*1.2 -> 963.144
A17: Mar-23 | B17: 2023 | C17: 3 | D17: 375.51 | E17: 52.37 | F17: 62.7 | G17: 315.34 | H17: 60.6 | I17: 15.91 | J17: 882.42 | K17: 819.29 | N17: Mar-23 | O17: 2023 | P17: 3 | T17: 819.29 | U17: 983.14926
A18: May-23 | B18: 2023 | C18: 4 | D18: 372.75 | E18: 53.52 | F18: 62.37 | G18: 315.26 | H18: 64.44 | I18: 30.98 | J18: 899.32 | K18: 835.35 | N18: May-23 | O18: 2023 | P18: 4 | T18: 835.35 | U18: 1002.42
A19: * Pesos corrientes | D19: =+(D18-D17)/D17 -> -0.007350003995 | E19: =+(E18-E17)/E17 -> 0.02195913691 | F19: -0.005263157895 | G19: -0.0002536944251 | H19: 0.06336633663 | I19: 0.947203017 | J19: 0.01915187779 | K19: 0.01960233861 | N19: * Pesos corrientes | Q19: =+(Q18-Q17)/Q17 ->  | R19: =+(R18-R17)/R17 ->  | S19: =+(S18-S17)/S17 ->  | T19: =+(T18-T17)/T17 -> 0.01960233861 | U19: =+(U18-U17)/U17 -> 0.01960103189
X23: CUV_119 | Y23: Costo Unitario de Prestación del Servicio resultado de aplicar la metodología establecida en la Res. CREG 119 de 2007.
X26: CUV_Op | Y26: Costo Unitario de Prestación del Servicio resultado de aplicar la metodología establecida en la Res. CREG 012 de 2020. Opción Tarifaria

Sheet Variaciones CU
A1: REGRESAR | AG1: 0.0001 | AH1: 9e-05 | AQ1: 0.0001 | AR1: 9e-05 | BA1: 0.0001 | BB1: 9e-05 | BK1: 0.0001 | BL1: 9e-05
A2: Nivel de Tensión 1 Propiedad de Activos del OR | K2: Nivel de Tensión 1 Propiedad de Activos del OR | U2: Nivel de Tensión 1 Propiedad de Activos del OR | AE2: Nivel de Tensión 1 Propiedad de Activos del OR | AO2: Nivel de Tensión 1 Propiedad de Activos del OR | AY2: Nivel de Tensión 1 Propiedad de Activos del OR | BI2: Nivel de Tensión 1 Propiedad de Activos del OR
A3: Variación CU Octubre respecto de Septiembre | K3: Variación CU Noviembre respecto de Octubre | U3: Variación CU Diciembre respecto de Noviembre | AE3: Variación CU Enero 2023 respecto de Diciembre 2022 | AO3: Variación CU Febrero 2023 respecto de Enero 2023 | AY3: Variación CU Marzo 2023 respecto de Febrero 2023 | BI3: Variación CU Abril 2023 respecto de Marzo 2023
A4: EMPRESA | B4: GM | C4: TM | D4: PR | E4: D | F4: CV | G4: RM | H4: CUV_119 | I4: CUV_Op | K4: EMPRESA | L4: GM | M4: TM | N4: PR | O4: D | P4: CV | Q4: RM | R4: CUV_119 | S4: CUV_Op | U4: EMPRESA | V4: GM | W4: TM | X4: PR | Y4: D | Z4: CV | AA4: RM | AB4: CUV_119 | AC4: CUV_Op | AE4: EMPRESA | AF4: GM | AG4: TM | AH4: PR | AI4: D | AJ4: CV | AK4: RM | AL4: CUV_119 | AM4: CUV_Op | AO4: EMPRESA | AP4: GM | AQ4: TM | AR4: PR | AS4: D | AT4: CV | AU4: RM | AV4: CUV_119 | AW4: CUV_Op | AY4: EMPRESA | AZ4: GM | BA4: TM | BB4: PR | BC4: D | BD4: CV | BE4: RM | BF4: CUV_119 | BG4: CUV_Op | BI4: EMPRESA | BJ4: GM | BK4: TM | BL4: PR | BM4: D | BN4: CV | BO4: RM | BP4: CUV_119 | BQ4: CUV_Op
A5: EEP PEREIRA | B5: 0.03292166549 | C5: -0.09203539823 | D5: 0.01261943393 | E5: -0.03766753478 | F5: -0.1408434694 | G5: -0.3571095571 | H5: -0.0409599617 | I5: -0.04100205968 | K5: EEP PEREIRA | L5: -0.0007857069655 | M5: 0.02014294997 | N5: -0.003738650525 | O5: 0.007623762376 | P5: 0.001455411485 | Q5: -0.06562726613 | R5: 0.001360408372 | S5: 0 | U5: EEP PEREIRA | V5: -0.03179487179 | W5: 0.06815286624 | X5: -0.01250893495 | Y5: 0.007533326783 | Z5: -0.004888360417 | AA5: 0.3337213815 | AB5: 0.004661481703 | AC5: 0.00769192348 | AE5: EEP PEREIRA | AF5: 0.05455508475 | AG5: 0.03299542834 | AH5: 0.03546869345 | AI5: -0.0596209486 | AJ5: 0.03146574615 | AK5: -0.4015129473 | AL5: -0.01324963402 | AM5: 0.01260223048 | AO5: EEP PEREIRA | AP5: 0.03857358112 | AQ5: -0.06272849721 | AR5: 0.02202027263 | AS5: 0.01977391364 | AT5: -0.00424765092 | AU5: -0.05444822557 | AV5: 0.01733762478 | AW5: 0.01778087791 | AY5: EEP PEREIRA | AZ5: 0.1510981075 | BA5: 0.07507493328 | BB5: 0.1205147059 | BC5: 0.06897250754 | BD5: 0.05096302999 | BE5: -0.148688946 | BF5: 0.0975782592 | BG5: 0.01660526632 | BI5: EEP PEREIRA | BJ5: -0.1631350443 | BK5: 0.02204064018 | BL5: -0.1251104495 | BM5: -0.0002575029445 | BN5: 0.0459518465 | BO5: 1.032733422 | BP5: -0.05014404465 | BQ5: 0.0105099806
A6: ESSA | B6: 0.0988617558 | C6: -0.09194138474 | D6: 0.06367127496 | E6: -0.03763061775 | F6: -0.02048282391 | G6: -0.3631572983 | H6: -0.007423809042 | I6: -0.007389396067 | K6: ESSA | L6: 0.04243231231 | M6: 0.02021197556 | N6: 0.03460017169 | O6: 0.007602920113 | P6: -0.001768714058 | Q6: -0.06819112021 | R6: 0.01899995958 | S6: 0 | U6: ESSA | V6: -0.109486816 | W6: 0.06811638513 | X6: -0.07915560326 | Y6: 0.007534415506 | Z6: 0.01689825637 | AA6: 0.3271317533 | AB6: -0.0261283448 | AC6: 0 | AE6: ESSA | AF6: 0.1761730526 | AG6: 0.03312063927 | AH6: 0.1346653619 | AI6: -0.05959344096 | AJ6: 0.01380321576 | AK6: -0.36069452 | AL6: 0.03126853058 | AM6: 0 | AO6: ESSA | AP6: 0.03925366893 | AQ6: -0.0628227625 | AR6: 0.0249404025 | AS6: 0.01977290098 | AT6: 0.01940325141 | AU6: -0.1199405767 | AV6: 0.01817159019 | AW6: 0 | AY6: ESSA | AZ6: 0.1625548979 | BA6: 0.07511686968 | BB6: 0.1374129601 | BC6: 0.06895620088 | BD6: 0.0510502092 | BE6: -0.07887279275 | BF6: 0.1052884949 | BG6: 0.01660001663 | BI6: ESSA | BJ6: -0.1785700761 | BK6: 0.02203873057 | BL6: -0.1479137222 | BM6: -0.0002575029445 | BN6: 0.07914584348 | BO6: 0.9502257418 | BP6: -0.05673158031 | BQ6: 0.01049998192
A7: CENS | B7: 0.09287467373 | C7: -0.09203539823 | D7: 0.05940014631 | E7: -0.03766753478 | F7: -0.07725832013 | G7: -0.3409457901 | H7: -0.01144698822 | I7: -0.01139024639 | K7: CENS | L7: -0.03047802374 | M7: 0.02014294997 | N7: -0.02637757216 | O7: 0.007623762376 | P7: 0.01889222842 | Q7: -0.07000350018 | R7: -0.009880707014 | S7: -0.01018267015 | U7: CENS | V7: -0.008860945658 | W7: 0.06815286624 | X7: -0.03078014184 | Y7: 0.007533326783 | Z7: 0.03666245259 | AA7: 0.3007150922 | AB7: 0.01453371013 | AC7: 0.007699310704 | AE7: CENS | AF7: 0.01469006195 | AG7: 0.03299542834 | AH7: -0.0244402166 | AI7: -0.0596209486 | AJ7: 0.006504065041 | AK7: -0.3712384259 | AL7: -0.03321478313 | AM7: 0.01260938024 | AO7: CENS | AP7: 0.07501919351 | AQ7: -0.06272849721 | AR7: 0.05115511551 | AS7: 0.01977391364 | AT7: 0.04079159935 | AU7: -0.2425218592 | AV7: 0.03105022831 | AW7: 0.017779987 | AY7: CENS | AZ7: 0.1529331746 | BA7: 0.07513857524 | BB7: 0.1398601399 | BC7: 0.06898538934 | BD7: 0.01358168413 | BE7: 0.02308626974 | BF7: 0.1000511483 | BG7: 0.01660530468 | BI7: CENS
A8: RUITOQUE | B8: 0.1854238021 | C8: -0.09194138474 | D8: 0.1444641573 | E8: -0.03763061775 | F8: -0.02503495217 | G8: -0.3358517188 | H8: 0.02445089548 | I8: 0 | K8: RUITOQUE | L8: 0.01369741578 | M8: 0.02021197556 | N8: 0.01207275074 | O8: 0.007602920113 | P8: 0.05289523784 | Q8: -0.09002452827 | R8: 0.01072211096 | S8: 1.679499767e-06 | U8: RUITOQUE | V8: 0.01723058918 | W8: 0.06818008102 | X8: 0.02335035467 | Y8: 0.007547517128 | Z8: 0.01267864343 | AA8: 0.3609022876 | AB8: 0.02723283852 | AC8: 0.01017865584 | AE8: RUITOQUE | AF8: 0.01524800113 | AG8: 0.03299542834 | AH8: 0.005258899676 | AI8: -0.0596209486 | AJ8: 0.01044062998 | AK8: -0.3992514036 | AL8: -0.03122310844 | AM8: 0.01069163086 | AO8: RUITOQUE | AP8: 0.2808307489 | AQ8: -0.06272849721 | AR8: 0.23722334 | AS8: 0.01977391364 | AT8: -0.003327495622 | AU8: -0.05867082035 | AV8: 0.1239857878 | AW8: 0.01561471883 | AY8: RUITOQUE | AZ8: 0.02162912178 | BA8: 0.07513857524 | BB8: 0.01967799642 | BC8: 0.06898538934 | BD8: 0.06483921982 | BE8: -0.1224489796 | BF8: 0.04083510262 | BG8: 0.02076947995 | BI8: RUITOQUE | BJ8: -0.007350003995 | BK8: 0.02195913691 | BL8: -0.005263157895 | BM8: -0.0002536944251 | BN8: 0.06336633663 | BO8: 0.947203017 | BP8: 0.01915187779 | BQ8: 0.01960233861
A9: EPM | B9: 0.05851880276 | C9: -0.09203539823 | D9: 0.03299930891 | E9: -0.03766753478 | F9: -0.02862168212 | G9: -0.3691322902 | H9: -0.02121941944 | I9: -0.02180457987 | K9: EPM | L9: -0.0006162769621 | M9: 0.02014294997 | N9: -0.003177788928 | O9: 0.007623762376 | P9: -0.007901234568 | Q9: -0.06576475009 | R9: 0.0008417944467 | S9: 0 | U9: EPM | V9: -0.02865641323 | W9: 0.06815286624 | X9: -0.01040268456 | Y9: 0.007533326783 | Z9: 0.01509872242 | AA9: 0.3209975865 | AB9: 0.007608597197 | AC9: 0.007701121859 | AE9: EPM | AF9: 0.08372544626 | AG9: 0.03299542834 | AH9: 0.05951169888 | AI9: -0.0596209486 | AJ9: -0.07061131089 | AK9: -0.4001218027 | AL9: -0.01051766428 | AM9: 0.01260048657 | AO9: EPM | AP9: 0.02329427981 | AQ9: -0.06272849721 | AR9: 0.01136181789 | AS9: 0.01977391364 | AT9: 0.1025325361 | AU9: -0.06852791878 | AV9: 0.01868916288 | AW9: 0.01779721878 | AY9: EPM | AZ9: 0.1221713362 | BA9: 0.07513857524 | BB9: 0.1006329114 | BC9: 0.06898538934 | BD9: 0.02982931887 | BE9: -0.1209809264 | BF9: 0.08445661868 | BG9: 0.0166008108 | BI9: EPM | BJ9: -0.1301164326 | BK9: 0.02195913691 | BL9: -0.1026451984 | BM9: -0.0002536944251 | BN9: 0.05096034696 | BO9: 1.151270924 | BP9: -0.03238994819 | BQ9: 0.0104994826
A10: EDEQ | B10: 0.0642369613 | C10: -0.09194138474 | D10: 0.03332425068 | E10: -0.03763061775 | F10: -0.07427902308 | G10: -0.3388129226 | H10: -0.02717653817 | I10: -0.02717579175 | K10: EDEQ | L10: 0.1376255614 | M10: 0.02021197556 | N10: 0.1017020318 | O10: 0.007602920113 | P10: 0.02237336976 | Q10: -0.08860960865 | R10: 0.05425296148 | S10: 0 | U10: EDEQ | V10: -0.07422469587 | W10: 0.06811532353 | X10: -0.04633426496 | Y10: 0.00753444826 | Z10: 0.01634659572 | AA10: 0.4718508175 | AB10: -0.005481075235 | AC10: 0.007691704559 | AE10: EDEQ | AF10: 0.107493517 | AG10: 0.03312166609 | AH10: 0.07687653447 | AI10: -0.05959347153 | AJ10: 0.04403187428 | AK10: -0.420161523 | AL10: 0.003969139989 | AM10: 0.01261450683 | AO10: EDEQ | AP10: 0.1826566533 | AQ10: -0.0628227625 | AR10: 0.1348907837 | AS10: 0.01977290098 | AT10: -0.05267856945 | AU10: -0.06558494682 | AV10: 0.06941197693 | AW10: 0.01777355875 | AY10: EDEQ | AZ10: 0.1402895631 | BA10: 0.07511686968 | BB10: 0.1148613105 | BC10: 0.06895620088 | BD10: 0.0886106813 | BE10: -0.2304308853 | BF10: 0.09576613336 | BG10: 0.01660557961 | BI10: EDEQ | BJ10: -0.09391013955 | BK10: 0.02203873057 | BL10: -0.07484867034 | BM10: -0.0002575029445 | BN10: -0.0196807915 | BO10: 1.402456863 | BP10: -0.02216994967 | BQ10: 0.01050617979
A11: CHEC | B11: 0.1874751724 | C11: -0.02034618411 | D11: 0.1296702407 | E11: -0.03763061775 | F11: 0.02081606077 | G11: -0.3780342081 | H11: 0.02883918162 | I11: 1.091336467e-05 | K11: CHEC | L11: -0.02814550732 | M11: -0.05434730231 | N11: -0.02985873824 | O11: 0.007602920113 | P11: -0.0254187919 | Q11: -0.0212766759 | R11: -0.01585518771 | S11: -0.01076997425 | U11: CHEC | V11: -0.1471009883 | W11: 0.06811426193 | X11: -0.1006953738 | Y11: 0.007534415506 | Z11: 0.03471859385 | AA11: 0.2577336253 | AB11: -0.03696257851 | AC11: 0.007691892086 | AE11: CHEC | AF11: 0.3338771701 | AG11: 0.03312269291 | AH11: 0.2356652859 | AI11: -0.05959376605 | AJ11: -0.005983554712 | AK11: -0.3624192087 | AL11: 0.07644547016 | AM11: 0.01261416994 | AO11: CHEC | AP11: -0.03340876488 | AQ11: -0.06282468657 | AR11: -0.03315038273 | AS11: 0.01977290782 | AT11: 0.052099639 | AU11: -0.1204851661 | AV11: -0.008852585071 | AW11: 0.01777406183 | AY11: CHEC | AZ11: 0.07851178526 | BA11: 0.07511907695 | BB11: 0.06434570158 | BC11: 0.06895656324 | BD11: -0.00951766544 | BE11: -0.1304798651 | BF11: 0.05835196583 | BG11: 0.01660594951 | BI11: CHEC | BJ11: -0.08801435707 | BK11: 0.02203873057 | BL11: -0.0649949393 | BM11: -0.0002575029445 | BN11: 0.04128706463 | BO11: 1.169428231 | BP11: -0.009357118706 | BQ11: 0.01050594771
A12: CEO | B12: 0.06703727691 | C12: -0.09194138474 | D12: 0.03763484771 | E12: -0.02857148133 | F12: -0.0004174413723 | G12: -0.3854073252 | H12: -0.01037799818 | K12: CEO | L12: 0.01138960921 | M12: 0.02021197556 | N12: 0.003310823885 | O12: 0.02712161978 | P12: -0.02289806097 | Q12: -0.02772019041 | R12: 0.00820225763 | U12: CEO | V12: -0.06449735037 | W12: 0.06811638513 | X12: -0.03953830841 | Y12: 0.004902882507 | Z12: 0.008609456155 | AA12: 0.2610150855 | AB12: -0.01013934574 | AE12: CEO | AF12: 0.05698863798 | AG12: 0.03312063927 | AH12: 0.03660877467 | AI12: -0.01168505025 | AJ12: 0.02399690221 | AK12: -0.3846092664 | AL12: 0.008751479623 | AO12: CEO | AP12: 0.09136839663 | AQ12: -0.0628227625 | AR12: 0.00722471473 | AS12: 0.03123250688 | AT12: -0.02375204831 | AU12: -0.04636122985 | AV12: 0.03194226432 | AY12: CEO | AZ12: 0.1734671809 | BA12: 0.07511686968 | BB12: 0.2019688376 | BC12: 0.009444882745 | BD12: 0.05778146179 | BE12: -0.1913682499 | BF12: 0.08997313064 | BI12: CEO | BJ12: -0.1825295273 | BK12: 0.02203873057 | BL12: 0.009857894451 | BM12: -0.04594192547 | BN12: 0.07150329831 | BO12: 1.18199933 | BP12: -0.05006902823
A13: EMCALI | B13: -0.003840187185 | C13: -0.09194138474 | D13: -0.01130407621 | E13: -0.02857148133 | F13: -0.03016129032 | G13: -0.3143895419 | H13: -0.03658553287 | K13: EMCALI | L13: 0.003368170149 | M13: 0.02021197556 | N13: -0.002664825878 | O13: 0.0271212396 | P13: -0.02197504113 | Q13: -0.0941990197 | R13: 0.006321282426 | U13: EMCALI | V13: 0.003275731973 | W13: 0.06811426193 | X13: 0.01238883389 | Y13: 0.004903254463 | Z13: -0.005086433042 | AA13: 0.3023645647 | AB13: 0.01779464907 | AE13: EMCALI | AF13: 0.0391788409 | AG13: 0.03312269291 | AH13: 0.02556019506 | AI13: -0.01168541859 | AJ13: 0.07397353015 | AK13: -0.3653162905 | AL13: 0.005709326756 | AO13: EMCALI | AP13: -0.0453057462 | AQ13: -0.06282468657 | AR13: -0.04240810941 | AS13: 0.03123289121 | AT13: 0.0204672851 | AU13: -0.09373904836 | AV13: -0.01640459182 | AY13: EMCALI | AZ13: 0.1937223733 | BA13: 0.07511907695 | BB13: 0.1605789067 | BC13: 0.009444521343 | BD13: -0.005365835194 | BE13: -0.1086167426 | BF13: 0.09441234247 | BI13: EMCALI
A14: CEDENAR | B14: 0.05034734656 | C14: -0.09203539823 | D14: 0.03292028851 | E14: -0.02862102075 | F14: -0.01516704243 | G14: -0.3514279486 | H14: -0.01762275732 | I14: -0.01834896211 | K14: CEDENAR | L14: 0.006204827492 | M14: 0.02014294997 | N14: 0.003581020591 | O14: 0.02714519256 | P14: -0.01352757544 | Q14: -0.03630252101 | R14: 0.008482824084 | S14: 0 | U14: CEDENAR | V14: -0.06396964153 | W14: 0.06815286624 | X14: -0.04620874219 | Y14: 0.004885812636 | Z14: 0.02925457103 | AA14: 0.3275200558 | AB14: -0.004050850083 | AC14: 0.01070435937 | AE14: CEDENAR | AF14: 0.08300152031 | AG14: 0.03299542834 | AH14: 0.06472128694 | AI14: -0.01167630484 | AJ14: -0.002528013118 | AK14: -0.401208618 | AL14: 0.01107748256 | AM14: 0.01259770343 | AO14: CEDENAR | AP14: 0.0851298506 | AQ14: -0.06272849721 | AR14: 0.2791637386 | AS14: 0.03123136553 | AT14: 0.01548051236 | AU14: -0.05923650724 | AV14: 0.05604656941 | AW14: 0.01329728672 | AY14: CEDENAR | AZ14: 0.1626008748 | BA14: 0.07507493328 | BB14: 0.1225106441 | BC14: 0.009432598482 | BD14: 0.03143338954 | BE14: -0.1847014925 | BF14: 0.07696961549 | BG14: 0.01659966438 | BI14: CEDENAR
A15: CELSIA COLOMBIA Valle | B15: 0.03380581391 | C15: -0.09203539823 | D15: 0.01605000845 | E15: -0.02862102075 | F15: -0.0220814311 | G15: -0.3562647754 | H15: -0.02320459468 | I15: -0.02387450548 | K15: CELSIA COLOMBIA Valle | L15: -0.01713033663 | M15: 0.02014294997 | N15: -0.02111739275 | O15: 0.02714519256 | P15: -0.006192835366 | Q15: -0.08373117885 | R15: -0.00160697602 | S15: -0.001654503713 | U15: CELSIA COLOMBIA Valle | V15: -0.03880970074 | W15: 0.06815286624 | X15: -0.02072362833 | Y15: 0.004885812636 | Z15: 0.006710765986 | AA15: 0.330260521 | AB15: 0.0009482694083 | AC15: 0.01068859198 | AE15: CELSIA COLOMBIA Valle | AF15: 0.04677232315 | AG15: 0.03299542834 | AH15: 0.03052905464 | AI15: -0.01167630484 | AJ15: 0.04856680316 | AK15: -0.3995179271 | AL15: 0.006731320585 | AM15: 0.01560911125 | AO15: CELSIA COLOMBIA Valle | AP15: -0.02121659729 | AQ15: -0.06272849721 | AR15: -0.02238680357 | AS15: 0.03123136553 | AT15: -0.01598401598 | AU15: -0.04666332163 | AV15: -0.006463435774 | AW15: 0.02077596996 | AY15: CELSIA COLOMBIA Valle | AZ15: 0.03964878584 | BA15: 0.07513857524 | BB15: 0.03512396694 | BC15: 0.009432598482 | BD15: 0.05943700969 | BE15: -0.1336842105 | BF15: 0.02962362911 | BG15: 0.01960519863 | BI15: CELSIA COLOMBIA Valle | BJ15: -0.04829770388 | BK15: 0.02195913691 | BL15: -0.03609447771 | BM15: -0.04593462461 | BN15: 0.02247582542 | BO15: 1.116038882 | BP15: -0.009162763112 | BQ15: 0.01350425089
A16: CETSA | B16: 0.004371792435 | C16: -0.09203539823 | D16: -0.006220578346 | E16: -0.02862102075 | F16: -0.00643776824 | G16: -0.3660757068 | H16: -0.03342885606 | I16: -0.03496674428 | K16: CETSA | L16: -0.02785137522 | M16: 0.02014294997 | N16: -0.02909829132 | O16: 0.02714519256 | P16: -0.02132829374 | Q16: -0.03287981859 | R16: -0.006273142552 | S16: -0.006572194153 | U16: CETSA | V16: -0.001719606762 | W16: 0.06815286624 | X16: 0.008189580066 | Y16: 0.004885812636 | Z16: 0.02965517241 | AA16: 0.3239546698 | AB16: 0.01909188691 | AC16: 0.01069511541 | AE16: CETSA | AF16: -0.01251300052 | AG16: 0.03299542834 | AH16: -0.0174559281 | AI16: -0.01167630484 | AJ16: 0.01259209645 | AK16: -0.4011216057 | AL16: -0.02389837536 | AM16: 0.01561400481 | AO16: CETSA | AP16: -0.04884310305 | AQ16: -0.06272849721 | AR16: -0.04608619173 | AS16: 0.03123136553 | AT16: 0.005953168409 | AU16: -0.09857072449 | AV16: -0.01787989959 | AW16: 0.02077314264 | AY16: CETSA | AZ16: 0.0751237067 | BA16: 0.07513857524 | BB16: 0.06453992255 | BC16: 0.009432598482 | BD16: 0.0244608101 | BE16: -0.1022416621 | BF16: 0.04124724756 | BG16: 0.01960759202 | BI16: CETSA | BJ16: -0.08072095269 | BK16: 0.02195913691 | BL16: -0.06391824008 | BM16: -0.04593462461 | BN16: 0.0296534018 | BO16: 0.7667478685 | BP16: -0.03216142391 | BQ16: 0.01350281989
A17: EEP CARTAGO | B17: 0.03291701948 | C17: -0.09203539823 | D17: 0.01556728232 | E17: -0.02862102075 | F17: -0.1896777956 | G17: -0.3571095571 | H17: -0.03818971175 | I17: -0.03899308352 | K17: EEP CARTAGO | L17: -0.0008539126277 | M17: 0.02014294997 | N17: -0.002727981294 | O17: 0.02714519256 | P17: 0.009535804246 | Q17: -0.06562726613 | R17: 0.008332239864 | S17: 0 | U17: EEP CARTAGO | V17: -0.03172432654 | W17: 0.06815286624 | X17: -0.01524032825 | Y17: 0.004885812636 | Z17: 0.008554624844 | AA17: 0.3337213815 | AB17: 0.004099160648 | AC17: 0.00768934002 | AE17: EEP CARTAGO | AF17: 0.05454738031 | AG17: 0.03299542834 | AH17: 0.04087301587 | AI17: -0.01167630484 | AJ17: 0.05089238381 | AK17: -0.4015129473 | AL17: 0.007918610679 | AM17: 0.01260776004 | AO17: EEP CARTAGO | AP17: 0.03853493589 | AQ17: -0.06272849721 | AR17: 0.02452662346 | AS17: 0.03123136553 | AT17: -0.009080208508 | AU17: -0.05444822557 | AV17: 0.02173046508 | AW17: 0.01777007118 | AY17: EEP CARTAGO | AZ17: 0.1510435203 | BA17: 0.07507493328 | BB17: 0.1292557678 | BC17: 0.009445247561 | BD17: 0.01659426438 | BE17: -0.148688946 | BF17: 0.077560816 | BG17: 0.01660757061 | BI17: EEP CARTAGO | BJ17: -0.1630819118 | BK17: 0.02204064018 | BL17: -0.07932394997 | BM17: -0.04594192547 | BN17: 0.07159990586 | BO17: 1.032733422 | BP17: -0.06509770735 | BQ17: 0.01051001197
A18: EBSA | B18: 0.02158113537 | C18: -0.09194138474 | D18: 0.007155665482 | E18: 0.01506760848 | F18: 0.01829256776 | G18: -0.3593597561 | H18: -0.01392818685 | I18: -0.01393101768 | K18: EBSA | L18: -0.008978290695 | M18: 0.02021197556 | N18: -0.009752443867 | O18: 0.02760981856 | P18: -0.01389447912 | Q18: -0.40109694 | R18: -0.0130138061 | S18: -0.01301382969 | U18: EBSA | V18: -0.04326400671 | W18: 0.06811638513 | X18: -0.03057310032 | Y18: -0.06381197896 | Z18: 0.0008473715494 | AA18: 1.075547786 | AB18: -0.00768921437 | AC18: 0.01070003398 | AE18: EBSA | AF18: 0.1051950108 | AG18: 0.03312063927 | AH18: 0.09033975538 | AI18: 0.01227020237 | AJ18: 0.02857387175 | AK18: -0.3763961869 | AL18: 0.03429894352 | AM18: 0.01559996938 | AO18: EBSA | AP18: 0.01698392688 | AQ18: -0.0628227625 | AR18: -0.002287547676 | AS18: 0.01572655115 | AT18: 0.008056846492 | AU18: -0.4011488034 | AV18: -0.004879648755 | AW18: 0.02080000103 | AY18: EBSA | AZ18: 0.1362547824 | BA18: 0.07511686968 | BB18: 0.1201482085 | BC18: 0.0692984847 | BD18: -0.004381846919 | BE18: 0.293044236 | BF18: 0.0941664748 | BG18: 0.01959998556 | BI18: EBSA | BJ18: -0.16778844 | BK18: 0.02203873057 | BL18: -0.1226741508 | BM18: -0.01058857674 | BN18: 0.04611403256 | BO18: 1.272675018 | BP18: 0.01630148791 | BQ18: 0.01350005366
A19: ELECTROHUILA | B19: 0.1183762619 | C19: -0.09194138474 | D19: 0.069907743 | E19: 0.01506760848 | F19: -0.01845415685 | G19: -0.4319511699 | H19: 0.01373706308 | I19: -1.258108984e-06 | K19: ELECTROHUILA | L19: 0.03196106926 | M19: 0.02021197556 | N19: 0.0233187668 | O19: 0.02760981856 | P19: -0.02186649555 | Q19: -0.02703835298 | R19: 0.01949647175 | S19: 0 | U19: ELECTROHUILA | V19: -0.1004836027 | W19: 0.06811638513 | X19: -0.06767001014 | Y19: -0.06381197896 | Z19: 0.03963043698 | AA19: 0.3175190597 | AB19: -0.0432226725 | AC19: 0.007691710574 | AE19: ELECTROHUILA | AF19: 0.1424133828 | AG19: 0.03312063927 | AH19: 0.103142965 | AI19: 0.01227020237 | AJ19: -0.001807442678 | AK19: -0.3872815347 | AL19: 0.04578079895 | AM19: 0.01259993678 | AO19: ELECTROHUILA | AP19: 0.1238263604 | AQ19: -0.0628227625 | AR19: 0.08923738212 | AS19: 0.01572655115 | AT19: 0.01859047886 | AU19: -0.1206883972 | AV19: 0.05481746229 | AW19: 0.01780004744 | AY19: ELECTROHUILA | AZ19: 0.08507352645 | BA19: 0.07511686968 | BB19: 0.07015899069 | BC19: 0.0692984847 | BD19: 0.02466728902 | BE19: -0.09002935289 | BF19: 0.06644469182 | BG19: 0.01659993621 | BI19: ELECTROHUILA | BJ19: -0.004714124111 | BK19: 0.02203873057 | BL19: -0.002871691374 | BM19: -0.01058831358 | BN19: 0.04051197213 | BO19: 1.063140437 | BP19: 0.02173924014 | BQ19: 0.01050002973
A20: ENELAR | B20: 0.1198713221 | C20: -0.02034421715 | D20: 0.1013670277 | E20: 0.01506760848 | F20: -0.006760056984 | G20: -0.3282339368 | H20: 0.02247893742 | I20: 2.788659452e-06 | K20: ENELAR | L20: 0.04819180032 | M20: -0.07308400444 | N20: 0.03565637715 | O20: 0.02760981856 | P20: 0.01776748729 | Q20: -0.08490433928 | R20: 0.02213594976 | S20: 0 | U20: ENELAR | V20: -0.1500458872 | W20: 0.0897051274 | X20: -0.1224281811 | Y20: -0.06381197896 | Z20: 0.004382112124 | AA20: 0.2907555892 | AB20: -0.06267560867 | AC20: 0.01100003572 | AE20: ENELAR | AF20: 0.1732291638 | AG20: 0.03312063927 | AH20: 0.1370410087 | AI20: 0.01227020237 | AJ20: -0.03423178918 | AK20: -0.3653685696 | AL20: 0.04208560068 | AM20: 0.01561453115 | AO20: ENELAR | AP20: 0.0913301648 | AQ20: -0.0628227625 | AR20: 0.07294003709 | AS20: 0.01572655115 | AT20: 0.04366129462 | AU20: -0.1052431223 | AV20: 0.04244417256 | AW20: 0.02100000569 | AY20: ENELAR | AZ20: 0.1774826977 | BA20: 0.07511686968 | BB20: 0.1569265456 | BC20: 0.0692984847 | BD20: 0.07465024477 | BE20: -0.1059023743 | BF20: 0.1120207137 | BG20: -0.01360560676 | BI20: ENELAR | BJ20: -0.2119975859 | BK20: 0.02203873057 | BL20: -0.1882567782 | BM20: -0.01058857674 | BN20: 0.04351489573 | BO20: 1.206556987 | BP20: -0.06300430238 | BQ20: 0.01959997956
A21: CELSIA COLOMBIA Tolima | B21: 0.03373851785 | C21: -0.09203539823 | D21: 0.01467622675 | E21: -0.1254093304 | F21: -0.01567171873 | G21: -0.3562647754 | H21: -0.06365105008 | I21: -0.07565465761 | K21: CELSIA COLOMBIA Tolima | L21: -0.01463170202 | M21: 0.02014294997 | N21: -0.01788671746 | O21: -0.2948964918 | P21: -0.03194720855 | Q21: -0.08373117885 | R21: -0.1284183057 | S21: -0.01350263561 | U21: CELSIA COLOMBIA Tolima | V21: -0.03885140862 | W21: 0.06815286624 | X21: -0.02383361439 | Y21: -0.06903186086 | Z21: -0.02412897641 | AA21: 0.330260521 | AB21: -0.02758979054 | AC21: 0.0106867416 | AE21: CELSIA COLOMBIA Tolima | AF21: 0.04797008924 | AG21: 0.03299542834 | AH21: 0.03524127606 | AI21: 0.01223443829 | AJ21: 0.01718594079 | AK21: -0.3995179271 | AL21: 0.01217603725 | AM21: 0.01561319895 | AO21: CELSIA COLOMBIA Tolima | AP21: -0.01800679883 | AQ21: -0.06272849721 | AR21: -0.01957948604 | AS21: 0.01576153532 | AT21: 0.01340745585 | AU21: -0.04666332163 | AV21: -0.007806018553 | AW21: 0.02077109484 | AY21: CELSIA COLOMBIA Tolima | AZ21: 0.0396216068 | BA21: 0.07513857524 | BB21: 0.03778509021 | BC21: 0.06926354719 | BD21: -0.00968054211 | BE21: -0.1336842105 | BF21: 0.04097145681 | BG21: 0.01960735056 | BI21: CELSIA COLOMBIA Tolima | BJ21: -0.04902413293 | BK21: 0.02195913691 | BL21: -0.08265908594 | BM21: -0.01056430693 | BN21: 0.03736287607 | BO21: 1.116038882 | BP21: -0.002519259557 | BQ21: 0.0135018602
A22: ENEL COLOMBIA | B22: 0.1520488197 | C22: -0.09194138474 | D22: 0.1028817541 | E22: 0.01506760848 | F22: 0.03627684176 | G22: -0.3321224203 | H22: 0.02758241916 | I22: 2.627648393e-06 | K22: ENEL COLOMBIA | L22: 0.01478253813 | M22: 0.02021197556 | N22: 0.008918047686 | O22: 0.02760981856 | P22: 0.02886053028 | Q22: -0.1225915873 | R22: 0.01494579173 | S22: 0 | U22: ENEL COLOMBIA | V22: -0.08994673 | W22: 0.06811638513 | X22: -0.06279118049 | Y22: -0.06381197896 | Z22: -0.03506448035 | AA22: 0.3410799973 | AB22: -0.04867684385 | AC22: 0.01099999876 | AE22: ENEL COLOMBIA | AF22: 0.1220376603 | AG22: 0.03312063927 | AH22: 0.09033822864 | AI22: 0.01227020237 | AJ22: 0.006305040661 | AK22: -0.4106124495 | AL22: 0.03864274425 | AM22: 0.01600003721 | AO22: ENEL COLOMBIA | AP22: 0.07952110289 | AQ22: -0.0628227625 | AR22: 0.05782968239 | AS22: 0.01572655115 | AT22: -0.000979638204 | AU22: -0.06317910705 | AV22: 0.0348479258 | AW22: 0.02100002639 | AY22: ENEL COLOMBIA | AZ22: 0.1847531245 | BA22: 0.07511686968 | BB22: 0.1539639679 | BC22: 0.0692984847 | BD22: 0.08423088471 | BE22: -0.06128394154 | BF22: 0.1219036963 | BG22: 0.02000000527 | BI22: ENEL COLOMBIA | BJ22: -0.2007485159 | BK22: 0.02203873057 | BL22: -0.1664602704 | BM22: -0.01058857674 | BN22: 0.105235171 | BO22: 1.114799781 | BP22: -0.07110932092 | BQ22: 0.01399993588
A23: EMEVASI | B23: -0.0003900732845 | C23: -0.09194138474 | D23: -0.01409895207 | E23: -0.004594021969 | F23: 0.1056299314 | G23: -0.400951189 | H23: -0.006034387364 | K23: EMEVASI | L23: -0.0212607916 | M23: 0.02021197556 | N23: -0.01818980193 | O23: -0.01797036223 | P23: -0.07742661014 | Q23: -0.05663616357 | R23: -0.03172330742 | U23: EMEVASI | V23: -0.003953314727 | W23: 0.06811638513 | X23: 0.0112946221 | Y23: 0.01746223984 | Z23: 0.01283109109 | AA23: 0.1911087816 | AB23: 0.01695973284 | AE23: EMEVASI | AF23: 0.004120436806 | AG23: 0.03312063927 | AH23: 0.007832325409 | AI23: -0.02646973614 | AJ23: 0.01941737395 | AK23: -0.5003284846 | AL23: -0.01814720223 | AO23: EMEVASI | AP23: -0.009539495185 | AQ23: -0.0628227625 | AR23: -0.01292746931 | AS23: -1.178241317e-05 | AT23: 0.01867194723 | AU23: 0.1915765841 | AV23: 9.657307877e-05 | AY23: EMEVASI | AZ23: 0.01686322157 | BA23: 0.07511748559 | BB23: 0.01791157205 | BC23: -0.008514846352 | BD23: 0.009939192632 | BE23: -0.1936001999 | BF23: 0.005864569825 | BI23: EMEVASI | BJ23: -0.006938182148 | BK23: 0.02203814507 | BL23: -0.006527266498 | BM23: -0.02463828696 | BN23: -0.04071785429 | BO23: 1.27696367 | BP23: 0.002913466187
A24: EE PUTUMAYO | B24: 0.00482619761 | C24: -0.09194059795 | D24: -0.002868068536 | E24: -0.004594021969 | F24: -0.04008929139 | G24: -0.3164317813 | H24: -0.02557323676 | I24: -0.02573842067 | K24: EE PUTUMAYO | L24: 0.01910495431 | M24: 0.02021195805 | N24: 0.0145665442 | O24: -0.01797036223 | P24: 0.0017538174 | Q24: -0.1118126145 | R24: -0.0009483543469 | S24: -0.0009483565877 | U24: EE PUTUMAYO | V24: -0.0105547888 | W24: 0.06811441641 | X24: 0.006844514627 | Y24: 0.01746227319 | Z24: -0.05054827326 | AA24: 0.3821677072 | AB24: 0.01294531566 | AC24: 0.007510869114 | AE24: EE PUTUMAYO | AF24: 0.03107540515 | AG24: 0.03312246121 | AH24: 0.02440708395 | AI24: -0.02646960418 | AJ24: 0.06563804707 | AK24: -0.3613107335 | AL24: -0.002882100122 | AM24: 0.01261449912 | AO24: EE PUTUMAYO | AP24: 0.0226780919 | AQ24: -0.06282367618 | AR24: 0.002213499391 | AS24: -1.195073134e-05 | AT24: 0.01066554197 | AU24: -0.1534210721 | AV24: 0.001945103518 | AW24: 0.01777554758 | AY24: EE PUTUMAYO | AZ24: 0.08711275461 | BA24: 0.07511770632 | BB24: 0.07743408538 | BC24: -0.008514846352 | BD24: -0.002486845389 | BE24: -0.08222043994 | BF24: 0.03894251747 | BG24: 0.01660560064 | BI24: EE PUTUMAYO | BJ24: -0.12852615 | BK24: 0.02203871795 | BL24: 0.2591363297 | BM24: -0.02463832091 | BN24: 0.07804313554 | BO24: 0.9637531978 | BP24: -0.01026308484 | BQ24: 0.01050613271
A25: EE BAJO PUTUMAYO | B25: 0.0008709280885 | C25: -0.09194059795 | D25: -0.007688880639 | E25: -0.004594021969 | F25: -0.02796722233 | G25: -0.3250807065 | H25: -0.0278069868 | K25: EE BAJO PUTUMAYO | L25: -0.005393274573 | M25: 0.02021195805 | N25: 0.2083049922 | O25: -0.01797036223 | P25: -0.0223503054 | Q25: -0.06889033606 | R25: 0.0007210671794 | U25: EE BAJO PUTUMAYO | V25: 0.004664083848 | W25: 0.06811441641 | X25: -0.1645014755 | Y25: 0.01746227319 | Z25: -0.0248369432 | AA25: 0.2433684106 | AB25: 0.004203194428 | AE25: EE BAJO PUTUMAYO | AF25: 0.0002736485339 | AG25: 0.03312246121 | AH25: -0.005200534192 | AI25: -0.02646960418 | AJ25: 0.01676473626 | AK25: -0.3447193933 | AL25: -0.02033006458 | AO25: EE BAJO PUTUMAYO | AP25: -0.00769641412 | AQ25: -0.06282367618 | AR25: -0.01267394071 | AS25: -1.195073134e-05 | AT25: 0.02120224262 | AU25: -0.1715663244 | AV25: -0.009765625 | AY25: EE BAJO PUTUMAYO | AZ25: 0.01487166742 | BA25: 0.07511770632 | BB25: 0.01334771952 | BC25: -0.008514846352 | BD25: 0.03923327969 | BE25: -0.1260489896 | BF25: 0.009615384615 | BI25: EE BAJO PUTUMAYO | BJ25: -0.00543728022 | BK25: 0.02203871795 | BL25: 0.000146522056 | BM25: -0.02463832091 | BN25: -0.0001874003821 | BO25: 1.346003887 | BP25: 0.01782661783
A26: EMSA | B26: 0.0289346933 | C26: -0.02045231072 | D26: 0.0157480315 | E26: -0.004628422425 | F26: 0.02171176841 | G26: -0.3875626881 | H26: -0.0122398304 | I26: -0.013842343 | K26: EMSA | L26: -0.01934395759 | M26: -0.1274844409 | N26: -0.02885443583 | O26: -0.01797760168 | P26: -0.07997125552 | Q26: -0.05306256142 | R26: -0.03424560072 | S26: -0.03879217709 | U26: EMSA | V26: 0.006984661823 | W26: 0.1576161988 | X26: -0.1531411678 | Y26: 0.01747307346 | Z26: 0.004909618389 | AA26: 0.2310619163 | AB26: 0.01330975885 | AC26: 0.007685858021 | AE26: EMSA | AF26: 0.08041129313 | AG26: 0.03299542834 | AH26: 0.09408273695 | AI26: -0.0264805165 | AJ26: -0.02742616034 | AK26: -0.3374543411 | AL26: 0.009160527336 | AM26: 0.01261960893 | AO26: EMSA | AP26: 0.0228086589 | AQ26: -0.06272849721 | AR26: -0.008296107211 | AS26: 0 | AT26: 0.03664801918 | AU26: -0.1115351993 | AV26: 0.004646750877 | AW26: 0.01777595179 | AY26: EMSA | AZ26: 0.1390070654 | BA26: 0.07507493328 | BB26: 0.1108542471 | BC26: -0.008516748022 | BD26: 0.001480176211 | BE26: -0.1288353222 | BF26: 0.05918872728 | BG26: 0.01660432197 | BI26: EMSA | BJ26: -0.1618638933 | BK26: 0.02201963454 | BL26: -0.1286112958 | BM26: -0.02465060958 | BN26: 0.03624151036 | BO26: -0.01429518544 | BP26: -0.07944156497 | BQ26: 0.01050931809
A27: ELECTROCAQUETÁ | B27: 0.1349492208 | C27: -0.02033831629 | D27: 0.1092238007 | E27: -0.004592718146 | F27: -0.01400717517 | G27: -0.3338686432 | H27: 0.02143652561 | I27: 0 | K27: ELECTROCAQUETÁ | L27: 0.01796175067 | M27: -0.05435088142 | N27: 0.006477958237 | O27: -0.01797099361 | P27: -0.01282984243 | Q27: -0.0875007727 | R27: -0.008698022207 | S27: -0.009997253502 | U27: ELECTROCAQUETÁ | V27: -0.07589976832 | W27: 0.06811184951 | X27: -0.05217246976 | Y27: 0.0174628951 | Z27: -0.03738722136 | AA27: 0.299732412 | AB27: -0.01378312792 | AC27: 0.01069466792 | AE27: ELECTROCAQUETÁ | AF27: 0.1322141861 | AG27: 0.03311666368 | AH27: 0.1181827026 | AI27: -0.02647068463 | AJ27: 0.04204401678 | AK27: -0.34423538 | AL27: 0.03132121212 | AM27: 0.01560462786 | AO27: ELECTROCAQUETÁ | AP27: 0.1018119479 | AQ27: -0.06282108018 | AR27: 0.0842715203 | AS27: -1.346561051e-05 | AT27: 0.02509046466 | AU27: -0.1150896157 | AV27: 0.03731606412 | AW27: 0.0207972973 | AY27: ELECTROCAQUETÁ | BI27: ELECTROCAQUETÁ | BJ27: -0.1682576541 | BK27: 0.02203873057 | BL27: -0.1246313057 | BM27: -0.02463838631 | BN27: 0.0691956551 | BO27: 0.9054313132 | BP27: -0.05333850606 | BQ27: 0.0134900026
A28: ENERCA | B28: 0.05813245276 | C28: -0.02034421715 | D28: 0.01339413796 | E28: -0.004594021969 | F28: -0.03251280176 | G28: -0.37531289 | H28: -0.01002564539 | I28: -0.01224166332 | K28: ENERCA | L28: -0.01427560906 | M28: -0.054349201 | N28: 0.4943028208 | O28: -0.01797036223 | P28: -0.02816770065 | Q28: -0.04141991569 | R28: 0.04650436392 | S28: -0.005867848336 | U28: ENERCA | V28: -0.008076981254 | W28: 0.06811638513 | X28: -0.3360011789 | Y28: 0.01746223984 | Z28: 0.04112912533 | AA28: 0.2160125523 | AB28: -0.04478075239 | AC28: 0.007691652732 | AE28: ENERCA | AF28: 0.003063328048 | AG28: 0.03312063927 | AH28: 0.007465321963 | AI28: -0.02646973614 | AJ28: -0.07983943186 | AK28: -0.3687562282 | AL28: -0.03000830866 | AM28: 0.01261450708 | AO28: ENERCA | AP28: 0.0556167395 | AQ28: -0.0628227625 | AR28: 0.01649659002 | AS28: -1.178241317e-05 | AT28: 0.02105588011 | AU28: -0.06840123033 | AV28: 0.01671719282 | AW28: 0.01777349821 | AY28: ENERCA | AZ28: 0.136642445 | BA28: 0.07511686968 | BB28: 0.07256038099 | BC28: -0.008514745359 | BD28: -0.0195359726 | BE28: -0.02904047764 | BF28: 0.05603500447 | BG28: 0.01660553069 | BI28: ENERCA | BJ28: -0.1464468225 | BK28: 0.02203873057 | BL28: -0.06112997938 | BM28: -0.02463838631 | BN28: 0.03464910798 | BO28: 0.9841771473 | BP28: -0.04174167671 | BQ28: 0.01050614726
A29: AIRE | B29: 0.03055011198 | C29: -0.09203539823 | D29: 0.004446372411 | E29: -0.02473593447 | F29: -0.0417213938 | G29: -0.3808839382 | H29: -0.02953941392 | I29: -0.0303477029 | K29: AIRE | L29: -0.009474005909 | M29: 0.02014294997 | N29: -0.005344418052 | O29: -0.002818146654 | P29: -0.00524066758 | Q29: -0.04933255949 | R29: -0.006586930144 | S29: -0.00675836184 | U29: AIRE | V29: -0.002502571135 | W29: 0.06815286624 | X29: 0.02583446404 | Y29: 0.04205918209 | Z29: 0.002917814881 | AA29: 0.2655677656 | AB29: 0.02777874716 | AC29: 0.01069083864 | AE29: AIRE | AF29: 0.02051757913 | AG29: 0.03299542834 | AH29: 0.02084545791 | AI29: -0.01180537091 | AJ29: 0.04210441248 | AK29: -0.3977327545 | AL29: -0.002173101083 | AM29: 0.01561815966 | AO29: AIRE | AP29: -0.03377786758 | AQ29: -0.06272849721 | AR29: -0.03233998445 | AS29: 0.02669106172 | AT29: -0.02310973245 | AU29: -0.04205046055 | AV29: -0.0211091072 | AW29: 0.02077192819 | AY29: AIRE | AZ29: 0.07964169949 | BA29: 0.07513857524 | BB29: 0.06893042687 | BC29: 0.05094606636 | BD29: 0.02651424942 | BE29: -0.1973244147 | BF29: 0.05531865585 | BG29: 0.01960739557 | BI29: AIRE | BJ29: -0.0811918905 | BK29: 0.02195913691 | BL29: -0.1406453552 | BM29: -0.07376190714 | BN29: 0.04400278401 | BO29: 1.230729167 | BP29: -0.0412302084 | BQ29: 0.01349929481
A30: AFINIA | B30: 0.002504788566 | C30: -0.09203539823 | D30: -0.01585169264 | E30: 0.01253833664 | F30: -0.030372681 | G30: -0.3528305435 | H30: -0.03000311092 | I30: -0.02999513855 | K30: AFINIA | L30: -0.01157407407 | M30: 0.02014294997 | N30: -0.008872508873 | O30: 0.07322939866 | P30: 0.00634947511 | Q30: -0.06945655333 | R30: 0.01341062159 | S30: 0 | U30: AFINIA | V30: 0.0528976618 | W30: 0.06815286624 | X30: 0.0559151632 | Y30: -0.03017348718 | Z30: 0.03625809708 | AA30: 0.2907557776 | AB30: 0.03739040743 | AC30: 0 | AE30: AFINIA | AF30: 0.06605705409 | AG30: 0.03299542834 | AH30: 0.05960610408 | AI30: -0.01711815809 | AJ30: 0.03612599448 | AK30: -0.3813210743 | AL30: 0.01607800601 | AM30: 0.0126171503 | AO30: AFINIA | AP30: -0.02218910416 | AQ30: -0.06272849721 | AR30: -0.02387986214 | AS30: 0.02146558105 | AT30: 0.01762908407 | AU30: -0.08017207665 | AV30: -0.009707658264 | AW30: 0.01776809909 | AY30: AFINIA | AZ30: 0.1179553937 | BA30: 0.07507554917 | BB30: 0.105324401 | BC30: 0.04112289003 | BD30: -0.008878734216 | BE30: -0.1088996599 | BF30: 0.06863170365 | BG30: 0.0166068932 | BI30: AFINIA | BJ30: -0.1431375888 | BK30: 0.02201904904 | BL30: -0.191007416 | BM30: -0.07372618005 | BN30: 0.06652202963 | BO30: 1.053564442 | BP30: -0.07032889657 | BQ30: 0.01051171356
A31: DISPAC | B31: 0.05134957209 | C31: -0.09203539823 | D31: 0.01521463503 | E31: -0.03241971773 | F31: -0.0253075346 | G31: -0.3252066992 | H31: -0.0198129208 | I31: -0.01948051948 | K31: DISPAC | L31: 0 | M31: 0.02014294997 | N31: -0.01088314005 | O31: -0.000528485361 | P31: 0.0236639716 | Q31: -0.09487904493 | R31: 0.001074902341 | S31: 0 | U31: DISPAC | V31: -0.06602198414 | W31: 0.06815286624 | X31: -0.03896103896 | Y31: 0.01173857868 | Z31: 0.003467539973 | AA31: 0.3148212426 | AB31: -0.007987638802 | AC31: 0.007691911253 | AE31: DISPAC | AF31: 0.09433891993 | AG31: 0.03299542834 | AH31: 0.06137387387 | AI31: -0.000888470785 | AJ31: 0.009918730403 | AK31: -0.3711721225 | AL31: 0.02320547005 | AM31: 0.01561161473 | AO31: DISPAC | AP31: 0.08096518395 | AQ31: -0.06272849721 | AR31: 0.05534924845 | AS31: 0.02181304598 | AT31: 0.02274743379 | AU31: -0.08186397985 | AV31: 0.03801795758 | AW31: 0.02077248464 | AY31: DISPAC | AZ31: 0.2081732888 | BA31: 0.07513857524 | BB31: 0.1730898123 | BC31: 0.0141804034 | BD31: 0.004274828078 | BE31: -0.1636945588 | BF31: 0.0993997241 | BG31: 0.01960977776 | BI31: DISPAC | BJ31: -0.2440975661 | BK31: 0.02195913691 | BL31: -0.1846879017 | BM31: -0.01029730958 | BN31: 0.05552128316 | BO31: 1.223072717 | BP31: -0.08603791501 | BQ31: 0.01351122508
A32: ENERGUAVIARE | B32: 0.0003456890149 | C32: -0.09194059795 | D32: -0.007701431493 | E32: -0.005600608211 | F32: 0.02675370599 | G32: -0.3640241698 | H32: -0.02503599742 | I32: -0.02499728913 | K32: ENERGUAVIARE | L32: -0.01545411349 | M32: 0.02021195805 | N32: -0.009907194657 | O32: -0.1412172954 | P32: -0.03367556706 | Q32: -0.09223446475 | R32: -0.05355498523 | S32: -0.05359999916 | U32: ENERGUAVIARE | V32: -0.004841418646 | W32: 0.06811441641 | X32: -0.2489642621 | Y32: 0.0145624939 | Z32: -0.01642535776 | AA32: 0.2772748222 | AB32: -0.007472179902 | AC32: 0.00760000131 | AE32: ENERGUAVIARE | AF32: 0.004591903952 | AG32: 0.03312246121 | AH32: -0.004158717306 | AI32: -0.01241262745 | AJ32: 0.02348665725 | AK32: -0.3610632197 | AL32: -0.01252129944 | AM32: 0.01260000015 | AO32: ENERGUAVIARE | AP32: -0.002489168005 | AQ32: -0.06282367618 | AR32: -0.01009029522 | AS32: 0.02154206581 | AT32: 0.0003596036753 | AU32: -0.141424122 | AV32: -0.004926777748 | AW32: 0.01730000109 | AY32: ENERGUAVIARE | AZ32: 0.01835526861 | BA32: 0.07511770632 | BB32: 0.0148447585 | BC32: 0.0210650188 | BD32: 0.01106434716 | BE32: -0.07863104872 | BF32: 0.01877819722 | BG32: 0.01659999604 | BI32: ENERGUAVIARE
A34: PROMEDIO | B34: =+AVERAGE(B5:B32) -> 0.05938005477 | C34: =+AVERAGE(C5:C32) -> -0.0791967458 | D34: 0.03452153409 | E34: -0.02064664892 | F34: -0.02335164987 | G34: -0.3565644267 | H34: -0.01402721113 | I34: -0.01963162708 | K34: PROMEDIO | L34: =+AVERAGE(L5:L32) -> 0.004302608948 | M34: =+AVERAGE(M5:M32) -> 0.003589295491 | N34: 0.02565572871 | O34: -0.005268399764 | P34: -0.009458333776 | Q34: -0.08051945817 | R34: -0.002678582788 | S34: -0.007152421858 | U34: PROMEDIO | V34: =+AVERAGE(V5:V32) -> -0.03965125323 | W34: =+AVERAGE(W5:W32) -> 0.07209987778 | X34: -0.05567171991 | Y34: -0.003543137512 | Z34: 0.005828393443 | AA34: 0.3328186844 | AB34: -0.004931509763 | AC34: 0.008294847289 | AE34: PROMEDIO | AF34: =+AVERAGE(AF5:AF32) -> 0.0743302535 | AG34: =+AVERAGE(AG5:AG32) -> 0.03306274221 | AH34: 0.05515650878 | AI34: -0.02239569366 | AJ34: 0.01433587022 | AK34: -0.3848556031 | AL34: 0.007373394991 | AM34: 0.01314536774 | AO34: PROMEDIO | AP34: =+AVERAGE(AP5:AP32) -> 0.04313322952 | AQ34: =+AVERAGE(AQ5:AQ32) -> -0.06277917172 | AR34: 0.03231209245 | AS34: 0.01771156383 | AT34: 0.01361981876 | AU34: -0.09428817211 | AV34: 0.01826498302 | AW34: 0.01788511987 | AY34: PROMEDIO | AZ34: =+AVERAGE(AZ5:AZ32) -> 0.1135778878 | BA34: =+AVERAGE(BA5:BA32) -> 0.07511583704 | BB34: 0.09646533252 | BC34: 0.03594910814 | BD34: 0.02610326402 | BE34: -0.1068247475 | BF34: 0.06812577859 | BG34: 0.0164023313 | BI34: PROMEDIO | BJ34: =+AVERAGE(BJ5:BJ32) -> -0.1189956657 | BK34: =+AVERAGE(BK5:BK32) -> 0.02201403371 | BL34: -0.07629727317 | BM34: -0.02265985664 | BN34: 0.04467801153 | BO34: 1.062227048 | BP34: -0.03201523374 | BQ34: 0.0125369851
B36: En Dic 2022 se actualiza la tabla de Variación del CU Octubre respecto de Septiembre ya que algunas empresas republicaron tarifas de Octubre de 2022. | L36: En Dic 2022 se actualiza la tabla de Variación del CU Noviembre respecto de Octubre ya que algunas empresas republicaron tarifas de Octubre de 2022. | BJ36: A la fecha de corte de elaboración del presente documento, las empresas CENS, EMCALI, CEDENAR y ENERGUAVIARE aun no han certificado la información en el SUI.

Sheet Variaciones Tarifas
A1: REGRESAR | W1: 0.0001 | X1: 9e-05 | AD1: 0.0001 | AE1: 9e-05 | AK1: 0.0001 | AL1: 9e-05 | AR1: 0.0001 | AS1: 9e-05
A2: Nivel de Tensión 1 Propiedad de Activos del OR | H2: Nivel de Tensión 1 Propiedad de Activos del OR | O2: Nivel de Tensión 1 Propiedad de Activos del OR | V2: Nivel de Tensión 1 Propiedad de Activos del OR | AC2: Nivel de Tensión 1 Propiedad de Activos del OR | AJ2: Nivel de Tensión 1 Propiedad de Activos del OR | AQ2: Nivel de Tensión 1 Propiedad de Activos del OR
A3: Variación Tarifas por Estrato Octubre respecto de Septiembre | H3: Variación Tarifas por Estrato Noviembre respecto de Octubre | O3: Variación Tarifas por Estrato Diciembre respecto de Noviembre | V3: Variación Tarifas por Estrato Enero 2023 respecto de Diciembre 2022 | AC3: Variación Tarifas por Estrato Febrero 2023 respecto de Enero 2023 | AJ3: Variación Tarifas por Estrato Marzo 2023 respecto de Febrero 2023 | AQ3: Variación Tarifas por Estrato Abril 2023 respecto de Marzo 2023
A4: EMPRESA | B4: ESTRATO 1 | C4: ESTRATO 2 | D4: ESTRATO 3 | E4: ESTRATO 4 | F4: ESTRATO 5 y 6, Ind y Com | H4: EMPRESA | I4: ESTRATO 1 | J4: ESTRATO 2 | K4: ESTRATO 3 | L4: ESTRATO 4 | M4: ESTRATO 5 y 6, Ind y Com | O4: EMPRESA | P4: ESTRATO 1 | Q4: ESTRATO 2 | R4: ESTRATO 3 | S4: ESTRATO 4 | T4: ESTRATO 5 y 6, Ind y Com | V4: EMPRESA | W4: ESTRATO 1 | X4: ESTRATO 2 | Y4: ESTRATO 3 | Z4: ESTRATO 4 | AA4: ESTRATO 5 y 6, Ind y Com | AC4: EMPRESA | AD4: ESTRATO 1 | AE4: ESTRATO 2 | AF4: ESTRATO 3 | AG4: ESTRATO 4 | AH4: ESTRATO 5 y 6, Ind y Com | AJ4: EMPRESA | AK4: ESTRATO 1 | AL4: ESTRATO 2 | AM4: ESTRATO 3 | AN4: ESTRATO 4 | AO4: ESTRATO 5 y 6, Ind y Com | AQ4: EMPRESA | AR4: ESTRATO 1 | AS4: ESTRATO 2 | AT4: ESTRATO 3 | AU4: ESTRATO 4 | AV4: ESTRATO 5 y 6, Ind y Com
A5: EEP PEREIRA | B5: -0.04098434272 | C5: -0.04100205968 | D5: -0.041010397 | E5: -0.04100205968 | F5: -0.04099432187 | H5: EEP PEREIRA | I5: 0 | J5: 0 | K5: 0 | L5: 0 | M5: 0 | O5: EEP PEREIRA | P5: 0.007679340701 | Q5: 0.00769192348 | R5: 0.007697844897 | S5: 0.00769192348 | T5: 0.00769192348 | V5: EEP PEREIRA | W5: 0.01260842627 | X5: 0.01261462206 | Y5: 0.01261024856 | Z5: 0.01260223048 | AA5: 0.01260842627 | AC5: EEP PEREIRA | AD5: 0.01777465047 | AE5: 0.01776842311 | AF5: 0.0177656205 | AG5: 0.01778087791 | AH5: 0.01777465047 | AJ5: EEP PEREIRA | AK5: 0.01661055669 | AL5: 0.01661055669 | AM5: 0.0166124565 | AN5: 0.01660526632 | AO5: 0.01660526632 | AQ5: EEP PEREIRA | AR5: 0.01050602296 | AS5: 0.01050602296 | AT5: 0.01050998755 | AU5: 0.0105099806 | AV5: 0.0105099806
A6: ESSA | B6: -0.007370047766 | C6: -0.0073763081 | D6: -0.007398167682 | E6: -0.007389396067 | F6: -0.007391554241 | H6: ESSA | I6: 0 | J6: 0 | K6: 0 | L6: 0 | M6: 8.422322189e-08 | O6: ESSA | P6: 0.007691792371 | Q6: 0.007691792855 | R6: 0 | S6: 0 | T6: 0 | V6: ESSA | W6: 0.012614433 | X6: 0.01261468348 | Y6: 0 | Z6: 0 | AA6: -8.422321479e-08 | AC6: ESSA | AD6: 0.01777327767 | AE6: 0.01777333603 | AF6: 0 | AG6: 0 | AH6: 8.422322189e-08 | AJ6: ESSA | AK6: 0.01660585555 | AL6: 0.01660554869 | AM6: 0.0165999495 | AN6: 0.01660001663 | AO6: 0.01659999557 | AQ6: ESSA | AR6: 0.01050624378 | AS6: 0.01050624441 | AT6: 0.01049995322 | AU6: 0.01049998192 | AV6: 0.01049994071
A7: CENS | B7: -0.01140612129 | C7: -0.01140626584 | D7: -0.01139392125 | E7: -0.01139024639 | F7: -0.0114007551 | H7: CENS | I7: -0.01019165438 | J7: -0.01017896518 | K7: -0.01019249118 | L7: -0.01018267015 | M7: -0.01018054647 | O7: CENS | P7: 0.007706255666 | Q7: 0.007719207357 | R7: 0.007711610258 | S7: 0.007699310704 | T7: 0.007694975506 | V7: CENS | W7: 0.01259559154 | X7: 0.01259542966 | Y7: 0.01260249013 | Z7: 0.01260938024 | AA7: 0.01261588763 | AC7: CENS | AD7: 0.01776988005 | AE7: 0.01776965451 | AF7: 0.01778377568 | AG7: 0.017779987 | AH7: 0.01777994923 | AJ7: CENS | AK7: 0.01661220927 | AL7: 0.0165996558 | AM7: 0.01660292298 | AN7: 0.01660530468 | AO7: 0.01660318289 | AQ7: CENS
A8: RUITOQUE | E8: 0 | F8: 0 | H8: RUITOQUE | L8: 1.679499767e-06 | M8: 1.029240773e-05 | O8: RUITOQUE | S8: 0.01017865584 | T8: 0.01017434944 | V8: RUITOQUE | Z8: 0.01069163086 | AA8: 0.01069593946 | AC8: RUITOQUE | AG8: 0.01561471883 | AH8: 0.01561471883 | AJ8: RUITOQUE | AN8: 0.02076947995 | AO8: 0.02077078817 | AQ8: RUITOQUE | AU8: 0.01960233861 | AV8: 0.01960103189
A9: EPM | B9: -0.02180402336 | C9: -0.02180402336 | D9: -0.0218037965 | E9: -0.02180457987 | F9: -0.02179815796 | H9: EPM | I9: 0 | J9: 0 | K9: 0 | L9: 0 | M9: 0 | O9: EPM | P9: 0.00769536951 | Q9: 0.00769536951 | R9: 0.007696407298 | S9: 0.007701121859 | T9: 0.007705545995 | V9: EPM | W9: 0.01260697828 | X9: 0.01261356155 | Y9: 0.01259974801 | Z9: 0.01260048657 | AA9: 0.01259379235 | AC9: EPM | AD9: 0.01778110067 | AE9: 0.01776148125 | AF9: 0.01780419989 | AG9: 0.01779721878 | AH9: 0.01780157124 | AJ9: EPM | AK9: 0.01660811242 | AL9: 0.0166083246 | AM9: 0.01660226998 | AN9: 0.0166008108 | AO9: 0.01660287797 | AQ9: EPM | AR9: 0.01049324537 | AS9: 0.01050594415 | AT9: 0.01049646654 | AU9: 0.0104994826 | AV9: 0.01049520985
A10: EDEQ | B10: -0.02716925205 | C10: -0.02717579175 | D10: -0.02717879173 | E10: -0.02717579175 | F10: -0.02718004172 | H10: EDEQ | I10: 0 | J10: 0 | K10: 0 | L10: 0 | M10: 0 | O10: EDEQ | P10: 0.00769143268 | Q10: 0.007689876409 | R10: 0.00769161283 | S10: 0.00769163685 | T10: 0.007691659246 | V10: EDEQ | W10: 0.01261471011 | X10: 0.01261634392 | Y10: 0.01261463031 | Z10: 0.01261457487 | AA10: 0.01261448472 | AC10: EDEQ | AD10: 0.01777362393 | AE10: 0.01777342604 | AF10: 0.0177734096 | AG10: 0.01777355875 | AH10: 0.0177736259 | AJ10: EDEQ | AK10: 0.01660557744 | AL10: 0.01660558177 | AM10: 0.01660565796 | AN10: 0.01660557961 | AO10: 0.01660557924 | AQ10: EDEQ | AR10: 0.01050605018 | AS10: 0.0105063094 | AT10: 0.01050612722 | AU10: 0.01050617979 | AV10: 0.01050615819
A11: CHEC | B11: 1.637174307e-05 | C11: 1.644141006e-05 | D11: 1.415614558e-05 | E11: 1.091336467e-05 | F11: 3.964228666e-06 | H11: CHEC | I11: -0.01076999227 | J11: -0.01077006119 | K11: -0.01076987602 | L11: -0.01076997425 | M11: -0.01077006702 | O11: CHEC | P11: 0.007692096419 | Q11: 0.007692025995 | R11: 0.007691825144 | S11: 0.007691892086 | T11: 0.007692033885 | V11: CHEC | W11: 0.01261385861 | X11: 0.01261399927 | Y11: 0.01261413713 | Z11: 0.01261416994 | AA11: 0.01261412198 | AC11: CHEC | AD11: 0.01777408311 | AE11: 0.01777387484 | AF11: 0.01777419316 | AG11: 0.01777406183 | AH11: 0.01777401481 | AJ11: CHEC | AK11: 0.01660587419 | AL11: 0.01660607987 | AM11: 0.01660580398 | AN11: 0.016602681 | AO11: 0.01660597221 | AQ11: CHEC | AR11: 0.01050609417 | AS11: 0.01050602677 | AT11: 0.01050604293 | AU11: 0.01050919662 | AV11: 0.0105059698
A12: CEO | B12: -0.01035986102 | C12: -0.01036002647 | D12: -0.01037331494 | E12: -0.01037799818 | F12: -0.01037610259 | H12: CEO | I12: 0.007175874261 | J12: 0.007176042646 | K12: 0.008202284955 | L12: 0.00820225763 | M12: 0.008202296341 | O12: CEO | P12: 0.007691618178 | Q12: 0.007691728841 | R12: -0.01013942677 | S12: -0.01013934574 | T12: -0.01013938375 | V12: CEO | W12: 0.01261453344 | X12: 0.01261458696 | Y12: 0.00875158278 | Z12: 0.008751479623 | AA12: 0.008751479623 | AC12: CEO | AD12: 0.01777361209 | AE12: 0.01777344652 | AF12: 0.03194216102 | AG12: 0.03194226432 | AH12: 0.03194226432 | AJ12: CEO | AK12: 0.03896120502 | AL12: 0.03896120502 | AM12: 0.08997316825 | AN12: 0.08997313064 | AO12: 0.08997314927 | AQ12: CEO | AR12: 0.01050602234 | AS12: 0.01050607362 | AT12: -0.0500689869 | AU12: -0.05006902823 | AV12: -0.05006901028
A13: EMCALI | B13: -0.03656965578 | C13: -0.03658685324 | D13: -0.03658556949 | E13: -0.03658553287 | F13: -0.03658553287 | H13: EMCALI | I13: 0.006320977204 | J13: 0.006321039316 | K13: 0.006321320675 | L13: 0.006321282426 | M13: 0.006321282426 | O13: EMCALI | P13: 0.007699900742 | Q13: 0.007700023113 | R13: 0.01779452821 | S13: 0.01779464907 | T13: 0.01779458486 | V13: EMCALI | W13: 0.01260022736 | X13: 0.01259998466 | Y13: 0.005709401654 | Z13: 0.005709326756 | AA13: 0.005709390203 | AC13: EMCALI | AD13: 0.01779993316 | AE13: 0.01779999608 | AF13: -0.0164045704 | AG13: -0.01640459182 | AH13: -0.01640459182 | AJ13: EMCALI | AK13: 0.01660010505 | AL13: 0.01660016569 | AM13: 0.09441228457 | AN13: 0.09441234247 | AO13: 0.09441227869 | AQ13: EMCALI
A14: CEDENAR | B14: -0.01835760617 | C14: -0.01835760617 | D14: -0.0183482259 | E14: -0.01834896211 | F14: -0.018352946 | H14: CEDENAR | I14: 0 | J14: 0 | K14: 0 | L14: 0 | M14: 0 | O14: CEDENAR | P14: 0.007698541329 | Q14: 0.007679840419 | R14: 0.01069329681 | S14: 0.01070435937 | T14: 0.01070433703 | V14: CEDENAR | W14: 0.01261946738 | X14: 0.01261970158 | Y14: 0.01260583803 | Z14: 0.01259770343 | AA14: 0.01259354839 | AC14: CEDENAR | AD14: 0.01774641864 | AE14: 0.01776507099 | AF14: 0.01329802544 | AG14: 0.01329728672 | AH14: 0.01330343035 | AJ14: CEDENAR | AK14: 0.01662665066 | AL14: 0.01661464586 | AM14: 0.01660322691 | AN14: 0.01659966438 | AO14: 0.01659959759 | AQ14: CEDENAR
A15: CELSIA COLOMBIA Valle | B15: -0.02388031674 | C15: -0.02388702489 | D15: -0.02387510126 | E15: -0.02387450548 | F15: -0.02387038216 | H15: CELSIA COLOMBIA Valle | I15: -0.001667307939 | J15: -0.001641699159 | K15: -0.001659776081 | L15: -0.001654503713 | M15: -0.001656637773 | O15: CELSIA COLOMBIA Valle | P15: 0.01069501542 | Q15: 0.01068859198 | R15: 0.01068556919 | S15: 0.01068859198 | T15: 0.01068859198 | V15: CELSIA COLOMBIA Valle | W15: 0.01560265658 | X15: 0.01560911125 | Y15: 0.01561214876 | Z15: 0.01560911125 | AA15: 0.01560911125 | AC15: CELSIA COLOMBIA Valle | AD15: 0.02077596996 | AE15: 0.02077596996 | AF15: 0.02077596996 | AG15: 0.02077596996 | AH15: 0.02077596996 | AJ15: CELSIA COLOMBIA Valle | AK15: 0.01961745954 | AL15: 0.01959293771 | AM15: 0.01960303494 | AN15: 0.01960519863 | AO15: 0.01960519863 | AQ15: CELSIA COLOMBIA Valle | AR15: 0.013498076 | AS15: 0.01351643859 | AT15: 0.01351064582 | AU15: 0.01350425089 | AV15: 0.01350425089
A16: CETSA | B16: -0.03495963722 | C16: -0.03496629445 | D16: -0.03496238895 | E16: -0.03492814964 | F16: -0.0349603868 | H16: CETSA | I16: -0.006565353596 | J16: -0.006585437385 | K16: -0.006571415128 | L16: -0.00661192279 | M16: -0.006576608603 | O16: CETSA | P16: 0.01066791908 | Q16: 0.01070853462 | R16: 0.01068801111 | S16: 0.01069511541 | T16: 0.01069511541 | V16: CETSA | W16: 0.01560062402 | X16: 0.0156137975 | Y16: 0.0156203627 | Z16: 0.01561400481 | AA16: 0.01561400481 | AC16: CETSA | AD16: 0.0207863516 | AE16: 0.02075979815 | AF16: 0.02077854166 | AG16: 0.02077314264 | AH16: 0.02077314264 | AJ16: CETSA | AK16: 0.01959465949 | AL16: 0.01962039907 | AM16: 0.01960222992 | AN16: 0.01959478497 | AO16: 0.01959478497 | AQ16: CETSA | AR16: 0.01350290469 | AS16: 0.01349008968 | AT16: 0.01350652421 | AU16: 0.01351555042 | AV16: 0.01351555042
A17: EEP CARTAGO | B17: -0.03902454615 | C17: -0.03901815392 | D17: -0.03900069187 | E17: -0.03899308352 | F17: -0.03900365426 | H17: EEP CARTAGO | I17: 0 | J17: 0 | K17: 0 | L17: 0 | M17: 8.868982949e-06 | O17: EEP CARTAGO | P17: 0.007716100708 | Q17: 0.007689442316 | R17: 0.007700374063 | S17: 0.00768934002 | T17: 0.007684905568 | V17: EEP CARTAGO | W17: 0.01260767682 | X17: 0.01262112851 | Y17: 0.01261163314 | Z17: 0.01260776004 | AA17: 0.01260781553 | AC17: EEP CARTAGO | AD17: 0.01782862358 | AE17: 0.01778310865 | AF17: 0.01776155345 | AG17: 0.01777007118 | AH17: 0.01777449425 | AJ17: EEP CARTAGO | AK17: 0.01654764955 | AL17: 0.01659980017 | AM17: 0.01661140833 | AN17: 0.01660757061 | AO17: 0.01660757061 | AQ17: EEP CARTAGO | AR17: 0.01050472913 | AS17: 0.01050605152 | AT17: 0.01051000448 | AU17: 0.01051001197 | AV17: 0.01051001197
A18: EBSA | B18: -0.01393746994 | C18: -0.01393088941 | D18: -0.0139355345 | E18: -0.01393101768 | F18: -0.01393736305 | H18: EBSA | I18: -0.01301383138 | J18: -0.01301395808 | K18: -0.01301379213 | L18: -0.01301382969 | M18: -0.01301382997 | O18: EBSA | P18: 0.01070010128 | Q18: 0.01070016577 | R18: 0.0107000419 | S18: 0.01070003398 | T18: 0.01070005618 | V18: EBSA | W18: 0.0156000356 | X18: 0.01559996735 | Y18: 0.01559993882 | Z18: 0.01559996938 | AA18: 0.01559996938 | AC18: EBSA | AD18: 0.02079993683 | AE18: 0.02079999836 | AF18: 0.02080010755 | AG18: 0.02080000103 | AH18: 0.02080004383 | AJ18: EBSA | AK18: 0.01960004968 | AL18: 0.01959985731 | AM18: 0.01959999165 | AN18: 0.01959998556 | AO18: 0.01959994281 | AQ18: EBSA | AR18: 0.01350017703 | AS18: 0.01350005366 | AT18: 0.01349992206 | AU18: 0.01350005366 | AV18: 0.01350007422
A19: ELECTROHUILA | B19: 0 | C19: 0 | D19: 0 | E19: 0 | F19: 0 | H19: ELECTROHUILA | I19: 0 | J19: 0 | K19: 0 | L19: 0 | M19: 0 | O19: ELECTROHUILA | P19: 0.007691772995 | Q19: 0.007691837352 | R19: 0.007691643911 | S19: 0.007691710574 | T19: 0.007691773802 | V19: ELECTROHUILA | W19: 0.0125999352 | X19: 0.01259993678 | Y19: 0.0126000844 | Z19: 0.01259993678 | AA19: 0.01259993651 | AC19: ELECTROHUILA | AD19: 0.01779979866 | AE19: 0.01779992415 | AF19: 0.01779990809 | AG19: 0.01780004744 | AH19: 0.01780000598 | AJ19: ELECTROHUILA | AK19: 0.01660024107 | AL19: 0.0166001805 | AM19: 0.01660000829 | AN19: 0.01659993621 | AO19: 0.01660003749 | AQ19: ELECTROHUILA | AR19: 0.01049972995 | AS19: 0.01049990932 | AT19: 0.01049992437 | AU19: 0.01050002973 | AV19: 0.01049992959
A20: ENELAR | B20: 2.655866144e-06 | C20: 1.620099862e-05 | D20: 6.717805309e-06 | E20: 2.788659452e-06 | F20: 2.766527234e-06 | H20: ENELAR | I20: 0 | J20: 0 | K20: 0 | L20: 0 | M20: 0 | O20: ENELAR | P20: 0.01100023637 | Q20: 0.01099976867 | R20: 0.01099994173 | S20: 0.01100003572 | T20: 0.01100001383 | V20: ENELAR | W20: 0.0156143331 | X20: 0.01561466454 | Y20: 0.01561450905 | Z20: 0.01561453115 | AA20: 0.01561455372 | AC20: ENELAR | AD20: 0.02100007307 | AE20: 0.02099987636 | AF20: 0.02100009129 | AG20: 0.02100000569 | AH20: 0.02099996303 | AJ20: ENELAR | AK20: -0.01360548095 | AL20: -0.01360548181 | AM20: -0.01360570373 | AN20: -0.01360560676 | AO20: -0.01360558651 | AQ20: ENELAR | AR20: 0.01959978567 | AS20: 0.01959985114 | AT20: 0.01960003451 | AU20: 0.01959997956 | AV20: 0.0196000018
A21: CELSIA COLOMBIA Tolima | B21: -0.07566529657 | C21: -0.07565284178 | D21: -0.07564911686 | E21: -0.07565465761 | F21: -0.07565280875 | H21: CELSIA COLOMBIA Tolima | I21: -0.01350254796 | J21: -0.013502285 | K21: -0.01350257374 | L21: -0.01350263561 | M21: -0.01350696338 | O21: CELSIA COLOMBIA Tolima | P21: 0.01069325174 | Q21: 0.01066013898 | R21: 0.01068359526 | S21: 0.0106867416 | T21: 0.0106911755 | V21: CELSIA COLOMBIA Tolima | W21: 0.01559346312 | X21: 0.0156262208 | Y21: 0.01561087706 | Z21: 0.01561319895 | AA21: 0.01561319895 | AC21: CELSIA COLOMBIA Tolima | AD21: 0.020771228 | AE21: 0.02077082853 | AF21: 0.02077111051 | AG21: 0.02077109484 | AH21: 0.02077109484 | AJ21: CELSIA COLOMBIA Tolima | AK21: 0.01962631496 | AL21: 0.01959454367 | AM21: 0.01960958165 | AN21: 0.01960735056 | AO21: 0.01960735056 | AQ21: CELSIA COLOMBIA Tolima | AR21: 0.01348937481 | AS21: 0.0135018602 | AT21: 0.01349314473 | AU21: 0.0135018602 | AV21: 0.0135018602
A22: ENEL COLOMBIA | B22: 2.754441537e-05 | C22: 2.754365669e-07 | D22: 1.561966125e-05 | E22: 2.627648393e-06 | F22: 0 | H22: ENEL COLOMBIA | I22: 0 | J22: 0 | K22: 0 | L22: 0 | M22: 0 | O22: ENEL COLOMBIA | P22: 0.007691566132 | Q22: 0.007691564014 | R22: 0.01099997462 | S22: 0.01099999876 | T22: 0.01100002155 | V22: ENEL COLOMBIA | W22: 0.01507096439 | X22: 0.01507055027 | Y22: 0.01600002189 | Z22: 0.01600003721 | AA22: 0.01600001368 | AC22: ENEL COLOMBIA | AD22: 0.0209998216 | AE22: 0.02100002639 | AF22: 0.02100004356 | AG22: 0.02100002639 | AH22: 0.02100004836 | AJ22: ENEL COLOMBIA | AK22: 0.0200002044 | AL22: 0.02000000527 | AM22: 0.01999999069 | AN22: 0.02000000527 | AO22: 0.01999998242 | AQ22: ENEL COLOMBIA | AR22: 0.01399974014 | AS22: 0.01400006516 | AT22: 0.01399998996 | AU22: 0.01399993588 | AV22: 0.01399995712
A23: EMEVASI | B23: 0.009315582649 | C23: 0.009305563952 | D23: -0.006042273068 | E23: -0.006034387364 | F23: -0.006041304915 | H23: EMEVASI | I23: 0.007176084742 | J23: 0.007176033752 | K23: -0.03172331203 | L23: -0.03172330742 | M23: -0.03172330742 | O23: EMEVASI | P23: 0.00769167104 | Q23: 0.007691670278 | R23: 0.01695965551 | S23: 0.01695973284 | T23: 0.01695973284 | V23: EMEVASI | W23: 0.01261454974 | X23: 0.01261445014 | Y23: -0.01814722163 | Z23: -0.01814720223 | AA23: -0.01814720223 | AC23: EMEVASI | AD23: 0.01777350049 | AE23: 0.01777364619 | AF23: 9.674561552e-05 | AG23: 9.668170991e-05 | AH23: 9.668170991e-05 | AJ23: EMEVASI | AK23: 0.01660565189 | AL23: 0.01660549203 | AM23: 0.005864453464 | AN23: 0.005864471429 | AO23: 0.00586447324 | AQ23: EMEVASI | AR23: 0.01050605748 | AS23: 0.01050611865 | AT23: 0.002913663724 | AU23: 0.002913455357 | AV23: 0.002913561539
A24: EE PUTUMAYO | B24: -0.02572133641 | C24: -0.02573843237 | D24: -0.02573977091 | E24: -0.02573842067 | F24: -0.02573842847 | H24: EE PUTUMAYO | I24: -0.0009483265764 | J24: -0.0009483445877 | K24: -0.0009483459982 | L24: -0.0009483565877 | M24: -0.0009483485877 | O24: EE PUTUMAYO | P24: 0.007510857001 | Q24: 0.007510881137 | R24: 0.007510871225 | S24: 0.007510869114 | T24: 0.007510869114 | V24: EE PUTUMAYO | W24: 0.01261448122 | X24: 0.01261448704 | Y24: 0.01261449697 | Z24: 0.01261449912 | AA24: 0.01261449912 | AC24: EE PUTUMAYO | AD24: 0.01777555379 | AE24: 0.01777553579 | AF24: 0.01777554825 | AG24: 0.01777554758 | AH24: 0.01777554562 | AJ24: EE PUTUMAYO | AK24: 0.0166056182 | AL24: 0.01660560083 | AM24: 0.01660559243 | AN24: 0.01660560064 | AO24: 0.01660559874 | AQ24: EE PUTUMAYO | AR24: 0.01050612695 | AS24: 0.01050613283 | AT24: 0.01050614215 | AU24: 0.003633008613 | AV24: 0.01050613654
A25: EE BAJO PUTUMAYO | B25: -0.0278069868 | C25: -0.0278069868 | D25: -0.02780717791 | E25: -0.0278069868 | F25: -0.0278069868 | H25: EE BAJO PUTUMAYO | I25: 0.0007210671794 | J25: 0.0007210671794 | K25: 0.0007210722769 | L25: 0.0007210671794 | M25: 0.0007210671794 | O25: EE BAJO PUTUMAYO | P25: 0.004203194428 | Q25: 0.004203194428 | R25: 0.004210288362 | S25: 0.004203194428 | T25: 0.004203194428 | V25: EE BAJO PUTUMAYO | W25: -0.02033006458 | X25: -0.02033006458 | Y25: -0.02033006458 | Z25: -0.02033006458 | AA25: -0.02033006458 | AC25: EE BAJO PUTUMAYO | AD25: -0.009765625 | AE25: -0.009765625 | AF25: -0.009765625 | AG25: -0.009765625 | AH25: -0.009765625 | AJ25: EE BAJO PUTUMAYO | AK25: 0.009615384615 | AL25: 0.009615384615 | AM25: 0.009615384615 | AN25: 0.009615384615 | AO25: 0.009615384615 | AQ25: EE BAJO PUTUMAYO | AR25: 0.01050612695 | AS25: 0.01050613283 | AT25: 0.01050614215 | AU25: 0.003633008613 | AV25: 0.01050613654
A26: EMSA | B26: -0.01384243468 | C26: -0.01385540573 | D26: -0.01385404167 | E26: -0.013842343 | F26: -0.01385332038 | H26: EMSA | I26: -0.03878572148 | J26: -0.0387653127 | K26: -0.03878002528 | L26: -0.03879217709 | M26: -0.03878572148 | O26: EMSA | P26: 0.007685858021 | Q26: 0.007657695425 | R26: 0.007677637852 | S26: 0.007685858021 | T26: 0.007685858021 | V26: EMSA | W26: 0.01261960893 | X26: 0.01261960893 | Y26: 0.01262786941 | Z26: 0.01261960893 | AA26: 0.01261960893 | AC26: EMSA | AD26: 0.01776910435 | AE26: 0.01777595179 | AF26: 0.01777111831 | AG26: 0.01777595179 | AH26: 0.01778051675 | AJ26: EMSA | AK26: 0.01661116157 | AL26: 0.01660566754 | AM26: 0.01660914991 | AN26: 0.01660432197 | AO26: 0.01659976228 | AQ26: EMSA | AR26: 0.01052917196 | AS26: 0.01050798059 | AT26: 0.01050776092 | AU26: 0.01050931809 | AV26: 0.0105071121
A27: ELECTROCAQUETÁ | B27: 0 | C27: 0 | D27: 0 | E27: 0 | F27: 0 | H27: ELECTROCAQUETÁ | I27: -0.01006445058 | J27: -0.01008356404 | K27: -0.01000048468 | L27: -0.009997253502 | M27: -0.010001831 | O27: ELECTROCAQUETÁ | P27: 0.03476587556 | Q27: 0.03479242572 | R27: 0.01070531023 | S27: 0.01069466792 | T27: 0.01069934112 | V27: ELECTROCAQUETÁ | W27: 0.0126146789 | X27: 0.01262087776 | Y27: 0.01559724868 | Z27: 0.01560462786 | AA27: 0.01560462786 | AC27: ELECTROCAQUETÁ | AD27: 0.01778335527 | AE27: 0.01777712481 | AF27: 0.02079491256 | AG27: 0.0207972973 | AH27: 0.0207972973 | AJ27: ELECTROCAQUETÁ | AQ27: ELECTROCAQUETÁ | AR27: -0.0159448586 | AS27: -0.01595077506 | AT27: 0.01348771137 | AU27: 0.0134900026 | AV27: 0.01350313234
A28: ENERCA | B28: -0.0122426888 | C28: -0.01224289559 | D28: -0.01224283005 | E28: -0.01224166332 | F28: -0.01224166332 | H28: ENERCA | I28: -0.005867708195 | J28: -0.005867709018 | K28: -0.005867790873 | L28: -0.005867848336 | M28: -0.005867848336 | O28: ENERCA | P28: 0.007691581164 | Q28: 0.0076917937 | R28: 0.00769156139 | S28: 0.007691652732 | T28: 0.007691652732 | V28: ENERCA | W28: 0.01261443625 | X28: 0.01261436542 | Y28: 0.01261466437 | Z28: 0.01261450708 | AA28: 0.01261450708 | AC28: ENERCA | AD28: 0.01777363636 | AE28: 0.01777349821 | AF28: 0.01777335049 | AG28: 0.01777349821 | AH28: 0.01777352124 | AJ28: ENERCA | AK28: 0.01660573204 | AL28: 0.01660553069 | AM28: 0.01660559563 | AN28: 0.01660553069 | AO28: 0.01660550769 | AQ28: ENERCA | AR28: 0.01050601023 | AS28: 0.01050614726 | AT28: 0.01050613155 | AU28: 0.01050614726 | AV28: 0.010506125
A29: AIRE | B29: -0.03034752814 | C29: -0.03033653514 | D29: -0.03033752016 | E29: -0.0303477029 | F29: -0.03033822174 | H29: AIRE | I29: -0.006770199246 | J29: -0.006770239453 | K29: -0.006777150523 | L29: -0.00675836184 | M29: -0.006770199246 | O29: AIRE | P29: 0.01070286107 | Q29: 0.01069096649 | R29: 0.01069232825 | S29: 0.01069083864 | T29: 0.01069289565 | V29: AIRE | W29: 0.01561806726 | X29: 0.01561834446 | Y29: 0.01561825749 | Z29: 0.01561815966 | AA29: 0.01561822126 | AC29: AIRE | AD29: 0.02076598223 | AE29: 0.02078382031 | AF29: 0.02077822398 | AG29: 0.02077192819 | AH29: 0.0207758922 | AJ29: AIRE | AK29: 0.01960168911 | AL29: 0.01960739557 | AM29: 0.01960336748 | AN29: 0.01960739557 | AO29: 0.01960168911 | AQ29: AIRE | AR29: 0.01351616063 | AS29: 0.01349929481 | AT29: 0.01351120007 | AU29: 0.01349929481 | AV29: 0.0135068327
A30: AFINIA | B30: -0.02998487141 | C30: -0.02999055987 | D30: -0.02999799823 | E30: -0.02999513855 | F30: -0.03000901384 | H30: AFINIA | I30: 0 | J30: 0 | K30: 0 | L30: 0 | M30: 0 | O30: AFINIA | P30: 0.007704544746 | Q30: 0.007685781305 | R30: 0 | S30: 0 | T30: 0 | V30: AFINIA | W30: 0.01259827896 | X30: 0.01260462582 | Y30: 0.01261792453 | Z30: 0.0126171503 | AA30: 0.01262346775 | AC30: AFINIA | AD30: 0.01779109223 | AE30: 0.01777897337 | AF30: 0.01777396064 | AG30: 0.01776809909 | AH30: 0.01776600023 | AJ30: AFINIA | AK30: 0.01659035891 | AL30: 0.01660867894 | AM30: 0.01660557518 | AN30: 0.01660921525 | AO30: 0.01660921322 | AQ30: AFINIA | AR30: 0.01050669334 | AS30: 0.01051260222 | AT30: 0.01050941042 | AU30: 0.01050940544 | AV30: 0.01050940746
A31: DISPAC | B31: -0.01945549871 | C31: -0.01948051948 | D31: -0.01948486245 | E31: -0.01948051948 | F31: -0.01948051948 | H31: DISPAC | I31: 0 | J31: 0 | K31: 0 | L31: 0 | M31: 2.147378909e-06 | O31: DISPAC | P31: 0.007666043935 | Q31: 0.007704795527 | R31: 0.007685078518 | S31: 0.007691911253 | T31: 0.007689747361 | V31: DISPAC | W31: 0.01563099348 | X31: 0.01559862937 | Y31: 0.01561395328 | Z31: 0.01561161473 | AA31: 0.01561161473 | AC31: DISPAC | AD31: 0.02077235389 | AE31: 0.02077248464 | AF31: 0.02077995172 | AG31: 0.02077248464 | AH31: 0.02077248464 | AJ31: DISPAC | AK31: 0.01960965683 | AL31: 0.01960977776 | AM31: 0.01960243761 | AN31: 0.01960977776 | AO31: 0.01960566669 | AQ31: DISPAC | AR31: 0.01351719133 | AS31: 0.01352332108 | AT31: 0.01351909038 | AU31: 0.01351122508 | AV31: -0.03296171603
A32: ENERGUAVIARE | B32: -0.024969626 | C32: -0.02498345066 | D32: -0.0249899646 | E32: -0.02499728913 | F32: -0.02499267872 | H32: ENERGUAVIARE | I32: -0.05359999266 | J32: -0.05360001372 | K32: -0.0535999984 | L32: -0.05359999916 | M32: -0.05359999201 | O32: ENERGUAVIARE | P32: 0.00760001675 | Q32: 0.007600001427 | R32: 0.007599994079 | S32: 0.00760000131 | T32: 0.007599991017 | V32: ENERGUAVIARE | W32: 0.01259999242 | X32: 0.01260000034 | Y32: 0.01260001282 | Z32: 0.01260000015 | AA32: 0.0126000053 | AC32: ENERGUAVIARE | AD32: 0.01730001617 | AE32: 0.0173000315 | AF32: 0.01729999392 | AG32: 0.01730000109 | AH32: 0.01730000361 | AJ32: ENERGUAVIARE | AK32: 0.01659999579 | AL32: 0.01659999579 | AM32: 0.01659999608 | AN32: 0.01659999604 | AO32: 0.016599996 | AQ32: ENERGUAVIARE
A34: PROMEDIO | B34: =+AVERAGE(B5:B32) -> -0.019870259 | C34: =+AVERAGE(C5:C32) -> -0.01987483122 | D34: =+AVERAGE(D5:D32) -> -0.02044351716 | E34: =+AVERAGE(E5:E32) -> -0.01971157509 | F34: =+AVERAGE(F5:F32) -> -0.0197142648 | H34: PROMEDIO | I34: =+AVERAGE(I5:I32) -> -0.005568632699 | J34: =+AVERAGE(J5:J32) -> -0.005567903949 | K34: =+AVERAGE(K5:K32) -> -0.006968976079 | L34: =+AVERAGE(L5:L32) -> -0.006720591193 | M34: =+AVERAGE(M5:M32) -> -0.006719137941 | O34: PROMEDIO | P34: =+AVERAGE(P5:P32) -> 0.009234252409 | Q34: =+AVERAGE(Q5:Q32) -> 0.009233742116 | R34: =+AVERAGE(R5:R32) -> 0.008063687995 | S34: =+AVERAGE(S5:S32) -> 0.008139089208 | T34: =+AVERAGE(T5:T32) -> 0.008139105779 | V34: PROMEDIO | W34: =+AVERAGE(W5:W32) -> 0.01225825694 | X34: =+AVERAGE(X5:X32) -> 0.01226050425 | Y34: =+AVERAGE(Y5:Y32) -> 0.01040017755 | Z34: =+AVERAGE(Z5:Z32) -> 0.01040972976 | AA34: =+AVERAGE(AA5:AA32) -> 0.01041017412 | AC34: PROMEDIO | AD34: =+AVERAGE(AD5:AD32) -> 0.017646939 | AE34: =+AVERAGE(AE5:AE32) -> 0.01764421043 | AF34: =+AVERAGE(AF5:AF32) -> 0.01553712302 | AG34: =+AVERAGE(AG5:AG32) -> 0.01553970022 | AH34: =+AVERAGE(AH5:AH32) -> 0.01554024281 | AJ34: PROMEDIO | AK34: =+AVERAGE(AK5:AK32) -> 0.01685624973 | AL34: =+AVERAGE(AL5:AL32) -> 0.01685682806 | AM34: =+AVERAGE(AM5:AM32) -> 0.02139807057 | AN34: =+AVERAGE(AN5:AN32) -> 0.0213742665 | AO34: =+AVERAGE(AO5:AO32) -> 0.02137389854 | AQ34: PROMEDIO | AR34: =+AVERAGE(AR5:AR32) -> 0.01068551637 | AS34: =+AVERAGE(AS5:AS32) -> 0.01068556069 | AT34: =+AVERAGE(AT5:AT32) -> 0.009001610149 | AU34: =+AVERAGE(AU5:AU32) -> 0.008870611253 | AV34: =+AVERAGE(AV5:AV32) -> 0.007507401883
B36: En Dic 2022 se actualiza la tabla de Variación del CU Octubre respecto de Septiembre ya que algunas empresas republicaron tarifas de Octubre de 2022. | I36: En Dic 2022 se actualiza la tabla de Variación del CU Noviembre respecto de Octubre ya que algunas empresas republicaron tarifas de Octubre de 2022. | AR36: A la fecha corte de elaboración del presente documento, las empresas CENS, EMCALI, CEDENAR y ENERGUAVIARE aun no han certificado la información en el SUI.

Sheet Transmisión
A1: REGRESAR | D1: CREG 011-2009 | E1: CREG 011-2009 | F1: CREG 011-2009 | G1: CREG 011-2009 | H1: CREG 011-2009 | I1: CREG 011-2009 | J1: CREG 011-2009 | K1: CREG 011-2009 | L1: CREG 011-2009 | M1: CREG 011-2009 | N1: CREG 031-2022 | O1: CREG 031-2022 | P1: CREG 031-2022 | Q1: CREG 031-2022 | R1: CREG 031-2022 | S1: CREG 031-2022 | T1: CREG 031-2022
D2: 2022-01-01 | E2: 2022-02-01 | F2: 2022-03-01 | G2: 2022-04-01 | H2: 2022-05-01 | I2: 2022-06-01 | J2: 2022-07-01 | K2: 2022-08-01 | L2: 2022-09-01 | M2: 2022-10-01 | N2: 2022-10-01 | O2: 2022-11-01 | P2: 2022-12-01 | Q2: 2023-01-01 | R2: 2023-02-01 | S2: 2023-03-01 | T2: 2023-04-01
A3: A | B3: Ingreso Regulado Mensual (antes de compensaciones (COP)) | D3: 276890660460 | E3: 281711177607 | F3: 281265022292 | G3: 285008146105 | H3: 291785149344 | I3: 296604201687 | J3: 309373626976 | K3: 322049975877 | L3: 323990363048 | M3: 328641800232 | N3: 305636967469 | O3: 316465342665 | P3: 327923544774 | Q3: 339662388481 | R3: 337470364129 | S3: 340627130138 | T3: 338950474023
A4: B | B4: Ingreso Variante Guatape ($) | D4: 186824062 | E4: 192639133 | F4: 195729454 | G4: 203084863 | H4: 204270483 | I4: 210754327 | J4: 207704952 | K4: 212990349 | L4: 212164117 | M4: 211731575 | N4: 214214595 | O4: 217673867 | P4: 219510975 | Q4: 224633885 | R4: 228723525 | S4: 228543602 | T4: 231121875
A5: C | B5: Otros Conceptos ($) | D5: 16276228887 | E5: 15822776285 | F5: 36688609745 | G5: 35164170726 | H5: 19879023406 | I5: 27529299814 | J5: 47638047408 | K5: 17383798489 | L5: 18582608391 | M5: 19139686287 | N5: 19139686287 | O5: 20920806366 | P5: 1.024847765e+10 | Q5: 9933651716 | R5: 10194359798 | S5: 1.437947684e+10 | T5: 1.618935114e+10
A6: A - B - C = D | C6: Ingreso Regulado Bruto que pagan los comercializadores ($) | D6: =+D3-D4-D5 -> 260427607511 | E6: =+E3-E4-E5 -> 265695762189 | F6: 244380683093 | G6: 249640890516 | H6: 271701855455 | I6: 268864147546 | J6: 261527874616 | K6: 304453187039 | L6: 305195590540 | M6: 309290382370 | N6: 286283066587 | O6: =+O3-O4-O5 -> 295326862432 | P6: 317455556144 | Q6: 3.295041029e+11 | R6: 327047280806 | S6: 326019109694 | T6: 322530001009
A7: E | B7: Ingreso a Compensar ($) | D7: 121161451 | E7: 173374038 | F7: 533298835 | G7: 154040588 | H7: 66384618 | I7: 92068652 | J7: 49888918 | K7: 135787643 | L7: 63274470 | M7: 2279249448 | N7: 2259157459 | O7: 65449459 | P7: 131918275 | Q7: 213094385 | R7: 266662013 | S7: 176301193 | T7: 23652944
A8: D - E = F | C8: Ingreso Regulado Neto que pagan los Participantes del Mercado ($) | D8: =+D6-D7 -> 260306446060 | E8: =+E6-E7 -> 265522388151 | F8: 243847384258 | G8: 249486849928 | H8: 271635470837 | I8: 268772078894 | J8: 261477985698 | K8: 304317399396 | L8: 305132316070 | M8: 3.070111329e+11 | N8: 2.840239091e+11 | O8: =+O6-O7 -> 295261412973 | P8: 317323637869 | Q8: 3.292910085e+11 | R8: 326780618793 | S8: 325842808501 | T8: 322506348065
A9: G | B9: Energía del SIN (kWh) | D9: 6304195854 | E9: 6171462245 | F9: 5776857453 | G9: 6406091081 | H9: 6142778803 | I9: 6443179094 | J9: 6081113079 | K9: 6437445241 | L9: 6485641465 | M9: 6315318629 | N9: 6315318629 | O9: 6492606172 | P9: 6292788991 | Q9: 6479549068 | R9: 6539722802 | S9: 6064806612 | T9: 6521596164
C10: Componente T SIN AJUSTES($/kWh) | D10: =+D8/D9 -> 41.29098335 | E10: =+E8/E9 -> 43.02422629 | F10: 42.21107864 | G10: 38.94525488 | H10: 44.22029175 | I10: 41.71420272 | J10: 42.99837584 | K10: 47.27300785 | L10: 47.04736112 | M10: =+M8/M9 -> 48.61372022 | N10: 44.97380509 | O10: 45.4765629 | P10: 50.42654987 | Q10: 50.82005014 | R10: 49.96857339 | S10: 53.72682583 | T10: =+T8/T9 -> 49.45205743
A11: H | B11: ∆T ($/kWh) | D11: 2.393013 | E11: 2.104776 | F11: 0.899746 | G11: 1.382548 | H11: -3.241419 | I11: 7.807595 | J11: -1.08595 | K11: 4.843337 | L11: 3.798718 | M11: 1.191931 | N11: 1.191931 | O11: 1.622273 | P11: -0.119599 | Q11: 1.15319 | R11: -1.260482 | S11: -1.359901 | T11: 4.068975
A12: ( F / G ) + H | C12: Componente T ($/kWh) | D12: =+(D8/D9)+D11 -> 43.68399635 | E12: 45.12900229 | F12: 43.11082464 | G12: 40.32780288 | H12: 40.97887275 | I12: 49.52179772 | J12: 41.91242584 | K12: 52.11634485 | L12: 50.84607912 | M12: 49.80565122 | N12: 46.16573609 | O12: =+(O8/O9)+O11 -> 47.0988359 | P12: 50.30695087 | Q12: 51.97324014 | R12: 48.70809139 | S12: 52.36692483 | T12: 53.52103243
A13: Cargos estimados del STN que se trasladan al Costo Unitario de Prestación del Servicio | M13: =+N12-M12 -> -3.639915124
D33: 2022-01-01 | E33: 2022-02-01 | F33: 2022-03-01 | G33: 2022-04-01 | H33: 2022-05-01 | I33: 2022-06-01 | J33: 2022-07-01 | K33: 2022-08-01 | L33: 2022-09-01 | M33: 2022-10-01 | N33: 2022-11-01 | O33: 2022-12-01 | P33: 2023-01-01 | Q33: 2023-02-01 | R33: 2023-03-01 | S33: 2023-04-01
C34: T_011 | D34: =+D12 -> 43.68399635 | E34: =+E12 -> 45.12900229 | F34: 43.11082464 | G34: 40.32780288 | H34: 40.97887275 | I34: 49.52179772 | J34: 41.91242584 | K34: 52.11634485 | L34: 50.84607912 | M34: 49.80565122
C35: T_031 | L35: =+L12 -> 50.84607912 | M35: =+N12 -> 46.16573609 | N35: 47.0988359 | O35: 50.30695087 | P35: 51.97324014 | Q35: 48.70809139 | R35: 52.36692483 | S35: 53.52103243

Sheet Distribución
A1: REGRESAR
A2: STR: Sistema de Transmisión Regional | B2: NT: Nivel de Tensión | E2: CAMBIO INDEXADOR OCTUBRE 2022 | H2: CÁLCULOS PREVIOS A LA MODIFICACIÓN DEL INDEXADOR | X2: VALORES PARA OCTUBRE 2022 POSTERIOR A LA APLICACIÓN DEL NUEVO INDEXADOR | AF2: VALORES PARA NOVIEMBRE 2022 POSTERIOR A LA APLICACIÓN DEL NUEVO INDEXADOR | AN2: VALORES PARA DICIEMBRE 2022 POSTERIOR A LA APLICACIÓN DEL NUEVO INDEXADOR | AV2: VALORES PARA ENERO 2023 POSTERIOR A LA APLICACIÓN DEL NUEVO INDEXADOR | BD2: VALORES PARA FEBRERO 2023 POSTERIOR A LA APLICACIÓN DEL NUEVO INDEXADOR | BL2: VALORES PARA MARZO 2023 POSTERIOR A LA APLICACIÓN DEL NUEVO INDEXADOR | BT2: VALORES PARA ABRIL 2023 POSTERIOR A LA APLICACIÓN DEL NUEVO INDEXADOR
A3: SDL: Sistema de Distribución Local | B3: ADD: Área de Distribución
A4: OPERADOR DE RED | B4: SIGLA | C4: ADD | D4: ACOGIDO A LA RES. CREG 101 031 de 2022 | E4: Indexador CREG 015 de 2018 | F4: Indexador CREG 101 031 de 2022 | H4: RESOLUCIÓN CREG 015 de 2018 | X4: RESOLUCIÓN CREG 101 031 de 2022 | AF4: RESOLUCIÓN CREG 101 031 de 2022 | AN4: RESOLUCIÓN CREG 101 031 de 2022 | AV4: RESOLUCIÓN CREG 101 031 de 2022 | BD4: RESOLUCIÓN CREG 101 031 de 2022 | BL4: RESOLUCIÓN CREG 101 031 de 2022 | BT4: RESOLUCIÓN CREG 101 031 de 2022
H5: DEFINITIVO SEPTIEMRE 2022 | P5: PRELIMINAR OCTUBRE 2022 | X5: DEFINITIVO OCTUBRE 2022 | AF5: DEFINITIVO NOVIEMBRE 2022 | AN5: DEFINITIVO DICIEMBRE 2022 | AV5: DEFINITIVO ENERO 2023 | BD5: DEFINITIVO FEBRERO 2023 | BL5: DEFINITIVO MARZO 2023 | BT5: DEFINITIVO ABRIL 2023
H6: Cargos STR NT 4 ($/kWh) | I6: Cargos SDL ($/kWh) | L6: Cargos ADD ($/kWh) | P6: Cargos STR NT 4 ($/kWh) | Q6: Cargos SDL ($/kWh) | T6: Cargos ADD ($/kWh) | X6: Cargos STR NT 4 ($/kWh) | Y6: Cargos SDL ($/kWh) | AB6: Cargos ADD ($/kWh) | AF6: Cargos STR NT 4 ($/kWh) | AG6: Cargos SDL ($/kWh) | AJ6: Cargos ADD ($/kWh) | AN6: Cargos STR NT 4 ($/kWh) | AO6: Cargos SDL ($/kWh) | AR6: Cargos ADD ($/kWh) | AV6: Cargos STR NT 4 ($/kWh) | AW6: Cargos SDL ($/kWh) | AZ6: Cargos ADD ($/kWh) | BD6: Cargos STR NT 4 ($/kWh) | BE6: Cargos SDL ($/kWh) | BH6: Cargos ADD ($/kWh) | BL6: Cargos STR NT 4 ($/kWh) | BM6: Cargos SDL ($/kWh) | BP6: Cargos ADD ($/kWh) | BT6: Cargos STR NT 4 ($/kWh) | BU6: Cargos SDL ($/kWh) | BX6: Cargos ADD ($/kWh)
I7: NT 1 | J7: NT 2 | K7: NT 3 | L7: NT 1 | M7: NT 2 | N7: NT 3 | Q7: NT 1 | R7: NT 2 | S7: NT 3 | T7: NT 1 | U7: NT 2 | V7: NT 3 | Y7: NT 1 | Z7: NT 2 | AA7: NT 3 | AB7: NT 1 | AC7: NT 2 | AD7: NT 3 | AG7: NT 1 | AH7: NT 2 | AI7: NT 3 | AJ7: NT 1 | AK7: NT 2 | AL7: NT 3 | AO7: NT 1 | AP7: NT 2 | AQ7: NT 3 | AR7: NT 1 | AS7: NT 2 | AT7: NT 3 | AW7: NT 1 | AX7: NT 2 | AY7: NT 3 | AZ7: NT 1 | BA7: NT 2 | BB7: NT 3 | BE7: NT 1 | BF7: NT 2 | BG7: NT 3 | BH7: NT 1 | BI7: NT 2 | BJ7: NT 3 | BM7: NT 1 | BN7: NT 2 | BO7: NT 3 | BP7: NT 1 | BQ7: NT 2 | BR7: NT 3 | BU7: NT 1 | BV7: NT 2 | BW7: NT 3 | BX7: NT 1 | BY7: NT 2 | BZ7: NT 3
A8: CENTRALES ELECTRICAS DEL NORTE DE SANTANDER S.A E.S.P | B8: CENS | C8: CENTRO | D8: NO | E8: 1.510096111 | F8: N/A | H8: 36.20671101 | I8: 292.4682052 | J8: 185.1140586 | K8: 97.51197459 | L8: 314.856799 | M8: 195.8330066 | N8: 85.75285116 | P8: 37.03594878 | Q8: 293.3791235 | R8: 185.8798899 | S8: 97.93339474 | T8: 304.2186062 | U8: 198.8877205 | V8: 85.47363568 | X8: 35.98120324 | Y8: 292.1474929 | Z8: 184.7940773 | AA8: 96.84450506 | AB8: 303.0020391 | AC8: 197.7901601 | AD8: 84.40408894 | AF8: 34.23649277 | AG8: 293.4333348 | AH8: 184.31883 | AI8: 83.82916292 | AJ8: 305.305733 | AK8: 191.5141205 | AL8: 93.48603338 | AN8: 34.66744158 | AO8: 298.3288684 | AP8: 187.295059 | AQ8: 94.47203687 | AR8: 307.6060121 | AS8: 190.904663 | AT8: 84.80403842 | AV8: 33.93930175 | AW8: 295.7642944 | AX8: 185.5414615 | AY8: 93.37342289 | AZ8: 289.2746975 | BA8: 182.9685295 | BB8: 81.07757549 | BD8: 35.56610076 | BE8: 301.2630905 | BF8: 189.2460204 | BG8: 95.7289769 | BH8: 294.9944568 | BI8: 188.6713589 | BJ8: 83.34489194 | BL8: 36.94521003 | BM8: 307.1163642 | BN8: 193.1412446 | BO8: 98.10820748 | BP8: 315.3362115 | BQ8: 199.587315 | BR8: 88.0058264 | BT8: 34.43007392 | BU8: 303.1810181 | BV8: 191.6590339 | BW8: 98.10455171 | BX8: 315.2550079 | BY8: 198.96826 | BZ8: 87.25284641
A9: CENTRAL HIDROELECTRICA DE CALDAS S.A E.S.P | B9: CHEC | D9: NO | E9: 1.510096111 | F9: N/A | I9: 394.0029167 | J9: 252.3212813 | K9: 95.05630932 | L9: 314.856799 | M9: 195.8330066 | N9: 85.75285116 | Q9: 396.2017221 | R9: 253.8968778 | S9: 96.06935435 | T9: 304.2186062 | U9: 198.8877205 | V9: 85.47363568 | Y9: 395.0215036 | Z9: 252.8078902 | AA9: 95.0000665 | AB9: 303.0020391 | AC9: 197.7901601 | AD9: 84.40408894 | AG9: 398.7639034 | AH9: 254.3717264 | AI9: 83.82916292 | AJ9: 305.305733 | AK9: 191.5141205 | AL9: 94.1665411 | AO9: 371.8412161 | AP9: 249.1404998 | AQ9: 90.79410279 | AR9: 307.6060121 | AS9: 190.904663 | AT9: 84.80403842 | AW9: 370.0386277 | AX9: 247.9839832 | AY9: 90.03544086 | AZ9: 289.2746975 | BA9: 182.9685295 | BB9: 81.07757549 | BE9: 376.043528 | BF9: 252.2934118 | BG9: 92.26659515 | BH9: 294.9944568 | BI9: 188.6713589 | BJ9: 83.34489194 | BM9: 382.577305 | BN9: 256.9395149 | BO9: 94.57969297 | BP9: 315.3362115 | BQ9: 199.587315 | BR9: 88.0058264 | BU9: 377.1803124 | BV9: 252.3574589 | BW9: 91.91972693 | BX9: 315.2550079 | BY9: 198.96826 | BZ9: 87.25284641
A10: EMPRESA DE ENERGIA DEL QUINDIO S.A. E.S.P. | B10: EDEQ | D10: NO | E10: 1.510096111 | F10: N/A | I10: 371.6120277 | J10: 275.8786641 | K10: 105.5241251 | L10: 314.856799 | M10: 195.8330066 | N10: 85.75285116 | Q10: 346.7216618 | R10: 263.7852264 | S10: 104.6066707 | T10: 304.2186062 | U10: 198.8877205 | V10: 85.47363568 | Y10: 345.5381635 | Z10: 262.697118 | AA10: 103.5353193 | AB10: 303.0020391 | AC10: 197.7901601 | AD10: 84.40408894 | AG10: 347.676797 | AH10: 263.9454659 | AI10: 83.82916292 | AJ10: 305.305733 | AK10: 191.5141205 | AL10: 102.7092733 | AO10: 353.4188607 | AP10: 268.2496785 | AQ10: 104.3065654 | AR10: 307.6060121 | AS10: 190.904663 | AT10: 84.80403842 | AW10: 350.2618266 | AX10: 265.8071394 | AY10: 103.1216781 | AZ10: 289.2746975 | BA10: 182.9685295 | BB10: 81.07757549 | BE10: 356.0076102 | BF10: 270.3922553 | BG10: 105.5542901 | BH10: 294.9944568 | BI10: 188.6713589 | BJ10: 83.34489194 | BM10: 362.2500543 | BN10: 275.2812084 | BO10: 107.9164004 | BP10: 315.3362115 | BQ10: 199.587315 | BR10: 88.0058264 | BU10: 359.7194046 | BV10: 271.6494866 | BW10: 106.602854 | BX10: 315.2550079 | BY10: 198.96826 | BZ10: 87.25284641
A11: EMPRESA DE ENERGIA DE PEREIRA S.A. E.S.P. | B11: EEP Pereira | D11: NO | E11: 1.510096111 | F11: N/A | I11: 217.2295656 | J11: 146.7772458 | K11: 72.72921628 | L11: 314.856799 | M11: 195.8330066 | N11: 85.75285116 | Q11: 218.7718036 | R11: 147.9679566 | S11: 73.55900209 | T11: 304.2186062 | U11: 198.8877205 | V11: 85.47363568 | Y11: 217.5999635 | Z11: 146.8892778 | AA11: 72.48862911 | AB11: 303.0020391 | AC11: 197.7901601 | AD11: 84.40408894 | AG11: 218.0703737 | AH11: 146.631353 | AI11: 83.82916292 | AJ11: 305.305733 | AK11: 191.5141205 | AL11: 71.23055955 | AO11: 221.6116505 | AP11: 148.989864 | AQ11: 72.24822548 | AR11: 307.6060121 | AS11: 190.904663 | AT11: 84.80403842 | AW11: 219.2876842 | AX11: 147.3650919 | AY11: 71.27580412 | AZ11: 289.2746975 | BA11: 182.9685295 | BB11: 81.07757549 | BE11: 223.2465037 | BF11: 150.3152065 | BG11: 73.33833859 | BH11: 294.9944568 | BI11: 188.6713589 | BJ11: 83.34489194 | BM11: 227.3415955 | BN11: 153.3395708 | BO11: 75.21256166 | BP11: 315.3362115 | BQ11: 199.587315 | BR11: 88.0058264 | BU11: 221.5481842 | BV11: 149.6935159 | BW11: 70.17993045 | BX11: 315.2550079 | BY11: 198.96826 | BZ11: 87.25284641
A12: EMPRESAS PUBLICAS DE MEDELLIN E.S.P | B12: EPM | D12: NO | E12: 1.510096111 | F12: N/A | I12: 297.4864324 | J12: 192.2219756 | K12: 84.4549061 | L12: 314.856799 | M12: 195.8330066 | N12: 85.75285116 | Q12: 298.8335421 | R12: 193.2897952 | S12: 85.31802219 | T12: 304.2186062 | U12: 198.8877205 | V12: 85.47363568 | Y12: 297.6365326 | Z12: 192.2173944 | AA12: 84.2531056 | AB12: 303.0020391 | AC12: 197.7901601 | AD12: 84.40408894 | AG12: 268.567097 | AH12: 174.0338918 | AI12: 83.82916292 | AJ12: 305.305733 | AK12: 191.5141205 | AL12: 78.80455807 | AO12: 273.2039907 | AP12: 176.9872612 | AQ12: 80.07529192 | AR12: 307.6060121 | AS12: 190.904663 | AT12: 84.80403842 | AW12: 270.8049427 | AX12: 175.3075606 | AY12: 79.21876769 | AZ12: 289.2746975 | BA12: 182.9685295 | BB12: 81.07757549 | BE12: 275.6891341 | BF12: 178.7788904 | BG12: 81.51764147 | BH12: 294.9944568 | BI12: 188.6713589 | BJ12: 83.34489194 | BM12: 280.7582245 | BN12: 182.3144066 | BO12: 83.76541281 | BP12: 315.3362115 | BQ12: 199.587315 | BR12: 88.0058264 | BU12: 281.8045113 | BV12: 182.8477656 | BW12: 83.50144072 | BX12: 315.2550079 | BY12: 198.96826 | BZ12: 87.25284641
A13: ELECTRIFICADORA DE SANTANDER S.A. E.S.P. | B13: ESSA | D13: NO | E13: 1.510096111 | F13: N/A | I13: 412.9348805 | J13: 226.0309591 | K13: 87.63194574 | L13: 314.856799 | M13: 195.8330066 | N13: 85.75285116 | Q13: 348.3908015 | R13: 212.4402982 | S13: 84.57671965 | T13: 304.2186062 | U13: 198.8877205 | V13: 85.47363568 | Y13: 347.1789397 | Z13: 211.3491379 | AA13: 83.50209353 | AB13: 303.0020391 | AC13: 197.7901601 | AD13: 84.40408894 | AG13: 350.2573354 | AH13: 212.229771 | AI13: 83.82916292 | AJ13: 305.305733 | AK13: 191.5141205 | AL13: 82.31033221 | AO13: 358.5514564 | AP13: 217.1001691 | AQ13: 84.08127034 | AR13: 307.6060121 | AS13: 190.904663 | AT13: 84.80403842 | AW13: 357.7524257 | AX13: 216.2609738 | AY13: 83.33242546 | AZ13: 289.2746975 | BA13: 182.9685295 | BB13: 81.07757549 | BE13: 366.2089268 | BF13: 221.4954295 | BG13: 85.76629822 | BH13: 294.9944568 | BI13: 188.6713589 | BJ13: 83.34489194 | BM13: 374.1520271 | BN13: 226.4461911 | BO13: 88.03203901 | BP13: 315.3362115 | BQ13: 199.587315 | BR13: 88.0058264 | BU13: 372.7827262 | BV13: 227.5694363 | BW13: 86.60594233 | BX13: 315.2550079 | BY13: 198.96826 | BZ13: 87.25284641
A14: RUITOQUE E.S.P | B14: RUITOQUE | D14: SI | E14: 1.510096111 | F14: 1.43302793 | I14: 404.5367086 | J14: 292.4490691 | K14: 57.72221261 | L14: 314.856799 | M14: 195.8330066 | N14: 85.75285116 | Q14: 415.0431737 | R14: 302.9135961 | S14: 61.34107016 | T14: 304.2186062 | U14: 198.8877205 | V14: 85.47363568 | Y14: 398.0797089 | Z14: 291.2628727 | AA14: 60.88252409 | AB14: 303.0020391 | AC14: 197.7901601 | AD14: 84.40408894 | AG14: 523.4873697 | AH14: 414.9287059 | AI14: 83.82916292 | AJ14: 305.305733 | AK14: 191.5141205 | AL14: 174.0471772 | AO14: 541.8898932 | AP14: 431.144257 | AQ14: 178.8868999 | AR14: 307.6060121 | AS14: 190.904663 | AT14: 84.80403842 | AW14: 559.61753 | AX14: 446.678313 | AY14: 182.5497789 | AZ14: 289.2746975 | BA14: 182.9685295 | BB14: 81.07757549 | BE14: 582.3237656 | BF14: 466.746677 | BG14: 189.0565797 | BH14: 294.9944568 | BI14: 188.6713589 | BJ14: 83.34489194 | BM14: 606.1084884 | BN14: 487.7449207 | BO14: 195.8376669 | BP14: 315.3362115 | BQ14: 199.587315 | BR14: 88.0058264 | BU14: 557.5900838 | BV14: 440.6441327 | BW14: 145.0185946 | BX14: 315.2550079 | BY14: 198.96826 | BZ14: 87.25284641
A16: CENTRALES ELECTRICAS DE NARIÑO S.A. E.S.P. | B16: CEDENAR | C16: OCCIDENTE | D16: SI | E16: 1.510096111 | F16: 1.373468336 | I16: 289.3317475 | J16: 189.361699 | K16: 112.8463377 | L16: 270.7757377 | M16: 156.3217233 | N16: 95.02490897 | Q16: 291.4956849 | R16: 190.8368556 | S16: 113.6567272 | T16: 278.9186635 | U16: 164.1360321 | V16: 95.13407529 | Y16: 267.9455909 | Z16: 176.1147281 | AA16: 105.8273602 | AB16: 263.0337298 | AC16: 155.3629999 | AD16: 90.66492823 | AG16: 267.7423509 | AH16: 175.3532025 | AI16: 104.4529661 | AJ16: 270.1675965 | AK16: 161.689818 | AL16: 90.87702693 | AO16: 269.9999254 | AP16: 176.823247 | AQ16: 105.2835848 | AR16: 271.4922395 | AS16: 163.2288112 | AT16: 94.08537999 | AW16: 271.7396697 | AX16: 177.6380325 | AY16: 105.4833275 | AZ16: 268.3197997 | BA16: 163.8454475 | BB16: 94.12515836 | BE16: 275.949076 | BF16: 180.6741025 | BG16: 107.263508 | BH16: 276.7001171 | BI16: 164.8236781 | BJ16: 96.38110597 | BM16: 240.7465499 | BN16: 148.4058067 | BO16: 58.22880376 | BP16: 279.3134587 | BQ16: 165.3294993 | BR16: 98.18257549 | BU16: 226.1214567 | BV16: 141.0453369 | BW16: 51.89861782 | BX16: 266.4813074 | BY16: 162.2016436 | BZ16: 97.19994197
A17: CELSIA COLOMBIA S.A. E.S.P-VALLE | B17: CELSIA COLOMBIA Valle | D17: SI | E17: 1.510096111 | F17: 1.400598175 | I17: 375.4200844 | J17: 252.0802106 | K17: 123.7886154 | L17: 270.7757377 | M17: 156.3217233 | N17: 95.02490897 | Q17: 377.117953 | R17: 253.0983939 | S17: 124.9265497 | T17: 278.9186635 | U17: 164.1360321 | V17: 95.13407529 | Y17: 352.6097997 | Z17: 237.1307487 | AA17: 117.865858 | AB17: 263.0337298 | AC17: 155.3629999 | AD17: 90.66492823 | AG17: 371.106856 | AH17: 253.954419 | AI17: 124.4122374 | AJ17: 270.1675965 | AK17: 161.689818 | AL17: 90.87702693 | AO17: 375.3547839 | AP17: 257.3809575 | AQ17: 125.7788516 | AR17: 271.4922395 | AS17: 163.2288112 | AT17: 94.08537999 | AW17: 377.2970176 | AX17: 258.4081615 | AY17: 125.7010349 | AZ17: 268.3197997 | BA17: 163.8454475 | BB17: 94.12515836 | BE17: 383.1161374 | BF17: 262.7480727 | BG17: 128.2510742 | BH17: 276.7001171 | BI17: 164.8236781 | BJ17: 96.38110597 | BM17: 389.1738151 | BN17: 267.1356145 | BO17: 130.8239143 | BP17: 279.3134587 | BQ17: 165.3294993 | BR17: 98.18257549 | BU17: 385.4837994 | BV17: 264.8549289 | BW17: 129.7089981 | BX17: 266.4813074 | BY17: 162.2016436 | BZ17: 97.19994197
A18: COMPAÑIA ENERGETICA DE OCCIDENTE S.A.S. ESP | B18: CEO | D18: SI | E18: 1.510096111 | F18: 1.43302793 | I18: 428.3663072 | J18: 286.2271761 | K18: 99.07184044 | L18: 270.7757377 | M18: 156.3217233 | N18: 95.02490897 | Q18: 429.5980709 | R18: 287.3646307 | S18: 99.63262476 | T18: 278.9186635 | U18: 164.1360321 | V18: 95.13407529 | Y18: 409.0254801 | Z18: 273.7733715 | AA18: 95.48106663 | AB18: 263.0337298 | AC18: 155.3629999 | AD18: 90.66492823 | AG18: 409.311935 | AH18: 273.5181803 | AI18: 93.77860945 | AJ18: 270.1675965 | AK18: 161.689818 | AL18: 90.87702693 | AO18: 412.58983 | AP18: 275.7924456 | AQ18: 94.28994401 | AR18: 271.4922395 | AS18: 163.2288112 | AT18: 94.08537999 | AW18: 414.6511151 | AX18: 277.0196011 | AY18: 94.1901471 | AZ18: 268.3197997 | BA18: 163.8454475 | BB18: 94.12515836 | BE18: 419.844898 | BF18: 280.8640025 | BG18: 96.37413103 | BH18: 276.7001171 | BI18: 164.8236781 | BJ18: 96.38110597 | BM18: 427.1523 | BN18: 285.9705629 | BO18: 98.72259318 | BP18: 279.3134587 | BQ18: 165.3294993 | BR18: 98.18257549 | BU18: 434.9099107 | BV18: 290.5340161 | BW18: 105.0949119 | BX18: 266.4813074 | BY18: 162.2016436 | BZ18: 97.19994197
A19: COMPAÑÍA DE ELECTRICIDAD DE TULUÁ S.A. E.S.P-TULUA | B19: CETSA | D19: SI | E19: 1.510096111 | F19: 1.400598175 | I19: 265.8813252 | J19: 178.9773731 | K19: 104.3323137 | L19: 270.7757377 | M19: 156.3217233 | N19: 95.02490897 | Q19: 268.278232 | R19: 180.1187783 | S19: 105.0276553 | T19: 278.9186635 | U19: 164.1360321 | V19: 95.13407529 | Y19: 250.9061744 | Z19: 168.882456 | AA19: 99.14614187 | AB19: 263.0337298 | AC19: 155.3629999 | AD19: 90.66492823 | AG19: 249.9509364 | AH19: 167.5591499 | AI19: 97.37126735 | AJ19: 270.1675965 | AK19: 161.689818 | AL19: 90.87702693 | AO19: 246.3321713 | AP19: 163.6808258 | AQ19: 97.69734551 | AR19: 271.4922395 | AS19: 163.2288112 | AT19: 94.08537999 | AW19: 247.3998458 | AX19: 164.0144466 | AY19: 97.29485374 | AZ19: 268.3197997 | BA19: 163.8454475 | BB19: 94.12515836 | BE19: 250.9694796 | BF19: 166.6661262 | BG19: 99.23886593 | BH19: 276.7001171 | BI19: 164.8236781 | BJ19: 96.38110597 | BM19: 255.0584241 | BN19: 169.5101703 | BO19: 100.9947982 | BP19: 279.3134587 | BQ19: 165.3294993 | BR19: 98.18257549 | BU19: 234.7673796 | BV19: 151.5173153 | BW19: 85.57707512 | BX19: 266.4813074 | BY19: 162.2016436 | BZ19: 97.19994197
A20: EMPRESA DE ENERGÍA DE PEREIRA S.A E.S.P-MERCADO CARTAGO | B20: EEP Cartago | D20: NO | E20: 1.510096111 | F20: N/A | I20: 232.0115278 | J20: 144.3886122 | K20: 96.78304671 | L20: 270.7757377 | M20: 156.3217233 | N20: 95.02490897 | Q20: 233.8851903 | R20: 145.7178689 | S20: 97.83075335 | T20: 278.9186635 | U20: 164.1360321 | V20: 95.13407529 | Y20: 232.6410521 | Z20: 144.6186604 | AA20: 96.74725168 | AB20: 263.0337298 | AC20: 155.3629999 | AD20: 90.66492823 | AG20: 233.1033994 | AH20: 144.3709922 | AI20: 95.79920625 | AJ20: 270.1675965 | AK20: 161.689818 | AL20: 90.87702693 | AO20: 237.5168914 | AP20: 146.866996 | AQ20: 97.29384119 | AR20: 271.4922395 | AS20: 163.2288112 | AT20: 94.08537999 | AW20: 235.4076507 | AX20: 145.4534041 | AY20: 96.12996617 | AZ20: 268.3197997 | BA20: 163.8454475 | BB20: 94.12515836 | BE20: 239.7653037 | BF20: 148.5330799 | BG20: 98.43472816 | BH20: 276.7001171 | BI20: 164.8236781 | BJ20: 96.38110597 | BM20: 244.7034691 | BN20: 151.701067 | BO20: 100.726939 | BP20: 279.3134587 | BQ20: 165.3294993 | BR20: 98.18257549 | BU20: 237.1674782 | BV20: 143.6443239 | BW20: 93.84718288 | BX20: 266.4813074 | BY20: 162.2016436 | BZ20: 97.19994197
A21: EMPRESAS MUNICIPALES DE CALI E.I.C.E. E.S.P. | B21: EMCALI | D21: SI | E21: 1.510096111 | F21: 1.43302793 | I21: 177.1981168 | J21: 112.1097439 | K21: 67.80163632 | L21: 270.7757377 | M21: 156.3217233 | N21: 95.02490897 | Q21: 179.0381268 | R21: 113.3329131 | S21: 68.732663 | T21: 278.9186635 | U21: 164.1360321 | V21: 95.13407529 | Y21: 170.94568 | Z21: 108.5012347 | AA21: 66.10943369 | AB21: 263.0337298 | AC21: 155.3629999 | AD21: 90.66492823 | AG21: 170.0303421 | AH21: 107.2539245 | AI21: 64.57935511 | AJ21: 270.1675965 | AK21: 161.689818 | AL21: 90.87702693 | AO21: 171.6712009 | AP21: 108.2933426 | AQ21: 65.25198676 | AR21: 271.4922395 | AS21: 163.2288112 | AT21: 94.08537999 | AW21: 172.5796995 | AX21: 108.4400797 | AY21: 64.93471549 | AZ21: 268.3197997 | BA21: 163.8454475 | BB21: 94.12515836 | BE21: 176.0886026 | BF21: 110.9393462 | BG21: 66.85874104 | BH21: 276.7001171 | BI21: 164.8236781 | BJ21: 96.38110597 | BM21: 179.665666 | BN21: 113.4171488 | BO21: 68.70152909 | BP21: 279.3134587 | BQ21: 165.3294993 | BR21: 98.18257549 | BU21: 176.2817678 | BV21: 108.046852 | BW21: 66.01039669 | BX21: 266.4813074 | BY21: 162.2016436 | BZ21: 97.19994197
A22: EMPRESA MUNICIPAL DE ENERGÍA ELÉCTRICA S.A E.S.P | B22: EMEESA | D22: NO | E22: 1.510096111 | F22: N/A | I22: -249.1641754 | J22: -322.463649 | K22: 34.10065394 | L22: 270.7757377 | M22: 156.3217233 | N22: 95.02490897 | Q22: -246.0644628 | R22: -318.6148474 | S22: 34.76826203 | T22: 278.9186635 | U22: 164.1360321 | V22: 95.13407529 | Y22: -247.2306232 | Z22: -319.6882981 | AA22: 33.72695766 | AB22: 263.0337298 | AC22: 155.3629999 | AD22: 90.66492823 | AG22: -253.1205549 | AH22: -326.4143194 | AI22: 32.01521331 | AJ22: 270.1675965 | AK22: 161.689818 | AL22: 90.87702693 | AO22: -257.9267888 | AP22: -332.1933876 | AQ22: 32.40031967 | AR22: 271.4922395 | AS22: 163.2288112 | AT22: 94.08537999 | AW22: -254.990083 | AX22: -326.6793589 | AY22: 31.83185611 | AZ22: 268.3197997 | BA22: 163.8454475 | BB22: 94.12515836 | BE22: -257.3240489 | BF22: -330.2097246 | BG22: 33.25607507 | BH22: 276.7001171 | BI22: 164.8236781 | BJ22: 96.38110597 | BM22: -254.8871753 | BN22: -326.0938332 | BO22: 34.56103529 | BP22: 279.3134587 | BQ22: 165.3294993 | BR22: 98.18257549 | BU22: -240.8333975 | BV22: -308.9933971 | BW22: 33.35901194 | BX22: 266.4813074 | BY22: 162.2016436 | BZ22: 97.19994197
A24: CELSIA COLOMBIA S.A. E.S.P-TOLIMA | B24: CELSIA COLOMBIA Tolima | C24: ORIENTE | D24: SI | E24: 1.510096111 | F24: 1.400598175 | I24: 473.76896 | J24: 303.9715905 | K24: 118.5134914 | L24: 259.8783619 | M24: 155.8514332 | N24: 105.2849341 | Q24: 464.9282627 | R24: 295.8254882 | S24: 119.6400241 | T24: 259.8783619 | U24: 159.4796549 | V24: 108.2383956 | Y24: 434.5727086 | Z24: 276.8702719 | AA24: 112.8846705 | AB24: 251.4830031 | AC24: 152.5533629 | AD24: 103.8857437 | AG24: 434.4195482 | AH24: 275.746755 | AI24: 111.4158229 | AJ24: 259.8783619 | AK24: 155.7489343 | AL24: 102.7876225 | AO24: 435.7380696 | AP24: 276.5395783 | AQ24: 112.3555674 | AR24: 241.93571 | AS24: 154.2283574 | AT24: 100.8575666 | AW24: 438.0795932 | AX24: 277.6312914 | AY24: 112.4077971 | AZ24: 244.9043128 | BA24: 150.2579833 | BB24: 99.95292963 | BE24: 444.0694592 | BF24: 281.5149706 | BG24: 115.0130162 | BH24: 248.7557715 | BI24: 156.2725162 | BJ24: 105.3723394 | BM24: 450.7467732 | BN24: 285.7781323 | BO24: 117.9480679 | BP24: 265.9941865 | BQ24: 163.1968132 | BR24: 108.8229471 | BU24: 437.3966464 | BV24: 276.9847046 | BW24: 112.535116 | BX24: 263.1776812 | BY24: 164.0000587 | BZ24: 109.8078245
A25: EMPRESA DE ENERGIA DE BOYACA S.A. E.S.P. | B25: EBSA | D25: SI | E25: 1.510096111 | F25: 1.43302793 | I25: 423.1001212 | J25: 298.299162 | K25: 157.670645 | L25: 259.8783619 | M25: 155.8514332 | N25: 105.2849341 | Q25: 424.4087486 | R25: 299.3767082 | S25: 158.5924604 | T25: 259.8783619 | U25: 159.4796549 | V25: 108.2383956 | Y25: 404.2699285 | Z25: 285.3507412 | AA25: 151.63102 | AB25: 251.4830031 | AC25: 152.5533629 | AD25: 103.8857437 | AG25: 404.1421963 | AH25: 284.927543 | AI25: 150.4841431 | AJ25: 258.4264083 | AK25: 155.7489343 | AL25: 102.7876225 | AO25: 406.7890604 | AP25: 286.8829456 | AQ25: 151.5648248 | AR25: 241.93571 | AS25: 154.2283574 | AT25: 100.8575666 | AW25: 408.9299117 | AX25: 288.191602 | AY25: 151.6920532 | AZ25: 244.9043128 | BA25: 150.2579833 | BB25: 99.95292963 | BE25: 414.3359856 | BF25: 292.2003021 | BG25: 154.3918723 | BH25: 248.7557715 | BI25: 156.2725162 | BJ25: 105.3723394 | BM25: 419.901096 | BN25: 296.3112701 | BO25: 157.0989024 | BP25: 265.9941865 | BQ25: 163.1968132 | BR25: 108.8229471 | BU25: 411.8763534 | BV25: 287.4062148 | BW25: 147.390936 | BX25: 263.1776812 | BY25: 164.0000587 | BZ25: 109.8078245
A26: ELECTRIFICADORE DEL HUILA | B26: ELECTROHUILA | D26: NO | E26: 1.510096111 | F26: N/A | I26: 289.6542516 | J26: 216.7692701 | K26: 82.47640809 | L26: 259.8783619 | M26: 155.8514332 | N26: 105.2849341 | Q26: 291.1988631 | R26: 218.0797576 | S26: 83.38845759 | T26: 259.8783619 | U26: 159.4796549 | V26: 108.2383956 | Y26: 290.0010565 | Z26: 216.9928679 | AA26: 82.31819322 | AB26: 251.4830031 | AC26: 152.5533629 | AD26: 103.8857437 | AG26: 291.4275746 | AH26: 217.6911747 | AI26: 81.27394769 | AJ26: 258.4264083 | AK26: 155.7489343 | AL26: 102.7876225 | AO26: 295.8180538 | AP26: 220.9860239 | AQ26: 82.47170159 | AR26: 241.93571 | AS26: 154.2283574 | AT26: 100.8575666 | AW26: 321.4870389 | AX26: 230.4710836 | AY26: 82.41183125 | AZ26: 244.9043128 | BA26: 150.2579833 | BB26: 99.95292963 | BE26: 326.6170152 | BF26: 234.3929628 | BG26: 84.52643516 | BH26: 248.7557715 | BI26: 156.2725162 | BJ26: 105.3723394 | BM26: 332.43039 | BN26: 238.7583599 | BO26: 86.72716269 | BP26: 265.9941865 | BQ26: 163.1968132 | BR26: 108.8229471 | BU26: 332.3068106 | BV26: 238.9014119 | BW26: 89.35711972 | BX26: 263.1776812 | BY26: 164.0000587 | BZ26: 109.8078245
A27: ENEL COLOMBIA S.A. E.S.P | B27: ENEL COLOMBIA | D27: SI | E27: 1.510096111 | F27: 1.43302793 | I27: 217.637439 | J27: 144.0266377 | K27: 104.9718902 | L27: 259.8783619 | M27: 155.8514332 | N27: 105.2849341 | Q27: 218.9953143 | R27: 145.1350571 | S27: 104.7537384 | T27: 259.8783619 | U27: 159.4796549 | V27: 108.2383956 | Y27: 209.0312545 | Z27: 138.7767012 | AA27: 100.6061156 | AB27: 251.4830031 | AC27: 152.5533629 | AD27: 103.8857437 | AG27: 208.0516798 | AH27: 137.6565775 | AI27: 98.21297362 | AJ27: 258.4264083 | AK27: 155.7489343 | AL27: 102.7876225 | AO27: 209.4890088 | AP27: 138.6614381 | AQ27: 99.13649113 | AR27: 241.93571 | AS27: 154.2283574 | AT27: 100.8575666 | AW27: 210.3508901 | AX27: 138.8540715 | AY27: 99.29073544 | AZ27: 244.9043128 | BA27: 150.2579833 | BB27: 99.95292963 | BE27: 213.9370707 | BF27: 141.500553 | BG27: 101.779171 | BH27: 248.7557715 | BI27: 156.2725162 | BJ27: 105.3723394 | BM27: 217.8060341 | BN27: 144.2817845 | BO27: 104.3166478 | BP27: 265.9941865 | BQ27: 163.1968132 | BR27: 108.8229471 | BU27: 218.839868 | BV27: 147.9453937 | BW27: 109.51725 | BX27: 263.1776812 | BY27: 164.0000587 | BZ27: 109.8078245
A28: EMPRESA DE ENERGÍA DE ARAUCA | B28: ENELAR | D28: SI | E28: 1.510096111 | F28: 1.43302793 | I28: 539.765479 | J28: 431.9163623 | K28: 112.3332875 | L28: 259.8783619 | M28: 155.8514332 | N28: 105.2849341 | Q28: 524.1524351 | R28: 419.8036869 | S28: 109.9326603 | T28: 259.8783619 | U28: 159.4796549 | V28: 108.2383956 | Y28: 498.6955219 | Z28: 399.4995578 | AA28: 105.1661783 | AB28: 251.4830031 | AC28: 152.5533629 | AD28: 103.8857437 | AG28: 497.9938742 | AH28: 398.4483681 | AI28: 102.4151264 | AJ28: 258.4264083 | AK28: 155.7489343 | AL28: 102.7876225 | AO28: 503.897066 | AP28: 403.3337703 | AQ28: 104.3581961 | AR28: 241.93571 | AS28: 154.2283574 | AT28: 100.8575666 | AW28: 510.1787945 | AX28: 408.1633779 | AY28: 104.5892628 | AZ28: 244.9043128 | BA28: 150.2579833 | BB28: 99.95292963 | BE28: 520.8263351 | BF28: 416.7379335 | BG28: 107.5438872 | BH28: 248.7557715 | BI28: 156.2725162 | BJ28: 105.3723394 | BM28: 517.1744638 | BN28: 412.1226467 | BO28: 98.43148493 | BP28: 265.9941865 | BQ28: 163.1968132 | BR28: 108.8229471 | BU28: 510.3062505 | BV28: 407.840578 | BW28: 97.97403923 | BX28: 263.1776812 | BY28: 164.0000587 | BZ28: 109.8078245
A30: EMPRESA DE ENERGÍA DEL BAJO PUTUMAYO S.A E.S.P | B30: EEBP | C30: SUR | D30: NO | E30: 1.510096111 | F30: N/A | I30: 238.8474052 | J30: 64.40802457 | K30: 35.9130364 | L30: 306.7957239 | M30: 221.2448855 | N30: 64.90111725 | Q30: 241.6975649 | R30: 65.43984791 | S30: 36.70786108 | T30: 308.6268193 | U30: 222.2582064 | V30: 67.31059536 | Y30: 240.546271 | Z30: 64.36615121 | AA30: 35.64159992 | AB30: 305.3806022 | AC30: 219.8353597 | AD30: 66.10495407 | AG30: 240.954275 | AH30: 62.95199582 | AI30: 33.92609861 | AJ30: 299.8928026 | AK30: 213.2512746 | AL30: 57.6983886 | AO30: 243.6611403 | AP30: 63.63262981 | AQ30: 34.33352808 | AR30: 305.1296098 | AS30: 216.7369183 | AT30: 59.34480883 | AW30: 239.7665541 | AX30: 62.49473426 | AY30: 33.69643292 | AZ30: 297.0529457 | BA30: 194.19399 | BB30: 47.6796031 | BE30: 243.7571688 | BF30: 64.30108301 | BG30: 35.19870626 | BH30: 297.0494049 | BI30: 197.901624 | BJ30: 50.04316763 | BM30: 246.8825486 | BN30: 65.91499308 | BO30: 36.58598497 | BP30: 294.5200734 | BQ30: 201.3847413 | BR30: 52.53062594 | BU30: 243.5739733 | BV30: 55.72905616 | BW30: 19.66497533 | BX30: 287.2635856 | BY30: 193.0648149 | BZ30: 44.87518128
A31: ELECTRIFICADORA DEL CAQUETA S.A. E.S.P | B31: ELECTROCAQUETA | D31: SI | E31: 1.510096111 | F31: 1.43302793 | I31: 350.5914826 | J31: 237.4812848 | K31: 75.84766837 | L31: 306.7957239 | M31: 221.2448855 | N31: 64.90111725 | Q31: 350.4462053 | R31: 237.596775 | S31: 76.39187223 | T31: 308.6268193 | U31: 222.2582064 | V31: 67.31059536 | Y31: 333.5119266 | Z31: 226.3333706 | AA31: 73.34629146 | AB31: 305.3806022 | AC31: 219.8353597 | AD31: 66.10495407 | AG31: 332.8071958 | AH31: 225.3638837 | AI31: 71.74052904 | AJ31: 299.8928026 | AK31: 213.2512746 | AL31: 57.6983886 | AO31: 334.0311845 | AP31: 226.251992 | AQ31: 72.18630113 | AR31: 305.1296098 | AS31: 216.7369183 | AT31: 59.34480883 | AW31: 335.2066576 | AX31: 226.7700447 | AY31: 71.69262495 | AZ31: 297.0529457 | BA31: 194.19399 | BB31: 47.6796031 | BE31: 340.9835478 | BF31: 230.929118 | BG31: 73.72078077 | BH31: 297.0494049 | BI31: 197.901624 | BJ31: 50.04316763 | BM31: 346.2843287 | BN31: 234.8170808 | BO31: 75.60627821 | BP31: 294.5200734 | BQ31: 201.3847413 | BR31: 52.53062594 | BU31: 338.189861 | BV31: 231.8588741 | BW31: 71.55771326 | BX31: 287.2635856 | BY31: 193.0648149 | BZ31: 44.87518128
A32: EMPRESA DE ENERGÍA DEL VALLE DEL SIBUNDOY | B32: EMEVASI | D32: NO | E32: 1.510096111 | F32: N/A | Y32: 491.907224 | Z32: 338.4745656 | AA32: 131.4137427 | AB32: 305.3806022 | AC32: 219.8353597 | AD32: 66.10495407 | AG32: 493.9867198 | AH32: 339.899996 | AI32: 131.9533947 | AJ32: 299.8928026 | AK32: 213.2512746 | AL32: 57.6983886 | AO32: 499.3200025 | AP32: 342.9650336 | AQ32: 131.6126219 | AR32: 305.1296098 | AS32: 216.7369183 | AT32: 59.34480883 | AW32: 508.4284353 | AX32: 349.1831566 | AY32: 133.9021208 | AZ32: 297.0529457 | BA32: 194.19399 | BB32: 47.6796031 | BE32: 504.9028691 | BF32: 346.737998 | BG32: 132.9040131 | BH32: 297.0494049 | BI32: 197.901624 | BJ32: 50.04316763 | BM32: 513.5269505 | BN32: 352.911173 | BO32: 135.9059296 | BP32: 294.5200734 | BQ32: 201.3847413 | BR32: 52.53062594 | BU32: 521.9837833 | BV32: 358.8867436 | BW32: 138.6222276 | BX32: 287.2635856 | BY32: 193.0648149 | BZ32: 44.87518128
A33: ELECTRIFICADORA DEL META S.A. E.S.P | B33: EMSA | D33: NO | E33: 1.510096111 | F33: N/A | I33: 183.2809538 | J33: 141.2640711 | K33: 78.99793703 | L33: 306.7957239 | M33: 221.2448855 | N33: 64.90111725 | Q33: 183.9538738 | R33: 141.9299213 | S33: 79.69988916 | T33: 308.6268193 | U33: 222.2582064 | V33: 67.31059536 | Y33: 182.7728083 | Z33: 140.8369663 | AA33: 78.62262889 | AB33: 305.3806022 | AC33: 219.8353597 | AD33: 66.10495407 | AG33: 177.953376 | AH33: 135.6502317 | AI33: 72.63163441 | AJ33: 299.8928026 | AK33: 213.2512746 | AL33: 57.6983886 | AO33: 180.7907305 | AP33: 137.7774552 | AQ33: 73.67324869 | AR33: 305.1296098 | AS33: 216.7369183 | AT33: 59.34480883 | AW33: 179.2258839 | AX33: 136.4386793 | AY33: 72.67594228 | AZ33: 297.0529457 | BA33: 194.19399 | BB33: 47.6796031 | BE33: 183.6196597 | BF33: 139.861259 | BG33: 74.81607716 | BH33: 297.0494049 | BI33: 197.901624 | BJ33: 50.04316763 | BM33: 187.7556805 | BN33: 143.0926467 | BO33: 76.78888662 | BP33: 294.5200734 | BQ33: 201.3847413 | BR33: 52.53062594 | BU33: 177.4016779 | BV33: 134.3777644 | BW33: 68.31620233 | BX33: 287.2635856 | BY33: 193.0648149 | BZ33: 44.87518128
A34: EMPRESA DE ENERGÍA DE CASANARE S.A E.S.P | B34: ENERCA | D34: NO | E34: 1.510096111 | F34: N/A | I34: 586.3757718 | J34: 377.8199989 | K34: 32.71633583 | L34: 306.7957239 | M34: 221.2448855 | N34: 64.90111725 | Q34: 588.3908521 | R34: 379.3689322 | S34: 33.56952604 | T34: 308.6268193 | U34: 222.2582064 | V34: 67.31059536 | Y34: 587.1929231 | Z34: 378.2929524 | AA34: 32.50541634 | AB34: 305.3806022 | AC34: 219.8353597 | AD34: 66.10495407 | AG34: 576.993405 | AH34: 364.903324 | AI34: 13.94780447 | AJ34: 299.8928026 | AK34: 213.2512746 | AL34: 57.6983886 | AO34: 587.523923 | AP34: 371.4812815 | AQ34: 13.97251288 | AR34: 305.1296098 | AS34: 216.7369183 | AT34: 59.34480883 | AW34: 548.0930675 | AX34: 333.5715155 | AY34: -21.43397541 | AZ34: 297.0529457 | BA34: 194.19399 | BB34: 47.6796031 | BE34: 561.3988752 | BF34: 341.9786911 | BG34: -20.80874509 | BH34: 297.0494049 | BI34: 197.901624 | BJ34: 50.04316763 | BM34: 573.7622349 | BN34: 349.6524669 | BO34: -20.3158154 | BP34: 294.5200734 | BQ34: 201.3847413 | BR34: 52.53062594 | BU34: 569.1272412 | BV34: 345.4415481 | BW34: -23.74556491 | BX34: 287.2635856 | BY34: 193.0648149 | BZ34: 44.87518128
A35: EMPRESA DE ENERGÍA DEL PUTUMAYO S.A E.S.P | B35: EEPUTUMAYO | D35: NO | E35: 1.510096111 | F35: N/A | I35: 319.915475 | J35: 221.7378235 | K35: 77.78581242 | L35: 306.7957239 | M35: 221.2448855 | N35: 64.90111725 | Q35: 320.6374566 | R35: 222.2455048 | S35: 78.40103917 | T35: 308.6268193 | U35: 222.2582064 | V35: 67.31059536 | Y35: 319.4343013 | Z35: 221.1496709 | AA35: 77.33585483 | AB35: 305.3806022 | AC35: 219.8353597 | AD35: 66.10495407 | AG35: 321.5773844 | AH35: 221.9222921 | AI35: 76.15509656 | AJ35: 299.8928026 | AK35: 213.2512746 | AL35: 57.6983886 | AO35: 335.0009017 | AP35: 232.9160689 | AQ35: 87.40186421 | AR35: 305.1296098 | AS35: 216.7369183 | AT35: 59.34480883 | AW35: 330.9127218 | AX35: 229.7956452 | AY35: 86.10472433 | AZ35: 297.0529457 | BA35: 194.19399 | BB35: 47.6796031 | BE35: 336.4183013 | BF35: 233.7040779 | BG35: 88.25849953 | BH35: 297.0494049 | BI35: 197.901624 | BJ35: 50.04316763 | BM35: 340.812777 | BN35: 237.214011 | BO35: 90.22569919 | BP35: 294.5200734 | BQ35: 201.3847413 | BR35: 52.53062594 | BU35: 336.1446008 | BV35: 211.4838311 | BW35: 66.52917878 | BX35: 287.2635856 | BY35: 193.0648149 | BZ35: 44.87518128
A37: EMPRESA DISTRIBUIDORA DEL PACIFICO S.A. E.S.P. | B37: DISPAC | C37: SIN ADD | D37: SI | E37: 1.510096111 | F37: 1.43302793 | I37: 194.6573125 | J37: 143.9026114 | K37: 712.3914792 | L37: N/A | Q37: 196.6485822 | R37: 145.4070179 | S37: 709.4802837 | T37: N/A | Y37: 187.6851314 | Z37: 138.9491776 | AA37: 675.1630366 | AB37: N/A | AG37: 186.7573864 | AH37: 137.8400836 | AI37: 671.4707188 | AJ37: N/A | AO37: 188.7820083 | AP37: 139.3329008 | AQ37: 674.2501577 | AR37: N/A | AW37: 190.1304176 | AX37: 140.0933401 | AY37: 672.4535677 | AZ37: N/A | BE37: 194.2241294 | BF37: 143.2889144 | BG37: 673.7416372 | BH37: N/A | BM37: 197.955488 | BN37: 146.2065508 | BO37: 677.3498614 | BP37: N/A | BU37: 195.9636996 | BV37: 144.8932939 | BW37: 625.8104895 | BX37: N/A
A38: EMPRESA DE ENERGIA ELECTRICA DEL DEPARTAMENTO DEL GUAVIARE S.A E.S.P | B38: ENERGUAVIARE | D38: NO | E38: 1.510096111 | F38: N/A | I38: 217.0357878 | J38: 149.4556911 | K38: -13.20082269 | Q38: 216.9608171 | R38: 149.5957 | S38: -12.27690939 | Y38: 215.8145032 | Z38: 148.515643 | AA38: -13.33780813 | AG38: 185.3377583 | AH38: 135.6795778 | AI38: 99.48927704 | AO38: 188.036743 | AP38: 137.464241 | AQ38: 100.778696 | AW38: 185.7027061 | AX38: 135.7069012 | AY38: 99.4175193 | BE38: 189.7031338 | BF38: 138.7578199 | BG38: 101.9034388 | BM38: 193.6992304 | BN38: 141.7687023 | BO38: 104.3236343 | BU38: 212.0623871 | BV38: 155.153783 | BW38: 122.928125
A39: CARIBEMAR DE LA COSTA (AFINIA) S.A. E.S.P | B39: CARIBEMAR | D39: NO | E39: 1.510096111 | F39: N/A | H39: 39.68961243 | I39: 220.1910063 | J39: 133.0705329 | K39: 102.2894461 | P39: 41.37680523 | Q39: 223.2355487 | R39: 135.2035846 | S39: 104.3548927 | X39: 40.76394928 | Y39: 222.3874081 | Z39: 134.5429255 | AA39: 103.7195066 | AF39: 41.3020908 | AG39: 225.8483101 | AH39: 136.454934 | AI39: 105.2366456 | AN39: 44.54845625 | AO39: 233.5903034 | AP39: 141.6619261 | AQ39: 109.7859304 | AV39: 42.33857405 | AW39: 229.6804264 | AX39: 138.7881342 | AY39: 107.1768155 | BD39: 43.30071784 | BE39: 233.7612827 | BF39: 141.2924029 | BG39: 108.9813238 | BL39: 48.58828161 | BM39: 244.0457468 | BN39: 148.616794 | BO39: 115.4667477 | BT39: 41.49157658 | BU39: 226.2165806 | BV39: 137.1779331 | BW39: 105.1174191
A40: AIR-E S.A.S E.S.P | B40: AIRE | D40: SI | E40: 1.510096111 | F40: 1.43302793 | I40: 184.8032284 | J40: 107.7373458 | K40: 74.99847036 | Q40: 187.8195385 | R40: 109.8063507 | S40: 76.83087123 | Y40: 180.6115979 | Z40: 106.005755 | AA40: 74.58925675 | AG40: 181.7609517 | AH40: 106.964311 | AI40: 75.33866342 | AO40: 187.7545075 | AP40: 111.0863482 | AQ40: 79.14611277 | AW40: 185.8380452 | AX40: 109.4072491 | AY40: 77.48285266 | BE40: 189.928809 | BF40: 111.564668 | BG40: 79.32553777 | BM40: 199.564086 | BN40: 118.3917806 | BO40: 85.5982685 | BU40: 184.9590916 | BV40: 106.8471589 | BW40: 71.98473888
I42: GRÁFICAS NT1 | Q42: GRÁFICAS NT1 | Y42: GRÁFICAS NT1 | AG42: GRÁFICAS NT1 | AO42: GRÁFICAS NT1 | AW42: GRÁFICAS NT1 | BE42: GRÁFICAS NT1 | BM42: GRÁFICAS NT1 | BU42: GRÁFICAS NT1
A43: Dt NT1
A44: DtUN
X121: VARIACIONES % OCT Def Vs. Oct Pre | AF121: VARIACIONES % Nov Def Vs. Oct Def | AN121: VARIACIONES % Dic Def Vs. Nov Def | AV121: VARIACIONES % Ene 23 Def Vs. Dic 22 | BD121: VARIACIONES % Feb 23 Def Vs. Ene 23 | BL121: VARIACIONES % Mar 23 Def Vs. Feb 23 | BT121: VARIACIONES % Abr 23 Def Vs. Mar 23
A122: CENTRALES ELECTRICAS DEL NORTE DE SANTANDER S.A E.S.P | B122: CENS | C122: CENTRO | D122: NO | X122: =+(X8-P8)/P8 -> -0.02847896622 | Y122: =+(Y8-Q8)/Q8 -> -0.004198085424 | Z122: =+(Z8-R8)/R8 -> -0.005841474478 | AA122: =+(AA8-S8)/S8 -> -0.01111867594 | AB122: =+(AB8-T8)/T8 -> -0.003998989727 | AC122: -0.005518492221 | AD122: -0.01251317708 | AF122: =+(AF8-X8)/X8 -> -0.04848949776 | AG122: 0.004401345003 | AH122: -0.002571767066 | AI122: -0.1343942243 | AJ122: 0.007602898835 | AK122: -0.03173079818 | AL122: 0.1076007638 | AN122: =+(AN8-AF8)/AF8 -> 0.01258741124 | AO122: =+(AO8-AG8)/AG8 -> 0.0166836314 | AP122: =+(AP8-AH8)/AH8 -> 0.01614717843 | AQ122: =+(AQ8-AI8)/AI8 -> 0.1269590865 | AR122: =+(AR8-AJ8)/AJ8 -> 0.007534346523 | AS122: =+(AS8-AK8)/AK8 -> -0.003182310794 | AT122: =+(AT8-AL8)/AL8 -> -0.0928694335 | AV122: =+(AV8-AN8)/AN8 -> -0.02100356417 | AW122: =+(AW8-AO8)/AO8 -> -0.00859646593 | AX122: =+(AX8-AP8)/AP8 -> -0.00936275376 | AY122: =+(AY8-AQ8)/AQ8 -> -0.01162898584 | AZ122: =+(AZ8-AR8)/AR8 -> -0.0595934862 | BA122: =+(BA8-AS8)/AS8 -> -0.04157118724 | BB122: =+(BB8-AT8)/AT8 -> -0.0439420456 | BD122: =+(BD8-AV8)/AV8 -> 0.04793260094 | BE122: =+(BE8-AW8)/AW8 -> 0.01859181848 | BF122: =+(BF8-AX8)/AX8 -> 0.01996620527 | BG122: =+(BG8-AY8)/AY8 -> 0.02522724281 | BH122: =+(BH8-AZ8)/AZ8 -> 0.01977276051 | BI122: =+(BI8-BA8)/BA8 -> 0.031168362 | BJ122: =+(BJ8-BB8)/BB8 -> 0.02796477854 | BL122: =+(BL8-BD8)/BD8 -> 0.03877594807 | BM122: =+(BM8-BE8)/BE8 -> 0.01942910989 | BN122: =+(BN8-BF8)/BF8 -> 0.02058285944 | BO122: =+(BO8-BG8)/BG8 -> 0.02485381803 | BP122: =+(BP8-BH8)/BH8 -> 0.06895639647 | BQ122: =+(BQ8-BI8)/BI8 -> 0.05785698589 | BR122: =+(BR8-BJ8)/BJ8 -> 0.05592345679 | BT122: =+(BT8-BL8)/BL8 -> -0.06807746143 | BU122: =+(BU8-BM8)/BM8 -> -0.01281386003 | BV122: =+(BV8-BN8)/BN8 -> -0.007674231891 | BW122: =+(BW8-BO8)/BO8 -> -3.726263168e-05 | BX122: =+(BX8-BP8)/BP8 -> -0.000257514641 | BY122: =+(BY8-BQ8)/BQ8 -> -0.003101675251 | BZ122: =+(BZ8-BR8)/BR8 -> -0.008556024295
A123: CENTRAL HIDROELECTRICA DE CALDAS S.A E.S.P | B123: CHEC | D123: NO | Y123: =+(Y9-Q9)/Q9 -> -0.002978832262 | Z123: -0.004289094038 | AA123: -0.01113037404 | AB123: -0.003998989727 | AC123: -0.005518492221 | AD123: -0.01251317708 | AG123: =+(AG9-Y9)/Y9 -> 0.009473914214 | AH123: 0.006185867571 | AI123: -0.1175883764 | AJ123: 0.007602898835 | AK123: -0.03173079818 | AL123: 0.1156632609 | AO123: -0.067515357 | AP123: -0.0205652831 | AQ123: 0.08308492681 | AR123: 0.007534346523 | AS123: -0.003182310794 | AT123: -0.09942493989 | AW123: -0.004847736974 | AX123: -0.004642025568 | AY123: -0.008355850322 | AZ123: -0.0595934862 | BA123: -0.04157118724 | BB123: -0.0439420456 | BE123: 0.01622776616 | BF123: 0.01737785043 | BG123: 0.02478084482 | BH123: 0.01977276051 | BI123: 0.031168362 | BJ123: 0.02796477854 | BM123: 0.01737505502 | BN123: 0.01841547529 | BO123: 0.02506972128 | BP123: 0.06895639647 | BQ123: 0.05785698589 | BR123: 0.05592345679 | BU123: -0.01410693366 | BV123: -0.01783320886 | BW123: -0.02812407142 | BX123: -0.000257514641 | BY123: -0.003101675251 | BZ123: -0.008556024295
A124: EMPRESA DE ENERGIA DEL QUINDIO S.A. E.S.P. | B124: EDEQ | D124: NO | Y124: -0.003413395947 | Z124: -0.004124978358 | AA124: -0.01024171282 | AB124: -0.003998989727 | AC124: -0.005518492221 | AD124: -0.01251317708 | AG124: 0.006189283174 | AH124: 0.004752042445 | AI124: -0.190332695 | AJ124: 0.007602898835 | AK124: -0.03173079818 | AL124: 0.2168755642 | AO124: 0.01651552178 | AP124: 0.0163072042 | AQ124: 0.2442754021 | AR124: 0.007534346523 | AS124: -0.003182310794 | AT124: -0.1743292923 | AW124: -0.00893283991 | AX124: -0.009105468743 | AY124: -0.01135966169 | AZ124: -0.0595934862 | BA124: -0.04157118724 | BB124: -0.0439420456 | BE124: 0.01640425293 | BF124: 0.01724978444 | BG124: 0.02358972428 | BH124: 0.01977276051 | BI124: 0.031168362 | BJ124: 0.02796477854 | BM124: 0.0175345806 | BN124: 0.01808096583 | BO124: 0.02237815605 | BP124: 0.06895639647 | BQ124: 0.05785698589 | BR124: 0.05592345679 | BU124: -0.00698591949 | BV124: -0.01319277064 | BW124: -0.0121718887 | BX124: -0.000257514641 | BY124: -0.003101675251 | BZ124: -0.008556024295
A125: EMPRESA DE ENERGIA DE PEREIRA S.A. E.S.P. | B125: EEP Pereira | D125: NO | Y125: -0.00535644939 | Z125: -0.007289948653 | AA125: -0.0145512167 | AB125: -0.003998989727 | AC125: -0.005518492221 | AD125: -0.01251317708 | AG125: 0.00216181204 | AH125: -0.001755912902 | AI125: 0.156445693 | AJ125: 0.007602898835 | AK125: -0.03173079818 | AL125: -0.15607691 | AO125: 0.01623914651 | AP125: 0.01608462914 | AQ125: -0.1381492674 | AR125: 0.007534346523 | AS125: -0.003182310794 | AT125: 0.1905569598 | AW125: -0.01048666087 | AX125: -0.01090525258 | AY125: -0.01345944973 | AZ125: -0.0595934862 | BA125: -0.04157118724 | BB125: -0.0439420456 | BE125: 0.01805308631 | BF125: 0.02001908732 | BG125: 0.02893737203 | BH125: 0.01977276051 | BI125: 0.031168362 | BJ125: 0.02796477854 | BM125: 0.01834336328 | BN125: 0.02012014895 | BO125: 0.02555584306 | BP125: 0.06895639647 | BQ125: 0.05785698589 | BR125: 0.05592345679 | BU125: -0.02548328757 | BV125: -0.02377765207 | BW125: -0.06691211007 | BX125: -0.000257514641 | BY125: -0.003101675251 | BZ125: -0.008556024295
A126: EMPRESAS PUBLICAS DE MEDELLIN E.S.P | B126: EPM | D126: NO | Y126: -0.004005606321 | Z126: -0.005548150294 | AA126: -0.01248173088 | AB126: -0.003998989727 | AC126: -0.005518492221 | AD126: -0.01251317708 | AG126: -0.09766756574 | AH126: -0.09459863223 | AI126: -0.005031775011 | AJ126: 0.007602898835 | AK126: -0.03173079818 | AL126: -0.06634193837 | AO126: 0.01726530852 | AP126: 0.01697008229 | AQ126: -0.04478001304 | AR126: 0.007534346523 | AS126: -0.003182310794 | AT126: 0.07613113363 | AW126: -0.008781160185 | AX126: -0.009490516789 | AY126: -0.01069648585 | AZ126: -0.0595934862 | BA126: -0.04157118724 | BB126: -0.0439420456 | BE126: 0.01803582796 | BF126: 0.01980136933 | BG126: 0.02901930756 | BH126: 0.01977276051 | BI126: 0.031168362 | BJ126: 0.02796477854 | BM126: 0.01838697937 | BN126: 0.01977591542 | BO126: 0.02757404777 | BP126: 0.06895639647 | BQ126: 0.05785698589 | BR126: 0.05592345679 | BU126: 0.003726646786 | BV126: 0.002925490086 | BW126: -0.003151325591 | BX126: -0.000257514641 | BY126: -0.003101675251 | BZ126: -0.008556024295
A127: ELECTRIFICADORA DE SANTANDER S.A. E.S.P. | B127: ESSA | D127: NO | Y127: =+(Y13-Q13)/Q13 -> -0.00347845499 | Z127: -0.005136315023 | AA127: -0.01270593281 | AB127: -0.003998989727 | AC127: -0.005518492221 | AD127: -0.01251317708 | AG127: 0.008866884709 | AH127: 0.004166721979 | AI127: 0.003916900545 | AJ127: 0.007602898835 | AK127: -0.03173079818 | AL127: -0.02480634246 | AO127: 0.02368007799 | AP127: 0.02294870377 | AQ127: 0.003007395178 | AR127: 0.007534346523 | AS127: -0.003182310794 | AT127: 0.03029639345 | AW127: -0.002228496668 | AX127: -0.003865475045 | AY127: -0.008906203259 | AZ127: -0.0595934862 | BA127: -0.04157118724 | BB127: -0.0439420456 | BE127: 0.02363785819 | BF127: 0.02420434704 | BG127: 0.02920679136 | BH127: 0.01977276051 | BI127: 0.031168362 | BJ127: 0.02796477854 | BM127: 0.02169007843 | BN127: 0.0223515296 | BO127: 0.0264176119 | BP127: 0.06895639647 | BQ127: 0.05785698589 | BR127: 0.05592345679 | BU127: -0.003659744782 | BV127: 0.004960318163 | BW127: -0.01619974604 | BX127: -0.000257514641 | BY127: -0.003101675251 | BZ127: -0.008556024295
A128: RUITOQUE E.S.P | B128: RUITOQUE | D128: SI | Y128: -0.0408715669 | Z128: -0.03846220023 | AA128: -0.007475351665 | AB128: -0.003998989727 | AC128: -0.005518492221 | AD128: -0.01251317708 | AG128: 0.3150315326 | AH128: 0.4245849532 | AI128: 0.3769002546 | AJ128: 0.007602898835 | AK128: -0.03173079818 | AL128: 1.062070444 | AO128: 0.03515371064 | AP128: 0.03908033078 | AQ128: 1.133945917 | AR128: 0.007534346523 | AS128: -0.003182310794 | AT128: -0.5127525778 | AW128: 0.03271446281 | AX128: 0.03602983403 | AY128: 0.02047594872 | AZ128: -0.0595934862 | BA128: -0.04157118724 | BB128: -0.0439420456 | BE128: 0.04057456099 | BF128: 0.04492800166 | BG128: 0.03564398072 | BH128: 0.01977276051 | BI128: 0.031168362 | BJ128: 0.02796477854 | BM128: 0.04084449964 | BN128: 0.04498852317 | BO128: 0.0358680304 | BP128: 0.06895639647 | BQ128: 0.05785698589 | BR128: 0.05592345679 | BU128: -0.08004904331 | BV128: -0.0965684849 | BW128: -0.2594959032 | BX128: -0.000257514641 | BY128: -0.003101675251 | BZ128: -0.008556024295
A130: CENTRALES ELECTRICAS DE NARIÑO S.A. E.S.P. | B130: CEDENAR | C130: OCCIDENTE | D130: SI | Y130: =+(Y16-Q16)/Q16 -> -0.08079054085 | Z130: -0.07714509563 | AA130: -0.06888608472 | AB130: -0.05695184956 | AC130: -0.05344976368 | AD130: -0.04697735326 | AG130: =+(AG16-Y16)/Y16 -> -0.000758511985 | AH130: -0.004324031466 | AI130: -0.01298713414 | AJ130: 0.02712149018 | AK130: 0.04072281065 | AL130: 0.002339368822 | AO130: =+(AO16-AG16)/AG16 -> 0.008431891533 | AP130: =+(AP16-AH16)/AH16 -> 0.008383334139 | AQ130: =+(AQ16-AI16)/AI16 -> 0.007952083555 | AR130: =+(AR16-AJ16)/AJ16 -> 0.00490304195 | AS130: =+(AS16-AK16)/AK16 -> 0.009518182663 | AT130: =+(AT16-AL16)/AL16 -> 0.03530433561 | AW130: =+(AW16-AO16)/AO16 -> 0.006443499162 | AX130: =+(AX16-AP16)/AP16 -> 0.00460790931 | AY130: =+(AY16-AQ16)/AQ16 -> 0.001897187024 | AZ130: =+(AZ16-AR16)/AR16 -> -0.01168519543 | BA130: =+(BA16-AS16)/AS16 -> 0.003777742188 | BB130: =+(BB16-AT16)/AT16 -> 0.0004227901486 | BE130: =+(BE16-AW16)/AW16 -> 0.01549058437 | BF130: =+(BF16-AX16)/AX16 -> 0.01709132871 | BG130: =+(BG16-AY16)/AY16 -> 0.01687641577 | BH130: =+(BH16-AZ16)/AZ16 -> 0.03123257205 | BI130: =+(BI16-BA16)/BA16 -> 0.005970446747 | BJ130: =+(BJ16-BB16)/BB16 -> 0.02396753053 | BM130: =+(BM16-BE16)/BE16 -> -0.1275689218 | BN130: =+(BN16-BF16)/BF16 -> -0.1785994526 | BO130: =+(BO16-BG16)/BG16 -> -0.4571424629 | BP130: =+(BP16-BH16)/BH16 -> 0.00944467097 | BQ130: =+(BQ16-BI16)/BI16 -> 0.00306886261 | BR130: =+(BR16-BJ16)/BJ16 -> 0.0186911065 | BU130: =+(BU16-BM16)/BM16 -> -0.0607489211 | BV130: =+(BV16-BN16)/BN16 -> -0.0495969126 | BW130: =+(BW16-BO16)/BO16 -> -0.1087122786 | BX130: =+(BX16-BP16)/BP16 -> -0.0459417578 | BY130: =+(BY16-BQ16)/BQ16 -> -0.01891892071 | BZ130: =+(BZ16-BR16)/BR16 -> -0.01000822712
A131: CELSIA COLOMBIA S.A. E.S.P-VALLE | B131: CELSIA COLOMBIA Valle | D131: SI | Y131: -0.06498803132 | Z131: -0.0630886864 | AA131: -0.05651874361 | AB131: -0.05695184956 | AC131: -0.05344976368 | AD131: -0.04697735326 | AG131: 0.05245757871 | AH131: 0.0709468109 | AI131: 0.05554092942 | AJ131: 0.02712149018 | AK131: 0.04072281065 | AL131: 0.002339368822 | AO131: 0.01144664361 | AP131: 0.01349273026 | AQ131: 0.01098456462 | AR131: 0.00490304195 | AS131: 0.009518182663 | AT131: 0.03530433561 | AW131: 0.005174394526 | AX131: 0.003990986909 | AY131: -0.0006186786173 | AZ131: -0.01168519543 | BA131: 0.003777742188 | BB131: 0.0004227901486 | BE131: 0.01542317988 | BF131: 0.01679479149 | BG131: 0.02028654131 | BH131: 0.03123257205 | BI131: 0.005970446747 | BJ131: 0.02396753053 | BM131: 0.01581159619 | BN131: 0.01669866407 | BO131: 0.02006096371 | BP131: 0.00944467097 | BQ131: 0.00306886261 | BR131: 0.0186911065 | BU131: -0.009481664701 | BV131: -0.0085375573 | BW131: -0.008522265932 | BX131: -0.0459417578 | BY131: -0.01891892071 | BZ131: -0.01000822712
A132: COMPAÑIA ENERGETICA DE OCCIDENTE S.A.S. ESP | B132: CEO | D132: SI | Y132: -0.04788799643 | Z132: -0.04729621446 | AA132: -0.04166866162 | AB132: -0.05695184956 | AC132: -0.05344976368 | AD132: -0.04697735326 | AG132: 0.0007003352529 | AH132: -0.0009321255045 | AI132: -0.01783031167 | AJ132: 0.02712149018 | AK132: 0.04072281065 | AL132: 0.002339368822 | AO132: 0.008008305401 | AP132: 0.008314859708 | AQ132: 0.005452571295 | AR132: 0.00490304195 | AS132: 0.009518182663 | AT132: 0.03530433561 | AW132: 0.004995966825 | AX132: 0.004449561605 | AY132: -0.001058404574 | AZ132: -0.01168519543 | BA132: 0.003777742188 | BB132: 0.0004227901486 | BE132: 0.01252566974 | BF132: 0.01387772328 | BG132: 0.02318696798 | BH132: 0.03123257205 | BI132: 0.005970446747 | BJ132: 0.02396753053 | BM132: 0.01740500369 | BN132: 0.01818161234 | BO132: 0.02436817981 | BP132: 0.00944467097 | BQ132: 0.00306886261 | BR132: 0.0186911065 | BU132: 0.0181612289 | BV132: 0.01595777266 | BW132: 0.0645477247 | BX132: -0.0459417578 | BY132: -0.01891892071 | BZ132: -0.01000822712
A133: COMPAÑÍA DE ELECTRICIDAD DE TULUÁ S.A. E.S.P-TULUA | B133: CETSA | D133: SI | Y133: -0.06475388422 | Z133: -0.06238284761 | AA133: -0.05599966438 | AB133: -0.05695184956 | AC133: -0.05344976368 | AD133: -0.04697735326 | AG133: -0.003807152324 | AH133: -0.007835663367 | AI133: -0.01790159942 | AJ133: 0.02712149018 | AK133: 0.04072281065 | AL133: 0.002339368822 | AO133: -0.01447790182 | AP133: -0.02314600018 | AQ133: 0.00334881297 | AR133: 0.00490304195 | AS133: 0.009518182663 | AT133: 0.03530433561 | AW133: 0.004334288 | AX133: 0.002038239747 | AY133: -0.004119782077 | AZ133: -0.01168519543 | BA133: 0.003777742188 | BB133: 0.0004227901486 | BE133: 0.01442860143 | BF133: 0.01616735421 | BG133: 0.01998062709 | BH133: 0.03123257205 | BI133: 0.005970446747 | BJ133: 0.02396753053 | BM133: 0.01629259673 | BN133: 0.01706431963 | BO133: 0.01769399805 | BP133: 0.00944467097 | BQ133: 0.00306886261 | BR133: 0.0186911065 | BU133: -0.07955449641 | BV133: -0.1061461677 | BW133: -0.1526585862 | BX133: -0.0459417578 | BY133: -0.01891892071 | BZ133: -0.01000822712
A134: EMPRESA DE ENERGÍA DE PEREIRA S.A E.S.P-MERCADO CARTAGO | B134: EEP Cartago | D134: NO | Y134: -0.005319439758 | Z134: -0.007543402405 | AA134: -0.01107526653 | AB134: -0.05695184956 | AC134: -0.05344976368 | AD134: -0.04697735326 | AG134: 0.001987384754 | AH134: -0.001712560691 | AI134: -0.009799197595 | AJ134: 0.02712149018 | AK134: 0.04072281065 | AL134: 0.002339368822 | AO134: 0.01893362371 | AP134: 0.01728881771 | AQ134: 0.01560174663 | AR134: 0.00490304195 | AS134: 0.009518182663 | AT134: 0.03530433561 | AW134: -0.008880382087 | AX134: -0.009624979845 | AY134: -0.01196247378 | AZ134: -0.01168519543 | BA134: 0.003777742188 | BB134: 0.0004227901486 | BE134: 0.01851109321 | BF134: 0.0211729372 | BG134: 0.02397547913 | BH134: 0.03123257205 | BI134: 0.005970446747 | BJ134: 0.02396753053 | BM134: 0.0205958299 | BN134: 0.02132849587 | BO134: 0.02328660697 | BP134: 0.00944467097 | BQ134: 0.00306886261 | BR134: 0.0186911065 | BU134: -0.03079642015 | BV134: -0.05310933732 | BW134: -0.06830105409 | BX134: -0.0459417578 | BY134: -0.01891892071 | BZ134: -0.01000822712
A135: EMPRESAS MUNICIPALES DE CALI E.I.C.E. E.S.P. | B135: EMCALI | D135: SI | Y135: -0.0451995728 | Z135: -0.0426326144 | AA135: -0.03816568708 | AB135: -0.05695184956 | AC135: -0.05344976368 | AD135: -0.04697735326 | AG135: -0.005354554043 | AH135: -0.01149581562 | AI135: -0.02314463311 | AJ135: 0.02712149018 | AK135: 0.04072281065 | AL135: 0.002339368822 | AO135: 0.009650388275 | AP135: 0.009691189081 | AQ135: 0.01041558334 | AR135: 0.00490304195 | AS135: 0.009518182663 | AT135: 0.03530433561 | AW135: 0.005292084846 | AX135: 0.001354996776 | AY135: -0.00486224691 | AZ135: -0.01168519543 | BA135: 0.003777742188 | BB135: 0.0004227901486 | BE135: 0.02033207347 | BF135: 0.02304744284 | BG135: 0.02963015289 | BH135: 0.03123257205 | BI135: 0.005970446747 | BJ135: 0.02396753053 | BM135: 0.02031399717 | BN135: 0.02233474985 | BO135: 0.02756241031 | BP135: 0.00944467097 | BQ135: 0.00306886261 | BR135: 0.0186911065 | BU135: -0.01883441787 | BV135: -0.04734995368 | BW135: -0.03917136108 | BX135: -0.0459417578 | BY135: -0.01891892071 | BZ135: -0.01000822712
A136: EMPRESA MUNICIPAL DE ENERGÍA ELÉCTRICA S.A E.S.P | B136: EMEESA | D136: NO | Y136: =+(Y22-Q22)/ABS(Q22) -> -0.004739247732 | Z136: =+(Z22-R22)/ABS(R22) -> -0.003369116979 | AA136: =+(AA22-S22)/S22 -> -0.02994985412 | AB136: =+(AB22-T22)/T22 -> -0.05695184956 | AC136: =+(AC22-U22)/U22 -> -0.05344976368 | AD136: =+(AD22-V22)/V22 -> -0.04697735326 | AG136: =+(AG22-Y22)/ABS(Y22) -> -0.02382363337 | AH136: =+(AH22-Z22)/ABS(Z22) -> -0.02103931037 | AI136: =+(AI22-AA22)/AA22 -> -0.05075300187 | AJ136: =+(AJ22-AB22)/AB22 -> 0.02712149018 | AK136: =+(AK22-AC22)/AC22 -> 0.04072281065 | AL136: =+(AL22-AD22)/AD22 -> 0.002339368822 | AO136: =+(AO22-AG22)/ABS(AG22) -> -0.01898792398 | AP136: =+(AP22-AH22)/ABS(AH22) -> -0.01770470196 | AQ136: =+(AQ22-AI22)/AI22 -> 0.01202885498 | AR136: =+(AR22-AJ22)/AJ22 -> 0.00490304195 | AS136: =+(AS22-AK22)/AK22 -> 0.009518182663 | AT136: =+(AT22-AL22)/AL22 -> 0.03530433561 | AW136: =+(AW22-AO22)/ABS(AO22) -> 0.01138581164 | AX136: =+(AX22-AP22)/ABS(AP22) -> 0.01659885151 | AY136: =+(AY22-AQ22)/AQ22 -> -0.0175449985 | AZ136: =+(AZ22-AR22)/AR22 -> -0.01168519543 | BA136: =+(BA22-AS22)/AS22 -> 0.003777742188 | BB136: =+(BB22-AT22)/AT22 -> 0.0004227901486 | BE136: =+(BE22-AW22)/ABS(AW22) -> -0.009153163746 | BF136: =+(BF22-AX22)/ABS(AX22) -> -0.01080682199 | BG136: =+(BG22-AY22)/AY22 -> 0.0447419388 | BH136: =+(BH22-AZ22)/AZ22 -> 0.03123257205 | BI136: =+(BI22-BA22)/BA22 -> 0.005970446747 | BJ136: =+(BJ22-BB22)/BB22 -> 0.02396753053 | BM136: =+(BM22-BE22)/ABS(BE22) -> 0.009470058026 | BN136: =+(BN22-BF22)/ABS(BF22) -> 0.01246447669 | BO136: =+(BO22-BG22)/BG22 -> 0.03923975461 | BP136: =+(BP22-BH22)/BH22 -> 0.00944467097 | BQ136: =+(BQ22-BI22)/BI22 -> 0.00306886261 | BR136: =+(BR22-BJ22)/BJ22 -> 0.0186911065 | BU136: =+(BU22-BM22)/ABS(BM22) -> 0.05513724955 | BV136: =+(BV22-BN22)/ABS(BN22) -> 0.05244023153 | BW136: =+(BW22-BO22)/BO22 -> -0.03477972647 | BX136: =+(BX22-BP22)/BP22 -> -0.0459417578 | BY136: =+(BY22-BQ22)/BQ22 -> -0.01891892071 | BZ136: =+(BZ22-BR22)/BR22 -> -0.01000822712
A138: CELSIA COLOMBIA S.A. E.S.P-TOLIMA | B138: CELSIA COLOMBIA Tolima | C138: ORIENTE | D138: SI | Y138: =+(Y24-Q24)/Q24 -> -0.06529083413 | Z138: -0.06407566976 | AA138: -0.05646399425 | AB138: -0.03230495505 | AC138: -0.04343056808 | AD138: -0.04021356657 | AG138: =+(AG24-Y24)/Y24 -> -0.0003524391384 | AH138: -0.004057918289 | AI138: -0.01301193134 | AJ138: 0.03338340443 | AK138: 0.02094723687 | AL138: -0.01057047049 | AO138: =+(AO24-AG24)/AG24 -> 0.003035133638 | AP138: 0.002875186492 | AQ138: 0.008434569118 | AR138: -0.06904250032 | AS138: -0.009763000746 | AT138: -0.01877712389 | AW138: =+(AW24-AO24)/AO24 -> 0.005373695243 | AX138: 0.003947764467 | AY138: 0.0004648615216 | AZ138: 0.01227021352 | BA138: -0.02574347625 | BB138: -0.008969450749 | BE138: =+(BE24-AW24)/AW24 -> 0.0136730086 | BF138: 0.01398862192 | BG138: 0.02317649783 | BH138: 0.01572638166 | BI138: 0.04002804176 | BJ138: 0.05421961943 | BM138: =+(BM24-BE24)/BE24 -> 0.01503664315 | BN138: 0.0151436413 | BO138: 0.02551930047 | BP138: 0.06929855296 | BQ138: 0.04430911619 | BR138: 0.03274680668 | BU138: =+(BU24-BM24)/BM24 -> -0.02961779779 | BV138: =+(BV24-BN24)/BN24 -> -0.03077012114 | BW138: =+(BW24-BO24)/BO24 -> -0.04589267097 | BX138: =+(BX24-BP24)/BP24 -> -0.01058859726 | BY138: =+(BY24-BQ24)/BQ24 -> 0.00492194341 | BZ138: =+(BZ24-BR24)/BR24 -> 0.009050273317
A139: EMPRESA DE ENERGIA DE BOYACA S.A. E.S.P. | B139: EBSA | D139: SI | Y139: -0.04745147258 | Z139: -0.04685056191 | AA139: -0.04389515354 | AB139: -0.03230495505 | AC139: -0.04343056808 | AD139: -0.04021356657 | AG139: -0.0003159575596 | AH139: -0.001483080654 | AI139: -0.007563603428 | AJ139: 0.0276098388 | AK139: 0.02094723687 | AL139: -0.01057047049 | AO139: 0.006549338595 | AP139: 0.006862806541 | AQ139: 0.007181365721 | AR139: -0.06381197019 | AS139: -0.009763000746 | AT139: -0.01877712389 | AW139: 0.005262804543 | AX139: 0.004561638654 | AY139: 0.0008394321253 | AZ139: 0.01227021352 | BA139: -0.02574347625 | BB139: -0.008969450749 | BE139: 0.01322004999 | BF139: 0.01390984351 | BG139: 0.01779802606 | BH139: 0.01572638166 | BI139: 0.04002804176 | BJ139: 0.05421961943 | BM139: 0.0134313954 | BN139: 0.01406900689 | BO139: 0.01753350114 | BP139: 0.06929855296 | BQ139: 0.04430911619 | BR139: 0.03274680668 | BU139: -0.01911103047 | BV139: -0.03005304296 | BW139: -0.06179525292 | BX139: -0.01058859726 | BY139: 0.00492194341 | BZ139: 0.009050273317
A140: ELECTRIFICADORE DEL HUILA | B140: ELECTROHUILA | D140: NO | Y140: -0.004113362982 | Z140: -0.004983909291 | AA140: -0.01283468238 | AB140: -0.03230495505 | AC140: -0.04343056808 | AD140: -0.04021356657 | AG140: 0.00491901009 | AH140: 0.003218109871 | AI140: -0.01268547683 | AJ140: 0.0276098388 | AK140: 0.02094723687 | AL140: -0.01057047049 | AO140: 0.01506542131 | AP140: 0.0151354282 | AQ140: 0.01473724279 | AR140: -0.06381197019 | AS140: -0.009763000746 | AT140: -0.01877712389 | AW140: 0.08677288223 | AX140: 0.0429215365 | AY140: -0.0007259500755 | AZ140: 0.01227021352 | BA140: -0.02574347625 | BB140: -0.008969450749 | BE140: 0.01595702352 | BF140: 0.01701679526 | BG140: 0.0256589846 | BH140: 0.01572638166 | BI140: 0.04002804176 | BJ140: 0.05421961943 | BM140: 0.01779875071 | BN140: 0.01862426678 | BO140: 0.02603596756 | BP140: 0.06929855296 | BQ140: 0.04430911619 | BR140: 0.03274680668 | BU140: -0.0003717452667 | BV140: 0.0005991495337 | BW140: 0.03032449063 | BX140: -0.01058859726 | BY140: 0.00492194341 | BZ140: 0.009050273317
A141: ENEL COLOMBIA S.A. E.S.P | B141: ENEL COLOMBIA | D141: SI | Y141: -0.04549896343 | Z141: -0.04380992478 | AA141: -0.03959403138 | AB141: -0.03230495505 | AC141: -0.04343056808 | AD141: -0.04021356657 | AG141: -0.004686259538 | AH141: -0.008071410073 | AI141: -0.02378724138 | AJ141: 0.0276098388 | AK141: 0.02094723687 | AL141: -0.01057047049 | AO141: 0.006908519295 | AP141: 0.007299764297 | AQ141: 0.009403213007 | AR141: -0.06381197019 | AS141: -0.009763000746 | AT141: -0.01877712389 | AW141: 0.004114207513 | AX141: 0.001389235166 | AY141: 0.001555878206 | AZ141: 0.01227021352 | BA141: -0.02574347625 | BB141: -0.008969450749 | BE141: 0.01704856438 | BF141: 0.01905944468 | BG141: 0.0250621124 | BH141: 0.01572638166 | BI141: 0.04002804176 | BJ141: 0.05421961943 | BM141: 0.01808458601 | BN141: 0.0196552698 | BO141: 0.02493119892 | BP141: 0.06929855296 | BQ141: 0.04430911619 | BR141: 0.03274680668 | BU141: 0.004746580705 | BV141: 0.02539204237 | BW141: 0.04985400042 | BX141: -0.01058859726 | BY141: 0.00492194341 | BZ141: 0.009050273317
A142: EMPRESA DE ENERGÍA DE ARAUCA | B142: ENELAR | D142: SI | Y142: -0.04856776669 | Z142: -0.0483657714 | AA142: -0.04335819732 | AB142: -0.03230495505 | AC142: -0.04343056808 | AD142: -0.04021356657 | AG142: -0.001406966011 | AH142: -0.002631266217 | AI142: -0.02615909408 | AJ142: 0.0276098388 | AK142: 0.02094723687 | AL142: -0.01057047049 | AO142: 0.01185394455 | AP142: 0.01226106726 | AQ142: 0.01897248799 | AR142: -0.06381197019 | AS142: -0.009763000746 | AT142: -0.01877712389 | AW142: 0.01246629315 | AX142: 0.01197422073 | AY142: 0.002214169405 | AZ142: 0.01227021352 | BA142: -0.02574347625 | BB142: -0.008969450749 | BE142: 0.0208702138 | BF142: 0.0210076554 | BG142: 0.02824978711 | BH142: 0.01572638166 | BI142: 0.04002804176 | BJ142: 0.05421961943 | BM142: -0.007011687062 | BN142: -0.01107479414 | BO142: -0.08473194112 | BP142: 0.06929855296 | BQ142: 0.04430911619 | BR142: 0.03274680668 | BU142: -0.01328026378 | BV142: -0.01039027764 | BW142: -0.004647351397 | BX142: -0.01058859726 | BY142: 0.00492194341 | BZ142: 0.009050273317
A144: EMPRESA DE ENERGÍA DEL BAJO PUTUMAYO S.A E.S.P | B144: EEBP | C144: SUR | D144: NO | Y144: =+(Y30-Q30)/Q30 -> -0.004763365819 | Z144: -0.01640738391 | AA144: -0.0290472156 | AB144: -0.01051826004 | AC144: -0.01090104498 | AD144: -0.01791161236 | AG144: =+(AG30-Y30)/Y30 -> 0.001696156304 | AH144: -0.02197048226 | AI144: -0.04813199507 | AJ144: -0.01797036083 | AK144: -0.02995007301 | AL144: -0.1271699767 | AO144: =+(AO30-AG30)/AG30 -> 0.01123393749 | AP144: 0.01081195251 | AQ144: 0.01200932264 | AR144: 0.01746226376 | AS144: 0.01634524179 | AT144: 0.02853494298 | AW144: =+(AW30-AO30)/AO30 -> -0.01598361651 | AX144: -0.01788226506 | AY144: -0.01855606431 | AZ144: -0.02646961743 | BA144: -0.10401056 | BB144: -0.1965665736 | BE144: =+(BE30-AW30)/AW30 -> 0.0166437505 | BF144: 0.02890401525 | BG144: 0.04458256298 | BH144: -1.192005043e-05 | BI144: 0.01909242379 | BJ144: 0.04957181641 | BM144: =+(BM30-BE30)/BE30 -> 0.0128216942 | BN144: 0.02509926725 | BO144: 0.03941277536 | BP144: -0.008514851071 | BQ144: 0.01760024655 | BR144: 0.04970625222 | BU144: =+(BU30-BM30)/BM30 -> -0.01340141445 | BV144: =+(BV30-BN30)/BN30 -> -0.1545314116 | BW144: =+(BW30-BO30)/BO30 -> -0.4624997702 | BX144: =+(BX30-BP30)/BP30 -> -0.024638347 | BY144: =+(BY30-BQ30)/BQ30 -> -0.04131358897 | BZ144: =+(BZ30-BR30)/BR30 -> -0.1457329801
A145: ELECTRIFICADORA DEL CAQUETA S.A. E.S.P | B145: ELECTROCAQUETA | D145: SI | Y145: -0.04832204876 | Z145: -0.04740554422 | AA145: -0.03986786389 | AB145: -0.01051826004 | AC145: -0.01090104498 | AD145: -0.01791161236 | AG145: -0.002113060304 | AH145: -0.004283446398 | AI145: -0.02189289176 | AJ145: -0.01797036083 | AK145: -0.02995007301 | AL145: -0.1271699767 | AO145: 0.003677770903 | AP145: 0.003940774716 | AQ145: 0.00621367156 | AR145: 0.01746226376 | AS145: 0.01634524179 | AT145: 0.02853494298 | AW145: 0.003519052177 | AX145: 0.002289715593 | AY145: -0.006838917804 | AZ145: -0.02646961743 | BA145: -0.10401056 | BB145: -0.1965665736 | BE145: 0.01723381709 | BF145: 0.01834048795 | BG145: 0.02828960201 | BH145: -1.192005043e-05 | BI145: 0.01909242379 | BJ145: 0.04957181641 | BM145: 0.01554556202 | BN145: 0.01683617367 | BO145: 0.02557620004 | BP145: -0.008514851071 | BQ145: 0.01760024655 | BR145: 0.04970625222 | BU145: -0.0233752065 | BV145: -0.01259791923 | BW145: -0.05354799954 | BX145: -0.024638347 | BY145: -0.04131358897 | BZ145: -0.1457329801
A146: EMPRESA DE ENERGÍA DEL VALLE DEL SIBUNDOY | B146: EMEVASI | D146: NO | Y146: =+(Y32-Q32)/Q32 ->  | AG146: =+(AG32-Y32)/Y32 -> 0.004227414639 | AH146: 0.004211336818 | AI146: 0.004106511153 | AO146: =+(AO32-AG32)/AG32 -> 0.01079640907 | AP146: 0.009017468773 | AQ146: -0.002582523934 | AW146: =+(AW32-AO32)/AO32 -> 0.01824167419 | AX146: 0.01813048676 | AY146: 0.01739573961 | BE146: =+(BE32-AW32)/AW32 -> -0.006934242767 | BF146: -0.007002510155 | BG146: -0.007454009646 | BM146: =+(BM32-BE32)/BE32 -> 0.01708067418 | BN146: 0.01780357225 | BO146: 0.022587102 | BU146: 0.01646813822 | BV146: 0.01693222277 | BW146: 0.01998660403
A147: ELECTRIFICADORA DEL META S.A. E.S.P | B147: EMSA | D147: NO | Y147: -0.006420443694 | Z147: -0.007700666583 | AA147: -0.01351645888 | AB147: =+(AB33-T33)/T33 -> -0.01051826004 | AC147: -0.01090104498 | AD147: -0.01791161236 | AG147: -0.02636843183 | AH147: -0.0368279345 | AI147: -0.07619936602 | AJ147: =+(AJ33-AB33)/AB33 -> -0.01797036083 | AK147: -0.02995007301 | AL147: -0.1271699767 | AO147: 0.01594437016 | AP147: 0.01568167982 | AQ147: 0.01434105518 | AR147: =+(AR33-AJ33)/AJ33 -> 0.01746226376 | AS147: 0.01634524179 | AT147: 0.02853494298 | AW147: -0.008655568325 | AX147: -0.009716944777 | AY147: -0.01353688651 | AZ147: =+(AZ33-AR33)/AR33 -> -0.02646961743 | BA147: -0.10401056 | BB147: -0.1965665736 | BE147: 0.02451529701 | BF147: 0.0250851129 | BG147: 0.02944763849 | BH147: =+(BH33-AZ33)/AZ33 -> -1.192005043e-05 | BI147: 0.01909242379 | BJ147: 0.04957181641 | BM147: 0.02252493414 | BN147: 0.02310423735 | BO147: 0.02636879043 | BP147: =+(BP33-BH33)/BH33 -> -0.008514851071 | BQ147: 0.01760024655 | BR147: 0.04970625222 | BU147: -0.05514614802 | BV147: -0.06090377435 | BW147: -0.1103373764 | BX147: =+(BX33-BP33)/BP33 -> -0.024638347 | BY147: =+(BY33-BQ33)/BQ33 -> -0.04131358897 | BZ147: =+(BZ33-BR33)/BR33 -> -0.1457329801
A148: EMPRESA DE ENERGÍA DE CASANARE S.A E.S.P | B148: ENERCA | D148: NO | Y148: -0.002035940798 | Z148: -0.002836235874 | AA148: -0.03169868105 | AB148: -0.01051826004 | AC148: -0.01090104498 | AD148: -0.01791161236 | AG148: -0.01736996088 | AH148: -0.03539486609 | AI148: -0.5709082966 | AJ148: -0.01797036083 | AK148: -0.02995007301 | AL148: -0.1271699767 | AO148: 0.01825067307 | AP148: 0.01802657593 | AQ148: 0.001771491496 | AR148: 0.01746226376 | AS148: 0.01634524179 | AT148: 0.02853494298 | AW148: -0.06711361701 | AX148: -0.1020502725 | AY148: -2.534010066 | AZ148: -0.02646961743 | BA148: -0.10401056 | BB148: -0.1965665736 | BE148: 0.02427654809 | BF148: 0.02520351768 | BG148: -0.02917005875 | BH148: -1.192005043e-05 | BI148: 0.01909242379 | BJ148: 0.04957181641 | BM148: 0.02202241617 | BN148: 0.02243933902 | BO148: -0.02368858304 | BP148: -0.008514851071 | BQ148: 0.01760024655 | BR148: 0.04970625222 | BU148: -0.008078247982 | BV148: -0.01204315468 | BW148: 0.1688216514 | BX148: -0.024638347 | BY148: -0.04131358897 | BZ148: -0.1457329801
A149: EMPRESA DE ENERGÍA DEL PUTUMAYO S.A E.S.P | B149: EEPUTUMAYO | D149: NO | Y149: -0.00375238554 | Z149: -0.004930735944 | AA149: -0.01358635487 | AB149: -0.01051826004 | AC149: -0.01090104498 | AD149: -0.01791161236 | AG149: 0.006708995037 | AH149: 0.003493657548 | AI149: -0.0152679281 | AJ149: -0.01797036083 | AK149: -0.02995007301 | AL149: -0.1271699767 | AO149: 0.04174272787 | AP149: 0.04953885723 | AQ149: 0.1476824029 | AR149: 0.01746226376 | AS149: 0.01634524179 | AT149: 0.02853494298 | AW149: -0.01220348915 | AX149: -0.01339720214 | AY149: -0.01484110086 | AZ149: -0.02646961743 | BA149: -0.10401056 | BB149: -0.1965665736 | BE149: 0.0166375577 | BF149: 0.01700829764 | BG149: 0.02501343829 | BH149: -1.192005043e-05 | BI149: 0.01909242379 | BJ149: 0.04957181641 | BM149: 0.01306253467 | BN149: 0.01501870719 | BO149: 0.0222890675 | BP149: -0.008514851071 | BQ149: 0.01760024655 | BR149: 0.04970625222 | BU149: -0.01369718665 | BV149: -0.1084682131 | BW149: -0.2626360407 | BX149: -0.024638347 | BY149: -0.04131358897 | BZ149: -0.1457329801
A151: EMPRESA DISTRIBUIDORA DEL PACIFICO S.A. E.S.P. | B151: DISPAC | C151: SIN ADD | D151: SI | Y151: =+(Y37-Q37)/Q37 -> -0.04558105972 | Z151: -0.04441216437 | AA151: -0.04836955714 | AB151: N/A | AG151: =+(AG37-Y37)/Y37 -> -0.004943092492 | AH151: -0.007982011981 | AI151: -0.005468779465 | AJ151: N/A | AO151: =+(AO37-AG37)/AG37 -> 0.01084092008 | AP151: 0.0108300662 | AQ151: 0.00413933002 | AR151: N/A | AW151: =+(AW37-AO37)/AO37 -> 0.007142678658 | AX151: 0.005457715067 | AY151: -0.002664574902 | AZ151: N/A | BE151: =+(BE37-AW37)/AW37 -> 0.02153107265 | BF151: 0.02281032296 | BG151: 0.001915477334 | BH151: N/A | BM151: =+(BM37-BE37)/BE37 -> 0.01921161212 | BN151: 0.02036191307 | BO151: 0.005355501294 | BP151: N/A | BU151: =+(BU37-BM37)/BM37 -> -0.01006179936 | BV151: =+(BV37-BN37)/BN37 -> -0.008982202984 | BW151: =+(BW37-BO37)/BO37 -> -0.07608973564 | BX151: N/A
A152: EMPRESA DE ENERGIA ELECTRICA DEL DEPARTAMENTO DEL GUAVIARE S.A E.S.P | B152: ENERGUAVIARE | D152: NO | Y152: -0.005283506825 | Z152: -0.007219839943 | AA152: 0.08641415463 | AG152: -0.1412173158 | AH152: -0.08642904483 | AI152: -8.459192399 | AO152: 0.01456251928 | AP152: 0.01315351377 | AQ152: 0.01296038124 | AW152: -0.01241266405 | AX152: -0.01278397788 | AY152: -0.01350659174 | BE152: 0.02154210777 | BF152: 0.02248167732 | BG152: 0.02500484363 | BM152: 0.02106500067 | BN152: 0.02169883005 | BO152: 0.02374988968 | BU152: 0.09480242466 | BV152: 0.09441492018 | BW152: 0.1783343815
A153: CARIBEMAR DE LA COSTA (AFINIA) S.A. E.S.P | B153: CARIBEMAR | D153: NO | X153: =+(X39-P39)/P39 -> -0.01481158223 | Y153: -0.003799307983 | Z153: -0.004886402411 | AA153: -0.006088704396 | AF153: =+(AF39-X39)/X39 -> 0.01320140792 | AG153: 0.01556249088 | AH153: 0.0142111407 | AI153: 0.0146273251 | AN153: =+(AN39-AF39)/AF39 -> 0.07860051119 | AO153: 0.03427961616 | AP153: 0.03815906086 | AQ153: 0.04322909372 | AV153: =+(AV39-AN39)/AN39 -> -0.04960625777 | AW153: -0.01673818197 | AX153: -0.02028626896 | AY153: -0.02376547549 | BD153: =+(BD39-AV39)/AV39 -> 0.02272499289 | BE153: 0.01776754028 | BF153: 0.01804382477 | BG153: 0.01683674044 | BL153: =+(BL39-BD39)/BD39 -> 0.1221126124 | BM153: 0.04399558395 | BN153: 0.05183853444 | BO153: 0.05950949884 | BT153: =+(BT39-BL39)/BL39 -> -0.1460579548 | BU153: -0.07305665619 | BV153: -0.07696883089 | BW153: -0.08963038135
A154: AIR-E S.A.S E.S.P | B154: AIRE | D154: SI | Y154: -0.03837694765 | Z154: -0.03461180248 | AA154: -0.02917596077 | AG154: 0.006363677054 | AH154: 0.009042490409 | AI154: 0.01004711277 | AO154: 0.03297493583 | AP154: 0.03853656514 | AQ154: 0.05053778735 | AW154: -0.01020727687 | AX154: -0.01511526041 | AY154: -0.02101505749 | BE154: 0.0220125205 | BF154: 0.01971915828 | BG154: 0.02378184393 | BM154: 0.05073099271 | BN154: 0.06119421865 | BO154: 0.07907580463 | BU154: -0.07318448292 | BV154: -0.09751202031 | BW154: -0.159039778
X156: Diferencia $/kWh OCT Def Vs. Oct Pre | AF156: VARIACIONES % Nov Def Vs. Oct Def | AN156: VARIACIONES % Dic Def Vs. Nov Def | AV156: VARIACIONES % Ene 23 Def Vs. Dic 22 | BD156: VARIACIONES % Feb 23 Def Vs. Ene 23 | BL156: VARIACIONES % Mar 23 Def Vs. Feb 23 | BT156: VARIACIONES % Abr 23 Def Vs. Mar 23
A157: CENTRALES ELECTRICAS DEL NORTE DE SANTANDER S.A E.S.P | B157: CENS | C157: CENTRO | D157: NO | X157: =+X8-P8 -> -1.054745534 | Y157: -1.231630622 | Z157: =+Z8-R8 -> -1.085812633 | AA157: -1.08888968 | AB157: -1.216567081 | AC157: -1.097560338 | AD157: -1.069546739 | AF157: =+AF8-X8 -> -1.744710474 | AG157: 1.285841908 | AH157: -0.475247322 | AI157: -13.01534214 | AJ157: 2.30369385 | AK157: -6.276039653 | AL157: 9.081944434 | AN157: =+AN8-AF8 -> 0.430948814 | AO157: =+AO8-AG8 -> 4.895533599 | AP157: =+AP8-AH8 -> 2.976229035 | AQ157: =+AQ8-AI8 -> 10.64287395 | AR157: =+AR8-AJ8 -> 2.300279187 | AS157: =+AS8-AK8 -> -0.6094574528 | AT157: =+AT8-AL8 -> -8.681994959 | AV157: =+AV8-AN8 -> -0.728139834 | AW157: =+AW8-AO8 -> -2.564573953 | AX157: =+AX8-AP8 -> -1.753597518 | AY157: =+AY8-AQ8 -> -1.098613979 | AZ157: =+AZ8-AR8 -> -18.33131464 | BA157: =+BA8-AS8 -> -7.936133491 | BB157: =+BB8-AT8 -> -3.726462924 | BD157: =+BD8-AV8 -> 1.626799007 | BE157: =+BE8-AW8 -> 5.498796076 | BF157: =+BF8-AX8 -> 3.704558907 | BG157: =+BG8-AY8 -> 2.355554011 | BH157: =+BH8-AZ8 -> 5.719759316 | BI157: =+BI8-BA8 -> 5.702829362 | BJ157: =+BJ8-BB8 -> 2.267316443 | BL157: =+BL8-BD8 -> 1.379109276 | BM157: =+BM8-BE8 -> 5.853273691 | BN157: =+BN8-BF8 -> 3.895224238 | BO157: =+BO8-BG8 -> 2.379230572 | BP157: =+BP8-BH8 -> 20.34175472 | BQ157: =+BQ8-BI8 -> 10.91595615 | BR157: =+BR8-BJ8 -> 4.660934463 | BT157: =+BT8-BL8 -> -2.515136111 | BU157: =+BU8-BM8 -> -3.935346105 | BV157: =+BV8-BN8 -> -1.482210699 | BW157: =+BW8-BO8 -> -0.00365577 | BX157: =+BX8-BP8 -> -0.08120369131 | BY157: =+BY8-BQ8 -> -0.6190550355 | BZ157: =+BZ8-BR8 -> -0.7529799887
A158: CENTRAL HIDROELECTRICA DE CALDAS S.A E.S.P | B158: CHEC | D158: NO | X158: 0 | Y158: -1.180218472 | Z158: -1.088987585 | AA158: -1.069287848 | AB158: -1.216567081 | AC158: -1.097560338 | AD158: -1.069546739 | AF158: 0 | AG158: 3.742399838 | AH158: 1.56383613 | AI158: -11.17090358 | AJ158: 2.30369385 | AK158: -6.276039653 | AL158: 9.762452163 | AN158: 0 | AO158: -26.9226873 | AP158: -5.231226565 | AQ158: 6.964939866 | AR158: 2.300279187 | AS158: -0.6094574528 | AT158: -9.362502688 | AV158: 0 | AW158: -1.802588412 | AX158: -1.15651657 | AY158: -0.758661933 | AZ158: -18.33131464 | BA158: -7.936133491 | BB158: -3.726462924 | BD158: 0 | BE158: 6.00490032 | BF158: 4.309428569 | BG158: 2.231154288 | BH158: 5.719759316 | BI158: 5.702829362 | BJ158: 2.267316443 | BL158: 0 | BM158: 6.533776989 | BN158: 4.646103092 | BO158: 2.313097824 | BP158: 20.34175472 | BQ158: 10.91595615 | BR158: 4.660934463 | BT158: 0 | BU158: -5.396992663 | BV158: -4.582056034 | BW158: -2.65996604 | BX158: -0.08120369131 | BY158: -0.6190550355 | BZ158: -0.7529799887
A159: EMPRESA DE ENERGIA DEL QUINDIO S.A. E.S.P. | B159: EDEQ | D159: NO | X159: 0 | Y159: -1.183498315 | Z159: -1.08810835 | AA159: -1.071351481 | AB159: -1.216567081 | AC159: -1.097560338 | AD159: -1.069546739 | AF159: 0 | AG159: 2.138633541 | AH159: 1.248347855 | AI159: -19.70615634 | AJ159: 2.30369385 | AK159: -6.276039653 | AL159: 18.30518441 | AN159: 0 | AO159: 5.742063714 | AP159: 4.304212609 | AQ159: 20.47740248 | AR159: 2.300279187 | AS159: -0.6094574528 | AT159: -17.90523493 | AV159: 0 | AW159: -3.157034104 | AX159: -2.442539063 | AY159: -1.184887295 | AZ159: -18.33131464 | BA159: -7.936133491 | BB159: -3.726462924 | BD159: 0 | BE159: 5.745783597 | BF159: 4.585115858 | BG159: 2.432611954 | BH159: 5.719759316 | BI159: 5.702829362 | BJ159: 2.267316443 | BL159: 0 | BM159: 6.242444134 | BN159: 4.88895313 | BO159: 2.362110375 | BP159: 20.34175472 | BQ159: 10.91595615 | BR159: 4.660934463 | BT159: 0 | BU159: -2.530649715 | BV159: -3.631721845 | BW159: -1.313546415 | BX159: -0.08120369131 | BY159: -0.6190550355 | BZ159: -0.7529799887
A160: EMPRESA DE ENERGIA DE PEREIRA S.A. E.S.P. | B160: EEP Pereira | D160: NO | X160: 0 | Y160: -1.171840094 | Z160: -1.078678806 | AA160: -1.07037298 | AB160: -1.216567081 | AC160: -1.097560338 | AD160: -1.069546739 | AF160: 0 | AG160: 0.470410221 | AH160: -0.257924778 | AI160: 11.34053382 | AJ160: 2.30369385 | AK160: -6.276039653 | AL160: -13.17352939 | AN160: 0 | AO160: 3.541276748 | AP160: 2.358510934 | AQ160: -11.58093744 | AR160: 2.300279187 | AS160: -0.6094574528 | AT160: 13.57347887 | AV160: 0 | AW160: -2.323966224 | AX160: -1.624772098 | AY160: -0.972421359 | AZ160: -18.33131464 | BA160: -7.936133491 | BB160: -3.726462924 | BD160: 0 | BE160: 3.958819491 | BF160: 2.950114642 | BG160: 2.062534461 | BH160: 5.719759316 | BI160: 5.702829362 | BJ160: 2.267316443 | BL160: 0 | BM160: 4.095091719 | BN160: 3.024364344 | BO160: 1.874223071 | BP160: 20.34175472 | BQ160: 10.91595615 | BR160: 4.660934463 | BT160: 0 | BU160: -5.793411253 | BV160: -3.646054964 | BW160: -5.032631204 | BX160: -0.08120369131 | BY160: -0.6190550355 | BZ160: -0.7529799887
A161: EMPRESAS PUBLICAS DE MEDELLIN E.S.P | B161: EPM | D161: NO | X161: 0 | Y161: -1.197009525 | Z161: -1.072400834 | AA161: -1.064916592 | AB161: -1.216567081 | AC161: -1.097560338 | AD161: -1.069546739 | AF161: 0 | AG161: -29.06943561 | AH161: -18.1835026 | AI161: -0.4239426713 | AJ161: 2.30369385 | AK161: -6.276039653 | AL161: -5.599530867 | AN161: 0 | AO161: 4.636893787 | AP161: 2.953369464 | AQ161: -3.753871009 | AR161: 2.300279187 | AS161: -0.6094574528 | AT161: 5.999480342 | AV161: 0 | AW161: -2.399048006 | AX161: -1.679700574 | AY161: -0.856524227 | AZ161: -18.33131464 | BA161: -7.936133491 | BB161: -3.726462924 | BD161: 0 | BE161: 4.884191358 | BF161: 3.471329754 | BG161: 2.298873784 | BH161: 5.719759316 | BI161: 5.702829362 | BJ161: 2.267316443 | BL161: 0 | BM161: 5.069090422 | BN161: 3.535516216 | BO161: 2.24777134 | BP161: 20.34175472 | BQ161: 10.91595615 | BR161: 4.660934463 | BT161: 0 | BU161: 1.046286735 | BV161: 0.533358989 | BW161: -0.263972089 | BX161: -0.08120369131 | BY161: -0.6190550355 | BZ161: -0.7529799887
A162: ELECTRIFICADORA DE SANTANDER S.A. E.S.P. | B162: ESSA | D162: NO | X162: 0 | Y162: -1.211861722 | Z162: -1.091160295 | AA162: -1.074626117 | AB162: -1.216567081 | AC162: -1.097560338 | AD162: -1.069546739 | AF162: 0 | AG162: 3.078395632 | AH162: 0.880633098 | AI162: 0.3270693957 | AJ162: 2.30369385 | AK162: -6.276039653 | AL162: -2.093756735 | AN162: 0 | AO162: 8.294121017 | AP162: 4.870398145 | AQ162: 0.2521074203 | AR162: 2.300279187 | AS162: -0.6094574528 | AT162: 2.49370621 | AV162: 0 | AW162: -0.799030726 | AX162: -0.839195286 | AY162: -0.748844884 | AZ162: -18.33131464 | BA162: -7.936133491 | BB162: -3.726462924 | BD162: 0 | BE162: 8.456501106 | BF162: 5.234455662 | BG162: 2.433872764 | BH162: 5.719759316 | BI162: 5.702829362 | BJ162: 2.267316443 | BL162: 0 | BM162: 7.943100345 | BN162: 4.950761649 | BO162: 2.265740781 | BP162: 20.34175472 | BQ162: 10.91595615 | BR162: 4.660934463 | BT162: 0 | BU162: -1.369300929 | BV162: 1.123245155 | BW162: -1.426096675 | BX162: -0.08120369131 | BY162: -0.6190550355 | BZ162: -0.7529799887
A163: RUITOQUE E.S.P | B163: RUITOQUE | D163: SI | X163: 0 | Y163: -16.96346484 | Z163: -11.65072338 | AA163: -0.458546071 | AB163: -1.216567081 | AC163: -1.097560338 | AD163: -1.069546739 | AF163: 0 | AG163: 125.4076608 | AH163: 123.6658332 | AI163: 22.94663883 | AJ163: 2.30369385 | AK163: -6.276039653 | AL163: 89.64308821 | AN163: 0 | AO163: 18.40252352 | AP163: 16.21555108 | AQ163: 95.057737 | AR163: 2.300279187 | AS163: -0.6094574528 | AT163: -89.24313874 | AV163: 0 | AW163: 17.72763676 | AX163: 15.53405602 | AY163: 3.66287899 | AZ163: -18.33131464 | BA163: -7.936133491 | BB163: -3.726462924 | BD163: 0 | BE163: 22.7062356 | BF163: 20.06836399 | BG163: 6.5068008 | BH163: 5.719759316 | BI163: 5.702829362 | BJ163: 2.267316443 | BL163: 0 | BM163: 23.78472284 | BN163: 20.99824369 | BO163: 6.781087148 | BP163: 20.34175472 | BQ163: 10.91595615 | BR163: 4.660934463 | BT163: 0 | BU163: -48.51840464 | BV163: -47.10078801 | BW163: -50.81907224 | BX163: -0.08120369131 | BY163: -0.6190550355 | BZ163: -0.7529799887
X164: =+X15-P15 -> 0 | AF164: =+AF15-X15 -> 0 | AN164: 0 | AV164: 0 | BD164: 0 | BL164: 0 | BT164: 0
A165: CENTRALES ELECTRICAS DE NARIÑO S.A. E.S.P. | B165: CEDENAR | C165: OCCIDENTE | D165: SI | X165: 0 | Y165: =+Y16-Q16 -> -23.55009404 | Z165: -14.72212748 | AA165: -7.829366936 | AB165: -15.88493377 | AC165: -8.773032124 | AD165: -4.469147062 | AF165: 0 | AG165: =+AG16-Y16 -> -0.203239942 | AH165: -0.761525626 | AI165: -1.374394123 | AJ165: 7.133866719 | AK165: 6.326818028 | AL165: 0.2120987064 | AN165: 0 | AO165: =+AO16-AG16 -> 2.257574462 | AP165: =+AP16-AH16 -> 1.470044489 | AQ165: =+AQ16-AI16 -> 0.830618714 | AR165: =+AR16-AJ16 -> 1.324643059 | AS165: =+AS16-AK16 -> 1.538993222 | AT165: =+AT16-AL16 -> 3.208353058 | AV165: 0 | AW165: =+AW16-AO16 -> 1.739744293 | AX165: =+AX16-AP16 -> 0.814785486 | AY165: =+AY16-AQ16 -> 0.199742651 | AZ165: =+AZ16-AR16 -> -3.172439877 | BA165: =+BA16-AS16 -> 0.6166363663 | BB165: =+BB16-AT16 -> 0.03977837179 | BD165: 0 | BE165: =+BE16-AW16 -> 4.209406281 | BF165: =+BF16-AX16 -> 3.036070004 | BG165: =+BG16-AY16 -> 1.780180491 | BH165: =+BH16-AZ16 -> 8.380317476 | BI165: =+BI16-BA16 -> 0.9782305193 | BJ165: =+BJ16-BB16 -> 2.255947607 | BL165: 0 | BM165: =+BM16-BE16 -> -35.20252609 | BN165: =+BN16-BF16 -> -32.26829581 | BO165: =+BO16-BG16 -> -49.03470421 | BP165: =+BP16-BH16 -> 2.613341564 | BQ165: =+BQ16-BI16 -> 0.5058212228 | BR165: =+BR16-BJ16 -> 1.801469516 | BT165: 0 | BU165: =+BU16-BM16 -> -14.62509316 | BV165: =+BV16-BN16 -> -7.360469823 | BW165: =+BW16-BO16 -> -6.330185935 | BX165: =+BX16-BP16 -> -12.83215127 | BY165: =+BY16-BQ16 -> -3.127855688 | BZ165: =+BZ16-BR16 -> -0.9826335148
A166: CELSIA COLOMBIA S.A. E.S.P-VALLE | B166: CELSIA COLOMBIA Valle | D166: SI | X166: 0 | Y166: -24.50815334 | Z166: -15.9676452 | AA166: -7.060691631 | AB166: -15.88493377 | AC166: -8.773032124 | AD166: -4.469147062 | AF166: 0 | AG166: 18.49705632 | AH166: 16.82367038 | AI166: 6.546379303 | AJ166: 7.133866719 | AK166: 6.326818028 | AL166: 0.2120987064 | AN166: 0 | AO166: 4.247927921 | AP166: 3.426538474 | AQ166: 1.366614261 | AR166: 1.324643059 | AS166: 1.538993222 | AT166: 3.208353058 | AV166: 0 | AW166: 1.942233739 | AX166: 1.027204032 | AY166: -0.077816686 | AZ166: -3.172439877 | BA166: 0.6166363663 | BB166: 0.03977837179 | BD166: 0 | BE166: 5.819119771 | BF166: 4.339911192 | BG166: 2.550039238 | BH166: 8.380317476 | BI166: 0.9782305193 | BJ166: 2.255947607 | BL166: 0 | BM166: 6.057677659 | BN166: 4.387541802 | BO166: 2.572840144 | BP166: 2.613341564 | BQ166: 0.5058212228 | BR166: 1.801469516 | BT166: 0 | BU166: -3.690015625 | BV166: -2.280685616 | BW166: -1.114916188 | BX166: -12.83215127 | BY166: -3.127855688 | BZ166: -0.9826335148
A167: COMPAÑIA ENERGETICA DE OCCIDENTE S.A.S. ESP | B167: CEO | D167: SI | X167: 0 | Y167: -20.57259089 | Z167: -13.5912592 | AA167: -4.151558127 | AB167: -15.88493377 | AC167: -8.773032124 | AD167: -4.469147062 | AF167: 0 | AG167: 0.286454963 | AH167: -0.255191142 | AI167: -1.702457177 | AJ167: 7.133866719 | AK167: 6.326818028 | AL167: 0.2120987064 | AN167: 0 | AO167: 3.27789498 | AP167: 2.274265297 | AQ167: 0.511334554 | AR167: 1.324643059 | AS167: 1.538993222 | AT167: 3.208353058 | AV167: 0 | AW167: 2.061285103 | AX167: 1.227155477 | AY167: -0.099796908 | AZ167: -3.172439877 | BA167: 0.6166363663 | BB167: 0.03977837179 | BD167: 0 | BE167: 5.193782927 | BF167: 3.844401368 | BG167: 2.183983925 | BH167: 8.380317476 | BI167: 0.9782305193 | BJ167: 2.255947607 | BL167: 0 | BM167: 7.307402001 | BN167: 5.106560414 | BO167: 2.348462154 | BP167: 2.613341564 | BQ167: 0.5058212228 | BR167: 1.801469516 | BT167: 0 | BU167: 7.757610697 | BV167: 4.563453229 | BW167: 6.372318766 | BX167: -12.83215127 | BY167: -3.127855688 | BZ167: -0.9826335148
A168: COMPAÑÍA DE ELECTRICIDAD DE TULUÁ S.A. E.S.P-TULUA | B168: CETSA | D168: SI | X168: 0 | Y168: -17.37205757 | Z168: -11.2363223 | AA168: -5.881513448 | AB168: -15.88493377 | AC168: -8.773032124 | AD168: -4.469147062 | AF168: 0 | AG168: -0.955238025 | AH168: -1.323306074 | AI168: -1.774874516 | AJ168: 7.133866719 | AK168: 6.326818028 | AL168: 0.2120987064 | AN168: 0 | AO168: -3.618765117 | AP168: -3.878324114 | AQ168: 0.326078163 | AR168: 1.324643059 | AS168: 1.538993222 | AT168: 3.208353058 | AV168: 0 | AW168: 1.067674574 | AX168: 0.333620765 | AY168: -0.402491773 | AZ168: -3.172439877 | BA168: 0.6166363663 | BB168: 0.03977837179 | BD168: 0 | BE168: 3.56963377 | BF168: 2.651679654 | BG168: 1.94401219 | BH168: 8.380317476 | BI168: 0.9782305193 | BJ168: 2.255947607 | BL168: 0 | BM168: 4.088944522 | BN168: 2.844044049 | BO168: 1.7559323 | BP168: 2.613341564 | BQ168: 0.5058212228 | BR168: 1.801469516 | BT168: 0 | BU168: -20.29104449 | BV168: -17.99285497 | BW168: -15.41772312 | BX168: -12.83215127 | BY168: -3.127855688 | BZ168: -0.9826335148
A169: EMPRESA DE ENERGÍA DE PEREIRA S.A E.S.P-MERCADO CARTAGO | B169: EEP Cartago | D169: NO | X169: 0 | Y169: -1.24413818 | Z169: -1.099208523 | AA169: -1.083501668 | AB169: -15.88493377 | AC169: -8.773032124 | AD169: -4.469147062 | AF169: 0 | AG169: 0.46234728 | AH169: -0.247668233 | AI169: -0.948045436 | AJ169: 7.133866719 | AK169: 6.326818028 | AL169: 0.2120987064 | AN169: 0 | AO169: 4.41349205 | AP169: 2.496003766 | AQ169: 1.494634943 | AR169: 1.324643059 | AS169: 1.538993222 | AT169: 3.208353058 | AV169: 0 | AW169: -2.109240748 | AX169: -1.413591876 | AY169: -1.163875024 | AZ169: -3.172439877 | BA169: 0.6166363663 | BB169: 0.03977837179 | BD169: 0 | BE169: 4.357652965 | BF169: 3.07967579 | BG169: 2.304761998 | BH169: 8.380317476 | BI169: 0.9782305193 | BJ169: 2.255947607 | BL169: 0 | BM169: 4.938165409 | BN169: 3.167987181 | BO169: 2.292210827 | BP169: 2.613341564 | BQ169: 0.5058212228 | BR169: 1.801469516 | BT169: 0 | BU169: -7.535990845 | BV169: -8.056743142 | BW169: -6.879756108 | BX169: -12.83215127 | BY169: -3.127855688 | BZ169: -0.9826335148
A170: EMPRESAS MUNICIPALES DE CALI E.I.C.E. E.S.P. | B170: EMCALI | D170: SI | X170: 0 | Y170: -8.092446848 | Z170: -4.831678382 | AA170: -2.623229308 | AB170: -15.88493377 | AC170: -8.773032124 | AD170: -4.469147062 | AF170: 0 | AG170: -0.915337882 | AH170: -1.247310189 | AI170: -1.530078588 | AJ170: 7.133866719 | AK170: 6.326818028 | AL170: 0.2120987064 | AN170: 0 | AO170: 1.64085882 | AP170: 1.039418062 | AQ170: 0.672631655 | AR170: 1.324643059 | AS170: 1.538993222 | AT170: 3.208353058 | AV170: 0 | AW170: 0.908498561 | AX170: 0.14673713 | AY170: -0.317271271 | AZ170: -3.172439877 | BA170: 0.6166363663 | BB170: 0.03977837179 | BD170: 0 | BE170: 3.50890313 | BF170: 2.499266538 | BG170: 1.924025548 | BH170: 8.380317476 | BI170: 0.9782305193 | BJ170: 2.255947607 | BL170: 0 | BM170: 3.577063376 | BN170: 2.477802547 | BO170: 1.842788053 | BP170: 2.613341564 | BQ170: 0.5058212228 | BR170: 1.801469516 | BT170: 0 | BU170: -3.383898231 | BV170: -5.370296741 | BW170: -2.691132403 | BX170: -12.83215127 | BY170: -3.127855688 | BZ170: -0.9826335148
A171: EMPRESA MUNICIPAL DE ENERGÍA ELÉCTRICA S.A E.S.P | B171: EMEESA | D171: NO | X171: 0 | Y171: -1.166160447 | Z171: -1.073450692 | AA171: -1.041304376 | AB171: -15.88493377 | AC171: -8.773032124 | AD171: -4.469147062 | AF171: 0 | AG171: -5.889931725 | AH171: -6.726021324 | AI171: -1.711744345 | AJ171: 7.133866719 | AK171: 6.326818028 | AL171: 0.2120987064 | AN171: 0 | AO171: -4.806233855 | AP171: -5.779068241 | AQ171: 0.385106358 | AR171: 1.324643059 | AS171: 1.538993222 | AT171: 3.208353058 | AV171: 0 | AW171: 2.936705834 | AX171: 5.514028714 | AY171: -0.56846356 | AZ171: -3.172439877 | BA171: 0.6166363663 | BB171: 0.03977837179 | BD171: 0 | BE171: -2.333965983 | BF171: -3.530365678 | BG171: 1.424218958 | BH171: 8.380317476 | BI171: 0.9782305193 | BJ171: 2.255947607 | BL171: 0 | BM171: 2.436873675 | BN171: 4.115891415 | BO171: 1.304960225 | BP171: 2.613341564 | BQ171: 0.5058212228 | BR171: 1.801469516 | BT171: 0 | BU171: 14.05377779 | BV171: 17.10043611 | BW171: -1.202023354 | BX171: -12.83215127 | BY171: -3.127855688 | BZ171: -0.9826335148
X172: 0 | AF172: 0 | AN172: 0 | AV172: 0 | BD172: 0 | BL172: 0 | BT172: 0
A173: CELSIA COLOMBIA S.A. E.S.P-TOLIMA | B173: CELSIA COLOMBIA Tolima | C173: ORIENTE | D173: SI | X173: 0 | Y173: =+Y24-Q24 -> -30.35555408 | Z173: -18.95521629 | AA173: -6.755353633 | AB173: -8.395358798 | AC173: -6.92629201 | AD173: -4.352651929 | AF173: 0 | AG173: =+AG24-Y24 -> -0.153160431 | AH173: -1.12351694 | AI173: -1.468847581 | AJ173: 8.395358798 | AK173: 3.195571428 | AL173: -1.098121188 | AN173: 0 | AO173: =+AO24-AG24 -> 1.318521384 | AP173: 0.792823345 | AQ173: 0.939744459 | AR173: -17.94265188 | AS173: -1.520576962 | AT173: -1.930055923 | AV173: 0 | AW173: =+AW24-AO24 -> 2.341523592 | AX173: 1.091713121 | AY173: 0.05222978 | AZ173: 2.968602821 | BA173: -3.970374056 | BB173: -0.9046369764 | BD173: 0 | BE173: =+BE24-AW24 -> 5.989866044 | BF173: 3.883679169 | BG173: 2.605219066 | BH173: 3.851458692 | BI173: 6.014532832 | BJ173: 5.419409806 | BL173: 0 | BM173: =+BM24-BE24 -> 6.677313994 | BN173: 4.263161735 | BO173: 2.935051718 | BP173: 17.23841501 | BQ173: 6.924297076 | BR173: 3.450607629 | BT173: 0 | BU173: =+BU24-BM24 -> -13.35012678 | BV173: =+BV24-BN24 -> -8.793427751 | BW173: =+BW24-BO24 -> -5.412951873 | BX173: =+BX24-BP24 -> -2.816505315 | BY173: =+BY24-BQ24 -> 0.8032454794 | BZ173: =+BZ24-BR24 -> 0.9848774141
A174: EMPRESA DE ENERGIA DE BOYACA S.A. E.S.P. | B174: EBSA | D174: SI | X174: 0 | Y174: -20.13882009 | Z174: -14.025967 | AA174: -6.961440402 | AB174: -8.395358798 | AC174: -6.92629201 | AD174: -4.352651929 | AF174: 0 | AG174: -0.12773214 | AH174: -0.423198164 | AI174: -1.146876903 | AJ174: 6.943405175 | AK174: 3.195571428 | AL174: -1.098121188 | AN174: 0 | AO174: 2.646864084 | AP174: 1.955402606 | AQ174: 1.080681667 | AR174: -16.49069826 | AS174: -1.520576962 | AT174: -1.930055923 | AV174: 0 | AW174: 2.140851315 | AX174: 1.308656334 | AY174: 0.127228383 | AZ174: 2.968602821 | BA174: -3.970374056 | BB174: -0.9046369764 | BD174: 0 | BE174: 5.406073875 | BF174: 4.008700083 | BG174: 2.699819116 | BH174: 3.851458692 | BI174: 6.014532832 | BJ174: 5.419409806 | BL174: 0 | BM174: 5.565110452 | BN174: 4.110968062 | BO174: 2.707030069 | BP174: 17.23841501 | BQ174: 6.924297076 | BR174: 3.450607629 | BT174: 0 | BU174: -8.024742642 | BV174: -8.905055331 | BW174: -9.707966406 | BX174: -2.816505315 | BY174: 0.8032454794 | BZ174: 0.9848774141
A175: ELECTRIFICADORE DEL HUILA | B175: ELECTROHUILA | D175: NO | X175: 0 | Y175: -1.197806624 | Z175: -1.08688973 | AA175: -1.070264367 | AB175: -8.395358798 | AC175: -6.92629201 | AD175: -4.352651929 | AF175: 0 | AG175: 1.426518123 | AH175: 0.69830689 | AI175: -1.044245533 | AJ175: 6.943405175 | AK175: 3.195571428 | AL175: -1.098121188 | AN175: 0 | AO175: 4.390479193 | AP175: 3.294849146 | AQ175: 1.1977539 | AR175: -16.49069826 | AS175: -1.520576962 | AT175: -1.930055923 | AV175: 0 | AW175: 25.66898514 | AX175: 9.485059691 | AY175: -0.059870338 | AZ175: 2.968602821 | BA175: -3.970374056 | BB175: -0.9046369764 | BD175: 0 | BE175: 5.129976241 | BF175: 3.921879243 | BG175: 2.114603909 | BH175: 3.851458692 | BI175: 6.014532832 | BJ175: 5.419409806 | BL175: 0 | BM175: 5.81337483 | BN175: 4.36539707 | BO175: 2.200727524 | BP175: 17.23841501 | BQ175: 6.924297076 | BR175: 3.450607629 | BT175: 0 | BU175: -0.123579424 | BV175: 0.14305196 | BW175: 2.629957032 | BX175: -2.816505315 | BY175: 0.8032454794 | BZ175: 0.9848774141
A176: ENEL COLOMBIA S.A. E.S.P | B176: ENEL COLOMBIA | D176: SI | X176: 0 | Y176: -9.964059794 | Z176: -6.358355936 | AA176: -4.147622804 | AB176: -8.395358798 | AC176: -6.92629201 | AD176: -4.352651929 | AF176: 0 | AG176: -0.97957471 | AH176: -1.120123664 | AI176: -2.393141955 | AJ176: 6.943405175 | AK176: 3.195571428 | AL176: -1.098121188 | AN176: 0 | AO176: 1.437329044 | AP176: 1.00486057 | AQ176: 0.923517511 | AR176: -16.49069826 | AS176: -1.520576962 | AT176: -1.930055923 | AV176: 0 | AW176: 0.861881254 | AX176: 0.192633346 | AY176: 0.154244306 | AZ176: 2.968602821 | BA176: -3.970374056 | BB176: -0.9046369764 | BD176: 0 | BE176: 3.586180691 | BF176: 2.646481494 | BG176: 2.488435572 | BH176: 3.851458692 | BI176: 6.014532832 | BJ176: 5.419409806 | BL176: 0 | BM176: 3.868963356 | BN176: 2.781231545 | BO176: 2.537476758 | BP176: 17.23841501 | BQ176: 6.924297076 | BR176: 3.450607629 | BT176: 0 | BU176: 1.033833919 | BV176: 3.663609185 | BW176: 5.200602202 | BX176: -2.816505315 | BY176: 0.8032454794 | BZ176: 0.9848774141
A177: EMPRESA DE ENERGÍA DE ARAUCA | B177: ENELAR | D177: SI | X177: 0 | Y177: -25.45691317 | Z177: -20.30412916 | AA177: -4.766481977 | AB177: -8.395358798 | AC177: -6.92629201 | AD177: -4.352651929 | AF177: 0 | AG177: -0.701647649 | AH177: -1.05118969 | AI177: -2.751051952 | AJ177: 6.943405175 | AK177: 3.195571428 | AL177: -1.098121188 | AN177: 0 | AO177: 5.903191769 | AP177: 4.885402239 | AQ177: 1.943069755 | AR177: -16.49069826 | AS177: -1.520576962 | AT177: -1.930055923 | AV177: 0 | AW177: 6.281728542 | AX177: 4.829607595 | AY177: 0.231066725 | AZ177: 2.968602821 | BA177: -3.970374056 | BB177: -0.9046369764 | BD177: 0 | BE177: 10.64754052 | BF177: 8.574555589 | BG177: 2.954624409 | BH177: 3.851458692 | BI177: 6.014532832 | BJ177: 5.419409806 | BL177: 0 | BM177: -3.651871275 | BN177: -4.615286825 | BO177: -9.112402322 | BP177: 17.23841501 | BQ177: 6.924297076 | BR177: 3.450607629 | BT177: 0 | BU177: -6.868213301 | BV177: -4.282068722 | BW177: -0.457445699 | BX177: -2.816505315 | BY177: 0.8032454794 | BZ177: 0.9848774141
X178: 0 | AF178: 0 | AN178: 0 | AV178: 0 | BD178: 0 | BL178: 0 | BT178: 0
A179: EMPRESA DE ENERGÍA DEL BAJO PUTUMAYO S.A E.S.P | B179: EEBP | C179: SUR | D179: NO | X179: 0 | Y179: =+Y30-Q30 -> -1.151293919 | Z179: -1.073696708 | AA179: -1.066261155 | AB179: -3.246217142 | AC179: -2.422846705 | AD179: -1.205641292 | AF179: 0 | AG179: =+AG30-Y30 -> 0.408004074 | AH179: -1.414155383 | AI179: -1.715501312 | AJ179: -5.487799611 | AK179: -6.584085073 | AL179: -8.406565465 | AN179: 0 | AO179: =+AO30-AG30 -> 2.706865264 | AP179: 0.680633989 | AQ179: 0.407429464 | AR179: 5.236807218 | AS179: 3.485643646 | AT179: 1.646420229 | AV179: 0 | AW179: =+AW30-AO30 -> -3.894586226 | AX179: -1.137895553 | AY179: -0.637095155 | AZ179: -8.076664038 | BA179: -22.54292824 | BB179: -11.66520573 | BD179: 0 | BE179: =+BE30-AW30 -> 3.990614703 | BF179: 1.806348752 | BG179: 1.502273343 | BH179: -0.003540886095 | BI179: 3.707633955 | BJ179: 2.363564531 | BL179: 0 | BM179: =+BM30-BE30 -> 3.125379877 | BN179: 1.613910067 | BO179: 1.387278703 | BP179: -2.529331443 | BQ179: 3.483117375 | BR179: 2.487458312 | BT179: 0 | BU179: =+BU30-BM30 -> -3.308575354 | BV179: =+BV30-BN30 -> -10.18593692 | BW179: =+BW30-BO30 -> -16.92100964 | BX179: =+BX30-BP30 -> -7.256487768 | BY179: =+BY30-BQ30 -> -8.31992643 | BZ179: =+BZ30-BR30 -> -7.655444663
A180: ELECTRIFICADORA DEL CAQUETA S.A. E.S.P | B180: ELECTROCAQUETA | D180: SI | X180: 0 | Y180: -16.93427862 | Z180: -11.26340442 | AA180: -3.045580764 | AB180: -3.246217142 | AC180: -2.422846705 | AD180: -1.205641292 | AF180: 0 | AG180: -0.704730813 | AH180: -0.969486861 | AI180: -1.60576242 | AJ180: -5.487799611 | AK180: -6.584085073 | AL180: -8.406565465 | AN180: 0 | AO180: 1.223988621 | AP180: 0.888108295 | AQ180: 0.445772085 | AR180: 5.236807218 | AS180: 3.485643646 | AT180: 1.646420229 | AV180: 0 | AW180: 1.175473167 | AX180: 0.518052714 | AY180: -0.49367618 | AZ180: -8.076664038 | BA180: -22.54292824 | BB180: -11.66520573 | BD180: 0 | BE180: 5.776890224 | BF180: 4.159073272 | BG180: 2.028155827 | BH180: -0.003540886095 | BI180: 3.707633955 | BJ180: 2.363564531 | BL180: 0 | BM180: 5.300780892 | BN180: 3.887962737 | BO180: 1.885497436 | BP180: -2.529331443 | BQ180: 3.483117375 | BR180: 2.487458312 | BT180: 0 | BU180: -8.094467693 | BV180: -2.958206616 | BW180: -4.048564951 | BX180: -7.256487768 | BY180: -8.31992643 | BZ180: -7.655444663
A181: EMPRESA DE ENERGÍA DEL VALLE DEL SIBUNDOY | B181: EMEVASI | D181: NO | AG181: =+AG32-Y32 -> 2.0794958 | AH181: 1.4254304 | AI181: 0.539652 | AO181: =+AO32-AG32 -> 5.3332827 | AP181: 3.0650376 | AQ181: -0.3407728 | AW181: =+AW32-AO32 -> 9.1084328 | AX181: 6.218123 | AY181: 2.2894989 | BE181: =+BE32-AW32 -> -3.5255662 | BF181: -2.4451586 | BG181: -0.9981077 | BM181: =+BM32-BE32 -> 8.6240814 | BN181: 6.173175 | BO181: 3.0019165 | BU181: 8.4568328 | BV181: 5.9755706 | BW181: 2.716298
A182: ELECTRIFICADORA DEL META S.A. E.S.P | B182: EMSA | D182: NO | X182: =+X33-P33 -> 0 | Y182: =+Y33-Q33 -> -1.181065489 | Z182: -1.092955002 | AA182: -1.077260275 | AB182: -3.246217142 | AC182: -2.422846705 | AD182: -1.205641292 | AF182: =+AF33-X33 -> 0 | AG182: -4.819432336 | AH182: -5.18673457 | AI182: -5.990994476 | AJ182: =+AJ33-AB33 -> -5.487799611 | AK182: -6.584085073 | AL182: -8.406565465 | AN182: =+AN33-AF33 -> 0 | AO182: 2.837354498 | AP182: 2.127223502 | AQ182: 1.041614277 | AR182: =+AR33-AJ33 -> 5.236807218 | AS182: 3.485643646 | AT182: 1.646420229 | AV182: =+AV33-AN33 -> 0 | AW182: -1.56484652 | AX182: -1.338775924 | AY182: -0.997306406 | AZ182: =+AZ33-AR33 -> -8.076664038 | BA182: -22.54292824 | BB182: -11.66520573 | BD182: =+BD33-AV33 -> 0 | BE182: 4.393775776 | BF182: 3.422579674 | BG182: 2.140134875 | BH182: =+BH33-AZ33 -> -0.003540886095 | BI182: 3.707633955 | BJ182: 2.363564531 | BL182: =+BL33-BD33 -> 0 | BM182: 4.136020742 | BN182: 3.231387724 | BO182: 1.972809459 | BP182: =+BP33-BH33 -> -2.529331443 | BQ182: 3.483117375 | BR182: 2.487458312 | BT182: =+BT33-BL33 -> 0 | BU182: -10.35400255 | BV182: -8.714882265 | BW182: -8.472684286 | BX182: =+BX33-BP33 -> -7.256487768 | BY182: =+BY33-BQ33 -> -8.31992643 | BZ182: =+BZ33-BR33 -> -7.655444663
